Workbook

Sheet Information
C5: INTRODUCTION TO WATER EFFICIENCY WE CALCULATOR (Version 1.1c updated 1 June 2020)
C6: The WE Calculator is a software tool capable of performing integrated water use and water efficiency calculations. It is developed by the Greenbuildingindex Sdn Bhd (GSB) for public use free of charge. The WE Calculator is a copyright of GSB in which GSB reserves all rights. No part of the WE Calculator may be modified or reproduced without the prior written permission of GSB. This software tool allows GSB practitioners to simulate their designs for innovative and creative solutions for water use and water efficiency in various systems, such as cooling towers, condensate water harvesting, rainwater harvesting, recycling of waste water, water efficient fixtures, landscaping, water features and the like. Return on investment can be computed with precision and results illustrated via a report summary that can be printed. The tool covers applications for all categories of buildings from Office buildings to Hotels, Apartments, Service Apartments, Retail and more. The WE Calculator will be maintained by GSB and periodically updated with the latest meteorological rainfall data of Malaysia. It will also be updated to compute CO2 reduction due to water savings when the water coefficient figures are made available by the Government of Malaysia.
C8: INSTRUCTION TO USE
C9: Navigation
C10: Main Page | D10: Navigate by clicking on these tabs
C12: Data input
D13: Empty cells - where input datas are entered to carry out water use and water efficiency calculations
C15: Printing
C16: Print Area has been set for all calculation sheets and report. Please note that it is required to select the following options for the printouts depending on the selected tabs.
C17: Option 1 | D17: "Portrait" or "Landscape"
D18: Printouts are set to 1 page width
C19: Option 2 | D19: Paper size "A4" or "A3"
D20: All outputs are generally set for A4 sized printing except for Rainwater Harvesting Simulations which shall be printed in A3 size in portrait setting.
C22: Green Building Index

Sheet Main
P1: Version 2018c
B2: Project: | C2: Project Name | N2: Date: | O2: 2020-06-01 | P2: Rev. No.: | R2: =AirCond!G3 -> 0 | X2: Yes | AA2: Type | AB2: Design Days/wk | AC2: Operating days/year | AD2: Operating hrs/year
B4: Base Building Occupancy | D4: =WaterFittings!F7 -> Office | H4: Annual Water Consumption | J4: Baseline | L4: Design Case
B5: Area/unit | D5: =WaterFittings!G9 -> 1 | E5: =WaterFittings!E9 -> room | J5: Potable Water Consump- tion | K5: Percentage Distribution | L5: Consump- tion | M5: Percentage Distribution | N5: Greywater Recycling | O5: AC Condensate Recovery | P5: Resultant potable water usage | Q5: Rainwater Harvesting
B6: Occupancy | D6: =WaterFittings!G10 -> 0 | E6: =WaterFittings!E10 -> person/room
B7: Base population | D7: =WaterFittings!G11 ->  | E7: person
B8: Operating weeks per year | D8: =WaterFittings!AW10 -> 52 | H8: Fixtures Usage | I8: Flushing | J8: =SUM(WaterFittings!AV97,WaterFittings!AV118,WaterFittings!AV141) ->  | K8: =IF(J8/J$24=0,"",J8/J$24) ->  | L8: =SUM(WaterFittings!AW97,WaterFittings!AW118,WaterFittings!AW141) ->  | M8: =IF(L8/L$24=0,"",L8/L$24) ->  | N8: =SUM(System1!Q28,System2!Q28,System3!Q28) ->  | O8: =SUM(System1!W28,System2!W28,System3!W28) ->  | P8: =L8-N8-O8 ->  | Q8: =MIN(P8,System1!N28+System2!N28+System3!N28) -> 
B9: Operating days per week | D9: =WaterFittings!AV10 -> 7 | I9: Shower | J9: =SUM(WaterFittings!AV98,WaterFittings!AV119,WaterFittings!AV142) ->  | L9: =SUM(WaterFittings!AW98,WaterFittings!AW119,WaterFittings!AW142) -> 
B10: Operating days per year | D10: =WaterFittings!BO372 -> 365 | I10: Wash hand basin | J10: =SUM(WaterFittings!AV99,WaterFittings!AV120,WaterFittings!AV143) ->  | L10: =SUM(WaterFittings!AW99,WaterFittings!AW120,WaterFittings!AW143) -> 
B11: Average Daily Consumption (design case) | I11: Ablution | J11: =SUM(WaterFittings!AV100,WaterFittings!AV121,WaterFittings!AV144) ->  | L11: =SUM(WaterFittings!AW100,WaterFittings!AW121,WaterFittings!AW144) -> 
B12: Fixtures & cleaning usage | D12: =ROUND(SUM(L14,L15,L22)*1000/D5/D10,2) ->  | E12: ="L per "&E5 -> L per room | I12: Bib tap | J12: =SUM(WaterFittings!AV101,WaterFittings!AV122,WaterFittings!AV145) ->  | L12: =SUM(WaterFittings!AW101,WaterFittings!AW122,WaterFittings!AW145) -> 
B13: Air Conditioning make-up | D13: =ROUND(L16/D5/D10*1000,2) -> 0 | E13: =E12 -> L per room | I13: Pantry/Dish washing | J13: =SUM(WaterFittings!AV102,WaterFittings!AV123,WaterFittings!AV146) ->  | L13: =SUM(WaterFittings!AW102,WaterFittings!AW123,WaterFittings!AW146) ->  | X13: =IF(D4="hotel",D5,IF(WaterFittings!E9="m2",D5,D7)) -> 
B14: Overall usage | D14: =ROUND(SUM(D12,D13,SUM(L17:L21)/D5/D10*1000),2) ->  | E14: =E12 -> L per room | I14: Sub-total | J14: =SUM(J8:J13) ->  | L14: =SUM(L8:L13) ->  | N14: =SUM(N8:N13) ->  | O14: =SUM(O8:O13) ->  | P14: =SUM(P8:P13) ->  | Q14: =SUM(Q8:Q13) -> 
B15: Rainwater Harvesting | H15: Others | I15: Cleaning | J15: =SUM(WaterFittings!P177:P179) -> 0 | K15: =IF(J15/J$24=0,"",J15/J$24) ->  | L15: =J15 -> 0 | M15: =IF(L15/L$24=0,"",L15/L$24) ->  | N15: =SUM(System1!S28,System2!S28,System3!S28) ->  | O15: =SUM(System1!Y28,System2!Y28,System3!Y28) ->  | P15: =L15-N15-O15 ->  | Q15: =SUM(System1!M28,System2!M28,System3!M28) -> 
B16: Total potable water consumption = | E16: =P24-P22 ->  | F16: m3/yr (Y1) | I16: Air Cond make-up | J16: =IF(R2,SUM(AirCond!G26,AirCond!L26,AirCond!Q26),0) -> 0 | K16: =IF(J16/J$24=0,"",J16/J$24) ->  | L16: =J16 -> 0 | N16: =SUM(System1!R28,System2!R28,System3!R28) ->  | O16: =ROUND(System1!X28+System2!X28+System3!X28,1) ->  | P16: =L16-N16-O16 ->  | Q16: =SUM(System1!O28,System2!O28,System3!O28) -> 
B17: Rainwater Harvested = | E17: =Q24 ->  | F17: m3/yr (X1) | I17: Water Feature | J17: =SUM(WaterFeature!H18:I18) -> 0 | L17: =J17 -> 0 | N17: =SUM(System1!U28,System2!U28,System3!U28) ->  | O17: =SUM(System1!AA28,System2!AA28,System3!AA28) ->  | Q17: =SUM(System1!K28,System2!K28,System3!K28) -> 
B18: Reduction in potable water consumption = | E18: (X1/ Y1) x 100% | I18: Swimming Pool | J18: =SUM(WaterFeature!H25:I25) -> 0 | L18: =J18 -> 0 | P18: 0 | Q18: =SUM(System1!L28,System2!L28,System3!L28) -> 
B19: Rainwater Harvesting = | E19: =IF(E16,ROUND(E17/E16*100,2),0) ->  | F19: % | I19: Irrigation | J19: =SUM(System1!FI29:FL29,System2!FI29:FJ29,System3!FI29:FJ29) -> 0 | L19: =SUM(System1!AX29:BA29,System2!AX29:AY29,System3!AX29:AY29) -> 0 | N19: =SUM(System1!T28,System2!T28,System3!T28) ->  | O19: =ROUND(System1!Z28+System2!Z28+System3!Z28,1) ->  | Q19: =SUM(System1!J28,System2!J28,System3!J28) -> 
B20: Wastewater Recycling | I20: F&B | J20: =SUM(WaterFittings!AV216,WaterFittings!AV219) -> 0 | L20: =SUM(WaterFittings!AW216,WaterFittings!AW219) -> 0 | P20: 0
B21: Total wastewater generated = | E21: =L14 ->  | F21: m3/yr (Y2) | I21: Laundry | J21: =SUM(WaterFittings!AV215,WaterFittings!AV218) -> 0 | L21: =SUM(WaterFittings!AW215,WaterFittings!AW218) -> 0 | P21: 0
B22: Amount of greywater to be recycled = | E22: =N24 ->  | F22: m3/yr (X2) | I22: =WaterFittings!U35 -> Not used | J22: =WaterFittings!N165 -> 0 | L22: =WaterFittings!AA165 -> 0 | P22: 0
B23: Reduction in potable water consumption = | E23: (X2/ Y2) x 100% | I23: Sub-total | J23: =SUM(J15:J22) -> 0 | L23: =SUM(L15:L22) -> 0 | N23: =SUM(N15:N22) ->  | O23: =SUM(O15:O22) ->  | P23: =SUM(P15:P22) ->  | Q23: =SUM(Q15:Q22) -> 
B24: Wastewater Recycling = | E24: =IF(E21,ROUND(E22/E21*100,2),0) ->  | F24: % | H24: Total | J24: =SUM(J14,J23) ->  | L24: =SUM(L14,L23) ->  | N24: =SUM(N14,N23) ->  | O24: =SUM(O14,O23) ->  | P24: =SUM(P14,P23) ->  | Q24: =SUM(Q14,Q23) -> 
AB162: Shower

Sheet WaterFittings
C1: Project: | E1: =Main!C2 -> Project Name | AD1: =Main!P1 -> Version 2018c | BJ1: Available wastewater for recycling | BO1: potable water usage
AD2: Date: | AE2: 2020-06-01 | BM2: other than residence & operation
C4: Occupancy and Usage | AD4: Revision No. | AJ4: To apply 52 weeks schedule? | AN4: 1 | BJ4: Day | BK4: residence | BL4: operation
AJ6: Week 1 | AK6: 1 | AM6: Week 27 | AN6: 1 | BB6: Weekily schedule | BE6: Adjusted | BK6: =ROUNDDOWN(SUM(SUM($AA81,$AA82)*$AC81,SUM($AA83,$AA84)*$AC83,$AA85*$AC85,$AA86*$AC86,SUM($AA87,$AA96)*$AC87,$AA88*$AC88,$AA89*$AC89,SUM($AA90,$AA97)*$AC90,$AA91*$AC91),0) ->  | BL6: =ROUNDDOWN(SUM(SUM($AA103,$AA104)*$AC103,SUM($AA105,$AA106)*$AC105,$AA107*$AC107,$AA108*$AC108,SUM($AA109,$AA117)*$AC109,$AA110*$AC110,$AA111*$AC111,SUM($AA112,$AA118)*$AC112),0) ->  | BN6: Total | BO6: residence | BP6: operation | BR6: apart | BS6: clean1 | BT6: clean2 | BU6: clean3
C7: Base Occupancy | F7: Office | S7: Operations | U7: back of house, maintenance, etc | AJ7: Week 2 | AK7: 1 | AM7: Week 28 | AN7: 1 | AZ7: Week 1 | BA7: 1 | BB7: =AK$6 -> 1 | BD7: =CE21 -> 7 | BE7: =IF($AN$4,INDEX(BB$7:BB$378,$BD7),1) -> 1 | BJ7: 1 | BK7: =$BK$6*BE7*$CF21 ->  | BL7: =$BL$6*BE7*$CF$38 ->  | BM7: =SUM(BZ220,BZ228,CE204,CE212,CE220,CE228) -> 0 | BN7: =ROUNDDOWN(SUM(BK7:BM7),0) ->  | BO7: =BE7*CF$21 -> 1 | BP7: =BE7*CF$38 -> 1 | BQ7: =CF49 -> 1 | BR7: =CF62 -> 1 | BS7: =BZ188 -> 1 | BT7: =CE188 -> 1 | BU7: =CJ188 -> 1 | BZ7: Occupancy | CA7: =VLOOKUP($E$10,BZ8:CA14,2,FALSE) -> x | CB7: =VLOOKUP($U$10,BZ8:CB14,3,FALSE) -> x | CC7: =VLOOKUP($E$38,BZ8:CC14,4,FALSE) -> x | CD7: =VLOOKUP($U$38,BZ8:CD14,4,FALSE) -> x
L8: Occupancy Schedule | AB8: Occupancy Schedule | AJ8: Week 3 | AK8: 1 | AM8: Week 29 | AN8: 1 | AW8: Op weeks | BA8: =1+BA7 -> 2 | BB8: =BB$7 -> 1 | BD8: =1+BD7 -> 8 | BE8: 1 | BJ8: =1+BJ7 -> 2 | BK8: =$BK$6*BE8*$CF22 ->  | BL8: =$BL$6*BE8*$CF$39 ->  | BM8: =SUM(BZ221,BZ229,CE205,CE213,CE221,CE229) -> 0 | BN8: =ROUNDDOWN(SUM(BK8:BM8),0) ->  | BO8: =BE8*CF$22 -> 1 | BP8: =BE8*CF$39 -> 1 | BQ8: =CF50 -> 1 | BR8: =CF63 -> 1 | BS8: =BZ189 -> 1 | BT8: =CE189 -> 1 | BU8: =CJ189 -> 1 | BY8: room | BZ8: person/room | CA8: =Rainfall!C1 -> x | CB8: =CA8 -> x | CC8: =CA8 -> x | CD8: =CA8 -> x
C9: Design units | E9: room | G9: 1 | K9: Week | L9: 1 | M9: 2 | N9: 3 | O9: 4 | S9: Design units | U9: unit | W9: 1 | AA9: Week | AB9: 1 | AC9: 2 | AD9: 3 | AE9: 4 | AJ9: Week 4 | AK9: 1 | AM9: Week 30 | AN9: 1 | AQ9: Week | AR9: 1 | AS9: 2 | AT9: 3 | AU9: 4 | AV9: Max | AW9: per year | BA9: 3 | BB9: 1 | BD9: =1+BD8 -> 9 | BE9: 1 | BJ9: =1+BJ8 -> 3 | BL9: =$BL$6*BE9*$CF$40 ->  | BM9: 0 | BO9: =BE9*CF$23 -> 1 | BP9: =BE9*CF$40 -> 1 | BQ9: 1 | BR9: 1 | BS9: 1 | BT9: 1 | BU9: 1 | BY9: apartment | BZ9: person/unit | CA9: =CA$8 -> x | CB9: x | CC9: x | CD9: x
C10: Occupancy | E10: person/room | G10: 0 | K10: Mon | L10: 1 | M10: 1 | N10: 1 | O10: 1 | S10: Occupancy | U10: person/unit | W10: 0 | AA10: Mon | AB10: 1 | AC10: 1 | AD10: 1 | AE10: 1 | AJ10: Week 5 | AK10: 1 | AM10: Week 31 | AN10: 1 | AQ10: Operating days/week | AR10: =COUNTIF(L10:L16,">0") -> 7 | AS10: =COUNTIF(M10:M16,">0") -> 7 | AT10: =COUNTIF(N10:N16,">0") -> 7 | AU10: =COUNTIF(O10:O16,">0") -> 7 | AV10: =MAX(AR10:AU10) -> 7 | AW10: =IF(AN4,SUM(COUNTIF(AK6:AK31,1),COUNTIF(AN6:AN31,1)),52) -> 52 | BA10: 4 | BB10: 1 | BD10: 10 | BE10: 1 | BJ10: 4 | BL10: =$BL$6*BE10*$CF$41 ->  | BM10: 0 | BO10: =BE10*CF$24 -> 1 | BP10: =BE10*CF$41 -> 1 | BQ10: 1 | BR10: 1 | BS10: 1 | BT10: 1 | BU10: 1 | BY10: m2 | BZ10: person/m2 | CA10: x | CB10: x | CC10: x | CD10: x
C11: Population | G11: =ROUND(G9*G10*CA7,0) ->  | K11: Tue | L11: 1 | M11: 1 | N11: 1 | O11: 1 | S11: Population | W11: =ROUND(W9*W10*CB7,0) ->  | AA11: Tue | AB11: 1 | AC11: 1 | AD11: 1 | AE11: 1 | AJ11: Week 6 | AK11: 1 | AM11: Week 32 | AN11: 1 | BA11: 5 | BB11: 1 | BD11: 11 | BE11: 1 | BJ11: 5 | BL11: =$BL$6*BE11*$CF$42 ->  | BM11: 0 | BO11: =BE11*CF$25 -> 1 | BP11: =BE11*CF$42 -> 1 | BQ11: 1 | BR11: 1 | BS11: 1 | BT11: 1 | BU11: 1 | BY11: unit | BZ11: m2/person | CA11: =CA8/G10^2 ->  | CB11: =CB8/W10^2 ->  | CC11: =CC8/G38^2 ->  | CD11: =CD8/W38^2 -> 
C12: Population distribution | E12: female | F12: 50 | G12: =ROUND(F12*G11/100,0) ->  | K12: Wed | L12: 1 | M12: 1 | N12: 1 | O12: 1 | S12: Population distribution | U12: female | V12: 50 | W12: =ROUND(V12*W11/100,0) ->  | AA12: Wed | AB12: 1 | AC12: 1 | AD12: 1 | AE12: 1 | AJ12: Week 7 | AK12: 1 | AM12: Week 33 | AN12: 1 | BA12: 6 | BB12: 1 | BD12: 12 | BE12: 1 | BJ12: 6 | BL12: =$BL$6*BE12*$CF$43 ->  | BM12: 0 | BO12: =BE12*CF$26 -> 1 | BP12: =BE12*CF$43 -> 1 | BQ12: 1 | BR12: 1 | BS12: 1 | BT12: 1 | BU12: 1 | BZ12: person | CA12: =CA8/G9 ->  | CB12: =CB8/W9 ->  | CC12: =CC8/G37 ->  | CD12: =CD8/W37 -> 
E13: male | F13: 50 | G13: =ROUND(F13*G11/100,0) ->  | K13: Thu | L13: 1 | M13: 1 | N13: 1 | O13: 1 | U13: male | V13: 50 | W13: =W11-W12 ->  | AA13: Thu | AB13: 1 | AC13: 1 | AD13: 1 | AE13: 1 | AJ13: Week 8 | AK13: 1 | AM13: Week 34 | AN13: 1 | BA13: 7 | BB13: 1 | BD13: 13 | BE13: 1 | BJ13: 7 | BL13: =$BL$6*BE13*$CF$44 ->  | BM13: 0 | BO13: =BE13*CF$27 -> 1 | BP13: =BE13*CF$44 -> 1 | BQ13: 1 | BR13: 1 | BS13: 1 | BT13: 1 | BU13: 1 | BZ13: person/unit | CA13: =CA$8 -> x | CB13: =CB$8 -> x | CC13: =CC$8 -> x | CD13: =CD$8 -> x
K14: Fri | L14: 1 | M14: 1 | N14: 1 | O14: 1 | AA14: Fri | AB14: 1 | AC14: 1 | AD14: 1 | AE14: 1 | AJ14: Week 9 | AK14: 1 | AM14: Week 35 | AN14: 1 | AZ14: Week 2 | BA14: 8 | BB14: =AK$7 -> 1 | BD14: 14 | BE14: 1 | BJ14: 8 | BK14: =$BK$6*BE14*$CG21 ->  | BL14: =$BL$6*BE14*$CG$38 ->  | BM14: =SUM(CA220,CA228,CF204,CF212,CF220,CF228) -> 0 | BO14: =BE14*CG$21 -> 1 | BP14: =BE14*CG$38 -> 1 | BQ14: =CG49 -> 1 | BR14: =CG62 -> 1 | BS14: =CA188 -> 1 | BT14: =CF188 -> 1 | BU14: =CK188 -> 1
D15: Use default values? | H15: 1 | K15: Sat | L15: 1 | M15: 1 | N15: 1 | O15: 1 | T15: Use default values? | X15: 1 | AA15: Sat | AB15: 1 | AC15: 1 | AD15: 1 | AE15: 1 | AJ15: Week 10 | AK15: 1 | AM15: Week 36 | AN15: 1 | BA15: 9 | BB15: =BB$14 -> 1 | BD15: 15 | BE15: 1 | BJ15: 9 | BL15: =$BL$6*BE15*$CG$39 ->  | BM15: 0 | BO15: =BE15*CG$22 -> 1 | BP15: =BE15*CG$39 -> 1 | BQ15: =CG50 -> 1 | BR15: =CG63 -> 1 | BS15: =CA189 -> 1 | BT15: =CF189 -> 1 | BU15: =CK189 -> 1
K16: Sun | L16: 1 | M16: 1 | N16: 1 | O16: 1 | AA16: Sun | AB16: 1 | AC16: 1 | AD16: 1 | AE16: 1 | AJ16: Week 11 | AK16: 1 | AM16: Week 37 | AN16: 1 | BA16: 10 | BB16: 1 | BD16: 16 | BE16: 1 | BJ16: 10 | BL16: =$BL$6*BE16*$CG$40 ->  | BM16: 0 | BO16: =BE16*CG$23 -> 1 | BP16: =BE16*CG$40 -> 1 | BQ16: 1 | BR16: 1 | BS16: 1 | BT16: 1 | BU16: 1
AJ17: Week 12 | AK17: 1 | AM17: Week 38 | AN17: 1 | BA17: 11 | BB17: 1 | BD17: 17 | BE17: 1 | BJ17: 11 | BL17: =$BL$6*BE17*$CG$41 ->  | BM17: 0 | BO17: =BE17*CG$24 -> 1 | BP17: =BE17*CG$41 -> 1 | BQ17: 1 | BR17: 1 | BS17: 1 | BT17: 1 | BU17: 1
C18: Fittings | E18: =IF(H15=1,"Default values used","This table is not used") -> Default values used | L18: =IF(H15=1,"This table is not used","User defined") -> This table is not used | S18: Fittings | U18: =IF(X15=1,"Default values used","This table is not used") -> Default values used | AB18: =IF(X15=1,"This table is not used","User defined") -> This table is not used | AJ18: Week 13 | AK18: 1 | AM18: Week 39 | AN18: 1 | BA18: 12 | BB18: 1 | BD18: 18 | BE18: 1 | BJ18: 12 | BL18: =$BL$6*BE18*$CG$42 ->  | BM18: 0 | BO18: =BE18*CG$25 -> 1 | BP18: =BE18*CG$42 -> 1 | BQ18: 1 | BR18: 1 | BS18: 1 | BT18: 1 | BU18: 1 | BY18: Fittings usage | BZ18: Uses per day | CA18: Duration per use | CC18: usage factor
E19: Uses/ day | F19: Duration per use | I19: usage factor | L19: Uses/ day | M19: Duration per use | O19: usage factor | U19: Uses/ day | V19: Duration per use | Y19: usage factor | AB19: Uses/ day | AC19: Duration per use | AE19: usage factor | AJ19: Week 14 | AK19: 1 | AM19: Week 40 | AN19: 1 | BA19: 13 | BB19: 1 | BD19: 19 | BE19: 1 | BJ19: 13 | BL19: =$BL$6*BE19*$CG$43 ->  | BM19: 0 | BO19: =BE19*CG$26 -> 1 | BP19: =BE19*CG$43 -> 1 | BQ19: 1 | BR19: 1 | BS19: 1 | BT19: 1 | BU19: 1 | CE19: =System1!D3 -> Kangar | CJ19: Weekly schedule
AJ20: Week 15 | AK20: 1 | AM20: Week 41 | AN20: 1 | BA20: 14 | BB20: 1 | BD20: 20 | BE20: 1 | BJ20: 14 | BL20: =$BL$6*BE20*$CG$44 ->  | BM20: 0 | BO20: =BE20*CG$27 -> 1 | BP20: =BE20*CG$44 -> 1 | BQ20: 1 | BR20: 1 | BS20: 1 | BT20: 1 | BU20: 1 | CC20: (%) | CL20: Residences & operation | CM20: Operation | CN20: Misc | CO20: apartment | CP20: Clean 1 | CQ20: Clean 2 | CR20: Clean 3 | CS20: Laundry | CT20: Kitchen
C21: WC Female | E21: =INDEX((clubhouse,conventioncentre,hotel,multipurpose,office,residential,retail,sapartment),1,1,bmatch) -> 4 | F21: =INDEX((clubhouse,conventioncentre,hotel,multipurpose,office,residential,retail,sapartment),1,2,bmatch) -> 1 | G21: flush | I21: =INDEX((clubhouse,conventioncentre,hotel,multipurpose,office,residential,retail,sapartment),1,3,bmatch) -> 25 | J21: % | L21: 0 | M21: 1 | N21: flush | O21: 0 | P21: % | S21: WC Female | U21: =INDEX((clubhouse1,conventioncentre1,hotel1,multipurpose1,office1,residential1,retail1,sapartment1),1,1,bmatch) -> 4 | V21: =INDEX((clubhouse1,conventioncentre1,hotel1,multipurpose1,office1,residential1,retail1,sapartment1),1,2,bmatch) -> 1 | W21: flush | Y21: =INDEX((clubhouse1,conventioncentre1,hotel1,multipurpose1,office1,residential1,retail1,sapartment1),1,3,bmatch) -> 25 | Z21: % | AB21: 0 | AC21: 1 | AD21: flush | AE21: 0 | AF21: % | AJ21: Week 16 | AK21: 1 | AM21: Week 42 | AN21: 1 | AZ21: Week 3 | BA21: 15 | BB21: =AK$8 -> 1 | BD21: 21 | BE21: 1 | BJ21: 15 | BK21: =$BK$6*BE21*$CH21 ->  | BL21: =$BL$6*BE21*$CH$38 ->  | BM21: =SUM(CB220,CB228,CG204,CG212,CG220,CG228) -> 0 | BO21: =BE21*CH$21 -> 1 | BP21: =BE21*CH$38 -> 1 | BQ21: =CH49 -> 1 | BR21: =CH62 -> 1 | BS21: =CB188 -> 1 | BT21: =CG188 -> 1 | BU21: =CL188 -> 1 | BY21: WC Female | BZ21: =IF($H$15,E21,L21) -> 4 | CA21: =IF($H$15,F21,M21) -> 1 | CB21: flush | CC21: =IF($H$15,I21,O21) -> 25 | CE21: =HLOOKUP(CE19,Raindata,6,FALSE) -> 7 | CF21: =INDEX($CL$21:$CL$55,$CE21) -> 1 | CG21: =INDEX($CL$21:$CL$55,$CE21+7) -> 1 | CH21: =INDEX($CL$21:$CL$55,$CE21+14) -> 1 | CI21: =INDEX($CL$21:$CL$55,$CE21+21) -> 1 | CJ21: Monday | CK21: 1 | CL21: =L10 -> 1 | CM21: =AB10 -> 1 | CN21: =L38 -> 1 | CO21: =AB38 -> 1 | CP21: =K184 -> 1 | CQ21: =S184 -> 1 | CR21: =AA184 -> 1 | CS21: =K211 -> 1 | CT21: =S211 -> 1
F22: =INDEX((clubhouse,conventioncentre,hotel,multipurpose,office,residential,retail,sapartment),2,2,bmatch) -> 1 | G22: h/flush | I22: =INDEX((clubhouse,conventioncentre,hotel,multipurpose,office,residential,retail,sapartment),2,3,bmatch) -> 75 | J22: % | M22: 1 | N22: h/flush | O22: 0 | P22: % | V22: =INDEX((clubhouse1,conventioncentre1,hotel1,multipurpose1,office1,residential1,retail1,sapartment1),2,2,bmatch) -> 1 | W22: h/flush | Y22: =INDEX((clubhouse1,conventioncentre1,hotel1,multipurpose1,office1,residential1,retail1,sapartment1),2,3,bmatch) -> 75 | Z22: % | AC22: 1 | AD22: h/flush | AE22: 0 | AF22: % | AJ22: Week 17 | AK22: 1 | AM22: Week 43 | AN22: 1 | BA22: 16 | BB22: =BB$21 -> 1 | BD22: 22 | BE22: 1 | BJ22: 16 | BL22: =$BL$6*BE22*$CH$39 ->  | BM22: 0 | BO22: =BE22*CH$22 -> 1 | BP22: =BE22*CH$39 -> 1 | BQ22: =CH50 -> 1 | BR22: =CH63 -> 1 | BS22: =CB189 -> 1 | BT22: =CG189 -> 1 | BU22: =CL189 -> 1 | CA22: 1 | CB22: h/flush | CC22: 75 | CE22: =CE21+1 -> 8 | CF22: =INDEX($CL$21:$CL$55,$CE22) -> 1 | CG22: =INDEX($CL$21:$CL$55,$CE22+7) -> 1 | CH22: =INDEX($CL$21:$CL$55,$CE22+14) -> 1 | CI22: =INDEX($CL$21:$CL$55,$CE22+21) -> 1 | CK22: 2 | CL22: 1 | CM22: 1 | CN22: 1 | CO22: 1 | CP22: 1 | CQ22: 1 | CR22: 1 | CS22: 1 | CT22: 1
C23: WC Male | E23: =INDEX((clubhouse,conventioncentre,hotel,multipurpose,office,residential,retail,sapartment),3,1,bmatch) -> 4 | F23: =INDEX((clubhouse,conventioncentre,hotel,multipurpose,office,residential,retail,sapartment),3,2,bmatch) -> 1 | G23: flush | I23: =INDEX((clubhouse,conventioncentre,hotel,multipurpose,office,residential,retail,sapartment),3,3,bmatch) -> 25 | J23: % | L23: 0 | M23: 1 | N23: flush | O23: 0 | P23: % | S23: WC Male | U23: =INDEX((clubhouse1,conventioncentre1,hotel1,multipurpose1,office1,residential1,retail1,sapartment1),3,1,bmatch) -> 4 | V23: =INDEX((clubhouse1,conventioncentre1,hotel1,multipurpose1,office1,residential1,retail1,sapartment1),3,2,bmatch) -> 1 | W23: flush | Y23: =INDEX((clubhouse1,conventioncentre1,hotel1,multipurpose1,office1,residential1,retail1,sapartment1),3,3,bmatch) -> 25 | Z23: % | AB23: 0 | AC23: 1 | AD23: flush | AE23: 0 | AF23: % | AJ23: Week 18 | AK23: 1 | AM23: Week 44 | AN23: 1 | BA23: 17 | BB23: 1 | BD23: 23 | BE23: 1 | BJ23: 17 | BL23: =$BL$6*BE23*$CH$40 ->  | BM23: 0 | BO23: =BE23*CH$23 -> 1 | BP23: =BE23*CH$40 -> 1 | BQ23: 1 | BR23: 1 | BS23: 1 | BT23: 1 | BU23: 1 | BY23: WC Male | BZ23: =IF($H$15,E23,L23) -> 4 | CA23: =IF($H$15,F23,M23) -> 1 | CB23: flush | CC23: 25 | CE23: =CE22+1 -> 9 | CF23: 1 | CG23: 1 | CH23: 1 | CI23: 1 | CK23: 3 | CL23: 1 | CM23: 1 | CN23: 1 | CO23: 1 | CP23: 1 | CQ23: 1 | CR23: 1 | CS23: 1 | CT23: 1
F24: =INDEX((clubhouse,conventioncentre,hotel,multipurpose,office,residential,retail,sapartment),4,2,bmatch) -> 1 | G24: h/flush | I24: =INDEX((clubhouse,conventioncentre,hotel,multipurpose,office,residential,retail,sapartment),4,3,bmatch) -> 0 | J24: % | M24: 1 | N24: h/flush | O24: 0 | P24: % | V24: =INDEX((clubhouse1,conventioncentre1,hotel1,multipurpose1,office1,residential1,retail1,sapartment1),4,2,bmatch) -> 1 | W24: h/flush | Y24: =INDEX((clubhouse1,conventioncentre1,hotel1,multipurpose1,office1,residential1,retail1,sapartment1),4,3,bmatch) -> 0 | Z24: % | AC24: 1 | AD24: h/flush | AE24: 0 | AF24: % | AJ24: Week 19 | AK24: 1 | AM24: Week 45 | AN24: 1 | BA24: 18 | BB24: 1 | BD24: 24 | BE24: 1 | BJ24: 18 | BL24: =$BL$6*BE24*$CH$41 ->  | BM24: 0 | BO24: =BE24*CH$24 -> 1 | BP24: =BE24*CH$41 -> 1 | BQ24: 1 | BR24: 1 | BS24: 1 | BT24: 1 | BU24: 1 | CA24: 1 | CB24: h/flush | CC24: 0 | CE24: 10 | CF24: 1 | CG24: 1 | CH24: 1 | CI24: 1 | CK24: 4 | CL24: 1 | CM24: 1 | CN24: 1 | CO24: 1 | CP24: 1 | CQ24: 1 | CR24: 1 | CS24: 1 | CT24: 1
C25: Urinal | F25: =INDEX((clubhouse,conventioncentre,hotel,multipurpose,office,residential,retail,sapartment),5,2,bmatch) -> 1 | G25: flush | I25: =INDEX((clubhouse,conventioncentre,hotel,multipurpose,office,residential,retail,sapartment),5,3,bmatch) -> 75 | J25: % | M25: 1 | N25: flush | O25: 0 | P25: % | S25: Urinal | V25: =INDEX((clubhouse1,conventioncentre1,hotel1,multipurpose1,office1,residential1,retail1,sapartment1),5,2,bmatch) -> 1 | W25: flush | Y25: =INDEX((clubhouse1,conventioncentre1,hotel1,multipurpose1,office1,residential1,retail1,sapartment1),5,3,bmatch) -> 75 | Z25: % | AC25: 1 | AD25: flush | AE25: 0 | AF25: % | AJ25: Week 20 | AK25: 1 | AM25: Week 46 | AN25: 1 | BA25: 19 | BB25: 1 | BD25: 25 | BE25: 1 | BJ25: 19 | BL25: =$BL$6*BE25*$CH$42 ->  | BM25: 0 | BO25: =BE25*CH$25 -> 1 | BP25: =BE25*CH$42 -> 1 | BQ25: 1 | BR25: 1 | BS25: 1 | BT25: 1 | BU25: 1 | BY25: Urinal | CA25: 1 | CB25: flush | CC25: 75 | CE25: 11 | CF25: 1 | CG25: 1 | CH25: 1 | CI25: 1 | CK25: 5 | CL25: 1 | CM25: 1 | CN25: 1 | CO25: 1 | CP25: 1 | CQ25: 1 | CR25: 1 | CS25: 1 | CT25: 1
C26: WH Basin | E26: =INDEX((clubhouse,conventioncentre,hotel,multipurpose,office,residential,retail,sapartment),6,1,bmatch) -> 4 | F26: =INDEX((clubhouse,conventioncentre,hotel,multipurpose,office,residential,retail,sapartment),6,2,bmatch) -> 15 | G26: secs | I26: =INDEX((clubhouse,conventioncentre,hotel,multipurpose,office,residential,retail,sapartment),6,3,bmatch) -> 100 | J26: % | L26: 0 | M26: 0 | N26: secs | O26: 0 | P26: % | S26: WH Basin | U26: =INDEX((clubhouse1,conventioncentre1,hotel1,multipurpose1,office1,residential1,retail1,sapartment1),6,1,bmatch) -> 4 | V26: =INDEX((clubhouse1,conventioncentre1,hotel1,multipurpose1,office1,residential1,retail1,sapartment1),6,2,bmatch) -> 15 | W26: secs | Y26: =INDEX((clubhouse1,conventioncentre1,hotel1,multipurpose1,office1,residential1,retail1,sapartment1),6,3,bmatch) -> 100 | Z26: % | AB26: 0 | AC26: 0 | AD26: secs | AE26: 0 | AF26: % | AJ26: Week 21 | AK26: 1 | AM26: Week 47 | AN26: 1 | BA26: 20 | BB26: 1 | BD26: 26 | BE26: 1 | BJ26: 20 | BL26: =$BL$6*BE26*$CH$43 ->  | BM26: 0 | BO26: =BE26*CH$26 -> 1 | BP26: =BE26*CH$43 -> 1 | BQ26: 1 | BR26: 1 | BS26: 1 | BT26: 1 | BU26: 1 | BY26: WH Basin | BZ26: =IF($H$15,E26,L26) -> 4 | CA26: 15 | CB26: secs | CC26: 100 | CE26: 12 | CF26: 1 | CG26: 1 | CH26: 1 | CI26: 1 | CK26: 6 | CL26: 1 | CM26: 1 | CN26: 1 | CO26: 1 | CP26: 1 | CQ26: 1 | CR26: 1 | CS26: 1 | CT26: 1
C27: Shower | E27: =INDEX((clubhouse,conventioncentre,hotel,multipurpose,office,residential,retail,sapartment),7,1,bmatch) -> 0 | F27: =INDEX((clubhouse,conventioncentre,hotel,multipurpose,office,residential,retail,sapartment),7,2,bmatch) -> 360 | G27: secs | I27: =INDEX((clubhouse,conventioncentre,hotel,multipurpose,office,residential,retail,sapartment),7,3,bmatch) -> 0 | J27: % | L27: 0 | M27: 0 | N27: secs | O27: 0 | P27: % | S27: Shower | U27: =INDEX((clubhouse1,conventioncentre1,hotel1,multipurpose1,office1,residential1,retail1,sapartment1),7,1,bmatch) -> 0 | V27: =INDEX((clubhouse1,conventioncentre1,hotel1,multipurpose1,office1,residential1,retail1,sapartment1),7,2,bmatch) -> 360 | W27: secs | Y27: =INDEX((clubhouse1,conventioncentre1,hotel1,multipurpose1,office1,residential1,retail1,sapartment1),7,3,bmatch) -> 0 | Z27: % | AB27: 0 | AC27: 0 | AD27: secs | AE27: 0 | AF27: % | AJ27: Week 22 | AK27: 1 | AM27: Week 48 | AN27: 1 | BA27: 21 | BB27: 1 | BD27: 27 | BE27: 1 | BJ27: 21 | BL27: =$BL$6*BE27*$CH$44 ->  | BM27: 0 | BO27: =BE27*CH$27 -> 1 | BP27: =BE27*CH$44 -> 1 | BQ27: 1 | BR27: 1 | BS27: 1 | BT27: 1 | BU27: 1 | BY27: Shower | BZ27: 0 | CA27: 360 | CB27: secs | CC27: 0 | CE27: 13 | CF27: 1 | CG27: 1 | CH27: 1 | CI27: 1 | CK27: 7 | CL27: 1 | CM27: 1 | CN27: 1 | CO27: 1 | CP27: 1 | CQ27: 1 | CR27: 1 | CS27: 1 | CT27: 1
C28: Bath | E28: =INDEX((clubhouse,conventioncentre,hotel,multipurpose,office,residential,retail,sapartment),8,1,bmatch) -> 0 | F28: =INDEX((clubhouse,conventioncentre,hotel,multipurpose,office,residential,retail,sapartment),8,2,bmatch) -> 1 | G28: use | I28: =INDEX((clubhouse,conventioncentre,hotel,multipurpose,office,residential,retail,sapartment),8,3,bmatch) -> 0 | J28: % | L28: 0 | M28: 0 | N28: use | O28: 0 | P28: % | S28: Sink Tap | U28: =INDEX((clubhouse1,conventioncentre1,hotel1,multipurpose1,office1,residential1,retail1,sapartment1),8,1,bmatch) -> 1 | V28: =INDEX((clubhouse1,conventioncentre1,hotel1,multipurpose1,office1,residential1,retail1,sapartment1),8,2,bmatch) -> 15 | W28: secs | Y28: =INDEX((clubhouse1,conventioncentre1,hotel1,multipurpose1,office1,residential1,retail1,sapartment1),8,3,bmatch) -> 100 | Z28: % | AB28: 0 | AC28: 0 | AD28: secs | AE28: 0 | AF28: % | AJ28: Week 23 | AK28: 1 | AM28: Week 49 | AN28: 1 | AZ28: Week 4 | BA28: 22 | BB28: =AK$9 -> 1 | BD28: 28 | BE28: 1 | BJ28: 22 | BK28: =$BK$6*BE28*$CI21 ->  | BL28: =$BL$6*BE28*$CI$38 ->  | BM28: =SUM(CC220,CC228,CH204,CH212,CH220,CH228) -> 0 | BO28: =BE28*CI$21 -> 1 | BP28: =BE28*CI$38 -> 1 | BQ28: =CI49 -> 1 | BR28: =CI62 -> 1 | BS28: =CC188 -> 1 | BT28: =CH188 -> 1 | BU28: =CM188 -> 1 | BY28: Bath | BZ28: 0 | CA28: 1 | CB28: use | CC28: 0 | CK28: 8 | CL28: =M10 -> 1 | CM28: =AC10 -> 1 | CN28: =M38 -> 1 | CO28: =AC38 -> 1 | CP28: =L184 -> 1 | CQ28: =T184 -> 1 | CR28: =AB184 -> 1 | CS28: =L211 -> 1 | CT28: =T211 -> 1
C29: Sink Tap | E29: =INDEX((clubhouse,conventioncentre,hotel,multipurpose,office,residential,retail,sapartment),9,1,bmatch) -> 1 | F29: =INDEX((clubhouse,conventioncentre,hotel,multipurpose,office,residential,retail,sapartment),9,2,bmatch) -> 15 | G29: secs | I29: =INDEX((clubhouse,conventioncentre,hotel,multipurpose,office,residential,retail,sapartment),9,3,bmatch) -> 100 | J29: % | L29: 0 | M29: 0 | N29: secs | O29: 0 | P29: % | S29: Bib tap | U29: =INDEX((clubhouse1,conventioncentre1,hotel1,multipurpose1,office1,residential1,retail1,sapartment1),9,1,bmatch) -> 1 | V29: =INDEX((clubhouse1,conventioncentre1,hotel1,multipurpose1,office1,residential1,retail1,sapartment1),9,2,bmatch) -> 5 | W29: secs | Y29: =INDEX((clubhouse1,conventioncentre1,hotel1,multipurpose1,office1,residential1,retail1,sapartment1),9,3,bmatch) -> 50 | Z29: % | AB29: 0 | AC29: 0 | AD29: secs | AE29: 0 | AF29: % | AJ29: Week 24 | AK29: 1 | AM29: Week 50 | AN29: 1 | BA29: 23 | BB29: =BB$28 -> 1 | BD29: 29 | BE29: 1 | BJ29: 23 | BL29: =$BL$6*BE29*$CI$39 ->  | BM29: 0 | BO29: =BE29*CI$22 -> 1 | BP29: =BE29*CI$39 -> 1 | BQ29: =CI50 -> 1 | BR29: 1 | BS29: =CC189 -> 1 | BT29: =CH189 -> 1 | BU29: =CM189 -> 1 | BY29: Sink Tap | BZ29: 1 | CA29: 15 | CB29: secs | CC29: 100 | CK29: 9 | CL29: 1 | CM29: 1 | CN29: 1 | CO29: 1 | CP29: 1 | CQ29: 1 | CR29: 1 | CS29: 1 | CT29: 1
C30: Bib tap | E30: =INDEX((clubhouse,conventioncentre,hotel,multipurpose,office,residential,retail,sapartment),10,1,bmatch) -> 1 | F30: =INDEX((clubhouse,conventioncentre,hotel,multipurpose,office,residential,retail,sapartment),10,2,bmatch) -> 5 | G30: secs | I30: =INDEX((clubhouse,conventioncentre,hotel,multipurpose,office,residential,retail,sapartment),10,3,bmatch) -> 50 | J30: % | L30: 0 | M30: 0 | N30: secs | O30: 0 | P30: % | S30: Ablution | U30: =INDEX((clubhouse1,conventioncentre1,hotel1,multipurpose1,office1,residential1,retail1,sapartment1),10,1,bmatch) -> 2 | V30: =INDEX((clubhouse1,conventioncentre1,hotel1,multipurpose1,office1,residential1,retail1,sapartment1),10,2,bmatch) -> 30 | W30: secs | Y30: =INDEX((clubhouse1,conventioncentre1,hotel1,multipurpose1,office1,residential1,retail1,sapartment1),10,3,bmatch) -> 50 | Z30: % | AB30: 0 | AC30: 0 | AD30: secs | AE30: 0 | AF30: % | AJ30: Week 25 | AK30: 1 | AM30: Week 51 | AN30: 1 | BA30: 24 | BB30: 1 | BD30: 30 | BE30: 1 | BJ30: 24 | BL30: =$BL$6*BE30*$CI$40 ->  | BM30: 0 | BO30: =BE30*CI$23 -> 1 | BP30: =BE30*CI$40 -> 1 | BQ30: 1 | BR30: 1 | BS30: 1 | BT30: 1 | BU30: 1 | BY30: Bib tap | BZ30: 1 | CA30: 5 | CB30: secs | CC30: 50 | CK30: 10 | CL30: 1 | CM30: 1 | CN30: 1 | CO30: 1 | CP30: 1 | CQ30: 1 | CR30: 1 | CS30: 1 | CT30: 1
C31: Ablution | E31: =INDEX((clubhouse,conventioncentre,hotel,multipurpose,office,residential,retail,sapartment),11,1,bmatch) -> 2 | F31: =INDEX((clubhouse,conventioncentre,hotel,multipurpose,office,residential,retail,sapartment),11,2,bmatch) -> 30 | G31: secs | I31: =INDEX((clubhouse,conventioncentre,hotel,multipurpose,office,residential,retail,sapartment),11,3,bmatch) -> 50 | J31: % | L31: 0 | M31: 0 | N31: secs | O31: 0 | P31: % | AJ31: Week 26 | AK31: 1 | AM31: Week 52 | AN31: 1 | BA31: 25 | BB31: 1 | BD31: 31 | BE31: 1 | BJ31: 25 | BL31: =$BL$6*BE31*$CI$41 ->  | BM31: 0 | BO31: =BE31*CI$24 -> 1 | BP31: =BE31*CI$41 -> 1 | BQ31: 1 | BR31: 1 | BS31: 1 | BT31: 1 | BU31: 1 | BY31: Ablution | BZ31: 2 | CA31: 30 | CB31: secs | CC31: 50 | CK31: 11 | CL31: 1 | CM31: 1 | CN31: 1 | CO31: 1 | CP31: 1 | CQ31: 1 | CR31: 1 | CS31: 1 | CT31: 1
BA32: 26 | BB32: 1 | BD32: 32 | BE32: 1 | BJ32: 26 | BL32: =$BL$6*BE32*$CI$42 ->  | BM32: 0 | BO32: =BE32*CI$25 -> 1 | BP32: =BE32*CI$42 -> 1 | BQ32: 1 | BR32: 1 | BS32: 1 | BT32: 1 | BU32: 1 | CK32: 12 | CL32: 1 | CM32: 1 | CN32: 1 | CO32: 1 | CP32: 1 | CQ32: 1 | CR32: 1 | CS32: 1 | CT32: 1
BA33: 27 | BB33: 1 | BD33: 33 | BE33: 1 | BJ33: 27 | BL33: =$BL$6*BE33*$CI$43 ->  | BM33: 0 | BO33: =BE33*CI$26 -> 1 | BP33: =BE33*CI$43 -> 1 | BQ33: 1 | BR33: 1 | BS33: 1 | BT33: 1 | BU33: 1 | CK33: 13 | CL33: 1 | CM33: 1 | CN33: 1 | CO33: 1 | CP33: 1 | CQ33: 1 | CR33: 1 | CS33: 1 | CT33: 1
BA34: 28 | BB34: 1 | BD34: 34 | BE34: 1 | BJ34: 28 | BL34: =$BL$6*BE34*$CI$44 ->  | BM34: 0 | BO34: =BE34*CI$27 -> 1 | BP34: =BE34*CI$44 -> 1 | BQ34: 1 | BR34: 1 | BS34: 1 | BT34: 1 | BU34: 1 | CK34: 14 | CL34: 1 | CM34: 1 | CN34: 1 | CO34: 1 | CP34: 1 | CQ34: 1 | CR34: 1 | CS34: 1 | CT34: 1
C35: Other Occupancy | F35: Not used | S35: Miscellaneous | U35: Not used | X35: * Usage excluded from WE1 (Rainwater Harvesting) criteria | AZ35: Week 5 | BA35: =BA7 -> 1 | BB35: =AK$10 -> 1 | BD35: 35 | BE35: 1 | BJ35: 1 | BK35: =$BK$6*BE35*$CF21 ->  | BL35: =$BL$6*BE35*$CF$38 ->  | BM35: =BM7 -> 0 | BO35: =BE35*CF$21 -> 1 | BP35: =BE35*CF$38 -> 1 | BQ35: =BQ7 -> 1 | BR35: =BR7 -> 1 | BS35: 1 | BT35: 1 | BU35: 1 | CK35: 15 | CL35: =N10 -> 1 | CM35: =AD10 -> 1 | CN35: =N38 -> 1 | CO35: =AD38 -> 1 | CP35: =M184 -> 1 | CQ35: =U184 -> 1 | CR35: =AC184 -> 1 | CS35: =M211 -> 1 | CT35: =U211 -> 1
L36: Occupancy Schedule | AB36: Occupancy Schedule | BA36: =BA8 -> 2 | BB36: =BB$35 -> 1 | BD36: 36 | BE36: 1 | BJ36: =1+BJ35 -> 2 | BL36: =$BL$6*BE36*$CF$39 ->  | BM36: =BM8 -> 0 | BO36: =BE36*CF$22 -> 1 | BP36: =BE36*CF$39 -> 1 | BQ36: =BQ8 -> 1 | BR36: 1 | BS36: 1 | BT36: 1 | BU36: 1 | CC36: (%) | CK36: 16 | CL36: 1 | CM36: 1 | CN36: 1 | CO36: 1 | CP36: 1 | CQ36: 1 | CR36: 1 | CS36: 1 | CT36: 1
C37: Design units | E37: unit | G37: 1 | K37: Week | L37: 1 | M37: 2 | N37: 3 | O37: 4 | S37: Design units | U37: apartment | W37: 1 | AA37: Week | AB37: 1 | AC37: 2 | AD37: 3 | AE37: 4 | BA37: 3 | BB37: 1 | BD37: 37 | BE37: 1 | BJ37: 3 | BL37: =$BL$6*BE37*$CF$40 ->  | BM37: 0 | BO37: =BE37*CF$23 -> 1 | BP37: =BE37*CF$40 -> 1 | BQ37: 1 | BR37: 1 | BS37: 1 | BT37: 1 | BU37: 1 | BY37: WC Female | BZ37: =IF($X$15,U21,AB21) -> 4 | CA37: =IF($X$15,V21,AC21) -> 1 | CB37: flush | CC37: =IF($X$15,Y21,AE21) -> 25 | CK37: 17 | CL37: 1 | CM37: 1 | CN37: 1 | CO37: 1 | CP37: 1 | CQ37: 1 | CR37: 1 | CS37: 1 | CT37: 1
C38: Occupancy | E38: person/unit | G38: 0 | K38: Mon | L38: 1 | M38: 1 | N38: 1 | O38: 1 | S38: Occupancy | U38: person/unit | W38: 0 | AA38: Mon | AB38: 1 | AC38: 1 | AD38: 1 | AE38: 1 | BA38: 4 | BB38: 1 | BD38: 38 | BE38: 1 | BJ38: 4 | BL38: =$BL$6*BE38*$CF$41 ->  | BM38: 0 | BO38: =BE38*CF$24 -> 1 | BP38: =BE38*CF$41 -> 1 | BQ38: 1 | BR38: 1 | BS38: 1 | BT38: 1 | BU38: 1 | CA38: 1 | CB38: h/flush | CC38: 75 | CF38: =INDEX($CM$21:$CM$55,$CE21) -> 1 | CG38: =INDEX($CM$21:$CM$55,$CE21+7) -> 1 | CH38: =INDEX($CM$21:$CM$55,$CE21+14) -> 1 | CI38: =INDEX($CM$21:$CM$55,$CE21+21) -> 1 | CK38: 18 | CL38: 1 | CM38: 1 | CN38: 1 | CO38: 1 | CP38: 1 | CQ38: 1 | CR38: 1 | CS38: 1 | CT38: 1
C39: Population | G39: =IF(F35="not used",0,ROUND(G37*G38*CC7,0)) -> 0 | K39: Tue | L39: 1 | M39: 1 | N39: 1 | O39: 1 | S39: Population | W39: =IF(U35="not used",0,ROUND(W37*W38*CD7,0)) -> 0 | AA39: Tue | AB39: 1 | AC39: 1 | AD39: 1 | AE39: 1 | BA39: 5 | BB39: 1 | BD39: 39 | BE39: 1 | BJ39: 5 | BL39: =$BL$6*BE39*$CF$42 ->  | BM39: 0 | BO39: =BE39*CF$25 -> 1 | BP39: =BE39*CF$42 -> 1 | BQ39: 1 | BR39: 1 | BS39: 1 | BT39: 1 | BU39: 1 | BY39: WC Male | BZ39: =IF($X$15,U23,AB23) -> 4 | CA39: =IF($X$15,V23,AC23) -> 1 | CB39: flush | CC39: 25 | CF39: =INDEX($CM$21:$CM$55,$CE22) -> 1 | CG39: =INDEX($CM$21:$CM$55,$CE22+7) -> 1 | CH39: =INDEX($CM$21:$CM$55,$CE22+14) -> 1 | CI39: =INDEX($CM$21:$CM$55,$CE22+21) -> 1 | CK39: 19 | CL39: 1 | CM39: 1 | CN39: 1 | CO39: 1 | CP39: 1 | CQ39: 1 | CR39: 1 | CS39: 1 | CT39: 1
C40: Population distribution | E40: female | F40: 50 | G40: =ROUNDUP(F40*G39/100,0) -> 0 | K40: Wed | L40: 1 | M40: 1 | N40: 1 | O40: 1 | S40: Population distribution | U40: female | V40: 50 | W40: =ROUND(V40*W39/100,0) -> 0 | AA40: Wed | AB40: 1 | AC40: 1 | AD40: 1 | AE40: 1 | BA40: 6 | BB40: 1 | BD40: 40 | BE40: 1 | BJ40: 6 | BL40: =$BL$6*BE40*$CF$43 ->  | BM40: 0 | BO40: =BE40*CF$26 -> 1 | BP40: =BE40*CF$43 -> 1 | BQ40: 1 | BR40: 1 | BS40: 1 | BT40: 1 | BU40: 1 | CA40: 1 | CB40: h/flush | CC40: 0 | CF40: 1 | CG40: 1 | CH40: 1 | CI40: 1 | CK40: 20 | CL40: 1 | CM40: 1 | CN40: 1 | CO40: 1 | CP40: 1 | CQ40: 1 | CR40: 1 | CS40: 1 | CT40: 1
E41: male | F41: 50 | G41: =G39-G40 -> 0 | K41: Thu | L41: 1 | M41: 1 | N41: 1 | O41: 1 | U41: male | V41: 50 | W41: =W39-W40 -> 0 | AA41: Thu | AB41: 1 | AC41: 1 | AD41: 1 | AE41: 1 | BA41: 7 | BB41: 1 | BD41: 41 | BE41: 1 | BJ41: 7 | BL41: =$BL$6*BE41*$CF$44 ->  | BM41: 0 | BO41: =BE41*CF$27 -> 1 | BP41: =BE41*CF$44 -> 1 | BQ41: 1 | BR41: 1 | BS41: 1 | BT41: 1 | BU41: 1 | BY41: Urinal | CA41: =IF($X$15,V25,AC25) -> 1 | CB41: flush | CC41: 75 | CF41: 1 | CG41: 1 | CH41: 1 | CI41: 1 | CK41: 21 | CL41: 1 | CM41: 1 | CN41: 1 | CO41: 1 | CP41: 1 | CQ41: 1 | CR41: 1 | CS41: 1 | CT41: 1
K42: Fri | L42: 1 | M42: 1 | N42: 1 | O42: 1 | AA42: Fri | AB42: 1 | AC42: 1 | AD42: 1 | AE42: 1 | AZ42: Week 6 | BA42: 8 | BB42: =AK$11 -> 1 | BD42: 42 | BE42: 1 | BJ42: 8 | BK42: =$BK$6*BE42*$CG21 ->  | BL42: =$BL$6*BE42*$CG$38 ->  | BM42: 0 | BO42: =BE42*CG$21 -> 1 | BP42: =BE42*CG$38 -> 1 | BQ42: 1 | BR42: 1 | BS42: 1 | BT42: 1 | BU42: 1 | BY42: WH Basin | BZ42: =IF($X$15,U26,AB26) -> 4 | CA42: 15 | CB42: secs | CC42: 100 | CF42: 1 | CG42: 1 | CH42: 1 | CI42: 1 | CK42: 22 | CL42: =O10 -> 1 | CM42: =AE10 -> 1 | CN42: =O38 -> 1 | CO42: =AE38 -> 1 | CP42: =N184 -> 1 | CQ42: =V184 -> 1 | CR42: =AD184 -> 1 | CS42: =N211 -> 1 | CT42: =V211 -> 1
D43: Use default values? | H43: 1 | K43: Sat | L43: 1 | M43: 1 | N43: 1 | O43: 1 | T43: Use default values? | X43: 1 | AA43: Sat | AB43: 1 | AC43: 1 | AD43: 1 | AE43: 1 | BA43: 9 | BB43: =BB$42 -> 1 | BD43: 43 | BE43: 1 | BJ43: 9 | BL43: =$BL$6*BE43*$CG$39 ->  | BM43: 0 | BO43: =BE43*CG$22 -> 1 | BP43: =BE43*CG$39 -> 1 | BQ43: 1 | BR43: 1 | BS43: 1 | BT43: 1 | BU43: 1 | BY43: Shower | BZ43: =IF($X$15,U27,AB27) -> 0 | CA43: 360 | CB43: secs | CC43: 0 | CF43: 1 | CG43: 1 | CH43: 1 | CI43: 1 | CK43: 23 | CL43: 1 | CM43: 1 | CN43: 1 | CO43: 1 | CP43: 1 | CQ43: 1 | CR43: 1 | CS43: 1 | CT43: 1
K44: Sun | L44: 1 | M44: 1 | N44: 1 | O44: 1 | AA44: Sun | AB44: 1 | AC44: 1 | AD44: 1 | AE44: 1 | BA44: 10 | BB44: 1 | BD44: 44 | BE44: 1 | BJ44: 10 | BL44: =$BL$6*BE44*$CG$40 ->  | BM44: 0 | BO44: =BE44*CG$23 -> 1 | BP44: =BE44*CG$40 -> 1 | BQ44: 1 | BR44: 1 | BS44: 1 | BT44: 1 | BU44: 1 | BY44: Sink Tap | BZ44: =IF($X$15,U28,AB28) -> 1 | CA44: 15 | CB44: secs | CC44: 100 | CF44: 1 | CG44: 1 | CH44: 1 | CI44: 1 | CK44: 24 | CL44: 1 | CM44: 1 | CN44: 1 | CO44: 1 | CP44: 1 | CQ44: 1 | CR44: 1 | CS44: 1 | CT44: 1
BA45: 11 | BB45: 1 | BD45: 45 | BE45: 1 | BJ45: 11 | BL45: =$BL$6*BE45*$CG$41 ->  | BM45: 0 | BO45: =BE45*CG$24 -> 1 | BP45: =BE45*CG$41 -> 1 | BQ45: 1 | BR45: 1 | BS45: 1 | BT45: 1 | BU45: 1 | BY45: Bib tap | BZ45: =IF($X$15,U29,AB29) -> 1 | CA45: 5 | CB45: secs | CC45: 50 | CK45: 25 | CL45: 1 | CM45: 1 | CN45: 1 | CO45: 1 | CP45: 1 | CQ45: 1 | CR45: 1 | CS45: 1 | CT45: 1
C46: Fittings | E46: =IF(H43=1,"Default values used","This table is not used") -> Default values used | L46: =IF(H43=1,"This table is not used","User defined") -> This table is not used | S46: Fittings | U46: =IF(X43=1,"Default values used","This table is not used") -> Default values used | AB46: =IF(X43=1,"This table is not used","User defined") -> This table is not used | BA46: 12 | BB46: 1 | BD46: 46 | BE46: 1 | BJ46: 12 | BL46: =$BL$6*BE46*$CG$42 ->  | BM46: 0 | BO46: =BE46*CG$25 -> 1 | BP46: =BE46*CG$42 -> 1 | BQ46: 1 | BR46: 1 | BS46: 1 | BT46: 1 | BU46: 1 | BY46: Ablution | BZ46: =IF($X$15,U30,AB30) -> 2 | CA46: 30 | CB46: secs | CC46: 50 | CK46: 26 | CL46: 1 | CM46: 1 | CN46: 1 | CO46: 1 | CP46: 1 | CQ46: 1 | CR46: 1 | CS46: 1 | CT46: 1
E47: Uses/ day | F47: Duration per use | I47: usage factor | L47: Uses/ day | M47: Duration per use | O47: usage factor | U47: Uses/ day | V47: Duration per use | Y47: usage factor | AB47: Uses/ day | AC47: Duration per use | AE47: usage factor | BA47: 13 | BB47: 1 | BD47: 47 | BE47: 1 | BJ47: 13 | BL47: =$BL$6*BE47*$CG$43 ->  | BM47: 0 | BO47: =BE47*CG$26 -> 1 | BP47: =BE47*CG$43 -> 1 | BQ47: 1 | BR47: 1 | BS47: 1 | BT47: 1 | BU47: 1 | CC47: (%) | CK47: 27 | CL47: 1 | CM47: 1 | CN47: 1 | CO47: 1 | CP47: 1 | CQ47: 1 | CR47: 1 | CS47: 1 | CT47: 1
C48: WC Female | E48: =INDEX((none,dayguest,kindergarten,multipurpose3,office3,retail3),1,1,bbmatch) -> 0 | F48: =INDEX((none,dayguest,kindergarten,multipurpose3,office3,retail3),1,2,bbmatch) -> 0 | G48: flush | I48: =INDEX((none,dayguest,kindergarten,multipurpose3,office3,retail3),1,3,bbmatch) -> 0 | J48: % | L48: 0 | M48: 1 | N48: flush | O48: 0 | P48: % | S48: WC Female | U48: =INDEX((none2,apartment,kindergarten4,multipurpose4,retail4),1,1,bbbmatch) -> 0 | V48: =INDEX((none2,apartment,kindergarten4,multipurpose4,retail4),1,2,bbbmatch) -> 0 | W48: flush | Y48: =INDEX((none2,apartment,kindergarten4,multipurpose4,retail4),1,3,bbbmatch) -> 0 | Z48: % | AB48: 0 | AC48: 1 | AD48: flush | AE48: 0 | AF48: % | BA48: 14 | BB48: 1 | BD48: 48 | BE48: 1 | BJ48: 14 | BL48: =$BL$6*BE48*$CG$44 ->  | BM48: 0 | BO48: =BE48*CG$27 -> 1 | BP48: =BE48*CG$44 -> 1 | BQ48: 1 | BR48: 1 | BS48: 1 | BT48: 1 | BU48: 1 | BY48: WC Female | BZ48: =IF($H$43,E48,L48) -> 0 | CA48: =IF($H$43,F48,M48) -> 0 | CB48: flush | CC48: =IF($H$43,I48,O48) -> 0 | CK48: 28 | CL48: 1 | CM48: 1 | CN48: 1 | CO48: 1 | CP48: 1 | CQ48: 1 | CR48: 1 | CS48: 1 | CT48: 1
F49: =INDEX((none,dayguest,kindergarten,multipurpose3,office3,retail3),2,2,bbmatch) -> 0 | G49: h/flush | I49: =INDEX((none,dayguest,kindergarten,multipurpose3,office3,retail3),2,3,bbmatch) -> 0 | J49: % | M49: 1 | N49: h/flush | O49: 0 | P49: % | V49: =INDEX((none2,apartment,kindergarten4,multipurpose4,retail4),2,2,bbbmatch) -> 0 | W49: h/flush | Y49: =INDEX((none2,apartment,kindergarten4,multipurpose4,retail4),2,3,bbbmatch) -> 0 | Z49: % | AC49: 1 | AD49: h/flush | AE49: 0 | AF49: % | AQ49: WH Basin | AS49: =O68 -> 9 | AT49: 1 | AZ49: Week 7 | BA49: 15 | BB49: =AK$12 -> 1 | BD49: 49 | BE49: 1 | BJ49: 15 | BK49: =$BK$6*BE49*$CH21 ->  | BL49: =$BL$6*BE49*$CH$38 ->  | BM49: 0 | BO49: =BE49*CH$21 -> 1 | BP49: =BE49*CH$38 -> 1 | BQ49: 1 | BR49: 1 | BS49: 1 | BT49: 1 | BU49: 1 | CA49: 1 | CB49: h/flush | CC49: 0 | CF49: =INDEX($CN$21:$CN$55,$CE21) -> 1 | CG49: =INDEX($CN$21:$CN$55,$CE21+7) -> 1 | CH49: =INDEX($CN$21:$CN$55,$CE21+14) -> 1 | CI49: =INDEX($CN$21:$CN$55,$CE21+21) -> 1 | CK49: 29 | CL49: =L10 -> 1 | CM49: =AB10 -> 1 | CN49: =L38 -> 1 | CO49: =AB38 -> 1 | CP49: =K184 -> 1 | CQ49: =S184 -> 1 | CR49: =AA184 -> 1 | CS49: =K211 -> 1 | CT49: =S211 -> 1
C50: WC Male | E50: =INDEX((none,dayguest,kindergarten,multipurpose3,office3,retail3),3,1,bbmatch) -> 0 | F50: =INDEX((none,dayguest,kindergarten,multipurpose3,office3,retail3),3,2,bbmatch) -> 0 | G50: flush | I50: =INDEX((none,dayguest,kindergarten,multipurpose3,office3,retail3),3,3,bbmatch) -> 0 | J50: % | L50: 0 | M50: 1 | N50: flush | O50: 0 | P50: % | S50: WC Male | U50: =INDEX((none2,apartment,kindergarten4,multipurpose4,retail4),3,1,bbbmatch) -> 0 | V50: =INDEX((none2,apartment,kindergarten4,multipurpose4,retail4),3,2,bbbmatch) -> 0 | W50: flush | Y50: =INDEX((none2,apartment,kindergarten4,multipurpose4,retail4),3,3,bbbmatch) -> 0 | Z50: % | AB50: 0 | AC50: 1 | AD50: flush | AE50: 0 | AF50: % | AQ50: Basin tap 1 | AR50: =M69 -> b tap 1 | AS50: =O69 -> 3.8 | AT50: 1 | BA50: 16 | BB50: =BB$49 -> 1 | BD50: 50 | BE50: 1 | BJ50: 16 | BL50: =$BL$6*BE50*$CH$39 ->  | BM50: 0 | BO50: =BE50*CH$22 -> 1 | BP50: =BE50*CH$39 -> 1 | BQ50: 1 | BR50: 1 | BS50: 1 | BT50: 1 | BU50: 1 | BY50: WC Male | BZ50: =IF($H$43,E50,L50) -> 0 | CA50: =IF($H$43,F50,M50) -> 0 | CB50: flush | CC50: 0 | CF50: 1 | CG50: 1 | CH50: 1 | CI50: 1 | CK50: 30 | CL50: 1 | CM50: 1 | CN50: 1 | CO50: 1 | CP50: 1 | CQ50: 1 | CR50: 1 | CS50: 1 | CT50: 1
F51: =INDEX((none,dayguest,kindergarten,multipurpose3,office3,retail3),4,2,bbmatch) -> 0 | G51: h/flush | I51: =INDEX((none,dayguest,kindergarten,multipurpose3,office3,retail3),4,3,bbmatch) -> 0 | J51: % | M51: 1 | N51: h/flush | O51: 0 | P51: % | V51: =INDEX((none2,apartment,kindergarten4,multipurpose4,retail4),4,2,bbbmatch) -> 0 | W51: h/flush | Y51: =INDEX((none2,apartment,kindergarten4,multipurpose4,retail4),4,3,bbbmatch) -> 0 | Z51: % | AC51: 1 | AD51: h/flush | AE51: 0 | AF51: % | AQ51: Basin tap 1 (s/c) | AR51: =AR50 -> b tap 1 | AS51: =AS50 -> 3.8 | AT51: 0.8 | BA51: 17 | BB51: 1 | BD51: 51 | BE51: 1 | BJ51: 17 | BL51: =$BL$6*BE51*$CH$40 ->  | BM51: 0 | BO51: =BE51*CH$23 -> 1 | BP51: =BE51*CH$40 -> 1 | BQ51: 1 | BR51: 1 | BS51: 1 | BT51: 1 | BU51: 1 | CA51: 1 | CB51: h/flush | CC51: 0 | CF51: 1 | CG51: 1 | CH51: 1 | CI51: 1 | CK51: 31 | CL51: 1 | CM51: 1 | CN51: 1 | CO51: 1 | CP51: 1 | CQ51: 1 | CR51: 1 | CS51: 1 | CT51: 1
C52: Urinal | F52: =INDEX((none,dayguest,kindergarten,multipurpose3,office3,retail3),5,2,bbmatch) -> 0 | G52: flush | I52: =INDEX((none,dayguest,kindergarten,multipurpose3,office3,retail3),5,3,bbmatch) -> 0 | J52: % | M52: 1 | N52: flush | O52: 0 | P52: % | S52: Urinal | V52: =INDEX((none2,apartment,kindergarten4,multipurpose4,retail4),5,2,bbbmatch) -> 0 | W52: flush | Y52: =INDEX((none2,apartment,kindergarten4,multipurpose4,retail4),5,3,bbbmatch) -> 0 | Z52: % | AC52: 1 | AD52: flush | AE52: 0 | AF52: % | AQ52: Basin tap 2 | AR52: =M70 -> b tap 2 | AS52: =O70 -> 3.8 | AT52: 1 | BA52: 18 | BB52: 1 | BD52: 52 | BE52: 1 | BJ52: 18 | BL52: =$BL$6*BE52*$CH$41 ->  | BM52: 0 | BO52: =BE52*CH$24 -> 1 | BP52: =BE52*CH$41 -> 1 | BQ52: =BQ24 -> 1 | BR52: 1 | BS52: 1 | BT52: 1 | BU52: 1 | BY52: Urinal | CA52: =IF($H$43,F52,M52) -> 0 | CB52: flush | CC52: 0 | CF52: 1 | CG52: 1 | CH52: 1 | CI52: 1 | CK52: 32 | CL52: 1 | CM52: 1 | CN52: 1 | CO52: 1 | CP52: 1 | CQ52: 1 | CR52: 1 | CS52: 1 | CT52: 1
C53: WH Basin | E53: =INDEX((none,dayguest,kindergarten,multipurpose3,office3,retail3),6,1,bbmatch) -> 0 | F53: =INDEX((none,dayguest,kindergarten,multipurpose3,office3,retail3),6,2,bbmatch) -> 0 | G53: secs | I53: =INDEX((none,dayguest,kindergarten,multipurpose3,office3,retail3),6,3,bbmatch) -> 0 | J53: % | L53: 0 | M53: 0 | N53: secs | O53: 0 | P53: % | S53: WH Basin | U53: =INDEX((none2,apartment,kindergarten4,multipurpose4,retail4),6,1,bbbmatch) -> 0 | V53: =INDEX((none2,apartment,kindergarten4,multipurpose4,retail4),6,2,bbbmatch) -> 0 | W53: secs | Y53: =INDEX((none2,apartment,kindergarten4,multipurpose4,retail4),6,3,bbbmatch) -> 0 | Z53: % | AB53: 0 | AC53: 0 | AD53: secs | AE53: 0 | AF53: % | AQ53: Basin tap 2 (s/c) | AR53: =AR52 -> b tap 2 | AS53: =AS52 -> 3.8 | AT53: 0.8 | BA53: 19 | BB53: 1 | BD53: 53 | BE53: 1 | BJ53: 19 | BL53: =$BL$6*BE53*$CH$42 ->  | BM53: 0 | BO53: =BE53*CH$25 -> 1 | BP53: =BE53*CH$42 -> 1 | BQ53: 1 | BR53: 1 | BS53: 1 | BT53: 1 | BU53: 1 | BY53: WH Basin | BZ53: =IF($H$43,E53,L53) -> 0 | CA53: 0 | CB53: secs | CC53: 0 | CF53: 1 | CG53: 1 | CH53: 1 | CI53: 1 | CK53: 33 | CL53: 1 | CM53: 1 | CN53: 1 | CO53: 1 | CP53: 1 | CQ53: 1 | CR53: 1 | CS53: 1 | CT53: 1
C54: Shower | E54: =INDEX((none,dayguest,kindergarten,multipurpose3,office3,retail3),7,1,bbmatch) -> 0 | F54: =INDEX((none,dayguest,kindergarten,multipurpose3,office3,retail3),7,2,bbmatch) -> 0 | G54: secs | I54: =INDEX((none,dayguest,kindergarten,multipurpose3,office3,retail3),7,3,bbmatch) -> 0 | J54: % | L54: 0 | M54: 0 | N54: secs | O54: 0 | P54: % | S54: Shower | U54: =INDEX((none2,apartment,kindergarten4,multipurpose4,retail4),7,1,bbbmatch) -> 0 | V54: =INDEX((none2,apartment,kindergarten4,multipurpose4,retail4),7,2,bbbmatch) -> 0 | W54: secs | Y54: =INDEX((none2,apartment,kindergarten4,multipurpose4,retail4),7,3,bbbmatch) -> 0 | Z54: % | AB54: 0 | AC54: 0 | AD54: secs | AE54: 0 | AF54: % | AQ54: Basin tap 3 | AR54: =M71 -> b tap 3 | AS54: =O71 -> 3.8 | AT54: 1 | BA54: 20 | BB54: 1 | BD54: 54 | BE54: 1 | BJ54: 20 | BL54: =$BL$6*BE54*$CH$43 ->  | BM54: 0 | BO54: =BE54*CH$26 -> 1 | BP54: =BE54*CH$43 -> 1 | BQ54: 1 | BR54: 1 | BS54: 1 | BT54: 1 | BU54: 1 | BY54: Shower | BZ54: =IF($H$43,E54,L54) -> 0 | CA54: 0 | CB54: secs | CC54: 0 | CF54: 1 | CG54: 1 | CH54: 1 | CI54: 1 | CK54: 34 | CL54: 1 | CM54: 1 | CN54: 1 | CO54: 1 | CP54: 1 | CQ54: 1 | CR54: 1 | CS54: 1 | CT54: 1
C55: Sink Tap | E55: =INDEX((none,dayguest,kindergarten,multipurpose3,office3,retail3),8,1,bbmatch) -> 0 | F55: =INDEX((none,dayguest,kindergarten,multipurpose3,office3,retail3),8,2,bbmatch) -> 0 | G55: secs | I55: =INDEX((none,dayguest,kindergarten,multipurpose3,office3,retail3),8,3,bbmatch) -> 0 | J55: % | L55: 0 | M55: 0 | N55: secs | O55: 0 | P55: % | S55: Bath | U55: =INDEX((none2,apartment,kindergarten4,multipurpose4,retail4),8,1,bbbmatch) -> 0 | V55: =INDEX((none2,apartment,kindergarten4,multipurpose4,retail4),8,2,bbbmatch) -> 0 | W55: use | Y55: =INDEX((none2,apartment,kindergarten4,multipurpose4,retail4),8,3,bbbmatch) -> 0 | Z55: % | AB55: 0 | AC55: 0 | AD55: use | AE55: 0 | AF55: % | AQ55: Basin tap 3 (s/c) | AR55: =AR54 -> b tap 3 | AS55: =AS54 -> 3.8 | AT55: 0.8 | BA55: 21 | BB55: 1 | BD55: 55 | BE55: 1 | BJ55: 21 | BL55: =$BL$6*BE55*$CH$44 ->  | BM55: 0 | BO55: =BE55*CH$27 -> 1 | BP55: =BE55*CH$44 -> 1 | BQ55: 1 | BR55: 1 | BS55: 1 | BT55: 1 | BU55: 1 | BY55: Sink Tap | BZ55: =IF($H$43,E55,L55) -> 0 | CA55: 0 | CB55: secs | CC55: 0 | CF55: 1 | CG55: 1 | CH55: 1 | CI55: 1 | CK55: 35 | CL55: 1 | CM55: 1 | CN55: 1 | CO55: 1 | CP55: 1 | CQ55: 1 | CR55: 1 | CS55: 1 | CT55: 1
C56: Bib tap | E56: =INDEX((none,dayguest,kindergarten,multipurpose3,office3,retail3),9,1,bbmatch) -> 0 | F56: =INDEX((none,dayguest,kindergarten,multipurpose3,office3,retail3),9,2,bbmatch) -> 0 | G56: secs | I56: =INDEX((none,dayguest,kindergarten,multipurpose3,office3,retail3),9,3,bbmatch) -> 0 | J56: % | L56: 0 | M56: 0 | N56: secs | O56: 0 | P56: % | S56: Sink Tap | U56: =INDEX((none2,apartment,kindergarten4,multipurpose4,retail4),9,1,bbbmatch) -> 0 | V56: =INDEX((none2,apartment,kindergarten4,multipurpose4,retail4),9,2,bbbmatch) -> 0 | W56: secs | Y56: =INDEX((none2,apartment,kindergarten4,multipurpose4,retail4),9,3,bbbmatch) -> 0 | Z56: % | AB56: 0 | AC56: 0 | AD56: secs | AE56: 0 | AF56: % | AQ56: Basin tap 4 | AR56: =M72 -> b tap 4 | AS56: =O72 -> 3.4 | AT56: 1 | AZ56: Week 8 | BA56: 22 | BB56: =AK$13 -> 1 | BD56: 56 | BE56: 1 | BJ56: 22 | BK56: =$BK$6*BE56*$CI21 ->  | BL56: =$BL$6*BE56*$CI$38 ->  | BM56: 0 | BO56: =BE56*CI$21 -> 1 | BP56: =BE56*CI$38 -> 1 | BQ56: 1 | BR56: 1 | BS56: 1 | BT56: 1 | BU56: 1 | BY56: Bib tap | BZ56: =IF($H$43,E56,L56) -> 0 | CA56: 0 | CB56: secs | CC56: 0
C57: Ablution | E57: =INDEX((none,dayguest,kindergarten,multipurpose3,office3,retail3),10,1,bbmatch) -> 0 | F57: =INDEX((none,dayguest,kindergarten,multipurpose3,office3,retail3),10,2,bbmatch) -> 0 | G57: secs | I57: =INDEX((none,dayguest,kindergarten,multipurpose3,office3,retail3),10,3,bbmatch) -> 0 | J57: % | L57: 0 | M57: 0 | N57: secs | O57: 0 | P57: % | S57: Bib tap | U57: =INDEX((none2,apartment,kindergarten4,multipurpose4,retail4),10,1,bbbmatch) -> 0 | V57: =INDEX((none2,apartment,kindergarten4,multipurpose4,retail4),10,2,bbbmatch) -> 0 | W57: secs | Y57: =INDEX((none2,apartment,kindergarten4,multipurpose4,retail4),10,3,bbbmatch) -> 0 | Z57: % | AB57: 0 | AC57: 0 | AD57: secs | AE57: 0 | AF57: % | AQ57: Basin tap 4 (s/c) | AR57: =AR56 -> b tap 4 | AS57: =AS56 -> 3.4 | AT57: 0.8 | BA57: 23 | BB57: =BB$56 -> 1 | BD57: 57 | BE57: 1 | BJ57: 23 | BL57: =$BL$6*BE57*$CI$39 ->  | BM57: 0 | BO57: =BE57*CI$22 -> 1 | BP57: =BE57*CI$39 -> 1 | BQ57: 1 | BR57: 1 | BS57: 1 | BT57: 1 | BU57: 1 | BY57: Ablution | BZ57: =IF($H$43,E57,L57) -> 0 | CA57: 0 | CB57: secs | CC57: 0
S58: Ablution | U58: =INDEX((none2,apartment,kindergarten4,multipurpose4,retail4),11,1,bbbmatch) -> 0 | V58: =INDEX((none2,apartment,kindergarten4,multipurpose4,retail4),11,2,bbbmatch) -> 0 | W58: secs | Y58: =INDEX((none2,apartment,kindergarten4,multipurpose4,retail4),11,3,bbbmatch) -> 0 | Z58: % | AB58: 0 | AC58: 0 | AD58: secs | AE58: 0 | AF58: % | BA58: 24 | BB58: 1 | BD58: 58 | BE58: 1 | BJ58: 24 | BL58: =$BL$6*BE58*$CI$40 ->  | BM58: 0 | BO58: =BE58*CI$23 -> 1 | BP58: =BE58*CI$40 -> 1 | BQ58: 1 | BR58: 1 | BS58: 1 | BT58: 1 | BU58: 1
BA59: 25 | BB59: 1 | BD59: 59 | BE59: 1 | BJ59: 25 | BL59: =$BL$6*BE59*$CI$41 ->  | BM59: 0 | BO59: =BE59*CI$24 -> 1 | BP59: =BE59*CI$41 -> 1 | BQ59: 1 | BR59: 1 | BS59: 1 | BT59: 1 | BU59: 1
BA60: 26 | BB60: 1 | BD60: 60 | BE60: 1 | BJ60: 26 | BL60: =$BL$6*BE60*$CI$42 ->  | BM60: 0 | BO60: =BE60*CI$25 -> 1 | BP60: =BE60*CI$42 -> 1 | BQ60: 1 | BR60: 1 | BS60: 1 | BT60: 1 | BU60: 1 | CC60: (%)
BA61: 27 | BB61: 1 | BD61: 61 | BE61: 1 | BJ61: 27 | BL61: =$BL$6*BE61*$CI$43 ->  | BM61: 0 | BO61: =BE61*CI$26 -> 1 | BP61: =BE61*CI$43 -> 1 | BQ61: 1 | BR61: 1 | BS61: 1 | BT61: 1 | BU61: 1
C62: Water Fittings Performance | BA62: 28 | BB62: 1 | BD62: 62 | BE62: 1 | BJ62: 28 | BL62: =$BL$6*BE62*$CI$44 ->  | BM62: 0 | BO62: =BE62*CI$27 -> 1 | BP62: =BE62*CI$44 -> 1 | BQ62: 1 | BR62: 1 | BS62: 1 | BT62: 1 | BU62: 1 | BY62: WC Female | BZ62: =IF($X$43,U48,AB48) -> 0 | CA62: =IF($X$43,V48,AC48) -> 0 | CB62: flush | CC62: =IF($X$43,Y48,AE48) -> 0 | CF62: =INDEX($CO$21:$CO$55,$CE21) -> 1 | CG62: =INDEX($CO$21:$CO$55,$CE21+7) -> 1 | CH62: =INDEX($CO$21:$CO$55,$CE21+14) -> 1 | CI62: =INDEX($CO$21:$CO$55,$CE21+21) -> 1
C63: Fixtures | F63: Flowrate | K63: Fixtures | O63: Flowrate | T63: Fixtures | Y63: Flowrate | AZ63: Week 9 | BA63: 1 | BB63: =AK$14 -> 1 | BD63: 63 | BE63: 1 | BJ63: 1 | BK63: =$BK$6*BE63*$CF21 ->  | BL63: =$BL$6*BE63*$CF$38 ->  | BM63: 0 | BO63: =BE63*CF$21 -> 1 | BP63: =BE63*CF$38 -> 1 | BQ63: 1 | BR63: 1 | BS63: 1 | BT63: 1 | BU63: 1 | CA63: 1 | CB63: h/flush | CC63: 0 | CF63: 1 | CG63: 1 | CH63: 1 | CI63: 1
AR64: operational days | BA64: 2 | BB64: =BB$63 -> 1 | BD64: 64 | BE64: 1 | BJ64: =1+BJ63 -> 2 | BL64: =$BL$6*BE64*$CF$39 ->  | BM64: 0 | BO64: =BE64*CF$22 -> 1 | BP64: =BE64*CF$39 -> 1 | BQ64: 1 | BR64: 1 | BS64: 1 | BT64: 1 | BU64: 1 | BY64: WC Male | BZ64: =IF($X$43,U50,AB50) -> 0 | CA64: =IF($X$43,V50,AC50) -> 0 | CB64: flush | CC64: 0 | CF64: 1 | CG64: 1 | CH64: 1 | CI64: 1
C65: Water Closet | F65: 6 | G65: L/flush | K65: Sink tap | O65: 9 | P65: L/min | T65: Shower | Y65: 13 | AA65: L/min | AQ65: Day | AR65: Week 1 | AS65: Week2 | AT65: Week 3 | AU65: Week 4 | BA65: 3 | BB65: 1 | BD65: 65 | BE65: 1 | BJ65: 3 | BL65: =$BL$6*BE65*$CF$40 ->  | BM65: 0 | BO65: =BE65*CF$23 -> 1 | BP65: =BE65*CF$40 -> 1 | BQ65: 1 | BR65: 1 | BS65: 1 | BT65: 1 | BU65: 1 | CA65: 1 | CB65: h/flush | CC65: 0 | CF65: 1 | CG65: 1 | CH65: 1 | CI65: 1 | CK65: =C65 -> Water Closet
C66: Water closet 1 | F66: 6 | G66: L/flush | K66: Sink tap 1 | M66: s1 | O66: 3.8 | P66: L/min | T66: Shower 1 | V66: sh1 | Y66: 9 | AA66: L/min | AQ66: =CE21 -> 7 | AR66: =IF(AN$4,SUM(AR7:AX7,AR35:AX35),14) -> 0 | AS66: =IF(AN$4,SUM(AR14:AX14,AR42:AW42),13) -> 0 | AT66: =IF(AN$4,SUM(AR21:AX21,AR49:AW49),13) -> 10 | AU66: =IF(AN$4,SUM(AR28:AX28,AR56:AW56),13) -> 4.4 | BA66: 4 | BB66: 1 | BD66: 66 | BE66: 1 | BJ66: 4 | BL66: =$BL$6*BE66*$CF$41 ->  | BM66: 0 | BO66: =BE66*CF$24 -> 1 | BP66: =BE66*CF$41 -> 1 | BQ66: 1 | BR66: 1 | BS66: 1 | BT66: 1 | BU66: 1 | BY66: Urinal | CA66: =IF($X$43,V52,AC52) -> 0 | CB66: flush | CC66: 0 | CF66: 1 | CG66: 1 | CH66: 1 | CI66: 1 | CK66: =C66 -> Water closet 1 | CL66: =F66 -> 6 | CM66: =F67 -> 3 | CN66: =D67 -> model 1
C67: Model: | D67: model 1 | F67: 3 | G67: L/flush | K67: Sink tap 2 | M67: s2 | O67: 2.7 | P67: L/min | T67: Shower 2 | V67: sh2 | Y67: 6 | AA67: L/min | AQ67: =1+AQ66 -> 8 | AR67: =IF(AN$4,SUM(AR8:AX8,AR36:AW36),13) -> 0 | AS67: 0 | AT67: 4.8 | AU67: 4.2 | BA67: 5 | BB67: 1 | BD67: 67 | BE67: 1 | BJ67: 5 | BL67: =$BL$6*BE67*$CF$42 ->  | BM67: 0 | BO67: =BE67*CF$25 -> 1 | BP67: =BE67*CF$42 -> 1 | BQ67: 1 | BR67: 1 | BS67: 1 | BT67: 1 | BU67: 1 | BY67: WH Basin | BZ67: =IF($X$43,U53,AB53) -> 0 | CA67: 0 | CB67: secs | CC67: 0 | CF67: 1 | CG67: 1 | CH67: 1 | CI67: 1 | CK67: =C68 -> Water closet 2 | CL67: =F68 -> 4.5 | CM67: =F69 -> 3 | CN67: =D69 -> model 2
C68: Water closet 2 | F68: 4.5 | G68: L/flush | K68: WH Basin | O68: 9 | P68: L/min | T68: Bib tap | Y68: 8 | AA68: L/min | AQ68: =1+AQ67 -> 9 | AR68: 10 | AS68: 0 | AT68: 4.6 | AU68: 0 | BA68: 6 | BB68: 1 | BD68: 68 | BE68: 1 | BJ68: 6 | BL68: =$BL$6*BE68*$CF$43 ->  | BM68: 0 | BO68: =BE68*CF$26 -> 1 | BP68: =BE68*CF$43 -> 1 | BQ68: =BQ40 -> 1 | BR68: 1 | BS68: 1 | BT68: 1 | BU68: 1 | BY68: Shower | BZ68: 0 | CA68: 0 | CB68: secs | CC68: 0 | CF68: 1 | CG68: 1 | CH68: 1 | CI68: 1 | CK68: =C70 -> Water closet 3 | CL68: =F70 -> 3.5 | CM68: =F71 -> 2 | CN68: =D71 -> model 3
C69: Model: | D69: model 2 | F69: 3 | G69: L/flush | K69: Basin tap 1 | M69: b tap 1 | O69: 3.8 | P69: L/min | T69: Bib tap 1 | V69: bt1 | Y69: 3.8 | AA69: L/min | AQ69: 10 | AR69: 87 | AS69: 0 | AT69: 4.8 | AU69: 0 | BA69: 7 | BB69: 1 | BD69: 69 | BE69: 1 | BJ69: 7 | BL69: =$BL$6*BE69*$CF$44 ->  | BM69: 0 | BO69: =BE69*CF$27 -> 1 | BP69: =BE69*CF$44 -> 1 | BQ69: 1 | BR69: 1 | BS69: 1 | BT69: 1 | BU69: 1 | BY69: Bath | BZ69: 0 | CA69: 0 | CB69: use | CC69: 0
C70: Water closet 3 | F70: 3.5 | G70: L/flush | K70: Basin tap 2 | M70: b tap 2 | O70: 3.8 | P70: L/min | T70: Bib tap 2 | V70: bt2 | Y70: 3.4 | AA70: L/min | AQ70: 11 | AR70: 0 | AS70: 0 | AT70: 4.6 | AU70: 0 | AZ70: Wk10 | BA70: 8 | BB70: =AK$15 -> 1 | BD70: 70 | BE70: 1 | BJ70: 8 | BK70: =$BK$6*BE70*$CG21 ->  | BL70: =$BL$6*BE70*$CG$38 ->  | BM70: 0 | BO70: =BE70*CG$21 -> 1 | BP70: =BE70*CG$38 -> 1 | BQ70: 1 | BR70: 1 | BS70: 1 | BT70: 1 | BU70: 1 | BY70: Sink Tap | BZ70: 0 | CA70: 0 | CB70: secs | CC70: 0
C71: Model: | D71: model 3 | F71: 2 | G71: L/flush | K71: Basin tap 3 | M71: b tap 3 | O71: 3.8 | P71: L/min | T71: Ablution | Y71: 8 | AA71: L/min | AQ71: 12 | AR71: 0 | AS71: 0 | AT71: 4.8 | AU71: 0 | BA71: 9 | BB71: =BB$70 -> 1 | BD71: 71 | BE71: =IF($AN$4,INDEX(BB$7:BB$378,$BD71),1) -> 1 | BJ71: 9 | BL71: =$BL$6*BE71*$CG$39 ->  | BM71: 0 | BO71: =BE71*CG$22 -> 1 | BP71: =BE71*CG$39 -> 1 | BQ71: 1 | BR71: 1 | BS71: 1 | BT71: 1 | BU71: 1 | BY71: Bib tap | BZ71: 0 | CA71: 0 | CB71: secs | CC71: 0
C72: Urinal | F72: 3.8 | G72: L/flush | K72: Basin tap 4 | M72: b tap 4 | O72: 3.4 | P72: L/min | T72: Ablution tap 1 | V72: at1 | Y72: 3.8 | AA72: L/min | AQ72: 13 | AR72: 0 | AS72: 0 | AT72: 4.6 | AU72: 0 | BA72: 10 | BB72: =BB$70 -> 1 | BD72: 72 | BE72: 1 | BJ72: 10 | BL72: =$BL$6*BE72*$CG$40 ->  | BM72: 0 | BN72: =ROUNDDOWN(SUM(BK72:BM72),0) ->  | BO72: =BE72*CG$23 -> 1 | BP72: =BE72*CG$40 -> 1 | BQ72: 1 | BR72: 1 | BS72: 1 | BT72: 1 | BU72: 1 | BY72: Ablution | BZ72: 0 | CA72: 0 | CB72: secs | CC72: 0
C73: Urinal 1 | D73: u1 | F73: 0.4 | G73: L/flush | K73: Bath | O73: 176 | P73: L | T73: Ablution tap 2 | V73: at2 | Y73: 3.4 | AA73: L/min | BA73: 11 | BB73: 1 | BD73: =1+BD72 -> 73 | BE73: 1 | BJ73: =1+BJ72 -> 11 | BL73: =$BL$6*BE73*$CG$41 ->  | BM73: 0 | BO73: =BE73*CG$24 -> 1 | BP73: =BE73*CG$41 -> 1 | BQ73: 1 | BR73: 1 | BS73: 1 | BT73: 1 | BU73: 1
C74: Urinal 2 | D74: u2 | F74: 0 | G74: L/flush | K74: Bath 1 | M74: bath 1 | O74: 0 | P74: L | BA74: 12 | BB74: 1 | BD74: 74 | BE74: 1 | BJ74: 12 | BL74: =$BL$6*BE74*$CG$42 ->  | BM74: 0 | BO74: =BE74*CG$25 -> 1 | BP74: =BE74*CG$42 -> 1 | BQ74: 1 | BR74: 1 | BS74: 1 | BT74: 1 | BU74: 1
BA75: 13 | BB75: 1 | BD75: 75 | BE75: 1 | BJ75: 13 | BL75: =$BL$6*BE75*$CG$43 ->  | BM75: 0 | BO75: =BE75*CG$26 -> 1 | BP75: =BE75*CG$43 -> 1 | BQ75: 1 | BR75: 1 | BS75: 1 | BT75: 1 | BU75: 1
BA76: 14 | BB76: 1 | BD76: 76 | BE76: 1 | BJ76: 14 | BL76: =$BL$6*BE76*$CG$44 ->  | BM76: 0 | BO76: =BE76*CG$27 -> 1 | BP76: =BE76*CG$44 -> 1 | BQ76: 1 | BR76: 1 | BS76: 1 | BT76: 1 | BU76: 1
AZ77: Wk11 | BA77: 15 | BB77: =AK$16 -> 1 | BD77: 77 | BE77: 1 | BJ77: 15 | BK77: =$BK$6*BE77*$CH21 ->  | BL77: =$BL$6*BE77*$CH$38 ->  | BM77: 0 | BO77: =BE77*CH$21 -> 1 | BP77: =BE77*CH$38 -> 1 | BQ77: 1 | BR77: 1 | BS77: 1 | BT77: 1 | BU77: 1
C78: =F7 -> Office | K78: Baseline | R78: Design Case | BA78: 16 | BB78: =BB$77 -> 1 | BD78: 78 | BE78: 1 | BJ78: 16 | BL78: =$BL$6*BE78*$CH$39 ->  | BM78: 0 | BO78: =BE78*CH$22 -> 1 | BP78: =BE78*CH$39 -> 1 | BQ78: 1 | BR78: 1 | BS78: 1 | BT78: 1 | BU78: 1
C79: Fixtures | F79: No. of person | H79: Use/ day | I79: Usage factor | K79: Consumption | R79: Water Efficient Fittings | V79: Consumption | AC79: Wastewater Recycling | BA79: 17 | BB79: =BB$77 -> 1 | BD79: 79 | BE79: 1 | BJ79: 17 | BL79: =$BL$6*BE79*$CH$40 ->  | BM79: 0 | BO79: =BE79*CH$23 -> 1 | BP79: =BE79*CH$40 -> 1 | BQ79: 1 | BR79: 1 | BS79: 1 | BT79: 1 | BU79: 1
K80: Flow | L80: Duration | N80: L per day | V80: Flow | X80: Duration | AA80: L per day | BA80: 18 | BB80: 1 | BD80: 80 | BE80: 1 | BJ80: 18 | BL80: =$BL$6*BE80*$CH$41 ->  | BM80: 0 | BO80: =BE80*CH$24 -> 1 | BP80: =BE80*CH$41 -> 1 | BQ80: 1 | BR80: 1 | BS80: 1 | BT80: 1 | BU80: 1
C81: Water Closet | E81: Female | F81: =IF(SUM(I81:I82)=0,0,$G$12) ->  | H81: =IF(SUM(I81:I82)=0,0,BZ21) -> 4 | I81: =CC21 -> 25 | J81: % | K81: =$F$65 -> 6 | L81: 1 | M81: flush | N81: =ROUND(I81*F81*H81*K81*L81/100,0) ->  | R81: Water Closet | U81: Full flow | V81: =IF(R81=C81,K81,VLOOKUP(R81,$CK$66:$CM$68,2,FALSE)) -> 6 | X81: 1 | Y81: flush | AA81: =ROUND(I81*F81*H81*V81*X81/100,0) ->  | AC81: 0 | AD81: Fittings Discharge Selection for Wastewater Recycling | AQ81: WH Basin | BA81: 19 | BB81: 1 | BD81: 81 | BE81: 1 | BJ81: 19 | BL81: =$BL$6*BE81*$CH$42 ->  | BM81: 0 | BO81: =BE81*CH$25 -> 1 | BP81: =BE81*CH$42 -> 1 | BQ81: 1 | BR81: 1 | BS81: 1 | BT81: 1 | BU81: 1
E82: Female | I82: =CC22 -> 75 | J82: % | K82: =$K$81 -> 6 | N82: =ROUND(I82*F81*H81*K82*L81/100,0) ->  | S82: =IF(R81=C81,"",VLOOKUP(R81,$CK$66:$CN$68,4,FALSE)) ->  | U82: Reduced | V82: =IF(R81=C81,K82,VLOOKUP(R81,$CK$66:$CM$68,3,FALSE)) -> 6 | AA82: =ROUND(I82*F81*H81*V82*X81/100,0) ->  | AQ82: Basin tap 1 | BA82: 20 | BB82: 1 | BD82: 82 | BE82: 1 | BJ82: 20 | BL82: =$BL$6*BE82*$CH$43 ->  | BM82: 0 | BO82: =BE82*CH$26 -> 1 | BP82: =BE82*CH$43 -> 1 | BQ82: 1 | BR82: 1 | BS82: 1 | BT82: 1 | BU82: 1
C83: Water Closet | E83: Male | F83: =IF(SUM(I83:I85)=0,0,$G$13) ->  | H83: =IF(SUM(I83:I85)=0,0,BZ23) -> 4 | I83: =CC23 -> 25 | J83: % | K83: =$K$81 -> 6 | L83: 1 | M83: flush | N83: =ROUND(I83*F83*H83*K83*L83/100,0) ->  | R83: Water Closet | U83: Full flow | V83: =IF(R83=C83,K83,VLOOKUP(R83,$CK$66:$CM$68,2,FALSE)) -> 6 | X83: 1 | Y83: flush | AA83: =ROUND(I83*F83*H83*V83*X83/100,0) ->  | AC83: 0 | AQ83: Basin tap 1 (s/c) | BA83: 21 | BB83: 1 | BD83: 83 | BE83: 1 | BJ83: 21 | BL83: =$BL$6*BE83*$CH$44 ->  | BM83: 0 | BO83: =BE83*CH$27 -> 1 | BP83: =BE83*CH$44 -> 1 | BQ83: 1 | BR83: 1 | BS83: 1 | BT83: 1 | BU83: 1
E84: Male | I84: =CC24 -> 0 | J84: % | K84: =$K$81 -> 6 | N84: =ROUND(I84*F83*H83*K84*L83/100,0) ->  | S84: =IF(R83=C83,"",VLOOKUP(R83,$CK$66:$CN$68,4,FALSE)) ->  | U84: Reduced | V84: =IF(R83=C83,K84,VLOOKUP(R83,$CK$66:$CM$68,3,FALSE)) -> 6 | AA84: =ROUND(I84*F83*H83*V84*X83/100,0) ->  | AQ84: Basin tap 2 | AZ84: Wk 12 | BA84: 22 | BB84: =AK$17 -> 1 | BD84: 84 | BE84: 1 | BJ84: 22 | BK84: =$BK$6*BE84*$CI21 ->  | BL84: =$BL$6*BE84*$CI$38 ->  | BM84: 0 | BO84: =BE84*CI$21 -> 1 | BP84: =BE84*CI$38 -> 1 | BQ84: =BQ56 -> 1 | BR84: 1 | BS84: 1 | BT84: 1 | BU84: 1
C85: Urinal | E85: Male | I85: =CC25 -> 75 | J85: % | K85: =$F$72 -> 3.8 | N85: =ROUND(I85*F83*H83*K85*L83/100,0) ->  | R85: Urinal | U85: =IF(R85=C85,"",VLOOKUP(R85,$C$73:$H$74,2,FALSE)) ->  | V85: =IF(R85=C85,K85,VLOOKUP(R85,$C$73:$H$74,4,FALSE)) -> 3.8 | AA85: =ROUND(I85*F83*H83*V85*X83/100,0) ->  | AC85: 0 | AQ85: Basin tap 2 (s/c) | BA85: 23 | BB85: =BB$84 -> 1 | BD85: 85 | BE85: 1 | BJ85: 23 | BL85: =$BL$6*BE85*$CI$39 ->  | BM85: 0 | BO85: =BE85*CI$22 -> 1 | BP85: =BE85*CI$39 -> 1 | BQ85: 1 | BR85: 1 | BS85: 1 | BT85: 1 | BU85: 1
C86: Bib tap | E86: All | F86: =IF(I86=0,0,SUM($G$12:$G$13)) ->  | H86: =IF(I86=0,0,BZ30) -> 1 | I86: =CC30 -> 50 | J86: % | K86: =$Y$68 -> 8 | L86: =VLOOKUP($C86,$BY$26:$CC$31,3,FALSE) -> 5 | M86: secs | N86: =ROUND(I86*F86*H86*K86*L86/6000,0) ->  | R86: Bib tap | U86: =IF(R86=C86,"",VLOOKUP(R86,$T$69:$AA$70,3,FALSE)) ->  | V86: =IF(R86=C86,K86,VLOOKUP(R86,$T$69:$AA$70,6,FALSE)) -> 8 | X86: =L86 -> 5 | Y86: secs | AA86: =ROUND(I86*F86*H86*V86*X86/6000,0) ->  | AC86: 0 | AQ86: Basin tap 3 | BA86: 24 | BB86: =BB$84 -> 1 | BD86: 86 | BE86: 1 | BJ86: 24 | BL86: =$BL$6*BE86*$CI$40 ->  | BM86: 0 | BO86: =BE86*CI$23 -> 1 | BP86: =BE86*CI$40 -> 1 | BQ86: 1 | BR86: 1 | BS86: 1 | BT86: 1 | BU86: 1
C87: WH Basin | E87: All | H87: =IF(I87=0,0,BZ26) -> 4 | I87: =CC26 -> 100 | J87: % | K87: =$O$68 -> 9 | L87: 15 | M87: secs | N87: =ROUND(I87*F87*H87*K87*L87/6000,0) ->  | R87: WH Basin | U87: =IF(R87=C87,"",VLOOKUP(R87,basintap,2,FALSE)) ->  | V87: =IF(R87=C87,K87,VLOOKUP(R87,basintap,3,FALSE)) -> 9 | X87: =L87*AR90 -> 15 | Y87: secs | AA87: =ROUND(I87*F87*H87*V87*X87/6000,0) ->  | AC87: 0 | AQ87: Basin tap 3 (s/c) | BA87: 25 | BB87: 1 | BD87: 87 | BE87: 1 | BJ87: 25 | BL87: =$BL$6*BE87*$CI$41 ->  | BM87: 0 | BO87: =BE87*CI$24 -> 1 | BP87: =BE87*CI$41 -> 1 | BQ87: 1 | BR87: 1 | BS87: 1 | BT87: 1 | BU87: 1
C88: Sink tap | E88: All | H88: =IF(I88=0,0,BZ29) -> 1 | I88: =CC29 -> 100 | J88: % | K88: =$O$65 -> 9 | L88: 15 | M88: secs | N88: =ROUND(I88*F88*H88*K88*L88/6000,0) ->  | R88: Sink tap | U88: =IF(R88=C88,"",VLOOKUP(R88,$K$66:$O$67,3,FALSE)) ->  | V88: =IF(R88=C88,K88,VLOOKUP(R88,$K$66:$O$67,5,FALSE)) -> 9 | X88: =L88 -> 15 | Y88: secs | AA88: =ROUND(I88*F88*H88*V88*X88/6000,0) ->  | AC88: 0 | AQ88: Basin tap 4 | BA88: 26 | BB88: 1 | BD88: 88 | BE88: 1 | BJ88: 26 | BL88: =$BL$6*BE88*$CI$42 ->  | BM88: 0 | BO88: =BE88*CI$25 -> 1 | BP88: =BE88*CI$42 -> 1 | BQ88: 1 | BR88: 1 | BS88: 1 | BT88: 1 | BU88: 1
C89: Ablution | E89: All | H89: =IF(I89=0,0,BZ31) -> 2 | I89: =CC31 -> 50 | J89: % | K89: =$Y$71 -> 8 | L89: 30 | M89: secs | N89: =ROUND(I89*F89*H89*K89*L89/6000,0) ->  | R89: Ablution | U89: =IF(R89=C89,"",VLOOKUP(R89,$T$72:$AA$73,3,FALSE)) ->  | V89: =IF(R89=C89,K89,VLOOKUP(R89,$T$72:$AA$73,6,FALSE)) -> 8 | X89: =L89 -> 30 | Y89: secs | AA89: =ROUND(I89*F89*H89*V89*X89/6000,0) ->  | AC89: 0 | AQ89: Basin tap 4 (s/c) | BA89: 27 | BB89: 1 | BD89: 89 | BE89: 1 | BJ89: 27 | BL89: =$BL$6*BE89*$CI$43 ->  | BM89: 0 | BO89: =BE89*CI$26 -> 1 | BP89: =BE89*CI$43 -> 1 | BQ89: 1 | BR89: 1 | BS89: 1 | BT89: 1 | BU89: 1
C90: Shower | E90: All | F90: 0 | H90: =IF(I90=0,0,BZ27) -> 0 | I90: =CC27 -> 0 | J90: % | K90: =$Y$65 -> 13 | L90: 360 | M90: secs | N90: =ROUND(I90*F90*H90*K90*L90/6000,0) -> 0 | R90: Shower | U90: =IF(R90=C90,"",VLOOKUP(R90,$T$66:$Y$67,3,FALSE)) ->  | V90: =IF(R90=C90,K90,VLOOKUP(R90,$T$66:$AA$67,6,FALSE)) -> 13 | X90: =L90 -> 360 | Y90: secs | AA90: =ROUND(I90*F90*H90*V90*X90/6000,0) -> 0 | AC90: 0 | AR90: =VLOOKUP(R87,basintap,4,FALSE) -> 1 | BA90: 28 | BB90: 1 | BD90: 90 | BE90: 1 | BJ90: 28 | BL90: =$BL$6*BE90*$CI$44 ->  | BM90: 0 | BO90: =BE90*CI$27 -> 1 | BP90: =BE90*CI$44 -> 1 | BQ90: 1 | BR90: 1 | BS90: 1 | BT90: 1 | BU90: 1
C91: Bath | E91: All | F91: 0 | H91: =IF(I91=0,0,BZ28) -> 0 | I91: =CC28 -> 0 | J91: % | K91: =$O$73 -> 176 | L91: 1 | M91: use | N91: =ROUND(I91*F91*H91*K91*L91/100,0) -> 0 | R91: Bath | U91: =IF(R91=C91,"",VLOOKUP(R91,K74:Q74,3,FALSE)) ->  | V91: =IF(R91=C91,K91,VLOOKUP(R91,K74:Q74,5,FALSE)) -> 176 | X91: 1 | Y91: use | AA91: =ROUND(I91*F91*H91*V91*X91/100,0) -> 0 | AC91: 0 | AH91: Water Reduction Calculations - Page 1 | AZ91: Wk13 | BA91: 1 | BB91: =AK$18 -> 1 | BD91: 91 | BE91: 1 | BJ91: 1 | BK91: =$BK$6*BE91*$CF21 ->  | BL91: =$BL$6*BE91*$CF$38 ->  | BM91: 0 | BO91: =BE91*CF$21 -> 1 | BP91: =BE91*CF$38 -> 1 | BQ91: 1 | BR91: 1 | BS91: 1 | BT91: 1 | BU91: 1
C92: Sub-total (L) | N92: =SUM(N81:N91) ->  | R92: Sub-total (L) | AA92: =SUM(AA81:AA91) ->  | BA92: 2 | BB92: =BB$91 -> 1 | BD92: 92 | BE92: 1 | BJ92: =1+BJ91 -> 2 | BL92: =$BL$6*BE92*$CF$39 ->  | BM92: 0 | BO92: =BE92*CF$22 -> 1 | BP92: =BE92*CF$39 -> 1 | BQ92: 1 | BR92: 1 | BS92: 1 | BT92: 1 | BU92: 1
C93: Fixtures Cleaning | F93: Quantity | I93: Freq'cy | K93: Flow | L93: Duration | N93: L/day | R93: Fixtures | V93: Flow | X93: Duration | AA93: L/day | AV93: =SUM(BO$7:BO$372) -> 730 | BA93: 3 | BB93: =BB$91 -> 1 | BD93: 93 | BE93: 1 | BJ93: =1+BJ92 -> 3 | BL93: =$BL$6*BE93*$CF$40 ->  | BM93: 0 | BO93: =BE93*CF$23 -> 1 | BP93: =BE93*CF$40 -> 1 | BQ93: 1 | BR93: 1 | BS93: 1 | BT93: 1 | BU93: 1
C94: Water Closet | F94: 0 | H94: nos. | I94: 1 | K94: =K81 -> 6 | L94: 1 | M94: time | N94: =ROUND(F94*I94*K94*L94,0) -> 0 | R94: =R81 -> Water Closet | V94: =V81 -> 6 | X94: =L94 -> 1 | Y94: time | AA94: =ROUND(F94*I94*V94*X94,0) -> 0 | BA94: 4 | BB94: 1 | BD94: 94 | BE94: 1 | BJ94: 4 | BL94: =$BL$6*BE94*$CF$41 ->  | BM94: 0 | BO94: =BE94*CF$24 -> 1 | BP94: =BE94*CF$41 -> 1 | BQ94: 1 | BR94: 1 | BS94: 1 | BT94: 1 | BU94: 1
C95: Urinal | F95: 0 | H95: nos. | I95: 1 | K95: =K85 -> 3.8 | L95: 1 | M95: time | N95: =ROUND(F95*I95*K95*L95,0) -> 0 | R95: =R85 -> Urinal | V95: =V85 -> 3.8 | X95: =L95 -> 1 | Y95: time | AA95: =ROUND(F95*I95*V95*X95,0) -> 0 | AU95: Annual Consumption | AV95: Baseline | AW95: Design | BA95: 5 | BB95: 1 | BD95: 95 | BE95: 1 | BJ95: 5 | BL95: =$BL$6*BE95*$CF$42 ->  | BM95: 0 | BO95: =BE95*CF$25 -> 1 | BP95: =BE95*CF$42 -> 1 | BQ95: 1 | BR95: 1 | BS95: 1 | BT95: 1 | BU95: 1 | BY95: Baseline | BZ95: Design
C96: WH Basin | F96: 0 | H96: nos. | I96: 1 | K96: =K87 -> 9 | L96: 5 | M96: secs | N96: =ROUND(F96*I96*K96*L96/60,0) -> 0 | R96: =R87 -> WH Basin | V96: =V87 -> 9 | X96: =L96 -> 5 | Y96: secs | AA96: =ROUND(F96*I96*V96*X96/60,0) -> 0 | AV96: m3/yr | AW96: m3/yr | BA96: 6 | BB96: 1 | BD96: 96 | BE96: 1 | BJ96: 6 | BL96: =$BL$6*BE96*$CF$43 ->  | BM96: 0 | BO96: =BE96*CF$26 -> 1 | BP96: =BE96*CF$43 -> 1 | BQ96: 1 | BR96: 1 | BS96: 1 | BT96: 1 | BU96: 1 | BY96: L/day | BZ96: L/day
C97: Shower | F97: 0 | H97: nos. | I97: 1 | K97: =K90 -> 13 | L97: 8 | M97: secs | N97: =ROUND(F97*I97*K97*L97/60,0) -> 0 | R97: =R90 -> Shower | V97: =V90 -> 13 | X97: =L97 -> 8 | Y97: secs | AA97: =ROUND(F97*I97*V97*X97/60,0) -> 0 | AU97: Flushing | AV97: =ROUNDUP(BY97*SUM(BO$7:BO$371)/1000,0) ->  | AW97: =ROUNDUP(BZ97*SUM(BO$7:BO$371)/1000,0) ->  | BA97: 7 | BB97: 1 | BD97: 97 | BE97: 1 | BJ97: 7 | BL97: =$BL$6*BE97*$CF$44 ->  | BM97: 0 | BO97: =BE97*CF$27 -> 1 | BP97: =BE97*CF$44 -> 1 | BQ97: 1 | BR97: 1 | BS97: 1 | BT97: 1 | BU97: 1 | BY97: =SUM(N81:N85,N94,N95) ->  | BZ97: =SUM(AA81:AA85,AA94,AA95) -> 
C98: Sub-total (L) | N98: =SUM(N94:N97) -> 0 | R98: Sub-total (L) | AA98: =SUM(AA94:AA97) -> 0 | AU98: Shower | AV98: 0 | AW98: 0 | AZ98: Wk 14 | BA98: 8 | BB98: =AK$19 -> 1 | BD98: 98 | BE98: 1 | BJ98: 8 | BK98: =$BK$6*BE98*$CG21 ->  | BL98: =$BL$6*BE98*$CG$38 ->  | BM98: 0 | BO98: =BE98*CG$21 -> 1 | BP98: =BE98*CG$38 -> 1 | BQ98: 1 | BR98: 1 | BS98: 1 | BT98: 1 | BU98: 1 | BY98: =SUM(N90:N91,N97) -> 0 | BZ98: =SUM(AA90:AA91,AA97) -> 0
C99: Annual Consumption (m3) | N99: =SUM(AV97:AV102) ->  | R99: Annual Consumption (m3) | AA99: =SUM(AW97:AW102) ->  | AU99: WH basin | BA99: 9 | BB99: =BB$98 -> 1 | BD99: 99 | BE99: 1 | BJ99: 9 | BL99: =$BL$6*BE99*$CG$39 ->  | BM99: 0 | BO99: =BE99*CG$22 -> 1 | BP99: =BE99*CG$39 -> 1 | BQ99: 1 | BR99: 1 | BS99: 1 | BT99: 1 | BU99: 1 | BY99: =SUM(N87,N96) ->  | BZ99: =SUM(AA87,AA96) -> 
C100: Operations | K100: Baseline | R100: Design Case | AU100: Ablution | BA100: =BA72 -> 10 | BB100: =BB$98 -> 1 | BD100: 100 | BE100: 1 | BJ100: 10 | BL100: =$BL$6*BE100*$CG$40 ->  | BM100: =BM72 -> 0 | BO100: =BE100*CG$23 -> 1 | BP100: =BE100*CG$40 -> 1 | BQ100: =BQ72 -> 1 | BR100: 1 | BS100: 1 | BT100: 1 | BU100: 1 | BY100: =SUM(N89) ->  | BZ100: =SUM(AA89) -> 
C101: Fixtures | F101: No. of person | H101: Use/ day | I101: Usage factor | K101: Consumption | R101: Water Efficient Fittings | V101: Consumption | AC101: Wastewater Recycling | AU101: Bib tap | BA101: 11 | BB101: 1 | BD101: 101 | BE101: 1 | BJ101: 11 | BL101: =$BL$6*BE101*$CG$41 ->  | BM101: 0 | BO101: =BE101*CG$24 -> 1 | BP101: =BE101*CG$41 -> 1 | BQ101: 1 | BR101: 1 | BS101: 1 | BT101: 1 | BU101: 1 | BY101: =SUM(N86) ->  | BZ101: =SUM(AA86) -> 
K102: Flow | L102: Duration | N102: L per day | V102: Flow | X102: Duration | AA102: L per day | AU102: Pantry | BA102: 12 | BB102: 1 | BD102: 102 | BE102: 1 | BJ102: 12 | BL102: =$BL$6*BE102*$CG$42 ->  | BM102: 0 | BO102: =BE102*CG$25 -> 1 | BP102: =BE102*CG$42 -> 1 | BQ102: 1 | BR102: 1 | BS102: 1 | BT102: 1 | BU102: 1 | BY102: =SUM(N88) ->  | BZ102: =SUM(AA88) -> 
C103: Water Closet | E103: Female | F103: =IF(SUM(I103,I104)=0,0,$W$12) ->  | H103: =IF(SUM(I103,I104)=0,0,BZ37) -> 4 | I103: =CC37 -> 25 | J103: % | K103: =$F$65 -> 6 | L103: 1 | M103: flush | N103: =ROUND(I103*F103*H103*K103*L103/100,0) ->  | R103: Water Closet | U103: Full flow | V103: =IF(R103=C103,K103,VLOOKUP(R103,$CK$66:$CM$68,2,FALSE)) -> 6 | X103: 1 | Y103: flush | AA103: =ROUND(I103*F103*H103*V103*X103/100,0) ->  | AC103: 0 | AD103: Fittings Discharge Selection for Wastewater Recycling | BA103: 13 | BB103: 1 | BD103: 103 | BE103: 1 | BJ103: 13 | BL103: =$BL$6*BE103*$CG$43 ->  | BM103: 0 | BO103: =BE103*CG$26 -> 1 | BP103: =BE103*CG$43 -> 1 | BQ103: 1 | BR103: 1 | BS103: 1 | BT103: 1 | BU103: 1
E104: Female | I104: =CC38 -> 75 | J104: % | K104: =$K$81 -> 6 | N104: =ROUND(I104*F103*H103*K104*L103/100,0) ->  | S104: =IF(R103=C103,"",VLOOKUP(R103,$CK$66:$CN$68,4,FALSE)) ->  | U104: Reduced | V104: =IF(R103=C103,K104,VLOOKUP(R103,$CK$66:$CM$68,3,FALSE)) -> 6 | AA104: =ROUND(I104*F103*H103*V104*X103/100,0) ->  | BA104: 14 | BB104: 1 | BD104: 104 | BE104: 1 | BJ104: 14 | BL104: =$BL$6*BE104*$CG$44 ->  | BM104: 0 | BO104: =BE104*CG$27 -> 1 | BP104: =BE104*CG$44 -> 1 | BQ104: 1 | BR104: 1 | BS104: 1 | BT104: 1 | BU104: 1
C105: Water Closet | E105: Male | F105: =IF(SUM(I105:I107)=0,0,$W$13) ->  | H105: =IF(SUM(I105:I107)=0,0,BZ39) -> 4 | I105: =CC39 -> 25 | J105: % | K105: =$K$81 -> 6 | L105: 1 | M105: flush | N105: =ROUND(I105*F105*H105*K105*L105/100,0) ->  | R105: Water Closet | U105: Full flow | V105: =IF(R105=C105,K105,VLOOKUP(R105,$CK$66:$CM$68,2,FALSE)) -> 6 | X105: 1 | Y105: flush | AA105: =ROUND(I105*F105*H105*V105*X105/100,0) ->  | AC105: 0 | AZ105: Wk 15 | BA105: 15 | BB105: =AK$20 -> 1 | BD105: 105 | BE105: 1 | BJ105: 15 | BK105: =$BK$6*BE105*$CH21 ->  | BL105: =$BL$6*BE105*$CH$38 ->  | BM105: 0 | BO105: =BE105*CH$21 -> 1 | BP105: =BE105*CH$38 -> 1 | BQ105: 1 | BR105: 1 | BS105: 1 | BT105: 1 | BU105: 1
E106: Male | I106: =CC40 -> 0 | J106: % | K106: =$K$81 -> 6 | N106: =ROUND(I106*F105*H105*K106*L105/100,0) ->  | S106: =IF(R105=C105,"",VLOOKUP(R105,$CK$66:$CN$68,4,FALSE)) ->  | U106: Reduced | V106: =IF(R105=C105,K106,VLOOKUP(R105,$CK$66:$CM$68,3,FALSE)) -> 6 | AA106: =ROUND(I106*F105*H105*V106*X105/100,0) ->  | BA106: 16 | BB106: =BB$105 -> 1 | BD106: 106 | BE106: 1 | BJ106: 16 | BL106: =$BL$6*BE106*$CH$39 ->  | BM106: 0 | BO106: =BE106*CH$22 -> 1 | BP106: =BE106*CH$39 -> 1 | BQ106: 1 | BR106: 1 | BS106: 1 | BT106: 1 | BU106: 1
C107: Urinal | E107: Male | I107: =CC41 -> 75 | J107: % | K107: =$F$72 -> 3.8 | N107: =ROUND(I107*F105*H105*K107*L105/100,0) ->  | R107: Urinal | U107: =IF(R107=C107,"",VLOOKUP(R107,$C$73:$H$74,2,FALSE)) ->  | V107: =IF(R107=C107,K107,VLOOKUP(R107,$C$73:$H$74,4,FALSE)) -> 3.8 | AA107: =ROUND(I107*F105*H105*V107*X105/100,0) ->  | AC107: 0 | BA107: 17 | BB107: =BB$105 -> 1 | BD107: 107 | BE107: 1 | BJ107: 17 | BL107: =$BL$6*BE107*$CH$40 ->  | BM107: 0 | BO107: =BE107*CH$23 -> 1 | BP107: =BE107*CH$40 -> 1 | BQ107: 1 | BR107: 1 | BS107: 1 | BT107: 1 | BU107: 1
C108: Bib tap | E108: All | F108: =IF(I108=0,0,SUM($W$12:$W$13)) ->  | H108: =IF(I108=0,0,BZ45) -> 1 | I108: =CC45 -> 50 | J108: % | K108: =$Y$68 -> 8 | L108: =VLOOKUP($C108,$BY$42:$CC$46,3,FALSE) -> 5 | M108: secs | N108: =ROUND(I108*F108*H108*K108*L108/6000,0) ->  | R108: Bib tap | U108: =IF(R108=C108,"",VLOOKUP(R108,$T$69:$AA$70,3,FALSE)) ->  | V108: =IF(R108=C108,K108,VLOOKUP(R108,$T$69:$AA$70,6,FALSE)) -> 8 | X108: =L108 -> 5 | Y108: secs | AA108: =ROUND(I108*F108*H108*V108*X108/6000,0) ->  | AC108: 0 | BA108: 18 | BB108: 1 | BD108: 108 | BE108: 1 | BJ108: 18 | BL108: =$BL$6*BE108*$CH$41 ->  | BM108: 0 | BO108: =BE108*CH$24 -> 1 | BP108: =BE108*CH$41 -> 1 | BQ108: 1 | BR108: 1 | BS108: 1 | BT108: 1 | BU108: 1
C109: WH Basin | E109: All | F109: =IF(I109=0,0,SUM($W$12:$W$13)) ->  | H109: =IF(I109=0,0,BZ42) -> 4 | I109: =CC42 -> 100 | J109: % | K109: =$O$68 -> 9 | L109: =VLOOKUP($C109,$BY$42:$CC$46,3,FALSE) -> 15 | M109: secs | N109: =ROUND(I109*F109*H109*K109*L109/6000,0) ->  | R109: WH Basin | U109: =IF(R109=C109,"",VLOOKUP(R109,basintap,2,FALSE)) ->  | V109: =IF(R109=C109,K109,VLOOKUP(R109,basintap,3,FALSE)) -> 9 | X109: =L109*AR113 -> 15 | Y109: secs | AA109: =ROUND(I109*F109*H109*V109*X109/6000,0) ->  | AC109: 0 | BA109: 19 | BB109: 1 | BD109: 109 | BE109: 1 | BJ109: 19 | BL109: =$BL$6*BE109*$CH$42 ->  | BM109: 0 | BO109: =BE109*CH$25 -> 1 | BP109: =BE109*CH$42 -> 1 | BQ109: 1 | BR109: 1 | BS109: 1 | BT109: 1 | BU109: 1
C110: Sink tap | E110: All | F110: =IF(I110=0,0,SUM($W$12:$W$13)) ->  | H110: =IF(I110=0,0,BZ44) -> 1 | I110: =CC44 -> 100 | J110: % | K110: =$O$65 -> 9 | L110: =VLOOKUP($C110,$BY$42:$CC$46,3,FALSE) -> 15 | M110: secs | N110: =ROUND(I110*F110*H110*K110*L110/6000,0) ->  | R110: Sink tap | U110: =IF(R110=C110,"",VLOOKUP(R110,$K$66:$O$67,3,FALSE)) ->  | V110: =IF(R110=C110,K110,VLOOKUP(R110,$K$66:$O$67,5,FALSE)) -> 9 | X110: =L110 -> 15 | Y110: secs | AA110: =ROUND(I110*F110*H110*V110*X110/6000,0) ->  | AC110: 0 | BA110: 20 | BB110: 1 | BD110: 110 | BE110: 1 | BJ110: 20 | BL110: =$BL$6*BE110*$CH$43 ->  | BM110: 0 | BO110: =BE110*CH$26 -> 1 | BP110: =BE110*CH$43 -> 1 | BQ110: 1 | BR110: 1 | BS110: 1 | BT110: 1 | BU110: 1
C111: Ablution | E111: All | F111: =IF(I111=0,0,SUM($W$12:$W$13)) ->  | H111: =IF(I111=0,0,BZ46) -> 2 | I111: =CC46 -> 50 | J111: % | K111: =$Y$71 -> 8 | L111: =VLOOKUP($C111,$BY$42:$CC$46,3,FALSE) -> 30 | M111: secs | N111: =ROUND(I111*F111*H111*K111*L111/6000,0) ->  | R111: Ablution | U111: =IF(R111=C111,"",VLOOKUP(R111,$T$72:$AA$73,3,FALSE)) ->  | V111: =IF(R111=C111,K111,VLOOKUP(R111,$T$72:$AA$73,6,FALSE)) -> 8 | X111: =L111 -> 30 | Y111: secs | AA111: =ROUND(I111*F111*H111*V111*X111/6000,0) ->  | AC111: 0 | BA111: 21 | BB111: 1 | BD111: 111 | BE111: 1 | BJ111: 21 | BL111: =$BL$6*BE111*$CH$44 ->  | BM111: 0 | BO111: =BE111*CH$27 -> 1 | BP111: =BE111*CH$44 -> 1 | BQ111: 1 | BR111: 1 | BS111: 1 | BT111: 1 | BU111: 1
C112: Shower | E112: All | F112: =IF(I112=0,0,SUM($W$12:$W$13)) -> 0 | H112: =IF(I112=0,0,BZ43) -> 0 | I112: =CC43 -> 0 | J112: % | K112: =$Y$65 -> 13 | L112: =VLOOKUP($C112,$BY$42:$CC$46,3,FALSE) -> 360 | M112: secs | N112: =ROUND(I112*F112*H112*K112*L112/6000,0) -> 0 | R112: Shower | U112: =IF(R112=C112,"",VLOOKUP(R112,$T$66:$AA$67,3,FALSE)) ->  | V112: =IF(R112=C112,K112,VLOOKUP(R112,$T$66:$AA$67,6,FALSE)) -> 13 | X112: =L112 -> 360 | Y112: secs | AA112: =ROUND(I112*F112*H112*V112*X112/6000,0) -> 0 | AC112: 0 | AZ112: Wk 16 | BA112: 22 | BB112: =AK$21 -> 1 | BD112: 112 | BE112: 1 | BJ112: 22 | BK112: =$BK$6*BE112*$CI21 ->  | BL112: =$BL$6*BE112*$CI$38 ->  | BM112: 0 | BO112: =BE112*CI$21 -> 1 | BP112: =BE112*CI$38 -> 1 | BQ112: 1 | BR112: 1 | BS112: 1 | BT112: 1 | BU112: 1
C113: Sub-total (L) | N113: =SUM(N103:N112) ->  | R113: Sub-total (L) | AA113: =SUM(AA103:AA112) ->  | AR113: =VLOOKUP(R109,basintap,4,FALSE) -> 1 | BA113: 23 | BB113: =BB$112 -> 1 | BD113: 113 | BE113: 1 | BJ113: 23 | BL113: =$BL$6*BE113*$CI$39 ->  | BM113: 0 | BO113: =BE113*CI$22 -> 1 | BP113: =BE113*CI$39 -> 1 | BQ113: 1 | BR113: 1 | BS113: 1 | BT113: 1 | BU113: 1
C114: Fixtures Cleaning | F114: Quantity | I114: Freq'cy | K114: Flow | L114: Duration | N114: L/day | R114: Fixtures | V114: Flow | X114: Duration | AA114: L per day | BA114: 24 | BB114: =BB$112 -> 1 | BD114: 114 | BE114: 1 | BJ114: 24 | BL114: =$BL$6*BE114*$CI$40 ->  | BM114: 0 | BO114: =BE114*CI$23 -> 1 | BP114: =BE114*CI$40 -> 1 | BQ114: 1 | BR114: 1 | BS114: 1 | BT114: 1 | BU114: 1
C115: Water Closet | F115: 0 | H115: nos. | I115: =IF(W11=0,0,1) ->  | K115: =K103 -> 6 | L115: 1 | M115: time | N115: =ROUND(F115*I115*K115*L115,0) ->  | R115: =R103 -> Water Closet | V115: =V103 -> 6 | X115: =L115 -> 1 | Y115: time | AA115: =ROUND(F115*I115*V115*X115,0) ->  | BA115: 25 | BB115: 1 | BD115: 115 | BE115: 1 | BJ115: 25 | BL115: =$BL$6*BE115*$CI$41 ->  | BM115: 0 | BO115: =BE115*CI$24 -> 1 | BP115: =BE115*CI$41 -> 1 | BQ115: 1 | BR115: 1 | BS115: 1 | BT115: 1 | BU115: 1
C116: Urinal | F116: 0 | H116: nos. | I116: =IF(W11=0,0,1) ->  | K116: =K107 -> 3.8 | L116: 1 | M116: time | N116: =ROUND(F116*I116*K116*L116,0) ->  | R116: =R107 -> Urinal | V116: =V107 -> 3.8 | X116: =L116 -> 1 | Y116: time | AA116: =ROUND(F116*I116*V116*X116,0) ->  | AU116: Annual Consumption | AV116: Baseline | AW116: Design | BA116: 26 | BB116: 1 | BD116: 116 | BE116: 1 | BJ116: 26 | BL116: =$BL$6*BE116*$CI$42 ->  | BM116: 0 | BO116: =BE116*CI$25 -> 1 | BP116: =BE116*CI$42 -> 1 | BQ116: =BQ88 -> 1 | BR116: 1 | BS116: 1 | BT116: 1 | BU116: 1
C117: WH Basin | F117: 0 | H117: nos. | I117: =IF(W11=0,0,1) ->  | K117: =K109 -> 9 | L117: 5 | M117: secs | N117: =ROUND(F117*I117*K117*L117/60,0) ->  | R117: =R109 -> WH Basin | V117: =V109 -> 9 | X117: =L117 -> 5 | Y117: secs | AA117: =ROUND(F117*I117*V117*X117/60,0) ->  | AV117: m3/yr | AW117: m3/yr | BA117: 27 | BB117: 1 | BD117: 117 | BE117: 1 | BJ117: 27 | BL117: =$BL$6*BE117*$CI$43 ->  | BM117: 0 | BO117: =BE117*CI$26 -> 1 | BP117: =BE117*CI$43 -> 1 | BQ117: 1 | BR117: 1 | BS117: 1 | BT117: 1 | BU117: 1 | BY117: Baseline | BZ117: Design
C118: Shower | F118: 0 | H118: nos. | I118: =IF(W11=0,0,1) ->  | K118: =K112 -> 13 | L118: 8 | M118: secs | N118: =ROUND(F118*I118*K118*L118/60,0) ->  | R118: =R112 -> Shower | V118: =V112 -> 13 | X118: =L118 -> 8 | Y118: secs | AA118: =ROUND(F118*I118*V118*X118/60,0) ->  | AU118: Flushing | AV118: =ROUNDUP(BY119*SUM(BP$7:BP$372)/1000,0) ->  | AW118: =ROUNDUP(BZ119*SUM(BP$7:BP$372)/1000,0) ->  | BA118: 28 | BB118: 1 | BD118: 118 | BE118: 1 | BJ118: 28 | BL118: =$BL$6*BE118*$CI$44 ->  | BM118: 0 | BO118: =BE118*CI$27 -> 1 | BP118: =BE118*CI$44 -> 1 | BQ118: 1 | BR118: 1 | BS118: 1 | BT118: 1 | BU118: 1 | BY118: L/day | BZ118: L/day
C119: Sub-total (L) | N119: =SUM(N115:N118) ->  | R119: Sub-total (L) | AA119: =SUM(AA115:AA118) ->  | AU119: Shower | AZ119: Wk 17 | BA119: 1 | BB119: =AK$22 -> 1 | BD119: 119 | BE119: 1 | BJ119: 1 | BK119: =$BK$6*BE119*$CF21 ->  | BL119: =$BL$6*BE119*$CF$38 ->  | BM119: 0 | BO119: =BE119*CF$21 -> 1 | BP119: =BE119*CF$38 -> 1 | BQ119: 1 | BR119: 1 | BS119: 1 | BT119: 1 | BU119: 1 | BY119: =SUM(N103:N107,N115:N116) ->  | BZ119: =SUM(AA103:AA107,AA115:AA116) -> 
C120: Annual Consumption (m3) | N120: =SUM(AV118:AV123) ->  | R120: Annual Consumption (m3) | AA120: =SUM(AW118:AW123) ->  | AU120: WH basin | BA120: 2 | BB120: =BB$119 -> 1 | BD120: 120 | BE120: 1 | BJ120: =1+BJ119 -> 2 | BL120: =$BL$6*BE120*$CF$39 ->  | BM120: =BM92 -> 0 | BO120: =BE120*CF$22 -> 1 | BP120: =BE120*CF$39 -> 1 | BQ120: 1 | BR120: 1 | BS120: 1 | BT120: 1 | BU120: 1 | BY120: =SUM(N112,N118) ->  | BZ120: =SUM(AA112,AA118) -> 
AU121: Ablution | BA121: 3 | BB121: 1 | BD121: 121 | BE121: 1 | BJ121: =1+BJ120 -> 3 | BL121: =$BL$6*BE121*$CF$40 ->  | BM121: 0 | BO121: =BE121*CF$23 -> 1 | BP121: =BE121*CF$40 -> 1 | BQ121: 1 | BR121: 1 | BS121: 1 | BT121: 1 | BU121: 1 | BY121: =SUM(N109,N117) ->  | BZ121: =SUM(AA109,AA117) -> 
AU122: Bib tap | BA122: 4 | BB122: 1 | BD122: 122 | BE122: 1 | BJ122: 4 | BL122: =$BL$6*BE122*$CF$41 ->  | BM122: 0 | BO122: =BE122*CF$24 -> 1 | BP122: =BE122*CF$41 -> 1 | BQ122: 1 | BR122: 1 | BS122: 1 | BT122: 1 | BU122: 1 | BY122: =SUM(N111) ->  | BZ122: =SUM(AA111) -> 
C123: =F35 -> Not used | K123: Baseline | R123: Design Case | AU123: Pantry | BA123: 5 | BB123: 1 | BD123: 123 | BE123: 1 | BJ123: 5 | BL123: =$BL$6*BE123*$CF$42 ->  | BM123: 0 | BO123: =BE123*CF$25 -> 1 | BP123: =BE123*CF$42 -> 1 | BQ123: 1 | BR123: 1 | BS123: 1 | BT123: 1 | BU123: 1 | BY123: =SUM(N108) ->  | BZ123: =SUM(AA108) -> 
C124: Fixtures | F124: No. of person | H124: Use/ day | I124: Usage factor | K124: Consumption | R124: Water Efficient Fittings | V124: Consumption | AC124: Wastewater Recycling | BA124: 6 | BB124: 1 | BD124: 124 | BE124: 1 | BJ124: 6 | BL124: =$BL$6*BE124*$CF$43 ->  | BM124: 0 | BO124: =BE124*CF$26 -> 1 | BP124: =BE124*CF$43 -> 1 | BQ124: 1 | BR124: 1 | BS124: 1 | BT124: 1 | BU124: 1 | BY124: =SUM(N110) ->  | BZ124: =SUM(AA110) -> 
K125: Flow | L125: Duration | N125: L/day | V125: Flow | X125: Duration | AA125: L per day | BA125: 7 | BB125: 1 | BD125: 125 | BE125: 1 | BJ125: 7 | BL125: =$BL$6*BE125*$CF$44 ->  | BM125: 0 | BO125: =BE125*CF$27 -> 1 | BP125: =BE125*CF$44 -> 1 | BQ125: 1 | BR125: 1 | BS125: 1 | BT125: 1 | BU125: 1
C126: Water Closet | E126: Female | F126: =IF(SUM(I126:I127)=0,0,$G$40) -> 0 | H126: =IF(SUM(I126:I127)=0,0,BZ48) -> 0 | I126: =CC48 -> 0 | J126: % | K126: =$F$65 -> 6 | L126: =IF(C123="none",0,1) -> 1 | M126: flush | N126: =ROUND(I126*F126*H126*K126*L126/100,0) -> 0 | R126: Water Closet | U126: Full flow | V126: =IF(R126=C126,K126,VLOOKUP(R126,$CK$66:$CM$68,2,FALSE)) -> 6 | X126: =L126 -> 1 | Y126: flush | AA126: =ROUND(I126*F126*H126*V126*X126/100,0) -> 0 | AC126: 0 | AD126: Fittings Discharge Selection for Wastewater Recycling | AZ126: Wk 18 | BA126: 8 | BB126: =AK$23 -> 1 | BD126: 126 | BE126: 1 | BJ126: 8 | BK126: =$BK$6*BE126*$CG21 ->  | BL126: =$BL$6*BE126*$CG$38 ->  | BM126: 0 | BO126: =BE126*CG$21 -> 1 | BP126: =BE126*CG$38 -> 1 | BQ126: 1 | BR126: 1 | BS126: 1 | BT126: 1 | BU126: 1
E127: Female | I127: =CC49 -> 0 | J127: % | K127: =$K$81 -> 6 | N127: =ROUND(I127*F126*H126*K127*L126/100,0) -> 0 | S127: =IF(R126=C126,"",VLOOKUP(R126,$CK$66:$CN$68,4,FALSE)) ->  | U127: Reduced | V127: =IF(R126=C126,K127,VLOOKUP(R126,$CK$66:$CM$68,3,FALSE)) -> 6 | AA127: =ROUND(I127*F126*H126*V127*X126/100,0) -> 0 | BA127: 9 | BB127: =BB$126 -> 1 | BD127: 127 | BE127: 1 | BJ127: 9 | BL127: =$BL$6*BE127*$CG$39 ->  | BM127: 0 | BO127: =BE127*CG$22 -> 1 | BP127: =BE127*CG$39 -> 1 | BQ127: 1 | BR127: 1 | BS127: 1 | BT127: 1 | BU127: 1
C128: Water Closet | E128: Male | F128: =IF(SUM(I128:I130)=0,0,$G$41) -> 0 | H128: =IF(SUM(I128:I130)=0,0,BZ50) -> 0 | I128: =CC50 -> 0 | J128: % | K128: =$K$81 -> 6 | L128: =L126 -> 1 | M128: flush | N128: =ROUND(I128*F128*H128*K128*L128/100,0) -> 0 | R128: Water Closet | U128: Full flow | V128: =IF(R128=C128,K128,VLOOKUP(R128,$CK$66:$CM$68,2,FALSE)) -> 6 | X128: =L128 -> 1 | Y128: flush | AA128: =ROUND(I128*F128*H128*V128*X128/100,0) -> 0 | AC128: 0 | BA128: 10 | BB128: 1 | BD128: 128 | BE128: 1 | BJ128: 10 | BL128: =$BL$6*BE128*$CG$40 ->  | BM128: 0 | BO128: =BE128*CG$23 -> 1 | BP128: =BE128*CG$40 -> 1 | BQ128: 1 | BR128: 1 | BS128: 1 | BT128: 1 | BU128: 1
E129: Male | I129: =CC51 -> 0 | J129: % | K129: =$K$81 -> 6 | N129: =ROUND(I129*F128*H128*K129*L128/100,0) -> 0 | S129: =IF(R128=C128,"",VLOOKUP(R128,$CK$66:$CN$68,4,FALSE)) ->  | U129: Reduced | V129: =IF(R128=C128,K129,VLOOKUP(R128,$CK$66:$CM$68,3,FALSE)) -> 6 | AA129: =ROUND(I129*F128*H128*V129*X128/100,0) -> 0 | BA129: 11 | BB129: 1 | BD129: 129 | BE129: 1 | BJ129: 11 | BL129: =$BL$6*BE129*$CG$41 ->  | BM129: 0 | BO129: =BE129*CG$24 -> 1 | BP129: =BE129*CG$41 -> 1 | BQ129: 1 | BR129: 1 | BS129: 1 | BT129: 1 | BU129: 1
C130: Urinal | E130: Male | I130: =CC52 -> 0 | J130: % | K130: =$F$72 -> 3.8 | N130: =ROUND(I130*F128*H128*K130*L128/100,0) -> 0 | R130: Urinal | U130: =IF(R130=C130,"",VLOOKUP(R130,$C$73:$H$74,2,FALSE)) ->  | V130: =IF(R130=C130,K130,VLOOKUP(R130,$C$73:$H$74,4,FALSE)) -> 3.8 | AA130: =ROUND(I130*F128*H128*V130*X128/100,0) -> 0 | AC130: 0 | BA130: 12 | BB130: 1 | BD130: 130 | BE130: 1 | BJ130: 12 | BL130: =$BL$6*BE130*$CG$42 ->  | BM130: 0 | BO130: =BE130*CG$25 -> 1 | BP130: =BE130*CG$42 -> 1 | BQ130: 1 | BR130: 1 | BS130: 1 | BT130: 1 | BU130: 1
C131: Bib tap | E131: All | F131: =IF(I131=0,0,SUM($G$40:$G$41)) -> 0 | H131: =IF(I131=0,0,BZ56) -> 0 | I131: =CC56 -> 0 | J131: % | K131: =$Y$68 -> 8 | L131: =IF(C123="none",0,VLOOKUP($C131,$BY$53:$CC$57,3,FALSE)) -> 0 | M131: secs | N131: =ROUND(I131*F131*H131*K131*L131/6000,0) -> 0 | R131: Bib tap | U131: =IF(R131=C131,"",VLOOKUP(R131,$T$69:$AA$70,3,FALSE)) ->  | V131: =IF(R131=C131,K131,VLOOKUP(R131,$T$69:$AA$70,6,FALSE)) -> 8 | X131: =L131 -> 0 | Y131: secs | AA131: =ROUND(I131*F131*H131*V131*X131/6000,0) -> 0 | AC131: 0 | BA131: 13 | BB131: 1 | BD131: 131 | BE131: 1 | BJ131: 13 | BL131: =$BL$6*BE131*$CG$43 ->  | BM131: 0 | BO131: =BE131*CG$26 -> 1 | BP131: =BE131*CG$43 -> 1 | BQ131: 1 | BR131: 1 | BS131: 1 | BT131: 1 | BU131: 1
C132: WH Basin | E132: All | F132: =IF(I132=0,0,SUM($G$40:$G$41)) -> 0 | H132: =IF(I132=0,0,BZ53) -> 0 | I132: =CC53 -> 0 | J132: % | K132: =$O$68 -> 9 | L132: =IF(C123="none",0,VLOOKUP($C132,$BY$53:$CC$57,3,FALSE)) -> 0 | M132: secs | N132: =ROUND(I132*F132*H132*K132*L132/6000,0) -> 0 | R132: WH Basin | U132: =IF(R132=C132,"",VLOOKUP(R132,basintap,2,FALSE)) ->  | V132: =IF(R132=C132,K132,VLOOKUP(R132,basintap,3,FALSE)) -> 9 | X132: =L132*AR135 -> 0 | Y132: secs | AA132: =ROUND(I132*F132*H132*V132*X132/6000,0) -> 0 | AC132: 0 | BA132: 14 | BB132: 1 | BD132: 132 | BE132: 1 | BJ132: 14 | BL132: =$BL$6*BE132*$CG$44 ->  | BM132: 0 | BO132: =BE132*CG$27 -> 1 | BP132: =BE132*CG$44 -> 1 | BQ132: =BQ104 -> 1 | BR132: 1 | BS132: 1 | BT132: 1 | BU132: 1
C133: Sink tap | E133: All | F133: =IF(I133=0,0,SUM($G$40:$G$41)) -> 0 | H133: =IF(I133=0,0,BZ55) -> 0 | I133: =CC55 -> 0 | J133: % | K133: =$O$65 -> 9 | L133: =IF(C123="none",0,VLOOKUP($C133,$BY$53:$CC$57,3,FALSE)) -> 0 | M133: secs | N133: =ROUND(I133*F133*H133*K133*L133/6000,0) -> 0 | R133: Sink tap | U133: =IF(R133=C133,"",VLOOKUP(R133,$K$66:$O$67,3,FALSE)) ->  | V133: =IF(R133=C133,K133,VLOOKUP(R133,$K$66:$O$67,5,FALSE)) -> 9 | X133: =L133 -> 0 | Y133: secs | AA133: =ROUND(I133*F133*H133*V133*X133/6000,0) -> 0 | AC133: 0 | AZ133: Wk19 | BA133: 15 | BB133: =AK$24 -> 1 | BD133: 133 | BE133: 1 | BJ133: 15 | BK133: =$BK$6*BE133*$CH21 ->  | BL133: =$BL$6*BE133*$CH$38 ->  | BM133: 0 | BO133: =BE133*CH$21 -> 1 | BP133: =BE133*CH$38 -> 1 | BQ133: 1 | BR133: 1 | BS133: 1 | BT133: 1 | BU133: 1
C134: Ablution | E134: All | F134: =IF(I134=0,0,SUM($G$40:$G$41)) -> 0 | H134: =IF(I134=0,0,BZ57) -> 0 | I134: =CC57 -> 0 | J134: % | K134: =$Y$71 -> 8 | L134: =IF(C123="none",0,VLOOKUP($C134,$BY$53:$CC$57,3,FALSE)) -> 0 | M134: secs | N134: =ROUND(I134*F134*H134*K134*L134/6000,0) -> 0 | R134: Ablution | U134: =IF(R134=C134,"",VLOOKUP(R134,$T$72:$AA$73,3,FALSE)) ->  | V134: =IF(R134=C134,K134,VLOOKUP(R134,T72:AA73,6,FALSE)) -> 8 | X134: =L134 -> 0 | Y134: secs | AA134: =ROUND(I134*F134*H134*V134*X134/6000,0) -> 0 | AC134: 0 | BA134: 16 | BB134: =BB$133 -> 1 | BD134: 134 | BE134: 1 | BJ134: 16 | BL134: =$BL$6*BE134*$CH$39 ->  | BM134: 0 | BO134: =BE134*CH$22 -> 1 | BP134: =BE134*CH$39 -> 1 | BQ134: 1 | BR134: 1 | BS134: 1 | BT134: 1 | BU134: 1
C135: Shower | E135: All | F135: =IF(I135=0,0,SUM($G$40:$G$41)) -> 0 | H135: =IF(I135=0,0,BZ54) -> 0 | I135: =CC54 -> 0 | J135: % | K135: =$Y$65 -> 13 | L135: =IF(C123="none",0,VLOOKUP($C135,$BY$53:$CC$57,3,FALSE)) -> 0 | M135: secs | N135: =ROUND(I135*F135*H135*K135*L135/6000,0) -> 0 | R135: Shower | U135: =IF(R135=C135,"",VLOOKUP(R135,$T$66:$AA$67,3,FALSE)) ->  | V135: =IF(R135=C135,K135,VLOOKUP(R135,$T$66:$AA$67,6,FALSE)) -> 13 | X135: =L135 -> 0 | Y135: secs | AA135: =ROUND(I135*F135*H135*V135*X135/6000,0) -> 0 | AC135: 0 | AR135: =VLOOKUP(R132,basintap,4,FALSE) -> 1 | BA135: 17 | BB135: 1 | BD135: 135 | BE135: =IF($AN$4,INDEX(BB$7:BB$378,$BD135),1) -> 1 | BJ135: 17 | BL135: =$BL$6*BE135*$CH$40 ->  | BM135: 0 | BO135: =BE135*CH$23 -> 1 | BP135: =BE135*CH$40 -> 1 | BQ135: 1 | BR135: 1 | BS135: 1 | BT135: 1 | BU135: 1
C136: Sub-total (L) | N136: =SUM(N126:N135) -> 0 | R136: Sub-total (L) | AA136: =SUM(AA126:AA135) -> 0 | BA136: 18 | BB136: 1 | BD136: 136 | BE136: 1 | BJ136: 18 | BL136: =$BL$6*BE136*$CH$41 ->  | BM136: 0 | BN136: =ROUNDDOWN(SUM(BK136:BM136),0) ->  | BO136: =BE136*CH$24 -> 1 | BP136: =BE136*CH$41 -> 1 | BQ136: 1 | BR136: 1 | BS136: 1 | BT136: 1 | BU136: 1
C137: Fixtures Cleaning | F137: Quantity | I137: Freq'cy | K137: Flow | L137: Duration | N137: L/day | R137: Fixtures | V137: Flow | X137: Duration | AA137: L per day | AH137: Water Reduction Calculations - Page 2 | BA137: 19 | BB137: 1 | BD137: =1+BD136 -> 137 | BE137: 1 | BJ137: 19 | BL137: =$BL$6*BE137*$CH$42 ->  | BM137: 0 | BO137: =BE137*CH$25 -> 1 | BP137: =BE137*CH$42 -> 1 | BQ137: 1 | BR137: 1 | BS137: 1 | BT137: 1 | BU137: 1
C138: Water Closet | F138: 0 | H138: nos. | I138: =IF($C$123="not used",0,1) -> 0 | K138: =K126 -> 6 | L138: 1 | M138: time | N138: =ROUND(F138*I138*K138*L138,0) -> 0 | R138: =R126 -> Water Closet | V138: =V126 -> 6 | X138: =L138 -> 1 | Y138: time | AA138: =ROUND(F138*I138*V138*X138,0) -> 0 | BA138: 20 | BB138: 1 | BD138: 138 | BE138: 1 | BJ138: 20 | BL138: =$BL$6*BE138*$CH$43 ->  | BM138: 0 | BO138: =BE138*CH$26 -> 1 | BP138: =BE138*CH$43 -> 1 | BQ138: 1 | BR138: 1 | BS138: 1 | BT138: 1 | BU138: 1
C139: Urinal | F139: 0 | H139: nos. | I139: =IF($C$123="not used",0,1) -> 0 | K139: =K130 -> 3.8 | L139: 1 | M139: time | N139: =ROUND(F139*I139*K139*L139,0) -> 0 | R139: =R130 -> Urinal | V139: =V130 -> 3.8 | X139: =L139 -> 1 | Y139: time | AA139: =ROUND(F139*I139*V139*X139,0) -> 0 | AU139: Annual Consumption | AV139: Baseline | AW139: Design | BA139: 21 | BB139: 1 | BD139: 139 | BE139: 1 | BJ139: 21 | BL139: =$BL$6*BE139*$CH$44 ->  | BM139: 0 | BO139: =BE139*CH$27 -> 1 | BP139: =BE139*CH$44 -> 1 | BQ139: 1 | BR139: 1 | BS139: 1 | BT139: 1 | BU139: 1 | BY139: Baseline | BZ139: Design
C140: WH Basin | F140: 0 | H140: nos. | I140: =IF($C$123="not used",0,1) -> 0 | K140: =K132 -> 9 | L140: 5 | M140: secs | N140: =ROUND(F140*I140*K140*L140/60,0) -> 0 | R140: =R132 -> WH Basin | V140: =V132 -> 9 | X140: =L140 -> 5 | Y140: secs | AA140: =ROUND(F140*I140*V140*X140/60,0) -> 0 | AV140: m3/yr | AW140: m3/yr | AZ140: Wk 20 | BA140: 22 | BB140: =AK$25 -> 1 | BD140: 140 | BE140: 1 | BJ140: 22 | BK140: =$BK$6*BE140*$CI21 ->  | BL140: =$BL$6*BE140*$CI$38 ->  | BM140: 0 | BO140: =BE140*CI$21 -> 1 | BP140: =BE140*CI$38 -> 1 | BQ140: 1 | BR140: 1 | BS140: 1 | BT140: 1 | BU140: 1 | BY140: L/day | BZ140: L/day
C141: Shower | F141: 0 | H141: nos. | I141: =IF($C$123="not used",0,1) -> 0 | K141: =K135 -> 13 | L141: 8 | M141: secs | N141: =ROUND(F141*I141*K141*L141/60,0) -> 0 | R141: =R135 -> Shower | V141: =V135 -> 13 | X141: =L141 -> 8 | Y141: secs | AA141: =ROUND(F141*I141*V141*X141/60,0) -> 0 | AU141: Flushing | AV141: =ROUNDUP(BY141*(SUM($CF$49:$CI$55)*13+$CF$49)/1000,0) -> 0 | AW141: 0 | BA141: 23 | BB141: =BB$140 -> 1 | BD141: 141 | BE141: 1 | BJ141: 23 | BL141: =$BL$6*BE141*$CI$39 ->  | BM141: 0 | BO141: =BE141*CI$22 -> 1 | BP141: =BE141*CI$39 -> 1 | BQ141: 1 | BR141: 1 | BS141: 1 | BT141: 1 | BU141: 1 | BY141: =SUM(N126:N130,N138:N139) -> 0 | BZ141: =SUM(AA126:AA130,AA138:AA139) -> 0
C142: Sub-total (L) | N142: =SUM(N138:N141) -> 0 | R142: Sub-total (L) | AA142: =SUM(AA138:AA141) -> 0 | AU142: Shower | AV142: 0 | AW142: 0 | BA142: 24 | BB142: 1 | BD142: 142 | BE142: 1 | BJ142: 24 | BL142: =$BL$6*BE142*$CI$40 ->  | BM142: 0 | BO142: =BE142*CI$23 -> 1 | BP142: =BE142*CI$40 -> 1 | BQ142: 1 | BR142: 1 | BS142: 1 | BT142: 1 | BU142: 1 | BY142: =SUM(N135,N141) -> 0 | BZ142: =SUM(AA135,AA141) -> 0
C143: Annual Consumptiopn (m3) | N143: =SUM(AV141:AV146) -> 0 | R143: Annual Consumptiopn (m3) | AA143: =SUM(AW141:AW146) -> 0 | AU143: WH basin | AV143: 0 | AW143: 0 | BA143: 25 | BB143: 1 | BD143: 143 | BE143: 1 | BJ143: 25 | BL143: =$BL$6*BE143*$CI$41 ->  | BM143: 0 | BO143: =BE143*CI$24 -> 1 | BP143: =BE143*CI$41 -> 1 | BQ143: 1 | BR143: 1 | BS143: 1 | BT143: 1 | BU143: 1 | BY143: =SUM(N132,N140) -> 0 | BZ143: =SUM(AA132,AA140) -> 0
C144: =U35 -> Not used | K144: Baseline | R144: Design Case | AU144: Ablution | AV144: 0 | AW144: 0 | BA144: 26 | BB144: 1 | BD144: 144 | BE144: 1 | BJ144: 26 | BL144: =$BL$6*BE144*$CI$42 ->  | BM144: 0 | BO144: =BE144*CI$25 -> 1 | BP144: =BE144*CI$42 -> 1 | BQ144: 1 | BR144: 1 | BS144: 1 | BT144: 1 | BU144: 1 | BY144: =SUM(N134) -> 0 | BZ144: =SUM(AA134) -> 0
C145: Fixtures | F145: No. of person | H145: Use/ day | I145: Usage factor | K145: Consumption | R145: Water Efficient Fittings | V145: Consumption | AU145: Bib tap | AV145: 0 | AW145: 0 | BA145: 27 | BB145: 1 | BD145: 145 | BE145: 1 | BJ145: 27 | BL145: =$BL$6*BE145*$CI$43 ->  | BM145: 0 | BO145: =BE145*CI$26 -> 1 | BP145: =BE145*CI$43 -> 1 | BQ145: 1 | BR145: 1 | BS145: 1 | BT145: 1 | BU145: 1 | BY145: =SUM(N131) -> 0 | BZ145: =SUM(AA131) -> 0
K146: Flow | L146: Duration | N146: L/day | V146: Flow | X146: Duration | AA146: L per day | AU146: Pantry | AV146: 0 | AW146: 0 | BA146: 28 | BB146: 1 | BD146: 146 | BE146: 1 | BJ146: 28 | BL146: =$BL$6*BE146*$CI$44 ->  | BM146: 0 | BO146: =BE146*CI$27 -> 1 | BP146: =BE146*CI$44 -> 1 | BQ146: 1 | BR146: 1 | BS146: 1 | BT146: 1 | BU146: 1 | BY146: =SUM(N133) -> 0 | BZ146: =SUM(AA133) -> 0
C147: Water Closet | E147: Female | F147: =IF(SUM(I147:I148)=0,0,$W$40) -> 0 | H147: =IF(SUM(I147:I148)=0,0,BZ62) -> 0 | I147: =CC62 -> 0 | J147: % | K147: =$F$65 -> 6 | L147: =IF(C144="none",0,1) -> 1 | M147: flush | N147: =ROUND(I147*F147*H147*K147*L147/100,0) -> 0 | R147: Water Closet | U147: Full flow | V147: =IF(R147=C147,K147,VLOOKUP(R147,$CK$66:$CM$68,2,FALSE)) -> 6 | X147: =L147 -> 1 | Y147: flush | AA147: =ROUND(I147*F147*H147*V147*X147/100,0) -> 0 | AZ147: Wk 21 | BA147: 1 | BB147: =AK$26 -> 1 | BD147: 147 | BE147: 1 | BJ147: 1 | BK147: =$BK$6*BE147*$CF21 ->  | BL147: =$BL$6*BE147*$CF$38 ->  | BM147: 0 | BO147: =BE147*CF$21 -> 1 | BP147: =BE147*CF$38 -> 1 | BQ147: 1 | BR147: 1 | BS147: 1 | BT147: 1 | BU147: 1
E148: Female | I148: =CC63 -> 0 | J148: % | K148: =$K$81 -> 6 | N148: =ROUND(I148*F147*H147*K148*L147/100,0) -> 0 | S148: =IF(R147=C147,"",VLOOKUP(R147,$CK$66:$CN$68,4,FALSE)) ->  | U148: Reduced | V148: =IF(R147=C147,K148,VLOOKUP(R147,$CK$66:$CM$68,3,FALSE)) -> 6 | AA148: =ROUND(I148*F147*H147*V148*X147/100,0) -> 0 | BA148: 2 | BB148: =BB$147 -> 1 | BD148: 148 | BE148: 1 | BJ148: =1+BJ147 -> 2 | BL148: =$BL$6*BE148*$CF$39 ->  | BM148: =BM120 -> 0 | BO148: =BE148*CF$22 -> 1 | BP148: =BE148*CF$39 -> 1 | BQ148: =BQ120 -> 1 | BR148: 1 | BS148: 1 | BT148: 1 | BU148: 1
C149: Water Closet | E149: Male | F149: =IF(SUM(I149:I151)=0,0,$W$41) -> 0 | H149: =IF(SUM(I149:I151)=0,0,BZ64) -> 0 | I149: =CC64 -> 0 | J149: % | K149: =$K$81 -> 6 | L149: =L147 -> 1 | M149: flush | N149: =ROUND(I149*F149*H149*K149*L149/100,0) -> 0 | R149: Water Closet | U149: Full flow | V149: =IF(R149=C149,K149,VLOOKUP(R149,$CK$66:$CM$68,2,FALSE)) -> 6 | X149: =L149 -> 1 | Y149: flush | AA149: =ROUND(I149*F149*H149*V149*X149/100,0) -> 0 | BA149: 3 | BB149: 1 | BD149: 149 | BE149: 1 | BJ149: =1+BJ148 -> 3 | BL149: =$BL$6*BE149*$CF$40 ->  | BM149: 0 | BO149: =BE149*CF$23 -> 1 | BP149: =BE149*CF$40 -> 1 | BQ149: 1 | BR149: 1 | BS149: 1 | BT149: 1 | BU149: 1
E150: Male | I150: =CC65 -> 0 | J150: % | K150: =$K$81 -> 6 | N150: =ROUND(I150*F149*H149*K150*L149/100,0) -> 0 | S150: =IF(R149=C149,"",VLOOKUP(R149,$CK$66:$CN$68,4,FALSE)) ->  | U150: Reduced | V150: =IF(R149=C149,K150,VLOOKUP(R149,$CK$66:$CM$68,3,FALSE)) -> 6 | AA150: =ROUND(I150*F149*H149*V150*X149/100,0) -> 0 | BA150: 4 | BB150: 1 | BD150: 150 | BE150: 1 | BJ150: 4 | BL150: =$BL$6*BE150*$CF$41 ->  | BM150: 0 | BO150: =BE150*CF$24 -> 1 | BP150: =BE150*CF$41 -> 1 | BQ150: 1 | BR150: 1 | BS150: 1 | BT150: 1 | BU150: 1
C151: Urinal | E151: Male | I151: =CC66 -> 0 | J151: % | K151: =$F$72 -> 3.8 | N151: =ROUND(I151*F149*H149*K151*L149/100,0) -> 0 | R151: Urinal | U151: =IF(R151=C151,"",VLOOKUP(R151,$C$73:$H$74,2,FALSE)) ->  | V151: =IF(R151=C151,K151,VLOOKUP(R151,$C$73:$H$74,4,FALSE)) -> 3.8 | AA151: =ROUND(I151*F149*H149*V151*X149/100,0) -> 0 | BA151: 5 | BB151: 1 | BD151: 151 | BE151: 1 | BJ151: 5 | BL151: =$BL$6*BE151*$CF$42 ->  | BM151: 0 | BO151: =BE151*CF$25 -> 1 | BP151: =BE151*CF$42 -> 1 | BQ151: 1 | BR151: 1 | BS151: 1 | BT151: 1 | BU151: 1
C152: Bib tap | E152: All | F152: =IF(I152=0,0,SUM($W$40:$W$41)) -> 0 | H152: =IF(I152=0,0,BZ71) -> 0 | I152: =CC71 -> 0 | J152: % | K152: =$Y$68 -> 8 | L152: =IF(C144="none",0,VLOOKUP($C152,$BY$67:$CC$72,3,FALSE)) -> 0 | M152: secs | N152: =ROUND(I152*F152*H152*K152*L152/6000,0) -> 0 | R152: Bib tap | U152: =IF(R152=C152,"",VLOOKUP(R152,$T$69:$AA$70,3,FALSE)) ->  | V152: =IF(R152=C152,K152,VLOOKUP(R152,$T$69:$AA$70,6,FALSE)) -> 8 | X152: =L152 -> 0 | Y152: secs | AA152: =ROUND(I152*F152*H152*V152*X152/6000,0) -> 0 | BA152: 6 | BB152: 1 | BD152: 152 | BE152: 1 | BJ152: 6 | BL152: =$BL$6*BE152*$CF$43 ->  | BM152: 0 | BO152: =BE152*CF$26 -> 1 | BP152: =BE152*CF$43 -> 1 | BQ152: 1 | BR152: 1 | BS152: 1 | BT152: 1 | BU152: 1
C153: WH Basin | E153: All | F153: 0 | H153: =IF(I153=0,0,BZ67) -> 0 | I153: =CC67 -> 0 | J153: % | K153: =$O$68 -> 9 | L153: =IF(C144="none",0,VLOOKUP($C153,$BY$67:$CC$72,3,FALSE)) -> 0 | M153: secs | N153: =ROUND(I153*F153*H153*K153*L153/6000,0) -> 0 | R153: WH Basin | U153: =IF(R153=C153,"",VLOOKUP(R153,basintap,2,FALSE)) ->  | V153: =IF(R153=C153,K153,VLOOKUP(R153,basintap,3,FALSE)) -> 9 | X153: =L153*AR157 -> 0 | Y153: secs | AA153: =ROUND(I153*F153*H153*V153*X153/6000,0) -> 0 | BA153: 7 | BB153: 1 | BD153: 153 | BE153: 1 | BJ153: 7 | BL153: =$BL$6*BE153*$CF$44 ->  | BM153: 0 | BO153: =BE153*CF$27 -> 1 | BP153: =BE153*CF$44 -> 1 | BQ153: 1 | BR153: 1 | BS153: 1 | BT153: 1 | BU153: 1
C154: Sink tap | E154: All | F154: 0 | H154: =IF(I154=0,0,BZ70) -> 0 | I154: =CC70 -> 0 | J154: % | K154: =$O$65 -> 9 | L154: =IF(C144="none",0,VLOOKUP($C154,$BY$67:$CC$72,3,FALSE)) -> 0 | M154: secs | N154: =ROUND(I154*F154*H154*K154*L154/6000,0) -> 0 | R154: Sink tap | U154: =IF(R154=C154,"",VLOOKUP(R154,$K$66:$O$67,3,FALSE)) ->  | V154: =IF(R154=C154,K154,VLOOKUP(R154,$K$66:$O$67,5,FALSE)) -> 9 | X154: =L154 -> 0 | Y154: secs | AA154: =ROUND(I154*F154*H154*V154*X154/6000,0) -> 0 | AZ154: Wk 22 | BA154: 8 | BB154: =AK$27 -> 1 | BD154: 154 | BE154: 1 | BJ154: 8 | BK154: =$BK$6*BE154*$CG21 ->  | BL154: =$BL$6*BE154*$CG$38 ->  | BM154: 0 | BO154: =BE154*CG$21 -> 1 | BP154: =BE154*CG$38 -> 1 | BQ154: 1 | BR154: 1 | BS154: 1 | BT154: 1 | BU154: 1
C155: Ablution | E155: All | F155: 0 | H155: =IF(I155=0,0,BZ72) -> 0 | I155: =CC72 -> 0 | J155: % | K155: =$Y$71 -> 8 | L155: =IF(C144="none",0,VLOOKUP($C155,$BY$67:$CC$72,3,FALSE)) -> 0 | M155: secs | N155: =ROUND(I155*F155*H155*K155*L155/6000,0) -> 0 | R155: Ablution | U155: =IF(R155=C155,"",VLOOKUP(R155,$T$72:$AA$73,3,FALSE)) ->  | V155: =IF(R155=C155,K155,VLOOKUP(R155,$T$72:$AA$73,6,FALSE)) -> 8 | X155: =L155 -> 0 | Y155: secs | AA155: =ROUND(I155*F155*H155*V155*X155/6000,0) -> 0 | BA155: 9 | BB155: =BB$154 -> 1 | BD155: 155 | BE155: 1 | BJ155: 9 | BL155: =$BL$6*BE155*$CG$39 ->  | BM155: 0 | BO155: =BE155*CG$22 -> 1 | BP155: =BE155*CG$39 -> 1 | BQ155: 1 | BR155: 1 | BS155: 1 | BT155: 1 | BU155: 1
C156: Shower | E156: All | F156: 0 | H156: =IF(I156=0,0,BZ68) -> 0 | I156: =CC68 -> 0 | J156: % | K156: =$Y$65 -> 13 | L156: =IF(C144="none",0,VLOOKUP($C156,$BY$67:$CC$72,3,FALSE)) -> 0 | M156: secs | N156: =ROUND(I156*F156*H156*K156*L156/6000,0) -> 0 | R156: Shower | U156: =IF(R156=C156,"",VLOOKUP(R156,$T$66:$AA$67,3,FALSE)) ->  | V156: =IF(R156=C156,K156,VLOOKUP(R156,$T$66:$AD$67,6,FALSE)) -> 13 | X156: =L156 -> 0 | Y156: secs | AA156: =ROUND(I156*F156*H156*V156*X156/6000,0) -> 0 | BA156: 10 | BB156: 1 | BD156: 156 | BE156: 1 | BJ156: 10 | BL156: =$BL$6*BE156*$CG$40 ->  | BM156: 0 | BO156: =BE156*CG$23 -> 1 | BP156: =BE156*CG$40 -> 1 | BQ156: 1 | BR156: 1 | BS156: 1 | BT156: 1 | BU156: 1
C157: Bath | E157: All | F157: 0 | H157: =IF(I157=0,0,BZ69) -> 0 | I157: =CC69 -> 0 | J157: % | K157: =$O$73 -> 176 | L157: =IF(C144="none",0,VLOOKUP($C157,$BY$67:$CC$72,3,FALSE)) -> 0 | M157: use | N157: =ROUND(I157*F157*H157*K157*L157/100,0) -> 0 | R157: Bath | U157: =IF(R157=C157,"",VLOOKUP(R157,K74:Q74,3,FALSE)) ->  | V157: =IF(R157=C157,K157,VLOOKUP(R157,K74:Q74,5,FALSE)) -> 176 | X157: =L157 -> 0 | Y157: use | AA157: =ROUND(I157*F157*H157*V157*X157/100,0) -> 0 | AR157: =VLOOKUP(R153,basintap,4,FALSE) -> 1 | BA157: 11 | BB157: 1 | BD157: 157 | BE157: 1 | BJ157: 11 | BL157: =$BL$6*BE157*$CG$41 ->  | BM157: 0 | BO157: =BE157*CG$24 -> 1 | BP157: =BE157*CG$41 -> 1 | BQ157: 1 | BR157: 1 | BS157: 1 | BT157: 1 | BU157: 1
C158: Sub-total (L) | N158: =SUM(N147:N157) -> 0 | R158: Sub-total (L) | AA158: =SUM(AA147:AA157) -> 0 | BA158: 12 | BB158: 1 | BD158: 158 | BE158: 1 | BJ158: 12 | BL158: =$BL$6*BE158*$CG$42 ->  | BM158: 0 | BO158: =BE158*CG$25 -> 1 | BP158: =BE158*CG$42 -> 1 | BQ158: 1 | BR158: 1 | BS158: 1 | BT158: 1 | BU158: 1
C159: Fixtures Cleaning | F159: Quantity | I159: Freq'cy | K159: Flow | L159: Duration | N159: L/day | R159: Fixtures | V159: Flow | X159: Duration | AA159: L per day | BA159: 13 | BB159: 1 | BD159: 159 | BE159: 1 | BJ159: 13 | BL159: =$BL$6*BE159*$CG$43 ->  | BM159: 0 | BO159: =BE159*CG$26 -> 1 | BP159: =BE159*CG$43 -> 1 | BQ159: 1 | BR159: 1 | BS159: 1 | BT159: 1 | BU159: 1
C160: Water Closet | F160: 0 | H160: nos. | I160: =IF($C$144="not used",0,1) -> 0 | K160: =K147 -> 6 | L160: 1 | M160: time | N160: =ROUND(F160*I160*K160*L160,0) -> 0 | R160: =R147 -> Water Closet | V160: =V147 -> 6 | X160: =L160 -> 1 | Y160: time | AA160: =ROUND(F160*I160*V160*X160,0) -> 0 | BA160: 14 | BB160: 1 | BD160: 160 | BE160: 1 | BJ160: 14 | BL160: =$BL$6*BE160*$CG$44 ->  | BM160: 0 | BO160: =BE160*CG$27 -> 1 | BP160: =BE160*CG$44 -> 1 | BQ160: 1 | BR160: 1 | BS160: 1 | BT160: 1 | BU160: 1
C161: Urinal | F161: 0 | H161: nos. | I161: =IF($C$144="not used",0,1) -> 0 | K161: =K151 -> 3.8 | L161: 1 | M161: time | N161: =ROUND(F161*I161*K161*L161,0) -> 0 | R161: =R151 -> Urinal | V161: =V151 -> 3.8 | X161: =L161 -> 1 | Y161: time | AA161: =ROUND(F161*I161*V161*X161,0) -> 0 | AZ161: Wk 23 | BA161: 15 | BB161: =AK$28 -> 1 | BD161: 161 | BE161: 1 | BJ161: 15 | BK161: =$BK$6*BE161*$CH21 ->  | BL161: =$BL$6*BE161*$CH$38 ->  | BM161: 0 | BO161: =BE161*CH$21 -> 1 | BP161: =BE161*CH$38 -> 1 | BQ161: 1 | BR161: 1 | BS161: 1 | BT161: 1 | BU161: 1
C162: WH Basin | F162: 0 | H162: nos. | I162: =IF($C$144="not used",0,1) -> 0 | K162: =K153 -> 9 | L162: 5 | M162: secs | N162: =ROUND(F162*I162*K162*L162/60,0) -> 0 | R162: =R153 -> WH Basin | V162: =V153 -> 9 | X162: =L162 -> 5 | Y162: secs | AA162: =ROUND(F162*I162*V162*X162/60,0) -> 0 | AU162: Annual Consumption | AV162: Baseline | AW162: Design | BA162: 16 | BB162: =BB$161 -> 1 | BD162: 162 | BE162: 1 | BJ162: 16 | BL162: =$BL$6*BE162*$CH$39 ->  | BM162: 0 | BO162: =BE162*CH$22 -> 1 | BP162: =BE162*CH$39 -> 1 | BQ162: 1 | BR162: 1 | BS162: 1 | BT162: 1 | BU162: 1 | BY162: Baseline | BZ162: Design
C163: Shower | F163: 0 | H163: nos. | I163: =IF($C$144="not used",0,1) -> 0 | K163: =K156 -> 13 | L163: 8 | M163: secs | N163: =ROUND(F163*I163*K163*L163/60,0) -> 0 | R163: =R156 -> Shower | V163: =V156 -> 13 | X163: =L163 -> 8 | Y163: secs | AA163: =ROUND(F163*I163*V163*X163/60,0) -> 0 | AV163: m3/yr | AW163: m3/yr | BA163: 17 | BB163: 1 | BD163: 163 | BE163: 1 | BJ163: 17 | BL163: =$BL$6*BE163*$CH$40 ->  | BM163: 0 | BO163: =BE163*CH$23 -> 1 | BP163: =BE163*CH$40 -> 1 | BQ163: 1 | BR163: 1 | BS163: 1 | BT163: 1 | BU163: 1 | BY163: L/day | BZ163: L/day
C164: Sub-total (L) | N164: =SUM(N160:N163) -> 0 | R164: Sub-total (L) | AA164: =SUM(AA160:AA163) -> 0 | AU164: Flushing | AV164: =ROUNDUP(BY164*(SUM($CF$62:$CI$68)*13+$CF$62)/1000,0) -> 0 | AW164: 0 | BA164: =BA136 -> 18 | BB164: 1 | BD164: 164 | BE164: 1 | BJ164: 18 | BL164: =$BL$6*BE164*$CH$41 ->  | BM164: 0 | BO164: =BE164*CH$24 -> 1 | BP164: =BE164*CH$41 -> 1 | BQ164: =BQ136 -> 1 | BR164: 1 | BS164: 1 | BT164: 1 | BU164: 1 | BY164: =SUM(N147:N151,N160:N161) -> 0 | BZ164: =SUM(AA147:AA151,AA160:AA161) -> 0
C165: Annual Consumptiopn (m3) | N165: =SUM(AV164:AV169) -> 0 | R165: Annual Consumptiopn (m3) | AA165: =SUM(AW164:AW169) -> 0 | AU165: Shower | AV165: 0 | AW165: 0 | BA165: 19 | BB165: 1 | BD165: 165 | BE165: 1 | BJ165: 19 | BL165: =$BL$6*BE165*$CH$42 ->  | BM165: 0 | BO165: =BE165*CH$25 -> 1 | BP165: =BE165*CH$42 -> 1 | BQ165: 1 | BR165: 1 | BS165: 1 | BT165: 1 | BU165: 1 | BY165: =SUM(N156,N163) -> 0 | BZ165: =SUM(AA156,AA163) -> 0
AU166: WH basin | AV166: 0 | AW166: 0 | BA166: 20 | BB166: 1 | BD166: 166 | BE166: 1 | BJ166: 20 | BL166: =$BL$6*BE166*$CH$43 ->  | BM166: 0 | BO166: =BE166*CH$26 -> 1 | BP166: =BE166*CH$43 -> 1 | BQ166: 1 | BR166: 1 | BS166: 1 | BT166: 1 | BU166: 1 | BY166: =SUM(N153,N162) -> 0 | BZ166: =SUM(AA153,AA162) -> 0
C167: Total Annual Consumption; X (m3) | N167: =SUM(N99,N120,N143,N165) ->  | R167: Total Annual Consumption; Y (m3) | AA167: =SUM(AA99,AA120,AA143,AA165) ->  | AU167: Ablution | AV167: 0 | AW167: 0 | BA167: 21 | BB167: 1 | BD167: 167 | BE167: 1 | BJ167: 21 | BL167: =$BL$6*BE167*$CH$44 ->  | BM167: 0 | BO167: =BE167*CH$27 -> 1 | BP167: =BE167*CH$44 -> 1 | BQ167: 1 | BR167: 1 | BS167: 1 | BT167: 1 | BU167: 1 | BY167: =SUM(N155) -> 0 | BZ167: =SUM(AA155) -> 0
C168: WE4 - Water Efficient Fittings | AU168: Bib tap | AV168: 0 | AW168: 0 | AZ168: Wk 24 | BA168: 22 | BB168: =AK$29 -> 1 | BD168: 168 | BE168: 1 | BJ168: 22 | BK168: =$BK$6*BE168*$CI21 ->  | BL168: =$BL$6*BE168*$CI$38 ->  | BM168: 0 | BO168: =BE168*CI$21 -> 1 | BP168: =BE168*CI$38 -> 1 | BQ168: 1 | BR168: 1 | BS168: 1 | BT168: 1 | BU168: 1 | BY168: =SUM(N152) -> 0 | BZ168: =SUM(AA152) -> 0
L169: Percentage reduction in potable water consumption = | M169: (1 - (Y) / (X)) x 100% | AU169: Pantry | AV169: 0 | AW169: 0 | BA169: 23 | BB169: =BB$168 -> 1 | BD169: 169 | BE169: 1 | BJ169: 23 | BL169: =$BL$6*BE169*$CI$39 ->  | BM169: 0 | BO169: =BE169*CI$22 -> 1 | BP169: =BE169*CI$39 -> 1 | BQ169: 1 | BR169: 1 | BS169: 1 | BT169: 1 | BU169: 1 | BY169: =SUM(N154) -> 0 | BZ169: =SUM(AA154) -> 0
L170: = | M170: =ROUND((1-(AA167/N167))*100,2) ->  | N170: % | BA170: 24 | BB170: 1 | BD170: 170 | BE170: 1 | BJ170: 24 | BL170: =$BL$6*BE170*$CI$40 ->  | BM170: 0 | BO170: =BE170*CI$23 -> 1 | BP170: =BE170*CI$40 -> 1 | BQ170: 1 | BR170: 1 | BS170: 1 | BT170: 1 | BU170: 1
BA171: 25 | BB171: 1 | BD171: 171 | BE171: 1 | BJ171: 25 | BL171: =$BL$6*BE171*$CI$41 ->  | BM171: 0 | BO171: =BE171*CI$24 -> 1 | BP171: =BE171*CI$41 -> 1 | BQ171: 1 | BR171: 1 | BS171: 1 | BT171: 1 | BU171: 1
BA172: 26 | BB172: 1 | BD172: 172 | BE172: 1 | BJ172: 26 | BL172: =$BL$6*BE172*$CI$42 ->  | BM172: 0 | BO172: =BE172*CI$25 -> 1 | BP172: =BE172*CI$42 -> 1 | BQ172: 1 | BR172: 1 | BS172: 1 | BT172: 1 | BU172: 1
BA173: 27 | BB173: 1 | BD173: 173 | BE173: 1 | BJ173: 27 | BL173: =$BL$6*BE173*$CI$43 ->  | BM173: 0 | BO173: =BE173*CI$26 -> 1 | BP173: =BE173*CI$43 -> 1 | BQ173: 1 | BR173: 1 | BS173: 1 | BT173: 1 | BU173: 1
BA174: 28 | BB174: 1 | BD174: 174 | BE174: 1 | BJ174: 28 | BL174: =$BL$6*BE174*$CI$44 ->  | BM174: 0 | BO174: =BE174*CI$27 -> 1 | BP174: =BE174*CI$44 -> 1 | BQ174: 1 | BR174: 1 | BS174: 1 | BT174: 1 | BU174: 1
C175: Cleaning | AZ175: Wk 25 | BA175: 1 | BB175: =AK$30 -> 1 | BD175: 175 | BE175: 1 | BJ175: 1 | BK175: =$BK$6*BE175*$CF21 ->  | BL175: =$BL$6*BE175*$CF$38 ->  | BM175: 0 | BO175: =BE175*CF$21 -> 1 | BP175: =BE175*CF$38 -> 1 | BQ175: 1 | BR175: 1 | BS175: 1 | BT175: 1 | BU175: 1
C176: Applications | F176: Quantity | I176: Freq'cy | K176: Flow | L176: Duration | N176: L/day | P176: m3/yr | BA176: 2 | BB176: =BB$175 -> 1 | BD176: 176 | BE176: 1 | BJ176: =1+BJ175 -> 2 | BL176: =$BL$6*BE176*$CF$39 ->  | BM176: =BM148 -> 0 | BO176: =BE176*CF$22 -> 1 | BP176: =BE176*CF$39 -> 1 | BQ176: 1 | BR176: 1 | BS176: 1 | BT176: 1 | BU176: 1
C177: Floor cleaning | F177: 0 | H177: m2 | I177: 1 | K177: 1 | L177: 1 | M177: time | N177: =ROUNDUP(F177*I177*K177*L177,0) -> 0 | P177: =ROUNDUP(N177*(SUM($BZ$188:$CC$194)*13+$BZ$188)/1000,0) -> 0 | BA177: 3 | BB177: 1 | BD177: 177 | BE177: 1 | BJ177: =1+BJ176 -> 3 | BL177: =$BL$6*BE177*$CF$40 ->  | BM177: 0 | BO177: =BE177*CF$23 -> 1 | BP177: =BE177*CF$40 -> 1 | BQ177: 1 | BR177: 1 | BS177: 1 | BT177: 1 | BU177: 1
C178: Common area 1 | F178: 0 | H178: m2 | I178: 1 | K178: 1 | L178: 1 | M178: time | N178: =ROUNDUP(F178*I178*K178*L178,0) -> 0 | P178: =ROUNDUP(N178*(SUM($CE$188:$CH$194)*13+$CE$188)/1000,0) -> 0 | BA178: 4 | BB178: 1 | BD178: 178 | BE178: 1 | BJ178: 4 | BL178: =$BL$6*BE178*$CF$41 ->  | BM178: 0 | BO178: =BE178*CF$24 -> 1 | BP178: =BE178*CF$41 -> 1 | BQ178: 1 | BR178: 1 | BS178: 1 | BT178: 1 | BU178: 1
C179: Common area 2 | F179: 0 | H179: m2 | I179: 1 | K179: 1 | L179: 1 | M179: time | N179: =ROUNDUP(F179*I179*K179*L179,0) -> 0 | P179: =ROUNDUP(N179*(SUM($CJ$188:$CM$194)*13+$CJ$188)/1000,0) -> 0 | BA179: 5 | BB179: 1 | BD179: =1+BD178 -> 179 | BE179: 1 | BJ179: 5 | BL179: =$BL$6*BE179*$CF$42 ->  | BM179: 0 | BO179: =BE179*CF$25 -> 1 | BP179: =BE179*CF$42 -> 1 | BQ179: 1 | BR179: 1 | BS179: 1 | BT179: 1 | BU179: 1
BA180: 6 | BB180: 1 | BD180: 180 | BE180: 1 | BJ180: 6 | BL180: =$BL$6*BE180*$CF$43 ->  | BM180: 0 | BO180: =BE180*CF$26 -> 1 | BP180: =BE180*CF$43 -> 1 | BQ180: =BQ152 -> 1 | BR180: 1 | BS180: 1 | BT180: 1 | BU180: 1
BA181: 7 | BB181: 1 | BD181: 181 | BE181: 1 | BJ181: 7 | BL181: =$BL$6*BE181*$CF$44 ->  | BM181: 0 | BO181: =BE181*CF$27 -> 1 | BP181: =BE181*CF$44 -> 1 | BQ181: 1 | BR181: 1 | BS181: 1 | BT181: 1 | BU181: 1
I182: =C177 -> Floor cleaning | P182: =C178 -> Common area 1 | Y182: =C179 -> Common area 2 | AZ182: Wk 26 | BA182: 8 | BB182: 1 | BD182: 182 | BE182: 1 | BJ182: 8 | BK182: =$BK$6*BE182*$CG21 ->  | BL182: =$BL$6*BE182*$CG$38 ->  | BM182: 0 | BO182: =BE182*CG$21 -> 1 | BP182: =BE182*CG$38 -> 1 | BQ182: 1 | BR182: 1 | BS182: 1 | BT182: 1 | BU182: 1
I183: Week | K183: 1 | L183: 2 | M183: 3 | N183: 4 | P183: Week | S183: 1 | T183: 2 | U183: 3 | V183: 4 | Y183: Week | AA183: 1 | AB183: 2 | AC183: 3 | AD183: 4 | BA183: 9 | BB183: =AK$31 -> 1 | BD183: 183 | BE183: 1 | BJ183: 9 | BK183: =$BK$6*BE183*$CG22 ->  | BL183: =$BL$6*BE183*$CG$39 ->  | BM183: 0 | BO183: =BE183*CG$22 -> 1 | BP183: =BE183*CG$39 -> 1 | BQ183: 1 | BR183: 1 | BS183: 1 | BT183: 1 | BU183: 1
I184: Mon | K184: 1 | L184: 1 | M184: 1 | N184: 1 | P184: Mon | S184: 1 | T184: 1 | U184: 1 | V184: 1 | Y184: Mon | AA184: 1 | AB184: 1 | AC184: 1 | AD184: 1 | BA184: 10 | BB184: =BB$183 -> 1 | BD184: 184 | BE184: 1 | BJ184: 10 | BL184: =$BL$6*BE184*$CG$40 ->  | BM184: 0 | BO184: =BE184*CG$23 -> 1 | BP184: =BE184*CG$40 -> 1 | BQ184: 1 | BR184: 1 | BS184: 1 | BT184: 1 | BU184: 1
I185: Tue | K185: 1 | L185: 1 | M185: 1 | N185: 1 | P185: Tue | S185: 1 | T185: 1 | U185: 1 | V185: 1 | Y185: Tue | AA185: 1 | AB185: 1 | AC185: 1 | AD185: 1 | BA185: 11 | BB185: 1 | BD185: 185 | BE185: 1 | BJ185: 11 | BL185: =$BL$6*BE185*$CG$41 ->  | BM185: 0 | BO185: =BE185*CG$24 -> 1 | BP185: =BE185*CG$41 -> 1 | BQ185: 1 | BR185: 1 | BS185: 1 | BT185: 1 | BU185: 1
I186: Wed | K186: 1 | L186: 1 | M186: 1 | N186: 1 | P186: Wed | S186: 1 | T186: 1 | U186: 1 | V186: 1 | Y186: Wed | AA186: 1 | AB186: 1 | AC186: 1 | AD186: 1 | BA186: 12 | BB186: 1 | BD186: 186 | BE186: 1 | BJ186: 12 | BL186: =$BL$6*BE186*$CG$42 ->  | BM186: 0 | BO186: =BE186*CG$25 -> 1 | BP186: =BE186*CG$42 -> 1 | BQ186: 1 | BR186: 1 | BS186: 1 | BT186: 1 | BU186: 1
I187: Thu | K187: 1 | L187: 1 | M187: 1 | N187: 1 | P187: Thu | S187: 1 | T187: 1 | U187: 1 | V187: 1 | Y187: Thu | AA187: 1 | AB187: 1 | AC187: 1 | AD187: 1 | BA187: 13 | BB187: 1 | BD187: 187 | BE187: 1 | BJ187: 13 | BL187: =$BL$6*BE187*$CG$43 ->  | BM187: 0 | BO187: =BE187*CG$26 -> 1 | BP187: =BE187*CG$43 -> 1 | BQ187: 1 | BR187: 1 | BS187: 1 | BT187: 1 | BU187: 1 | BZ187: Cleaning 1 | CE187: Cleaning 2 | CJ187: Cleaning 3
I188: Fri | K188: 1 | L188: 1 | M188: 1 | N188: 1 | P188: Fri | S188: 1 | T188: 1 | U188: 1 | V188: 1 | Y188: Fri | AA188: 1 | AB188: 1 | AC188: 1 | AD188: 1 | BA188: 14 | BB188: 1 | BD188: 188 | BE188: 1 | BJ188: 14 | BL188: =$BL$6*BE188*$CG$44 ->  | BM188: 0 | BO188: =BE188*CG$27 -> 1 | BP188: =BE188*CG$44 -> 1 | BQ188: 1 | BR188: 1 | BS188: 1 | BT188: 1 | BU188: 1 | BZ188: =INDEX($CP$21:$CP$55,$CE21) -> 1 | CA188: =INDEX($CP$21:$CP$55,$CE21+7) -> 1 | CB188: =INDEX($CP$21:$CP$55,$CE21+14) -> 1 | CC188: =INDEX($CP$21:$CP$55,$CE21+21) -> 1 | CE188: =INDEX($CQ$21:$CQ$55,$CE21) -> 1 | CF188: =INDEX($CQ$21:$CQ$55,$CE21+7) -> 1 | CG188: =INDEX($CQ$21:$CQ$55,$CE21+14) -> 1 | CH188: =INDEX($CQ$21:$CQ$55,$CE21+21) -> 1 | CJ188: =INDEX($CR$21:$CR$55,$CE21) -> 1 | CK188: =INDEX($CR$21:$CR$55,$CE21+7) -> 1 | CL188: =INDEX($CR$21:$CR$55,$CE21+14) -> 1 | CM188: =INDEX($CR$21:$CR$55,$CE21+21) -> 1
I189: Sat | K189: 1 | L189: 1 | M189: 1 | N189: 1 | P189: Sat | S189: 1 | T189: 1 | U189: 1 | V189: 1 | Y189: Sat | AA189: 1 | AB189: 1 | AC189: 1 | AD189: 1 | AZ189: Wk 27 | BA189: 15 | BB189: 1 | BD189: 189 | BE189: 1 | BJ189: 15 | BK189: =$BK$6*BE189*$CH21 ->  | BL189: =$BL$6*BE189*$CH$38 ->  | BM189: 0 | BO189: =BE189*CH$21 -> 1 | BP189: =BE189*CH$38 -> 1 | BQ189: 1 | BR189: 1 | BS189: 1 | BT189: 1 | BU189: 1 | BZ189: 1 | CA189: 1 | CB189: 1 | CC189: 1 | CE189: 1 | CF189: 1 | CG189: 1 | CH189: 1 | CJ189: 1 | CK189: 1 | CL189: 1 | CM189: 1
I190: Sun | K190: 1 | L190: 1 | M190: 1 | N190: 1 | P190: Sun | S190: 1 | T190: 1 | U190: 1 | V190: 1 | Y190: Sun | AA190: 1 | AB190: 1 | AC190: 1 | AD190: 1 | BA190: 16 | BB190: =AN$6 -> 1 | BD190: 190 | BE190: 1 | BJ190: 16 | BK190: =$BK$6*BE190*$CH22 ->  | BL190: =$BL$6*BE190*$CH$39 ->  | BM190: 0 | BO190: =BE190*CH$22 -> 1 | BP190: =BE190*CH$39 -> 1 | BQ190: 1 | BR190: 1 | BS190: 1 | BT190: 1 | BU190: 1 | BZ190: 1 | CA190: 1 | CB190: 1 | CC190: 1 | CE190: 1 | CF190: 1 | CG190: 1 | CH190: 1 | CJ190: 1 | CK190: 1 | CL190: 1 | CM190: 1
BA191: 17 | BB191: =BB$190 -> 1 | BD191: 191 | BE191: 1 | BJ191: 17 | BL191: =$BL$6*BE191*$CH$40 ->  | BM191: 0 | BO191: =BE191*CH$23 -> 1 | BP191: =BE191*CH$40 -> 1 | BQ191: 1 | BR191: 1 | BS191: 1 | BT191: 1 | BU191: 1 | BZ191: 1 | CA191: 1 | CB191: 1 | CC191: 1 | CE191: 1 | CF191: 1 | CG191: 1 | CH191: 1 | CJ191: 1 | CK191: 1 | CL191: 1 | CM191: 1
BA192: 18 | BB192: 1 | BD192: 192 | BE192: 1 | BJ192: 18 | BL192: =$BL$6*BE192*$CH$41 ->  | BM192: 0 | BO192: =BE192*CH$24 -> 1 | BP192: =BE192*CH$41 -> 1 | BQ192: 1 | BR192: 1 | BS192: 1 | BT192: 1 | BU192: 1 | BZ192: 1 | CA192: 1 | CB192: 1 | CC192: 1 | CE192: 1 | CF192: 1 | CG192: 1 | CH192: 1 | CJ192: 1 | CK192: 1 | CL192: 1 | CM192: 1
BA193: 19 | BB193: 1 | BD193: 193 | BE193: 1 | BJ193: 19 | BL193: =$BL$6*BE193*$CH$42 ->  | BM193: 0 | BO193: =BE193*CH$25 -> 1 | BP193: =BE193*CH$42 -> 1 | BQ193: 1 | BR193: 1 | BS193: 1 | BT193: 1 | BU193: 1 | BZ193: 1 | CA193: 1 | CB193: 1 | CC193: 1 | CE193: 1 | CF193: 1 | CG193: 1 | CH193: 1 | CJ193: 1 | CK193: 1 | CL193: 1 | CM193: 1
C194: Miscellaneous Usage | H194: Baseline | O194: Design | BA194: 20 | BB194: 1 | BD194: 194 | BE194: 1 | BJ194: 20 | BL194: =$BL$6*BE194*$CH$43 ->  | BM194: 0 | BO194: =BE194*CH$26 -> 1 | BP194: =BE194*CH$43 -> 1 | BQ194: 1 | BR194: 1 | BS194: 1 | BT194: 1 | BU194: 1 | BZ194: 1 | CA194: 1 | CB194: 1 | CC194: 1 | CE194: 1 | CF194: 1 | CG194: 1 | CH194: 1 | CJ194: 1 | CK194: 1 | CL194: 1 | CM194: 1
F195: No. of rooms/ person | H195: Usage | K195: Consumption | M195: L/day | O195: Usage | S195: lb/room meals/rm | U195: L/day | X195: Wastewater Recycling | BA195: 21 | BB195: 1 | BD195: 195 | BE195: 1 | BJ195: 21 | BL195: =$BL$6*BE195*$CH$44 ->  | BM195: 0 | BO195: =BE195*CH$27 -> 1 | BP195: =BE195*CH$44 -> 1 | BQ195: 1 | BR195: 1 | BS195: 1 | BT195: 1 | BU195: 1
AZ196: Wk 28 | BA196: 22 | BB196: 1 | BD196: 196 | BE196: 1 | BJ196: 22 | BK196: =$BK$6*BE196*$CI21 ->  | BL196: =$BL$6*BE196*$CI$38 ->  | BM196: 0 | BO196: =BE196*CI$21 -> 1 | BP196: =BE196*CI$38 -> 1 | BQ196: =BQ168 -> 1 | BR196: 1 | BS196: 1 | BT196: 1 | BU196: 1
BA197: 23 | BB197: =AN$7 -> 1 | BD197: 197 | BE197: 1 | BJ197: 23 | BK197: =$BK$6*BE197*$CI22 ->  | BL197: =$BL$6*BE197*$CI$39 ->  | BM197: 0 | BO197: =BE197*CI$22 -> 1 | BP197: =BE197*CI$39 -> 1 | BQ197: 1 | BR197: 1 | BS197: 1 | BT197: 1 | BU197: 1
C198: Hotel/Non-residential | H198: L/kg L/meal | K198: kg/room meals/rm | O198: L/kg L/meal | S198: kg/room meals/rm | Y198: Fittings Discharge Selection for Wastewater Recycling | BA198: 24 | BB198: =BB$197 -> 1 | BD198: 198 | BE198: 1 | BJ198: 24 | BL198: =$BL$6*BE198*$CI$40 ->  | BM198: 0 | BO198: =BE198*CI$23 -> 1 | BP198: =BE198*CI$40 -> 1 | BQ198: 1 | BR198: 1 | BS198: 1 | BT198: 1 | BU198: 1
C199: Laundry | F199: 0 | H199: 21 | K199: 3.63 | M199: =ROUND(F199*H199*K199,0) -> 0 | O199: 14.5 | S199: 3.63 | U199: =ROUND(F199*O199*S199,0) -> 0 | X199: 0 | BA199: 25 | BB199: 1 | BD199: 199 | BE199: =IF($AN$4,INDEX(BB$7:BB$378,$BD199),1) -> 1 | BJ199: 25 | BL199: =$BL$6*BE199*$CI$41 ->  | BM199: 0 | BO199: =BE199*CI$24 -> 1 | BP199: =BE199*CI$41 -> 1 | BQ199: 1 | BR199: 1 | BS199: 1 | BT199: 1 | BU199: 1
C200: Kitchen 1 | H200: L/meal L/meal | K200: meals/room meals/rm | O200: L/meal L/meal | S200: meals/room meals/rm | BA200: 26 | BB200: 1 | BD200: 200 | BE200: 1 | BJ200: 26 | BL200: =$BL$6*BE200*$CI$42 ->  | BM200: 0 | BO200: =BE200*CI$25 -> 1 | BP200: =BE200*CI$42 -> 1 | BQ200: 1 | BR200: 1 | BS200: 1 | BT200: 1 | BU200: 1
F201: 0 | H201: 30 | K201: 2.2 | M201: =ROUND(F201*H201*K201,0) -> 0 | O201: 30 | S201: 2.2 | U201: =ROUND(F201*O201*S201,0) -> 0 | BA201: 27 | BB201: 1 | BD201: 201 | BE201: 1 | BJ201: 27 | BL201: =$BL$6*BE201*$CI$43 ->  | BM201: 0 | BN201: =ROUNDDOWN(SUM(BK201:BM201),0) ->  | BO201: =BE201*CI$26 -> 1 | BP201: =BE201*CI$43 -> 1 | BQ201: 1 | BR201: 1 | BS201: 1 | BT201: 1 | BU201: 1 | BY201: Waste water recycling
C202: Kitchen 2 | H202: L/meal L/meal | K202: meals/person meals/rm | O202: L/meal L/meal | S202: meals/person meals/rm | BA202: 28 | BB202: 1 | BD202: 202 | BE202: 1 | BJ202: 28 | BL202: =$BL$6*BE202*$CI$44 ->  | BM202: 0 | BO202: =BE202*CI$27 -> 1 | BP202: =BE202*CI$44 -> 1 | BQ202: 1 | BR202: 1 | BS202: 1 | BT202: 1 | BU202: 1
... 176 more rows

Sheet AirCond
B1: =Main!C2 -> Project Name | U1: =Main!P1 -> Version 2018c | BB1: Weekly AC system schedule = base occupancy schedule
B2: Air Conditioning System | U2: Date: | V2: 2020-06-01 | BC2: AC operation | BH2: Condensate water available
B3: Is air conditioning provided/included in the building? | G3: 0 | U3: Revision No.:
B4: Is the air conditioning system of water-cooled type? | G4: 0 | BD4: Sys A | BE4: Sys B | BF4: Sys C | BG4: Sys D | BH4: Sys A | BI4: Sys B | BJ4: Sys C | BK4: Sys D | BL4: Total
B5: Cooling Tower make-up water requirement | G5: =G3*G4*Rainfall!C1 ->  | BB5: Day | BH5: =G33 -> 0 | BI5: =L33 -> 0 | BJ5: =Q33 -> 0 | BK5: =V33 -> 0
B6: Description | C6: Units | E6: AC System A | J6: AC System B | O6: AC System C | T6: AC System D | AG6: Occupancy | AH6: =VLOOKUP($E$9,AG7:AH12,2,FALSE) ->  | AI6: =VLOOKUP($J$9,AG7:AI12,3,FALSE) ->  | AJ6: =VLOOKUP($O$9,AG7:AJ12,4,FALSE) ->  | AK6: =VLOOKUP($T$9,AG7:AK12,5,FALSE) ->  | BB6: 1 | BC6: =WaterFittings!BE7 -> 1 | BD6: =BC6*AM$31 -> 1 | BE6: =AR31 -> 1 | BF6: =AW31 -> 1 | BG6: =AW40 -> 1 | BH6: =BH$5*BD6 -> 0 | BI6: =BI$5*BE6 -> 0 | BJ6: =BJ$5*BF6 -> 0 | BK6: =BK$5*BG6 -> 0 | BL6: =SUM(BH6:BK6) -> 0
B7: Occupancy type | G7: Office | L7: Office | Q7: Office | V7: Office | AF7: room | AG7: person/room | AH7: =Rainfall!C1 -> x | AI7: =AH7 -> x | AJ7: =AH7 -> x | AK7: =AH7 -> x | BB7: =1+BB6 -> 2 | BC7: =WaterFittings!BE8 -> 1 | BD7: =BC7*AM$32 -> 1 | BE7: =AR32 -> 1 | BF7: =AW32 -> 1 | BG7: =AW41 -> 1 | BH7: =BH$5*BD7 -> 0 | BI7: =BI$5*BE7 -> 0 | BJ7: =BJ$5*BF7 -> 0 | BK7: =BK$5*BG7 -> 0 | BL7: =SUM(BH7:BK7) -> 0
B8: Area or unit | E8: room | G8: 0 | J8: m2 | L8: 0 | O8: m2 | Q8: 0 | T8: m2 | V8: 0 | AF8: apartment | AG8: person/apartment | AH8: =AH$7 -> x | AI8: x | AJ8: x | AK8: x | BB8: =1+BB7 -> 3 | BC8: =WaterFittings!BE9 -> 1 | BD8: =BC8*AM$33 -> 1 | BE8: 1 | BF8: 1 | BG8: 1 | BH8: 0 | BI8: 0 | BJ8: 0 | BK8: 0 | BL8: =SUM(BH8:BK8) -> 0
B9: Occupancy | E9: m2/person | G9: 10 | J9: m2/person | L9: 10 | O9: m2/person | Q9: 10 | T9: m2/person | V9: 10 | AF9: m2 | AG9: person/m2 | AH9: x | AI9: x | AJ9: x | AK9: x | BB9: 4 | BC9: =WaterFittings!BE10 -> 1 | BD9: =BC9*AM$34 -> 1 | BE9: 1 | BF9: 1 | BG9: 1 | BH9: 0 | BI9: 0 | BJ9: 0 | BK9: 0 | BL9: 0
B10: Area for OA Desgn | E10: m2 | G10: 0 | J10: m2 | L10: 0 | O10: m2 | Q10: 0 | T10: m2 | V10: 0 | AF10: unit | AG10: m2/person | AH10: =AH7/G9^2 ->  | AI10: =AI7/L9^2 ->  | AJ10: =AJ7/Q9^2 ->  | AK10: =AK7/V9^2 ->  | BB10: 5 | BC10: =WaterFittings!BE11 -> 1 | BD10: =BC10*AM$35 -> 1 | BE10: 1 | BF10: 1 | BG10: 1 | BH10: 0 | BI10: 0 | BJ10: 0 | BK10: 0 | BL10: 0
B11: Population | G11: =ROUND(G8*G9*AH6,0) ->  | L11: =ROUND(L8*L9*AI6,0) ->  | Q11: =ROUND(Q8*Q9*AJ6,0) ->  | V11: =ROUND(V8*V9*AK6,0) ->  | AG11: person | AH11: =AH7/G8 ->  | AI11: =AI7/L8 ->  | AJ11: =AJ7/Q8 ->  | AK11: =AK7/V8 ->  | BB11: 6 | BC11: =WaterFittings!BE12 -> 1 | BD11: =BC11*AM$36 -> 1 | BE11: 1 | BF11: 1 | BG11: 1 | BH11: 0 | BI11: 0 | BJ11: 0 | BK11: 0 | BL11: 0
E12: Default | G12: Selected | J12: Default | L12: Selected | O12: Default | Q12: Selected | T12: Default | V12: Selected | AG12: person/unit | AH12: =AH$8 -> x | AI12: =AI$8 -> x | AJ12: =AJ$8 -> x | AK12: =AK$8 -> x | BB12: 7 | BC12: =WaterFittings!BE13 -> 1 | BD12: =BC12*AM$37 -> 1 | BE12: 1 | BF12: 1 | BG12: 1 | BH12: 0 | BI12: 0 | BJ12: 0 | BK12: 0 | BL12: 0
B13: Cooling Load | C13: W/unit | E13: =HLOOKUP($G$7,type,6,FALSE)&" "&HLOOKUP($G$7,type,4,FALSE) -> 175 W/m2 | G13: 175 | J13: =HLOOKUP($L$7,type,6,FALSE)&" "&HLOOKUP($L$7,type,4,FALSE) -> 175 W/m2 | L13: 175 | O13: =HLOOKUP($Q$7,type,6,FALSE)&" "&HLOOKUP($Q$7,type,4,FALSE) -> 175 W/m2 | Q13: 175 | T13: =HLOOKUP($V$7,type,6,FALSE)&" "&HLOOKUP($V$7,type,4,FALSE) -> 175 W/m2 | V13: 175 | BB13: 8 | BC13: =WaterFittings!BE14 -> 1 | BD13: =BC13*AN$31 -> 1 | BE13: =AS31 -> 1 | BF13: =AX31 -> 1 | BG13: =AX40 -> 1 | BH13: 0 | BI13: 0 | BJ13: 0 | BK13: 0 | BL13: 0
B14: Total Capacity | C14: kWr | G14: =IF(G5,ROUND(G8*G13/1000,0),0) ->  | L14: =IF(G5,ROUND(L8*L13/1000,0),0) ->  | Q14: =IF(G5,ROUND(Q8*Q13/1000,0),0) ->  | V14: =IF(G5,ROUND(V8*V13/1000,0),0) ->  | AB14: Clubhouse | AC14: ConventionCentre | AD14: Hotel | AE14: Multipurpose | AF14: Office | AG14: Residential | AH14: Retail | AI14: Restaurant | BB14: 9 | BC14: =WaterFittings!BE15 -> 1 | BD14: =BC14*AN$32 -> 1 | BE14: =AS32 -> 1 | BF14: =AX32 -> 1 | BG14: =AX41 -> 1 | BH14: 0 | BI14: 0 | BJ14: 0 | BK14: 0 | BL14: 0
B15: Total Capacity | C15: RT | G15: =ROUND(G14/3.517,0) ->  | L15: =ROUND(L14/3.517,0) ->  | Q15: =ROUND(Q14/3.517,0) ->  | V15: =ROUND(V14/3.517,0) ->  | AA15: Description | AB15: AC area | AC15: AC area | AD15: No. of rooms | AE15: AC area | AF15: AC area | AG15: AC area | AH15: AC area | AI15: AC area | BB15: 10 | BC15: =WaterFittings!BE16 -> 1 | BD15: =BC15*AN$33 -> 1 | BE15: 1 | BF15: 1 | BG15: 1 | BH15: 0 | BI15: 0 | BJ15: 0 | BK15: 0 | BL15: 0
B16: Design CDW dT | C16: oC | E16: 5.55 | G16: 5.55 | J16: 5.55 | L16: 5.55 | O16: 5.55 | Q16: 5.55 | T16: 5.55 | V16: 5.55 | AA16: Units | AB16: nos. | AC16: m2 | AD16: nos. | AE16: m2 | AF16: m2 | AG16: m2 | AH16: m2 | AI16: m2 | BB16: 11 | BC16: =WaterFittings!BE17 -> 1 | BD16: =BC16*AN$34 -> 1 | BE16: 1 | BF16: 1 | BG16: 1 | BH16: 0 | BI16: 0 | BJ16: 0 | BK16: 0 | BL16: 0
B17: CDW flow | C17: L/s/kWr | E17: =ROUNDUP(1.25/4.187/E16,5) -> 0.0538 | G17: =ROUNDUP(1.25/4.187/G16,5) -> 0.0538 | J17: =ROUNDUP(1.25/4.187/J16,5) -> 0.0538 | L17: =ROUNDUP(1.25/4.187/L16,5) -> 0.0538 | O17: =ROUNDUP(1.25/4.187/O16,5) -> 0.0538 | Q17: =ROUNDUP(1.25/4.187/Q16,5) -> 0.0538 | T17: =ROUNDUP(1.25/4.187/T16,5) -> 0.0538 | V17: =ROUNDUP(1.25/4.187/V16,5) -> 0.0538 | AA17: Unit load | AB17: W/m2 | AC17: W/m2 | AD17: Wr/room | AE17: W/m2 | AF17: W/m2 | AG17: W/m2 | AH17: W/m2 | AI17: W/m2 | BB17: 12 | BC17: =WaterFittings!BE18 -> 1 | BD17: =BC17*AN$35 -> 1 | BE17: 1 | BF17: 1 | BG17: 1 | BH17: 0 | BI17: 0 | BJ17: 0 | BK17: 0 | BL17: 0
B18: Diversity factor | E18: 1 | G18: 0.8 | J18: 1 | L18: 1 | O18: 1 | Q18: 1 | T18: 1 | V18: 1 | Z18: Base Load | AA18: Btuh/unit | AB18: 55 | AC18: 80 | AD18: 24000 | AE18: 80 | AF18: 55 | AG18: 80 | AH18: 80 | BB18: 13 | BC18: =WaterFittings!BE19 -> 1 | BD18: =BC18*AN$36 -> 1 | BE18: 1 | BF18: 1 | BG18: 1 | BH18: 0 | BI18: 0 | BJ18: 0 | BK18: 0 | BL18: 0
B19: Water Loss | C19: % | E19: 0.0107 | G19: 0.0107 | J19: 0.0107 | L19: 0.0107 | O19: 0.0107 | Q19: 0.0107 | T19: 0.0107 | V19: 0.0107 | AA19: Wr/unit | AB19: 175 | AC19: 250 | AD19: 7000 | AE19: 250 | AF19: 175 | AG19: 250 | AH19: 250 | AI19: 300 | BB19: 14 | BC19: =WaterFittings!BE20 -> 1 | BD19: =BC19*AN$37 -> 1 | BE19: 1 | BF19: 1 | BG19: 1 | BH19: 0 | BI19: 0 | BJ19: 0 | BK19: 0 | BL19: 0
B20: Drift Loss | C20: % | E20: 0.0002 | G20: 0.0002 | J20: 0.0002 | L20: =G20 -> 0.0002 | O20: 0.0002 | Q20: =G20 -> 0.0002 | T20: 0.0002 | V20: =G20 -> 0.0002 | Z20: Design Load | AA20: Btuh/unit | AB20: 35 | AC20: 60 | AD20: 18000 | AE20: 60 | AF20: 53.57 | AG20: 60 | AH20: 60 | BB20: 15 | BC20: =WaterFittings!BE21 -> 1 | BD20: =BC20*AO$31 -> 1 | BE20: =AT31 -> 1 | BF20: =AY31 -> 1 | BG20: =AY40 -> 1 | BH20: 0 | BI20: 0 | BJ20: 0 | BK20: 0 | BL20: 0
B21: Blowdown | C21: Cycles of Concentration | E21: 5 | G21: 5 | AA21: Wr/unit | AB21: =ROUND(AB20*10.764/3.412,0) -> 110 | AC21: =ROUND(AC20*10.764/3.412,0) -> 189 | AD21: =ROUND(AD20/3.412,0) -> 5275 | AE21: =ROUND(AE20*10.764/3.412,0) -> 189 | AF21: =ROUND(AF20*10.764/3.412,0) -> 169 | AG21: =ROUND(AG20*10.764/3.412,0) -> 189 | AH21: =ROUND(AH20*10.764/3.412,0) -> 189 | BB21: 16 | BC21: =WaterFittings!BE22 -> 1 | BD21: =BC21*AO$32 -> 1 | BE21: =AT32 -> 1 | BF21: =AY32 -> 1 | BG21: =AY41 -> 1 | BH21: 0 | BI21: 0 | BJ21: 0 | BK21: 0 | BL21: 0
G22: =ROUNDUP(G19/(G21-1)-G20,5) -> 0.00248 | L22: =ROUNDUP(L19/(G21-1)-L20,5) -> 0.00248 | Q22: =ROUNDUP(Q19/(G21-1)-Q20,5) -> 0.00248 | V22: =ROUNDUP(V19/(G21-1)-V20,5) -> 0.00248 | AA22: DF | AB22: 0.85 | AC22: 0.85 | AD22: 0.7 | AE22: 0.8 | AF22: 0.85 | AG22: 0.85 | AH22: 0.85 | AI22: 0.8 | BB22: 17 | BC22: =WaterFittings!BE23 -> 1 | BD22: =BC22*AO$33 -> 1 | BE22: =AT33 -> 1 | BF22: =AY33 -> 1 | BG22: 1 | BH22: 0 | BI22: 0 | BJ22: 0 | BK22: 0 | BL22: 0
B23: Total CW flow | C23: L/s | G23: =ROUNDUP(G14*G17,1) ->  | L23: =ROUNDUP(L14*L17,1) ->  | Q23: =ROUNDUP(Q14*Q17,1) ->  | V23: =ROUNDUP(V14*V17,1) ->  | AA23: Evaporation | BB23: 18 | BC23: =WaterFittings!BE24 -> 1 | BD23: =BC23*AO$34 -> 1 | BE23: =AT34 -> 1 | BF23: =AY34 -> 1 | BG23: 1 | BH23: 0 | BI23: 0 | BJ23: 0 | BK23: 0 | BL23: 0
B24: Daily Operating Hours | C24: nos. | E24: =HLOOKUP(G$7,type,14,FALSE) -> 10 | G24: 10 | J24: =HLOOKUP(L$7,type,14,FALSE) -> 10 | L24: 10 | O24: =HLOOKUP(Q$7,type,14,FALSE) -> 10 | Q24: 10 | T24: =HLOOKUP(V$7,type,14,FALSE) -> 10 | V24: 10 | AA24: Drift Loss | BB24: 19 | BC24: =WaterFittings!BE25 -> 1 | BD24: =BC24*AO$35 -> 1 | BE24: =AT35 -> 1 | BF24: =AY35 -> 1 | BG24: 1 | BH24: 0 | BI24: 0 | BJ24: 0 | BK24: 0 | BL24: 0
B25: Water Loss per day | C25: L | G25: =ROUNDUP(G14*G17*G18*SUM(G19,G20,G22)*G24*3600,0) ->  | L25: =ROUNDUP(L14*L17*L18*SUM(L19:L22)*L24*3600,0) ->  | Q25: =ROUNDUP(Q14*Q17*Q18*SUM(Q19:Q22)*Q24*3600,0) ->  | V25: =ROUNDUP(V14*V17*V18*SUM(V19:V22)*V24*3600,0) ->  | AA25: Blowdown | BB25: 20 | BC25: =WaterFittings!BE26 -> 1 | BD25: =BC25*AO$36 -> 1 | BE25: 1 | BF25: 1 | BG25: 1 | BH25: 0 | BI25: 0 | BJ25: 0 | BK25: 0 | BL25: 0
B26: Water Loss per year | C26: m3 | G26: =ROUNDUP(SUM(PRODUCT(G25,SUM(AM31:AP37),0.013),G25*AM31/1000),0) ->  | L26: =ROUNDUP(SUM(PRODUCT(L25,SUM(AR31:AU37),0.013),L25*AR31/1000),0) ->  | Q26: =ROUNDUP(SUM(PRODUCT(Q25,SUM(AW31:AZ37),0.013),Q25*AW31/1000),0) ->  | V26: =ROUNDUP(SUM(PRODUCT(V25,SUM(AW40:AZ46),0.013),AW40*V25/1000),0) ->  | AA26: dT | AB26: 5.5 | AC26: 5.5 | AD26: 5.5 | AE26: 5.5 | AF26: 5.5 | AG26: 5.5 | AH26: 5.5 | AI26: 5.5 | BB26: 21 | BC26: =WaterFittings!BE27 -> 1 | BD26: =BC26*AO$37 -> 1 | BE26: 1 | BF26: 1 | BG26: 1 | BH26: 0 | BI26: 0 | BJ26: 0 | BK26: 0 | BL26: 0
B27: Condensate Water Recovery | AA27: Op Hrs | AB27: 12 | AC27: 12 | AD27: 24 | AE27: 12 | AF27: 10 | AG27: 24 | AH27: 12 | AI27: 12 | BB27: 22 | BC27: =WaterFittings!BE28 -> 1 | BD27: =BC27*AP$31 -> 1 | BE27: =AU31 -> 1 | BF27: =AZ31 -> 1 | BG27: =AZ40 -> 1 | BH27: 0 | BI27: 0 | BJ27: 0 | BK27: 0 | BL27: 0
B28: OA - Area requirement | C28: l/s/m2 | E28: =HLOOKUP($G$7,type,15,FALSE) -> 0.3 | G28: 0.3 | J28: =HLOOKUP($L$7,type,15,FALSE) -> 0.3 | L28: 0.3 | O28: =HLOOKUP($Q$7,type,15,FALSE) -> 0.3 | Q28: 0.3 | T28: =HLOOKUP($V$7,type,15,FALSE) -> 0.3 | V28: 0.3 | AA28: L/s/unit floor area | AB28: 0.3 | AC28: 0.3 | AD28: 0.3 | AE28: 0.3 | AF28: 0.3 | AG28: 0.3 | AH28: 0.3 | AI28: 0.6 | BB28: 23 | BC28: =WaterFittings!BE29 -> 1 | BD28: =BC28*AP$32 -> 1 | BE28: =AU32 -> 1 | BF28: =AZ32 -> 1 | BG28: =AZ41 -> 1 | BH28: 0 | BI28: 0 | BJ28: 0 | BK28: 0 | BL28: 0
B29: OA - People requirement | C29: l/s/peron | E29: =HLOOKUP($G$7,type,16,FALSE) -> 2.5 | G29: 2.5 | J29: =HLOOKUP($L$7,type,16,FALSE) -> 2.5 | L29: 2.5 | O29: =HLOOKUP($Q$7,type,16,FALSE) -> 2.5 | Q29: 2.5 | T29: =HLOOKUP($V$7,type,16,FALSE) -> 2.5 | V29: 2.5 | AA29: L/s/person | AB29: 2.5 | AC29: 2.5 | AD29: 2.5 | AE29: 2.5 | AF29: 2.5 | AG29: 2.5 | AH29: 2.5 | AI29: 3.8 | AL29: Adjustment for first day of the year | BB29: 24 | BC29: =WaterFittings!BE30 -> 1 | BD29: =BC29*AP$33 -> 1 | BE29: 1 | BF29: 1 | BG29: 1 | BH29: 0 | BI29: 0 | BJ29: 0 | BK29: 0 | BL29: 0
B30: Total OA requirement | G30: =G10*G28+G11*G29 ->  | L30: =L10*L28+L11*L29 ->  | Q30: =Q10*Q28+Q11*Q29 ->  | V30: =V10*V28+V11*V29 ->  | AL30: =System1!D3 -> Kangar | BB30: 25 | BC30: =WaterFittings!BE31 -> 1 | BD30: =BC30*AP$34 -> 1 | BE30: 1 | BF30: 1 | BG30: 1 | BH30: 0 | BI30: 0 | BJ30: 0 | BK30: 0 | BL30: 0
B31: Outdoor air design | C31: kg/s | G31: =ROUND(G30/1000/$D$54*(($D$53-$D$56)/1000),4) ->  | L31: =ROUND(L30/1000/$D$54*(($D$53-$D$56)/1000),4) ->  | Q31: =ROUND(Q30/1000/$D$54*(($D$53-$D$56)/1000),4) ->  | V31: =ROUND(V30/1000/$D$54*(($D$53-$D$56)/1000),4) ->  | AL31: =HLOOKUP(AL30,Raindata,6,FALSE) -> 7 | AM31: =INDEX(weekac11,$AL31) -> 1 | AN31: =INDEX(weekac12,$AL31) -> 1 | AO31: =INDEX(weekac13,$AL31) -> 1 | AP31: =INDEX(weekac14,$AL31) -> 1 | AR31: =INDEX(weekac21,$AL31) -> 1 | AS31: =INDEX(weekac22,$AL31) -> 1 | AT31: =INDEX(weekac23,$AL31) -> 1 | AU31: =INDEX(weekac24,$AL31) -> 1 | AW31: =INDEX(weekac31,$AL31) -> 1 | AX31: =INDEX(weekac32,$AL31) -> 1 | AY31: =INDEX(weekac33,$AL31) -> 1 | AZ31: =INDEX(weekac34,$AL31) -> 1 | BB31: 26 | BC31: =WaterFittings!BE32 -> 1 | BD31: =BC31*AP$35 -> 1 | BE31: 1 | BF31: 1 | BG31: 1 | BH31: 0 | BI31: 0 | BJ31: 0 | BK31: 0 | BL31: 0
C32: kg/h (L/h) | G32: =ROUND(G31*3600,1) ->  | L32: =ROUND(L31*3600,1) ->  | Q32: =ROUND(Q31*3600,1) ->  | V32: =ROUND(V31*3600,1) ->  | AL32: =IF($AL$31+1<8,$AL$31+1,$AL$31-6) -> 1 | AM32: 1 | AN32: 1 | AO32: 1 | AP32: 1 | AR32: 1 | AS32: 1 | AT32: 1 | AU32: 1 | AW32: 1 | AX32: 1 | AY32: 1 | AZ32: 1 | BB32: 27 | BC32: =WaterFittings!BE33 -> 1 | BD32: =BC32*AP$36 -> 1 | BE32: 1 | BF32: 1 | BG32: 1 | BH32: 0 | BI32: 0 | BJ32: 0 | BK32: 0 | BL32: 0
B33: Maximum recovery per day | C33: L | G33: =IF(G3,ROUNDDOWN(G18*G32*G24,-1),0) -> 0 | L33: =IF(G3,ROUNDDOWN(L18*L32*L24,-1),0) -> 0 | Q33: =IF(G3,ROUNDDOWN(Q18*Q32*Q24,-1),0) -> 0 | V33: =IF(G3,ROUNDDOWN(V18*V32*V24,-1),0) -> 0 | AA33: Condensate Water recycling system association | AL33: =IF($AL$31+2<8,$AL$31+2,$AL$31-5) -> 2 | AM33: 1 | AN33: 1 | AO33: 1 | AP33: 1 | AR33: 1 | AS33: 1 | AT33: 1 | AU33: 1 | AW33: 1 | AX33: 1 | AY33: 1 | AZ33: 1 | BB33: 28 | BC33: =WaterFittings!BE34 -> 1 | BD33: =BC33*AP$37 -> 1 | BE33: 1 | BF33: 1 | BG33: 1 | BH33: 0 | BI33: 0 | BJ33: 0 | BK33: 0 | BL33: 0
AL34: =IF($AL$31+3<8,$AL$31+3,$AL$31-4) -> 3 | AM34: 1 | AN34: 1 | AO34: 1 | AP34: 1 | AR34: 1 | AS34: 1 | AT34: 1 | AU34: 1 | AW34: 1 | AX34: 1 | AY34: 1 | AZ34: 1 | BB34: 29 | BC34: =WaterFittings!BE35 -> 1 | BD34: =BC34*AM$31 -> 1 | BE34: =BE6 -> 1 | BF34: 1 | BG34: =BG6 -> 1 | BH34: 0 | BI34: 0 | BJ34: 0 | BK34: 0 | BL34: 0
E35: Air-conditioning System Operating Schedules (% of daily operating hours) | T35: User Defined Schedule | AL35: =IF($AL$31+4<8,$AL$31+4,$AL$31-3) -> 4 | AM35: 1 | AN35: 1 | AO35: 1 | AP35: 1 | AR35: 1 | AS35: 1 | AT35: 1 | AU35: 1 | AW35: 1 | AX35: 1 | AY35: 1 | AZ35: 1 | BB35: 30 | BC35: =WaterFittings!BE36 -> 1 | BD35: =BC35*AM$32 -> 1 | BE35: 1 | BF35: 1 | BG35: =BG7 -> 1 | BH35: 0 | BI35: 0 | BJ35: 0 | BK35: 0 | BL35: 0
AL36: =IF($AL$31+5<8,$AL$31+5,$AL$31-2) -> 5 | AM36: 1 | AN36: 1 | AO36: 1 | AP36: 1 | AR36: 1 | AS36: 1 | AT36: 1 | AU36: 1 | AW36: 1 | AX36: 1 | AY36: 1 | AZ36: 1 | BB36: 31 | BC36: =WaterFittings!BE37 -> 1 | BD36: =BC36*AM$33 -> 1 | BE36: 1 | BF36: 1 | BG36: =BG8 -> 1 | BH36: 0 | BI36: 0 | BJ36: 0 | BK36: 0 | BL36: 0
C37: Schedule | E37: Week 1 | F37: Week 2 | G37: Week 3 | H37: Week 4 | J37: Week 1 | K37: Week 2 | L37: Week 3 | M37: Week 4 | O37: Week 1 | P37: Week 2 | Q37: Week 3 | R37: Week 4 | T37: Week 1 | U37: Week 2 | V37: Week 3 | W37: Week 4 | AL37: =IF($AL$31+6<8,$AL$31+6,$AL$31-1) -> 6 | AM37: 1 | AN37: 1 | AO37: 1 | AP37: 1 | AR37: 1 | AS37: 1 | AT37: 1 | AU37: 1 | AW37: 1 | AX37: 1 | AY37: 1 | AZ37: 1 | BB37: 32 | BC37: =WaterFittings!BE38 -> 1 | BD37: =BC37*AM$34 -> 1 | BE37: 1 | BF37: 1 | BG37: =BG9 -> 1 | BH37: 0 | BI37: 0 | BJ37: 0 | BK37: 0 | BL37: 0
C38: Monday | E38: =WaterFittings!L10 -> 1 | F38: =WaterFittings!M10 -> 1 | G38: =WaterFittings!N10 -> 1 | H38: =WaterFittings!O10 -> 1 | J38: =WaterFittings!AB10 -> 1 | K38: =WaterFittings!AC10 -> 1 | L38: =WaterFittings!AD10 -> 1 | M38: =WaterFittings!AE10 -> 1 | O38: =WaterFittings!L38 -> 1 | P38: =WaterFittings!M38 -> 1 | Q38: =WaterFittings!N38 -> 1 | R38: =WaterFittings!O38 -> 1 | T38: 1 | U38: 1 | V38: 1 | W38: 1 | AB38: AC System 1 | AF38: AC System 2 | AJ38: AC System 3 | AO38: Total | BB38: 33 | BC38: =WaterFittings!BE39 -> 1 | BD38: =BC38*AM$35 -> 1 | BE38: 1 | BF38: 1 | BG38: =BG10 -> 1 | BH38: 0 | BI38: 0 | BJ38: 0 | BK38: 0 | BL38: 0
C39: Tuesday | E39: =WaterFittings!L11 -> 1 | F39: =WaterFittings!M11 -> 1 | G39: =WaterFittings!N11 -> 1 | H39: =WaterFittings!O11 -> 1 | J39: =WaterFittings!AB11 -> 1 | K39: =WaterFittings!AC11 -> 1 | L39: =WaterFittings!AD11 -> 1 | M39: =WaterFittings!AE11 -> 1 | O39: =WaterFittings!L39 -> 1 | P39: =WaterFittings!M39 -> 1 | Q39: =WaterFittings!N39 -> 1 | R39: =WaterFittings!O39 -> 1 | T39: 1 | U39: 1 | V39: 1 | W39: 1 | BB39: 34 | BC39: =WaterFittings!BE40 -> 1 | BD39: =BC39*AM$36 -> 1 | BE39: 1 | BF39: 1 | BG39: =BG11 -> 1 | BH39: 0 | BI39: 0 | BJ39: 0 | BK39: 0 | BL39: 0
C40: Wednesday | E40: =WaterFittings!L12 -> 1 | F40: =WaterFittings!M12 -> 1 | G40: =WaterFittings!N12 -> 1 | H40: =WaterFittings!O12 -> 1 | J40: =WaterFittings!AB12 -> 1 | K40: =WaterFittings!AC12 -> 1 | L40: =WaterFittings!AD12 -> 1 | M40: =WaterFittings!AE12 -> 1 | O40: =WaterFittings!L40 -> 1 | P40: =WaterFittings!M40 -> 1 | Q40: =WaterFittings!N40 -> 1 | R40: =WaterFittings!O40 -> 1 | T40: 1 | U40: 1 | V40: 1 | W40: 1 | AW40: =INDEX(weekac41,$AL31) -> 1 | AX40: =INDEX(weekac42,$AL31) -> 1 | AY40: =INDEX(weekac43,$AL31) -> 1 | AZ40: =INDEX(weekac44,$AL31) -> 1 | BB40: 35 | BC40: =WaterFittings!BE41 -> 1 | BD40: =BC40*AM$37 -> 1 | BE40: 1 | BF40: 1 | BG40: =BG12 -> 1 | BH40: 0 | BI40: 0 | BJ40: 0 | BK40: 0 | BL40: 0
C41: Thursday | E41: =WaterFittings!L13 -> 1 | F41: =WaterFittings!M13 -> 1 | G41: =WaterFittings!N13 -> 1 | H41: =WaterFittings!O13 -> 1 | J41: =WaterFittings!AB13 -> 1 | K41: =WaterFittings!AC13 -> 1 | L41: =WaterFittings!AD13 -> 1 | M41: =WaterFittings!AE13 -> 1 | O41: =WaterFittings!L41 -> 1 | P41: =WaterFittings!M41 -> 1 | Q41: =WaterFittings!N41 -> 1 | R41: =WaterFittings!O41 -> 1 | T41: 1 | U41: 1 | V41: 1 | W41: 1 | AW41: 1 | AX41: 1 | AY41: 1 | AZ41: 1 | BB41: 36 | BC41: =WaterFittings!BE42 -> 1 | BD41: =BC41*AN$31 -> 1 | BE41: 1 | BF41: 1 | BG41: =BG13 -> 1 | BH41: 0 | BI41: 0 | BJ41: 0 | BK41: 0 | BL41: 0
C42: Friday | E42: =WaterFittings!L14 -> 1 | F42: =WaterFittings!M14 -> 1 | G42: =WaterFittings!N14 -> 1 | H42: =WaterFittings!O14 -> 1 | J42: =WaterFittings!AB14 -> 1 | K42: =WaterFittings!AC14 -> 1 | L42: =WaterFittings!AD14 -> 1 | M42: =WaterFittings!AE14 -> 1 | O42: =WaterFittings!L42 -> 1 | P42: =WaterFittings!M42 -> 1 | Q42: =WaterFittings!N42 -> 1 | R42: =WaterFittings!O42 -> 1 | T42: 1 | U42: 1 | V42: 1 | W42: 1 | AA42: RWH System 1 | AB42: =G$33 -> 0 | AF42: =L$33 -> 0 | AJ42: =Q$33 -> 0 | AN42: =SUM(AB42,AF42,AJ42,AJ51) -> 0 | AW42: 1 | AX42: 1 | AY42: 1 | AZ42: 1 | BB42: 37 | BC42: =WaterFittings!BE43 -> 1 | BD42: =BC42*AN$32 -> 1 | BE42: 1 | BF42: 1 | BG42: =BG14 -> 1 | BH42: 0 | BI42: 0 | BJ42: 0 | BK42: 0 | BL42: 0
C43: Saturday | E43: =WaterFittings!L15 -> 1 | F43: =WaterFittings!M15 -> 1 | G43: =WaterFittings!N15 -> 1 | H43: =WaterFittings!O15 -> 1 | J43: =WaterFittings!AB15 -> 1 | K43: =WaterFittings!AC15 -> 1 | L43: =WaterFittings!AD15 -> 1 | M43: =WaterFittings!AE15 -> 1 | O43: =WaterFittings!L43 -> 1 | P43: =WaterFittings!M43 -> 1 | Q43: =WaterFittings!N43 -> 1 | R43: =WaterFittings!O43 -> 1 | T43: 1 | U43: 1 | V43: 1 | W43: 1 | AB43: =$AB$42*AM31 -> 0 | AC43: 0 | AD43: 0 | AE43: 0 | AF43: =$AF$42*AR31 -> 0 | AG43: 0 | AH43: 0 | AI43: 0 | AJ43: =$AJ$42*AW31 -> 0 | AK43: 0 | AL43: 0 | AM43: 0 | AO43: =ROUNDDOWN(SUM(AB43,AF43,AJ43,AJ52),0) -> 0 | AP43: =ROUNDDOWN(SUM(AC43,AG43,AK43,AK52),0) -> 0 | AQ43: 0 | AR43: 0 | AW43: 1 | AX43: 1 | AY43: 1 | AZ43: 1 | BB43: 38 | BC43: =WaterFittings!BE44 -> 1 | BD43: =BC43*AN$33 -> 1 | BE43: 1 | BF43: 1 | BG43: =BG15 -> 1 | BH43: 0 | BI43: 0 | BJ43: 0 | BK43: 0 | BL43: 0
C44: Sunday | E44: =WaterFittings!L16 -> 1 | F44: =WaterFittings!M16 -> 1 | G44: =WaterFittings!N16 -> 1 | H44: =WaterFittings!O16 -> 1 | J44: =WaterFittings!AB16 -> 1 | K44: =WaterFittings!AC16 -> 1 | L44: =WaterFittings!AD16 -> 1 | M44: =WaterFittings!AE16 -> 1 | O44: =WaterFittings!L44 -> 1 | P44: =WaterFittings!M44 -> 1 | Q44: =WaterFittings!N44 -> 1 | R44: =WaterFittings!O44 -> 1 | T44: 1 | U44: 1 | V44: 1 | W44: 1 | AB44: 0 | AC44: 0 | AD44: 0 | AE44: 0 | AF44: 0 | AG44: 0 | AH44: 0 | AI44: 0 | AJ44: 0 | AK44: 0 | AL44: 0 | AM44: 0 | AO44: =ROUNDDOWN(SUM(AB44,AF44,AJ44,AJ53),0) -> 0 | AP44: =ROUNDDOWN(SUM(AC44,AG44,AK44,AK53),0) -> 0 | AQ44: =ROUNDDOWN(SUM(AD44,AH44,AL44,AL53),0) -> 0 | AR44: =ROUNDDOWN(SUM(AE44,AI44,AM44,AM53),0) -> 0 | AW44: 1 | AX44: 1 | AY44: 1 | AZ44: 1 | BB44: 39 | BC44: =WaterFittings!BE45 -> 1 | BD44: =BC44*AN$34 -> 1 | BE44: 1 | BF44: 1 | BG44: =BG16 -> 1 | BH44: 0 | BI44: 0 | BJ44: 0 | BK44: 0 | BL44: 0
E45: Note: Daily and weekly schedules follows the weekly schedule input for water fittings application | AB45: 0 | AC45: 0 | AD45: 0 | AE45: 0 | AF45: 0 | AG45: 0 | AH45: 0 | AI45: 0 | AJ45: 0 | AK45: 0 | AL45: 0 | AM45: 0 | AO45: 0 | AP45: 0 | AQ45: 0 | AR45: 0 | AW45: 1 | AX45: 1 | AY45: 1 | AZ45: 1 | BB45: 40 | BC45: =WaterFittings!BE46 -> 1 | BD45: =BC45*AN$35 -> 1 | BE45: 1 | BF45: 1 | BG45: =BG17 -> 1 | BH45: 0 | BI45: 0 | BJ45: 0 | BK45: 0 | BL45: 0
AB46: 0 | AC46: 0 | AD46: 0 | AE46: 0 | AF46: 0 | AG46: 0 | AH46: 0 | AI46: 0 | AJ46: 0 | AK46: 0 | AL46: 0 | AM46: 0 | AO46: 0 | AP46: 0 | AQ46: 0 | AR46: 0 | AW46: 1 | AX46: 1 | AY46: 1 | AZ46: 1 | BB46: 41 | BC46: =WaterFittings!BE47 -> 1 | BD46: =BC46*AN$36 -> 1 | BE46: 1 | BF46: 1 | BG46: =BG18 -> 1 | BH46: 0 | BI46: 0 | BJ46: 0 | BK46: 0 | BL46: 0
B47: Air Condition Condensate Water Recovery | AB47: 0 | AC47: 0 | AD47: 0 | AE47: 0 | AF47: 0 | AG47: 0 | AH47: 0 | AI47: 0 | AJ47: 0 | AK47: 0 | AL47: 0 | AM47: 0 | AO47: 0 | AP47: 0 | AQ47: 0 | AR47: 0 | BB47: 42 | BC47: =WaterFittings!BE48 -> 1 | BD47: =BC47*AN$37 -> 1 | BE47: 1 | BF47: 1 | BG47: =BG19 -> 1 | BH47: 0 | BI47: 0 | BJ47: 0 | BK47: 0 | BL47: 0
B48: Condensate = | C48: Air flow (m3/s) | D48: x | E48: Density | F48: (kg/m3) | G48: x | H48: Dw | I48: (kgwater/kgdry air) | AB48: 0 | AC48: 0 | AD48: 0 | AE48: 0 | AF48: 0 | AG48: 0 | AH48: 0 | AI48: 0 | AJ48: 0 | AK48: 0 | AL48: 0 | AM48: 0 | AO48: 0 | AP48: 0 | AQ48: 0 | AR48: 0 | BB48: 43 | BC48: =WaterFittings!BE49 -> 1 | BD48: =BC48*AO$31 -> 1 | BE48: 1 | BF48: 1 | BG48: =BG20 -> 1 | BH48: 0 | BI48: 0 | BJ48: 0 | BK48: 0 | BL48: 0
B49: where; | AB49: 0 | AC49: 0 | AD49: 0 | AE49: 0 | AF49: 0 | AG49: 0 | AH49: 0 | AI49: 0 | AJ49: 0 | AK49: 0 | AL49: 0 | AM49: 0 | AO49: 0 | AP49: 0 | AQ49: 0 | AR49: 0 | BB49: 44 | BC49: =WaterFittings!BE50 -> 1 | BD49: =BC49*AO$32 -> 1 | BE49: 1 | BF49: 1 | BG49: =BG21 -> 1 | BH49: 0 | BI49: 0 | BJ49: 0 | BK49: 0 | BL49: 0
B50: w = | C50: absolute humidity | BB50: 45 | BC50: =WaterFittings!BE51 -> 1 | BD50: =BC50*AO$33 -> 1 | BE50: =BE22 -> 1 | BF50: 1 | BG50: =BG22 -> 1 | BH50: 0 | BI50: 0 | BJ50: 0 | BK50: 0 | BL50: 0
B51: Consider an air conditioning system that requires 2500 L/s outdoor air | AJ51: =V33 -> 0 | BB51: 46 | BC51: =WaterFittings!BE52 -> 1 | BD51: =BC51*AO$34 -> 1 | BE51: 1 | BF51: 1 | BG51: =BG23 -> 1 | BH51: 0 | BI51: 0 | BJ51: 0 | BK51: 0 | BL51: 0
B52: Outdoor air condition of 33.3oC DB/27.2oC WB | AJ52: =$AJ$42*AW40 -> 0 | AK52: =$AJ$42*AX40 -> 0 | AL52: =$AJ$42*AY40 -> 0 | AM52: =$AJ$42*AZ40 -> 0 | BB52: 47 | BC52: =WaterFittings!BE53 -> 1 | BD52: =BC52*AO$35 -> 1 | BE52: 1 | BF52: 1 | BG52: =BG24 -> 1 | BH52: 0 | BI52: 0 | BJ52: 0 | BK52: 0 | BL52: 0
C53: w = | D53: 20.5 | E53: grams moisture/kgdry air | AJ53: 0 | AK53: 0 | AL53: 0 | AM53: 0 | BB53: 48 | BC53: =WaterFittings!BE54 -> 1 | BD53: =BC53*AO$36 -> 1 | BE53: 1 | BF53: 1 | BG53: =BG25 -> 1 | BH53: 0 | BI53: 0 | BJ53: 0 | BK53: 0 | BL53: 0
C54: n = | D54: 0.897 | E54: m3/kg | AJ54: 0 | AK54: 0 | AL54: 0 | AM54: 0 | BB54: 49 | BC54: =WaterFittings!BE55 -> 1 | BD54: =BC54*AO$37 -> 1 | BE54: 1 | BF54: 1 | BG54: =BG26 -> 1 | BH54: 0 | BI54: 0 | BJ54: 0 | BK54: 0 | BL54: 0
B55: Off coil condition of 13.0oC DB/12.5oC WB | AJ55: 0 | AK55: 0 | AL55: 0 | AM55: 0 | BB55: 50 | BC55: =WaterFittings!BE56 -> 1 | BD55: =BC55*AP$31 -> 1 | BE55: 1 | BF55: 1 | BG55: =BG27 -> 1 | BH55: 0 | BI55: 0 | BJ55: 0 | BK55: 0 | BL55: 0
C56: w = | D56: 8.5 | E56: grams moisture/kgdry air | AJ56: 0 | AK56: 0 | AL56: 0 | AM56: 0 | BB56: 51 | BC56: =WaterFittings!BE57 -> 1 | BD56: =BC56*AP$32 -> 1 | BE56: 1 | BF56: 1 | BG56: =BG28 -> 1 | BH56: 0 | BI56: 0 | BJ56: 0 | BK56: 0 | BL56: 0
AJ57: 0 | AK57: 0 | AL57: 0 | AM57: 0 | BB57: 52 | BC57: =WaterFittings!BE58 -> 1 | BD57: =BC57*AP$33 -> 1 | BE57: 1 | BF57: 1 | BG57: =BG29 -> 1 | BH57: 0 | BI57: 0 | BJ57: 0 | BK57: 0 | BL57: 0
AJ58: 0 | AK58: 0 | AL58: 0 | AM58: 0 | BB58: 53 | BC58: =WaterFittings!BE59 -> 1 | BD58: =BC58*AP$34 -> 1 | BE58: 1 | BF58: 1 | BG58: =BG30 -> 1 | BH58: 0 | BI58: 0 | BJ58: 0 | BK58: 0 | BL58: 0
BB59: 54 | BC59: =WaterFittings!BE60 -> 1 | BD59: =BC59*AP$35 -> 1 | BE59: 1 | BF59: 1 | BG59: =BG31 -> 1 | BH59: 0 | BI59: 0 | BJ59: 0 | BK59: 0 | BL59: 0
BB60: 55 | BC60: =WaterFittings!BE61 -> 1 | BD60: =BC60*AP$36 -> 1 | BE60: 1 | BF60: 1 | BG60: =BG32 -> 1 | BH60: 0 | BI60: 0 | BJ60: 0 | BK60: 0 | BL60: 0
BB61: 56 | BC61: =WaterFittings!BE62 -> 1 | BD61: =BC61*AP$37 -> 1 | BE61: 1 | BF61: 1 | BG61: =BG33 -> 1 | BH61: 0 | BI61: 0 | BJ61: 0 | BK61: 0 | BL61: 0
BB62: 57 | BC62: =WaterFittings!BE63 -> 1 | BD62: =BC62*AM$31 -> 1 | BE62: 1 | BF62: 1 | BG62: =BG34 -> 1 | BH62: 0 | BI62: 0 | BJ62: 0 | BK62: 0 | BL62: 0
BB63: 58 | BC63: =WaterFittings!BE64 -> 1 | BD63: =BC63*AM$32 -> 1 | BE63: 1 | BF63: 1 | BG63: =BG35 -> 1 | BH63: 0 | BI63: 0 | BJ63: 0 | BK63: 0 | BL63: 0
BB64: 59 | BC64: =WaterFittings!BE65 -> 1 | BD64: =BC64*AM$33 -> 1 | BE64: 1 | BF64: 1 | BG64: =BG36 -> 1 | BH64: 0 | BI64: 0 | BJ64: 0 | BK64: 0 | BL64: 0
BB65: 60 | BC65: =WaterFittings!BE66 -> 1 | BD65: =BC65*AM$34 -> 1 | BE65: 1 | BF65: 1 | BG65: =BG37 -> 1 | BH65: 0 | BI65: 0 | BJ65: 0 | BK65: 0 | BL65: 0
BB66: 61 | BC66: =WaterFittings!BE67 -> 1 | BD66: =BC66*AM$35 -> 1 | BE66: =BE38 -> 1 | BF66: 1 | BG66: =BG38 -> 1 | BH66: 0 | BI66: 0 | BJ66: 0 | BK66: 0 | BL66: 0
BB67: 62 | BC67: =WaterFittings!BE68 -> 1 | BD67: =BC67*AM$36 -> 1 | BE67: 1 | BF67: 1 | BG67: =BG39 -> 1 | BH67: 0 | BI67: 0 | BJ67: 0 | BK67: 0 | BL67: 0
BB68: 63 | BC68: =WaterFittings!BE69 -> 1 | BD68: =BC68*AM$37 -> 1 | BE68: 1 | BF68: 1 | BG68: =BG40 -> 1 | BH68: 0 | BI68: 0 | BJ68: 0 | BK68: 0 | BL68: 0
BB69: 64 | BC69: =WaterFittings!BE70 -> 1 | BD69: =BC69*AN$31 -> 1 | BE69: 1 | BF69: 1 | BG69: =BG41 -> 1 | BH69: 0 | BI69: 0 | BJ69: 0 | BK69: 0 | BL69: 0
BB70: 65 | BC70: =WaterFittings!BE71 -> 1 | BD70: =BC70*AN$32 -> 1 | BE70: 1 | BF70: 1 | BG70: =BG42 -> 1 | BH70: 0 | BI70: 0 | BJ70: 0 | BK70: 0 | BL70: 0
BB71: 66 | BC71: =WaterFittings!BE72 -> 1 | BD71: =BC71*AN$33 -> 1 | BE71: 1 | BF71: 1 | BG71: =BG43 -> 1 | BH71: 0 | BI71: =BI$5*BE71 -> 0 | BJ71: =BJ$5*BF71 -> 0 | BK71: =BK$5*BG71 -> 0 | BL71: 0
BB72: =1+BB71 -> 67 | BC72: =WaterFittings!BE73 -> 1 | BD72: =BC72*AN$34 -> 1 | BE72: 1 | BF72: 1 | BG72: =BG44 -> 1 | BH72: =BH$5*BD72 -> 0 | BI72: 0 | BJ72: 0 | BK72: 0 | BL72: =SUM(BH72:BK72) -> 0
BB73: 68 | BC73: =WaterFittings!BE74 -> 1 | BD73: =BC73*AN$35 -> 1 | BE73: 1 | BF73: 1 | BG73: =BG45 -> 1 | BH73: 0 | BI73: 0 | BJ73: 0 | BK73: 0 | BL73: 0
BB74: 69 | BC74: =WaterFittings!BE75 -> 1 | BD74: =BC74*AN$36 -> 1 | BE74: 1 | BF74: 1 | BG74: =BG46 -> 1 | BH74: 0 | BI74: 0 | BJ74: 0 | BK74: 0 | BL74: 0
BB75: 70 | BC75: =WaterFittings!BE76 -> 1 | BD75: =BC75*AN$37 -> 1 | BE75: 1 | BF75: 1 | BG75: =BG47 -> 1 | BH75: 0 | BI75: 0 | BJ75: 0 | BK75: 0 | BL75: 0
BB76: 71 | BC76: =WaterFittings!BE77 -> 1 | BD76: =BC76*AO$31 -> 1 | BE76: 1 | BF76: 1 | BG76: =BG48 -> 1 | BH76: 0 | BI76: 0 | BJ76: 0 | BK76: 0 | BL76: 0
BB77: 72 | BC77: =WaterFittings!BE78 -> 1 | BD77: =BC77*AO$32 -> 1 | BE77: 1 | BF77: 1 | BG77: =BG49 -> 1 | BH77: 0 | BI77: 0 | BJ77: 0 | BK77: 0 | BL77: 0
BB78: 73 | BC78: =WaterFittings!BE79 -> 1 | BD78: =BC78*AO$33 -> 1 | BE78: 1 | BF78: 1 | BG78: =BG50 -> 1 | BH78: 0 | BI78: 0 | BJ78: 0 | BK78: 0 | BL78: 0
BB79: 74 | BC79: =WaterFittings!BE80 -> 1 | BD79: =BC79*AO$34 -> 1 | BE79: 1 | BF79: 1 | BG79: =BG51 -> 1 | BH79: 0 | BI79: 0 | BJ79: 0 | BK79: 0 | BL79: 0
BB80: 75 | BC80: =WaterFittings!BE81 -> 1 | BD80: =BC80*AO$35 -> 1 | BE80: 1 | BF80: 1 | BG80: =BG52 -> 1 | BH80: 0 | BI80: 0 | BJ80: 0 | BK80: 0 | BL80: 0
BB81: 76 | BC81: =WaterFittings!BE82 -> 1 | BD81: =BC81*AO$36 -> 1 | BE81: 1 | BF81: 1 | BG81: =BG53 -> 1 | BH81: 0 | BI81: 0 | BJ81: 0 | BK81: 0 | BL81: 0
BB82: 77 | BC82: =WaterFittings!BE83 -> 1 | BD82: =BC82*AO$37 -> 1 | BE82: =BE54 -> 1 | BF82: 1 | BG82: =BG54 -> 1 | BH82: 0 | BI82: 0 | BJ82: 0 | BK82: 0 | BL82: 0
BB83: 78 | BC83: =WaterFittings!BE84 -> 1 | BD83: =BC83*AP$31 -> 1 | BE83: 1 | BF83: 1 | BG83: =BG55 -> 1 | BH83: 0 | BI83: 0 | BJ83: 0 | BK83: 0 | BL83: 0
BB84: 79 | BC84: =WaterFittings!BE85 -> 1 | BD84: =BC84*AP$32 -> 1 | BE84: 1 | BF84: 1 | BG84: =BG56 -> 1 | BH84: 0 | BI84: 0 | BJ84: 0 | BK84: 0 | BL84: 0
BB85: 80 | BC85: =WaterFittings!BE86 -> 1 | BD85: =BC85*AP$33 -> 1 | BE85: 1 | BF85: 1 | BG85: =BG57 -> 1 | BH85: 0 | BI85: 0 | BJ85: 0 | BK85: 0 | BL85: 0
BB86: 81 | BC86: =WaterFittings!BE87 -> 1 | BD86: =BC86*AP$34 -> 1 | BE86: 1 | BF86: 1 | BG86: =BG58 -> 1 | BH86: 0 | BI86: 0 | BJ86: 0 | BK86: 0 | BL86: 0
BB87: 82 | BC87: =WaterFittings!BE88 -> 1 | BD87: =BC87*AP$35 -> 1 | BE87: 1 | BF87: 1 | BG87: =BG59 -> 1 | BH87: 0 | BI87: 0 | BJ87: 0 | BK87: 0 | BL87: 0
BB88: 83 | BC88: =WaterFittings!BE89 -> 1 | BD88: =BC88*AP$36 -> 1 | BE88: 1 | BF88: 1 | BG88: =BG60 -> 1 | BH88: 0 | BI88: 0 | BJ88: 0 | BK88: 0 | BL88: 0
BB89: 84 | BC89: =WaterFittings!BE90 -> 1 | BD89: =BC89*AP$37 -> 1 | BE89: 1 | BF89: 1 | BG89: =BG61 -> 1 | BH89: 0 | BI89: 0 | BJ89: 0 | BK89: 0 | BL89: 0
BB90: 85 | BC90: =WaterFittings!BE91 -> 1 | BD90: =BC90*AM$31 -> 1 | BE90: 1 | BF90: 1 | BG90: =BG62 -> 1 | BH90: 0 | BI90: 0 | BJ90: 0 | BK90: 0 | BL90: 0
BB91: 86 | BC91: =WaterFittings!BE92 -> 1 | BD91: =BC91*AM$32 -> 1 | BE91: 1 | BF91: 1 | BG91: =BG63 -> 1 | BH91: 0 | BI91: 0 | BJ91: 0 | BK91: 0 | BL91: 0
BB92: 87 | BC92: =WaterFittings!BE93 -> 1 | BD92: =BC92*AM$33 -> 1 | BE92: 1 | BF92: 1 | BG92: =BG64 -> 1 | BH92: 0 | BI92: 0 | BJ92: 0 | BK92: 0 | BL92: 0
BB93: 88 | BC93: =WaterFittings!BE94 -> 1 | BD93: =BC93*AM$34 -> 1 | BE93: 1 | BF93: 1 | BG93: =BG65 -> 1 | BH93: 0 | BI93: 0 | BJ93: 0 | BK93: 0 | BL93: 0
BB94: 89 | BC94: =WaterFittings!BE95 -> 1 | BD94: =BC94*AM$35 -> 1 | BE94: 1 | BF94: 1 | BG94: =BG66 -> 1 | BH94: 0 | BI94: 0 | BJ94: 0 | BK94: 0 | BL94: 0
BB95: 90 | BC95: =WaterFittings!BE96 -> 1 | BD95: =BC95*AM$36 -> 1 | BE95: 1 | BF95: 1 | BG95: =BG67 -> 1 | BH95: 0 | BI95: 0 | BJ95: 0 | BK95: 0 | BL95: 0
BB96: 91 | BC96: =WaterFittings!BE97 -> 1 | BD96: =BC96*AM$37 -> 1 | BE96: 1 | BF96: 1 | BG96: =BG68 -> 1 | BH96: 0 | BI96: 0 | BJ96: 0 | BK96: 0 | BL96: 0
BB97: 92 | BC97: =WaterFittings!BE98 -> 1 | BD97: =BC97*AN$31 -> 1 | BE97: 1 | BF97: 1 | BG97: =BG69 -> 1 | BH97: 0 | BI97: 0 | BJ97: 0 | BK97: 0 | BL97: 0
BB98: 93 | BC98: =WaterFittings!BE99 -> 1 | BD98: =BC98*AN$32 -> 1 | BE98: =BE70 -> 1 | BF98: 1 | BG98: =BG70 -> 1 | BH98: 0 | BI98: 0 | BJ98: 0 | BK98: 0 | BL98: 0
BB99: 94 | BC99: =WaterFittings!BE100 -> 1 | BD99: =BC99*AN$33 -> 1 | BE99: 1 | BF99: 1 | BG99: =BG71 -> 1 | BH99: 0 | BI99: 0 | BJ99: 0 | BK99: 0 | BL99: 0
BB100: 95 | BC100: =WaterFittings!BE101 -> 1 | BD100: =BC100*AN$34 -> 1 | BE100: 1 | BF100: 1 | BG100: =BG72 -> 1 | BH100: 0 | BI100: 0 | BJ100: 0 | BK100: 0 | BL100: 0
BB101: 96 | BC101: =WaterFittings!BE102 -> 1 | BD101: =BC101*AN$35 -> 1 | BE101: 1 | BF101: 1 | BG101: =BG73 -> 1 | BH101: 0 | BI101: 0 | BJ101: 0 | BK101: 0 | BL101: 0
BB102: 97 | BC102: =WaterFittings!BE103 -> 1 | BD102: =BC102*AN$36 -> 1 | BE102: 1 | BF102: 1 | BG102: =BG74 -> 1 | BH102: 0 | BI102: 0 | BJ102: 0 | BK102: 0 | BL102: 0
BB103: 98 | BC103: =WaterFittings!BE104 -> 1 | BD103: =BC103*AN$37 -> 1 | BE103: 1 | BF103: 1 | BG103: =BG75 -> 1 | BH103: 0 | BI103: 0 | BJ103: 0 | BK103: 0 | BL103: 0
BB104: 99 | BC104: =WaterFittings!BE105 -> 1 | BD104: =BC104*AO$31 -> 1 | BE104: 1 | BF104: 1 | BG104: =BG76 -> 1 | BH104: 0 | BI104: 0 | BJ104: 0 | BK104: 0 | BL104: 0
BB105: 100 | BC105: =WaterFittings!BE106 -> 1 | BD105: =BC105*AO$32 -> 1 | BE105: 1 | BF105: 1 | BG105: =BG77 -> 1 | BH105: 0 | BI105: 0 | BJ105: 0 | BK105: 0 | BL105: 0
BB106: 101 | BC106: =WaterFittings!BE107 -> 1 | BD106: =BC106*AO$33 -> 1 | BE106: 1 | BF106: 1 | BG106: =BG78 -> 1 | BH106: 0 | BI106: 0 | BJ106: 0 | BK106: 0 | BL106: 0
BB107: 102 | BC107: =WaterFittings!BE108 -> 1 | BD107: =BC107*AO$34 -> 1 | BE107: 1 | BF107: 1 | BG107: =BG79 -> 1 | BH107: 0 | BI107: 0 | BJ107: 0 | BK107: 0 | BL107: 0
BB108: 103 | BC108: =WaterFittings!BE109 -> 1 | BD108: =BC108*AO$35 -> 1 | BE108: 1 | BF108: 1 | BG108: =BG80 -> 1 | BH108: 0 | BI108: 0 | BJ108: 0 | BK108: 0 | BL108: 0
BB109: 104 | BC109: =WaterFittings!BE110 -> 1 | BD109: =BC109*AO$36 -> 1 | BE109: 1 | BF109: 1 | BG109: =BG81 -> 1 | BH109: 0 | BI109: 0 | BJ109: 0 | BK109: 0 | BL109: 0
BB110: 105 | BC110: =WaterFittings!BE111 -> 1 | BD110: =BC110*AO$37 -> 1 | BE110: 1 | BF110: 1 | BG110: =BG82 -> 1 | BH110: 0 | BI110: 0 | BJ110: 0 | BK110: 0 | BL110: 0
BB111: 106 | BC111: =WaterFittings!BE112 -> 1 | BD111: =BC111*AP$31 -> 1 | BE111: 1 | BF111: 1 | BG111: =BG83 -> 1 | BH111: 0 | BI111: 0 | BJ111: 0 | BK111: 0 | BL111: 0
BB112: 107 | BC112: =WaterFittings!BE113 -> 1 | BD112: =BC112*AP$32 -> 1 | BE112: 1 | BF112: 1 | BG112: =BG84 -> 1 | BH112: 0 | BI112: 0 | BJ112: 0 | BK112: 0 | BL112: 0
BB113: 108 | BC113: =WaterFittings!BE114 -> 1 | BD113: =BC113*AP$33 -> 1 | BE113: 1 | BF113: 1 | BG113: =BG85 -> 1 | BH113: 0 | BI113: 0 | BJ113: 0 | BK113: 0 | BL113: 0
BB114: 109 | BC114: =WaterFittings!BE115 -> 1 | BD114: =BC114*AP$34 -> 1 | BE114: =BE86 -> 1 | BF114: 1 | BG114: =BG86 -> 1 | BH114: 0 | BI114: 0 | BJ114: 0 | BK114: 0 | BL114: 0
BB115: 110 | BC115: =WaterFittings!BE116 -> 1 | BD115: =BC115*AP$35 -> 1 | BE115: 1 | BF115: 1 | BG115: =BG87 -> 1 | BH115: 0 | BI115: 0 | BJ115: 0 | BK115: 0 | BL115: 0
BB116: 111 | BC116: =WaterFittings!BE117 -> 1 | BD116: =BC116*AP$36 -> 1 | BE116: 1 | BF116: 1 | BG116: =BG88 -> 1 | BH116: 0 | BI116: 0 | BJ116: 0 | BK116: 0 | BL116: 0
BB117: 112 | BC117: =WaterFittings!BE118 -> 1 | BD117: =BC117*AP$37 -> 1 | BE117: 1 | BF117: 1 | BG117: =BG89 -> 1 | BH117: 0 | BI117: 0 | BJ117: 0 | BK117: 0 | BL117: 0
BB118: 113 | BC118: =WaterFittings!BE119 -> 1 | BD118: =BC118*AM$31 -> 1 | BE118: 1 | BF118: 1 | BG118: =BG90 -> 1 | BH118: 0 | BI118: 0 | BJ118: 0 | BK118: 0 | BL118: 0
BB119: 114 | BC119: =WaterFittings!BE120 -> 1 | BD119: =BC119*AM$32 -> 1 | BE119: 1 | BF119: 1 | BG119: =BG91 -> 1 | BH119: 0 | BI119: 0 | BJ119: 0 | BK119: 0 | BL119: 0
BB120: 115 | BC120: =WaterFittings!BE121 -> 1 | BD120: =BC120*AM$33 -> 1 | BE120: 1 | BF120: 1 | BG120: =BG92 -> 1 | BH120: 0 | BI120: 0 | BJ120: 0 | BK120: 0 | BL120: 0
BB121: 116 | BC121: =WaterFittings!BE122 -> 1 | BD121: =BC121*AM$34 -> 1 | BE121: 1 | BF121: 1 | BG121: =BG93 -> 1 | BH121: 0 | BI121: 0 | BJ121: 0 | BK121: 0 | BL121: 0
BB122: 117 | BC122: =WaterFittings!BE123 -> 1 | BD122: =BC122*AM$35 -> 1 | BE122: 1 | BF122: 1 | BG122: =BG94 -> 1 | BH122: 0 | BI122: 0 | BJ122: 0 | BK122: 0 | BL122: 0
BB123: 118 | BC123: =WaterFittings!BE124 -> 1 | BD123: =BC123*AM$36 -> 1 | BE123: 1 | BF123: 1 | BG123: =BG95 -> 1 | BH123: 0 | BI123: 0 | BJ123: 0 | BK123: 0 | BL123: 0
BB124: 119 | BC124: =WaterFittings!BE125 -> 1 | BD124: =BC124*AM$37 -> 1 | BE124: 1 | BF124: 1 | BG124: =BG96 -> 1 | BH124: 0 | BI124: 0 | BJ124: 0 | BK124: 0 | BL124: 0
BB125: 120 | BC125: =WaterFittings!BE126 -> 1 | BD125: =BC125*AN$31 -> 1 | BE125: 1 | BF125: 1 | BG125: =BG97 -> 1 | BH125: 0 | BI125: 0 | BJ125: 0 | BK125: 0 | BL125: 0
BB126: 121 | BC126: =WaterFittings!BE127 -> 1 | BD126: =BC126*AN$32 -> 1 | BE126: 1 | BF126: 1 | BG126: =BG98 -> 1 | BH126: 0 | BI126: 0 | BJ126: 0 | BK126: 0 | BL126: 0
BB127: 122 | BC127: =WaterFittings!BE128 -> 1 | BD127: =BC127*AN$33 -> 1 | BE127: 1 | BF127: 1 | BG127: =BG99 -> 1 | BH127: 0 | BI127: 0 | BJ127: 0 | BK127: 0 | BL127: 0
BB128: 123 | BC128: =WaterFittings!BE129 -> 1 | BD128: =BC128*AN$34 -> 1 | BE128: 1 | BF128: 1 | BG128: =BG100 -> 1 | BH128: 0 | BI128: 0 | BJ128: 0 | BK128: 0 | BL128: 0
BB129: 124 | BC129: =WaterFittings!BE130 -> 1 | BD129: =BC129*AN$35 -> 1 | BE129: 1 | BF129: 1 | BG129: =BG101 -> 1 | BH129: 0 | BI129: 0 | BJ129: 0 | BK129: 0 | BL129: 0
BB130: 125 | BC130: =WaterFittings!BE131 -> 1 | BD130: =BC130*AN$36 -> 1 | BE130: =BE102 -> 1 | BF130: 1 | BG130: =BG102 -> 1 | BH130: 0 | BI130: 0 | BJ130: 0 | BK130: 0 | BL130: 0
BB131: 126 | BC131: =WaterFittings!BE132 -> 1 | BD131: =BC131*AN$37 -> 1 | BE131: 1 | BF131: 1 | BG131: =BG103 -> 1 | BH131: 0 | BI131: 0 | BJ131: 0 | BK131: 0 | BL131: 0
BB132: 127 | BC132: =WaterFittings!BE133 -> 1 | BD132: =BC132*AO$31 -> 1 | BE132: 1 | BF132: 1 | BG132: =BG104 -> 1 | BH132: 0 | BI132: 0 | BJ132: 0 | BK132: 0 | BL132: 0
BB133: 128 | BC133: =WaterFittings!BE134 -> 1 | BD133: =BC133*AO$32 -> 1 | BE133: 1 | BF133: 1 | BG133: =BG105 -> 1 | BH133: 0 | BI133: 0 | BJ133: 0 | BK133: 0 | BL133: 0
BB134: 129 | BC134: =WaterFittings!BE135 -> 1 | BD134: =BC134*AO$33 -> 1 | BE134: 1 | BF134: 1 | BG134: =BG106 -> 1 | BH134: 0 | BI134: 0 | BJ134: 0 | BK134: 0 | BL134: 0
BB135: 130 | BC135: =WaterFittings!BE136 -> 1 | BD135: =BC135*AO$34 -> 1 | BE135: 1 | BF135: 1 | BG135: =BG107 -> 1 | BH135: 0 | BI135: =BI$5*BE135 -> 0 | BJ135: =BJ$5*BF135 -> 0 | BK135: =BK$5*BG135 -> 0 | BL135: 0
BB136: =1+BB135 -> 131 | BC136: =WaterFittings!BE137 -> 1 | BD136: =BC136*AO$35 -> 1 | BE136: 1 | BF136: 1 | BG136: =BG108 -> 1 | BH136: =BH$5*BD136 -> 0 | BI136: 0 | BJ136: 0 | BK136: 0 | BL136: =SUM(BH136:BK136) -> 0
BB137: 132 | BC137: =WaterFittings!BE138 -> 1 | BD137: =BC137*AO$36 -> 1 | BE137: 1 | BF137: 1 | BG137: =BG109 -> 1 | BH137: 0 | BI137: 0 | BJ137: 0 | BK137: 0 | BL137: 0
BB138: 133 | BC138: =WaterFittings!BE139 -> 1 | BD138: =BC138*AO$37 -> 1 | BE138: 1 | BF138: 1 | BG138: =BG110 -> 1 | BH138: 0 | BI138: 0 | BJ138: 0 | BK138: 0 | BL138: 0
BB139: 134 | BC139: =WaterFittings!BE140 -> 1 | BD139: =BC139*AP$31 -> 1 | BE139: 1 | BF139: 1 | BG139: =BG111 -> 1 | BH139: 0 | BI139: 0 | BJ139: 0 | BK139: 0 | BL139: 0
BB140: 135 | BC140: =WaterFittings!BE141 -> 1 | BD140: =BC140*AP$32 -> 1 | BE140: 1 | BF140: 1 | BG140: =BG112 -> 1 | BH140: 0 | BI140: 0 | BJ140: 0 | BK140: 0 | BL140: 0
BB141: 136 | BC141: =WaterFittings!BE142 -> 1 | BD141: =BC141*AP$33 -> 1 | BE141: 1 | BF141: 1 | BG141: =BG113 -> 1 | BH141: 0 | BI141: 0 | BJ141: 0 | BK141: 0 | BL141: 0
BB142: 137 | BC142: =WaterFittings!BE143 -> 1 | BD142: =BC142*AP$34 -> 1 | BE142: 1 | BF142: 1 | BG142: =BG114 -> 1 | BH142: 0 | BI142: 0 | BJ142: 0 | BK142: 0 | BL142: 0
BB143: 138 | BC143: =WaterFittings!BE144 -> 1 | BD143: =BC143*AP$35 -> 1 | BE143: 1 | BF143: 1 | BG143: =BG115 -> 1 | BH143: 0 | BI143: 0 | BJ143: 0 | BK143: 0 | BL143: 0
BB144: 139 | BC144: =WaterFittings!BE145 -> 1 | BD144: =BC144*AP$36 -> 1 | BE144: 1 | BF144: 1 | BG144: =BG116 -> 1 | BH144: 0 | BI144: 0 | BJ144: 0 | BK144: 0 | BL144: 0
BB145: 140 | BC145: =WaterFittings!BE146 -> 1 | BD145: =BC145*AP$37 -> 1 | BE145: 1 | BF145: 1 | BG145: =BG117 -> 1 | BH145: 0 | BI145: 0 | BJ145: 0 | BK145: 0 | BL145: 0
BB146: 141 | BC146: =WaterFittings!BE147 -> 1 | BD146: =BC146*AM$31 -> 1 | BE146: =BE118 -> 1 | BF146: 1 | BG146: =BG118 -> 1 | BH146: 0 | BI146: 0 | BJ146: 0 | BK146: 0 | BL146: 0
BB147: 142 | BC147: =WaterFittings!BE148 -> 1 | BD147: =BC147*AM$32 -> 1 | BE147: 1 | BF147: 1 | BG147: =BG119 -> 1 | BH147: 0 | BI147: 0 | BJ147: 0 | BK147: 0 | BL147: 0
BB148: 143 | BC148: =WaterFittings!BE149 -> 1 | BD148: =BC148*AM$33 -> 1 | BE148: 1 | BF148: 1 | BG148: =BG120 -> 1 | BH148: 0 | BI148: 0 | BJ148: 0 | BK148: 0 | BL148: 0
BB149: 144 | BC149: =WaterFittings!BE150 -> 1 | BD149: =BC149*AM$34 -> 1 | BE149: 1 | BF149: 1 | BG149: =BG121 -> 1 | BH149: 0 | BI149: 0 | BJ149: 0 | BK149: 0 | BL149: 0
BB150: 145 | BC150: =WaterFittings!BE151 -> 1 | BD150: =BC150*AM$35 -> 1 | BE150: 1 | BF150: 1 | BG150: =BG122 -> 1 | BH150: 0 | BI150: 0 | BJ150: 0 | BK150: 0 | BL150: 0
BB151: 146 | BC151: =WaterFittings!BE152 -> 1 | BD151: =BC151*AM$36 -> 1 | BE151: 1 | BF151: 1 | BG151: =BG123 -> 1 | BH151: 0 | BI151: 0 | BJ151: 0 | BK151: 0 | BL151: 0
BB152: 147 | BC152: =WaterFittings!BE153 -> 1 | BD152: =BC152*AM$37 -> 1 | BE152: 1 | BF152: 1 | BG152: =BG124 -> 1 | BH152: 0 | BI152: 0 | BJ152: 0 | BK152: 0 | BL152: 0
BB153: 148 | BC153: =WaterFittings!BE154 -> 1 | BD153: =BC153*AN$31 -> 1 | BE153: 1 | BF153: 1 | BG153: =BG125 -> 1 | BH153: 0 | BI153: 0 | BJ153: 0 | BK153: 0 | BL153: 0
BB154: 149 | BC154: =WaterFittings!BE155 -> 1 | BD154: =BC154*AN$32 -> 1 | BE154: 1 | BF154: 1 | BG154: =BG126 -> 1 | BH154: 0 | BI154: 0 | BJ154: 0 | BK154: 0 | BL154: 0
BB155: 150 | BC155: =WaterFittings!BE156 -> 1 | BD155: =BC155*AN$33 -> 1 | BE155: 1 | BF155: 1 | BG155: =BG127 -> 1 | BH155: 0 | BI155: 0 | BJ155: 0 | BK155: 0 | BL155: 0
BB156: 151 | BC156: =WaterFittings!BE157 -> 1 | BD156: =BC156*AN$34 -> 1 | BE156: 1 | BF156: 1 | BG156: =BG128 -> 1 | BH156: 0 | BI156: 0 | BJ156: 0 | BK156: 0 | BL156: 0
BB157: 152 | BC157: =WaterFittings!BE158 -> 1 | BD157: =BC157*AN$35 -> 1 | BE157: 1 | BF157: 1 | BG157: =BG129 -> 1 | BH157: 0 | BI157: 0 | BJ157: 0 | BK157: 0 | BL157: 0
BB158: 153 | BC158: =WaterFittings!BE159 -> 1 | BD158: =BC158*AN$36 -> 1 | BE158: 1 | BF158: 1 | BG158: =BG130 -> 1 | BH158: 0 | BI158: 0 | BJ158: 0 | BK158: 0 | BL158: 0
BB159: 154 | BC159: =WaterFittings!BE160 -> 1 | BD159: =BC159*AN$37 -> 1 | BE159: 1 | BF159: 1 | BG159: =BG131 -> 1 | BH159: 0 | BI159: 0 | BJ159: 0 | BK159: 0 | BL159: 0
BB160: 155 | BC160: =WaterFittings!BE161 -> 1 | BD160: =BC160*AO$31 -> 1 | BE160: 1 | BF160: 1 | BG160: =BG132 -> 1 | BH160: 0 | BI160: 0 | BJ160: 0 | BK160: 0 | BL160: 0
BB161: 156 | BC161: =WaterFittings!BE162 -> 1 | BD161: =BC161*AO$32 -> 1 | BE161: 1 | BF161: 1 | BG161: =BG133 -> 1 | BH161: 0 | BI161: 0 | BJ161: 0 | BK161: 0 | BL161: 0
BB162: 157 | BC162: =WaterFittings!BE163 -> 1 | BD162: =BC162*AO$33 -> 1 | BE162: =BE134 -> 1 | BF162: 1 | BG162: =BG134 -> 1 | BH162: 0 | BI162: 0 | BJ162: 0 | BK162: 0 | BL162: 0
BB163: 158 | BC163: =WaterFittings!BE164 -> 1 | BD163: =BC163*AO$34 -> 1 | BE163: 1 | BF163: 1 | BG163: =BG135 -> 1 | BH163: 0 | BI163: 0 | BJ163: 0 | BK163: 0 | BL163: 0
BB164: 159 | BC164: =WaterFittings!BE165 -> 1 | BD164: =BC164*AO$35 -> 1 | BE164: 1 | BF164: 1 | BG164: =BG136 -> 1 | BH164: 0 | BI164: 0 | BJ164: 0 | BK164: 0 | BL164: 0
BB165: 160 | BC165: =WaterFittings!BE166 -> 1 | BD165: =BC165*AO$36 -> 1 | BE165: 1 | BF165: 1 | BG165: =BG137 -> 1 | BH165: 0 | BI165: 0 | BJ165: 0 | BK165: 0 | BL165: 0
BB166: 161 | BC166: =WaterFittings!BE167 -> 1 | BD166: =BC166*AO$37 -> 1 | BE166: 1 | BF166: 1 | BG166: =BG138 -> 1 | BH166: 0 | BI166: 0 | BJ166: 0 | BK166: 0 | BL166: 0
BB167: 162 | BC167: =WaterFittings!BE168 -> 1 | BD167: =BC167*AP$31 -> 1 | BE167: 1 | BF167: 1 | BG167: =BG139 -> 1 | BH167: 0 | BI167: 0 | BJ167: 0 | BK167: 0 | BL167: 0
BB168: 163 | BC168: =WaterFittings!BE169 -> 1 | BD168: =BC168*AP$32 -> 1 | BE168: 1 | BF168: 1 | BG168: =BG140 -> 1 | BH168: 0 | BI168: 0 | BJ168: 0 | BK168: 0 | BL168: 0
BB169: 164 | BC169: =WaterFittings!BE170 -> 1 | BD169: =BC169*AP$33 -> 1 | BE169: 1 | BF169: 1 | BG169: =BG141 -> 1 | BH169: 0 | BI169: 0 | BJ169: 0 | BK169: 0 | BL169: 0
BB170: 165 | BC170: =WaterFittings!BE171 -> 1 | BD170: =BC170*AP$34 -> 1 | BE170: 1 | BF170: 1 | BG170: =BG142 -> 1 | BH170: 0 | BI170: 0 | BJ170: 0 | BK170: 0 | BL170: 0
BB171: 166 | BC171: =WaterFittings!BE172 -> 1 | BD171: =BC171*AP$35 -> 1 | BE171: 1 | BF171: 1 | BG171: =BG143 -> 1 | BH171: 0 | BI171: 0 | BJ171: 0 | BK171: 0 | BL171: 0
BB172: 167 | BC172: =WaterFittings!BE173 -> 1 | BD172: =BC172*AP$36 -> 1 | BE172: 1 | BF172: 1 | BG172: =BG144 -> 1 | BH172: 0 | BI172: 0 | BJ172: 0 | BK172: 0 | BL172: 0
BB173: 168 | BC173: =WaterFittings!BE174 -> 1 | BD173: =BC173*AP$37 -> 1 | BE173: 1 | BF173: 1 | BG173: =BG145 -> 1 | BH173: 0 | BI173: 0 | BJ173: 0 | BK173: 0 | BL173: 0
BB174: 169 | BC174: =WaterFittings!BE175 -> 1 | BD174: =BC174*AM$31 -> 1 | BE174: 1 | BF174: 1 | BG174: =BG146 -> 1 | BH174: 0 | BI174: 0 | BJ174: 0 | BK174: 0 | BL174: 0
BB175: 170 | BC175: =WaterFittings!BE176 -> 1 | BD175: =BC175*AM$32 -> 1 | BE175: 1 | BF175: 1 | BG175: =BG147 -> 1 | BH175: 0 | BI175: 0 | BJ175: 0 | BK175: 0 | BL175: 0
BB176: 171 | BC176: =WaterFittings!BE177 -> 1 | BD176: =BC176*AM$33 -> 1 | BE176: 1 | BF176: 1 | BG176: =BG148 -> 1 | BH176: 0 | BI176: 0 | BJ176: 0 | BK176: 0 | BL176: 0
BB177: 172 | BC177: =WaterFittings!BE178 -> 1 | BD177: =BC177*AM$34 -> 1 | BE177: 1 | BF177: 1 | BG177: =BG149 -> 1 | BH177: 0 | BI177: 0 | BJ177: 0 | BK177: 0 | BL177: 0
BB178: 173 | BC178: =WaterFittings!BE179 -> 1 | BD178: =BC178*AM$35 -> 1 | BE178: =BE150 -> 1 | BF178: 1 | BG178: =BG150 -> 1 | BH178: 0 | BI178: 0 | BJ178: 0 | BK178: 0 | BL178: 0
BB179: 174 | BC179: =WaterFittings!BE180 -> 1 | BD179: =BC179*AM$36 -> 1 | BE179: 1 | BF179: 1 | BG179: =BG151 -> 1 | BH179: 0 | BI179: 0 | BJ179: 0 | BK179: 0 | BL179: 0
BB180: 175 | BC180: =WaterFittings!BE181 -> 1 | BD180: =BC180*AM$37 -> 1 | BE180: 1 | BF180: 1 | BG180: =BG152 -> 1 | BH180: 0 | BI180: 0 | BJ180: 0 | BK180: 0 | BL180: 0
BB181: 176 | BC181: =WaterFittings!BE182 -> 1 | BD181: =BC181*AN$31 -> 1 | BE181: 1 | BF181: 1 | BG181: =BG153 -> 1 | BH181: 0 | BI181: 0 | BJ181: 0 | BK181: 0 | BL181: 0
BB182: 177 | BC182: =WaterFittings!BE183 -> 1 | BD182: =BC182*AN$32 -> 1 | BE182: 1 | BF182: 1 | BG182: =BG154 -> 1 | BH182: 0 | BI182: 0 | BJ182: 0 | BK182: 0 | BL182: 0
BB183: 178 | BC183: =WaterFittings!BE184 -> 1 | BD183: =BC183*AN$33 -> 1 | BE183: 1 | BF183: 1 | BG183: =BG155 -> 1 | BH183: 0 | BI183: 0 | BJ183: 0 | BK183: 0 | BL183: 0
BB184: 179 | BC184: =WaterFittings!BE185 -> 1 | BD184: =BC184*AN$34 -> 1 | BE184: 1 | BF184: 1 | BG184: =BG156 -> 1 | BH184: 0 | BI184: 0 | BJ184: 0 | BK184: 0 | BL184: 0
BB185: 180 | BC185: =WaterFittings!BE186 -> 1 | BD185: =BC185*AN$35 -> 1 | BE185: 1 | BF185: 1 | BG185: =BG157 -> 1 | BH185: 0 | BI185: 0 | BJ185: 0 | BK185: 0 | BL185: 0
BB186: 181 | BC186: =WaterFittings!BE187 -> 1 | BD186: =BC186*AN$36 -> 1 | BE186: 1 | BF186: 1 | BG186: =BG158 -> 1 | BH186: 0 | BI186: 0 | BJ186: 0 | BK186: 0 | BL186: 0
BB187: 182 | BC187: =WaterFittings!BE188 -> 1 | BD187: =BC187*AN$37 -> 1 | BE187: 1 | BF187: 1 | BG187: =BG159 -> 1 | BH187: 0 | BI187: 0 | BJ187: 0 | BK187: 0 | BL187: 0
BB188: 183 | BC188: =WaterFittings!BE189 -> 1 | BD188: =BC188*AO$31 -> 1 | BE188: 1 | BF188: 1 | BG188: =BG160 -> 1 | BH188: 0 | BI188: 0 | BJ188: 0 | BK188: 0 | BL188: 0
BB189: 184 | BC189: =WaterFittings!BE190 -> 1 | BD189: =BC189*AO$32 -> 1 | BE189: 1 | BF189: 1 | BG189: =BG161 -> 1 | BH189: 0 | BI189: 0 | BJ189: 0 | BK189: 0 | BL189: 0
BB190: 185 | BC190: =WaterFittings!BE191 -> 1 | BD190: =BC190*AO$33 -> 1 | BE190: 1 | BF190: 1 | BG190: =BG162 -> 1 | BH190: 0 | BI190: 0 | BJ190: 0 | BK190: 0 | BL190: 0
BB191: 186 | BC191: =WaterFittings!BE192 -> 1 | BD191: =BC191*AO$34 -> 1 | BE191: 1 | BF191: 1 | BG191: =BG163 -> 1 | BH191: 0 | BI191: 0 | BJ191: 0 | BK191: 0 | BL191: 0
BB192: 187 | BC192: =WaterFittings!BE193 -> 1 | BD192: =BC192*AO$35 -> 1 | BE192: 1 | BF192: 1 | BG192: =BG164 -> 1 | BH192: 0 | BI192: 0 | BJ192: 0 | BK192: 0 | BL192: 0
BB193: 188 | BC193: =WaterFittings!BE194 -> 1 | BD193: =BC193*AO$36 -> 1 | BE193: 1 | BF193: 1 | BG193: =BG165 -> 1 | BH193: 0 | BI193: 0 | BJ193: 0 | BK193: 0 | BL193: 0
BB194: 189 | BC194: =WaterFittings!BE195 -> 1 | BD194: =BC194*AO$37 -> 1 | BE194: =BE166 -> 1 | BF194: 1 | BG194: =BG166 -> 1 | BH194: 0 | BI194: 0 | BJ194: 0 | BK194: 0 | BL194: 0
BB195: 190 | BC195: =WaterFittings!BE196 -> 1 | BD195: =BC195*AP$31 -> 1 | BE195: 1 | BF195: 1 | BG195: =BG167 -> 1 | BH195: 0 | BI195: 0 | BJ195: 0 | BK195: 0 | BL195: 0
BB196: 191 | BC196: =WaterFittings!BE197 -> 1 | BD196: =BC196*AP$32 -> 1 | BE196: 1 | BF196: 1 | BG196: =BG168 -> 1 | BH196: 0 | BI196: 0 | BJ196: 0 | BK196: 0 | BL196: 0
BB197: 192 | BC197: =WaterFittings!BE198 -> 1 | BD197: =BC197*AP$33 -> 1 | BE197: 1 | BF197: 1 | BG197: =BG169 -> 1 | BH197: 0 | BI197: 0 | BJ197: 0 | BK197: 0 | BL197: 0
BB198: 193 | BC198: =WaterFittings!BE199 -> 1 | BD198: =BC198*AP$34 -> 1 | BE198: 1 | BF198: 1 | BG198: =BG170 -> 1 | BH198: 0 | BI198: 0 | BJ198: 0 | BK198: 0 | BL198: 0
BB199: 194 | BC199: =WaterFittings!BE200 -> 1 | BD199: =BC199*AP$35 -> 1 | BE199: 1 | BF199: 1 | BG199: =BG171 -> 1 | BH199: 0 | BI199: =BI$5*BE199 -> 0 | BJ199: =BJ$5*BF199 -> 0 | BK199: =BK$5*BG199 -> 0 | BL199: 0
BB200: =1+BB199 -> 195 | BC200: =WaterFittings!BE201 -> 1 | BD200: =BC200*AP$36 -> 1 | BE200: 1 | BF200: 1 | BG200: =BG172 -> 1 | BH200: =BH$5*BD200 -> 0 | BI200: 0 | BJ200: 0 | BK200: 0 | BL200: =SUM(BH200:BK200) -> 0
... 170 more rows

Sheet Landscape
B1: =Main!C2 -> Project Name | M1: =Main!P1 -> Version 2018c
B2: Landscape Irrigation | R2: Date: | S2: 2020-06-01
C3: Enter rainfall intensity for landscape watering cut-off | I3: 5 | J3: mm rainfall | R3: Revision No.:
M4: Daily Watering Req'm (L) | X4: Baseline Case
B5: Location | C5: Landscape Type | D5: Water Req'm (L/day) | E5: Quantity | G5: Exposure | H5: Irrigation Efficiency (IE) | J5: Total Watering Req'm (L) | K5: Rain event dependent? | L5: System 1, 2 or 3? | M5: Non-rain event dependent | N5: Rain event dependent | V5: IE | X5: TPWA (L) | Z5: Watering not dependent on rain events | AA5: Watering dependent on rain events
R6: Non-rain event dependent | S6: Rain event dependent
M7: Day(s) of delayed watering
M8: 0 | N8: 0 | Z8: =M8 -> 0 | AA8: =N8 -> 0
B9: Left | C9: Shrubs | D9: =VLOOKUP(C9,AE$11:AF$14,2,FALSE) -> 6.3 | E9: 0 | F9: =VLOOKUP(C9,AE$11:AK$14,7,FALSE) -> m2 | G9: Outdoor | H9: Manual | I9: =VLOOKUP(H9,$AC$11:$AD$13,2,FALSE) -> 0.4 | J9: =ROUND(E9*D9/I9,0) -> 0 | K9: 0 | L9: 0 | M9: =IF(Y9,IF(K9,0,J9),J9) -> 0 | N9: =IF(Y9,IF(K9,J9,0),0) -> 0 | P9: Baseline Consumption | V9: Manual | W9: =VLOOKUP(V9,$AC$11:$AD$13,2,FALSE) -> 0.4 | X9: =ROUND(E9*D9/W9,0) -> 0 | Y9: =IF(G9="Outdoor",1,0) -> 1 | Z9: =IF(Y9,0,X9) -> 0 | AA9: =IF(Y9,X9,0) -> 0 | AC9: Outdoor
C10: Turfing | D10: 3.1 | E10: 0 | F10: m2 | G10: Outdoor | H10: Manual | I10: 0.4 | J10: =ROUND(E10*D10/I10,0) -> 0 | K10: 0 | L10: 0 | M10: =IF(Y10,IF(K10,0,J10),J10) -> 0 | N10: =IF(Y10,IF(K10,J10,0),0) -> 0 | P10: System | Q10: 0 | R10: =SUMIF($L9:$L23,"=0",Z9:Z23) -> 0 | S10: =SUMIF($L9:$L23,"=0",AA9:AA23) -> 0 | T10: L/day | V10: Manual | W10: 0.4 | X10: 0 | Y10: =IF(G10="Outdoor",1,0) -> 1 | Z10: =IF(Y10,0,X10) -> 0 | AA10: =IF(Y10,X10,0) -> 0 | AC10: Indoor | AD10: IE factor | AF10: 0 | AG10: 0 | AH10: 1 | AI10: 2 | AJ10: 3
C11: Shrubs | D11: 6.3 | E11: 0 | F11: m2 | G11: Outdoor | H11: Manual | I11: 0.4 | J11: 0 | K11: 0 | L11: 0 | M11: 0 | N11: 0 | Q11: 1 | R11: =SUMIF($L9:$L23,"=1",Z9:Z23) -> 0 | S11: =SUMIF($L9:$L23,"=1",AA9:AA23) -> 0 | T11: L/day | V11: Manual | W11: 0.4 | X11: 0 | Y11: 1 | Z11: 0 | AA11: 0 | AC11: Drip | AD11: 0.9 | AE11: Shrubs | AF11: 6.3 | AG11: =SUMIFS($E$9:$E$23,$L$9:$L$23,AG$10,$C$9:$C$23,$AE11) -> 0 | AH11: 0 | AI11: 0 | AJ11: 0 | AK11: m2
C12: Turfing | D12: 3.1 | E12: 0 | F12: m2 | G12: Outdoor | H12: Manual | I12: 0.4 | J12: 0 | K12: 0 | L12: 0 | M12: 0 | N12: 0 | Q12: 2 | R12: =SUMIF($L9:$L23,"=2",Z9:Z23) -> 0 | S12: =SUMIF($L9:$L23,"=2",AA9:AA23) -> 0 | T12: L/day | V12: Manual | W12: 0.4 | X12: 0 | Y12: 1 | Z12: 0 | AA12: 0 | AC12: Sprinkler | AD12: 0.625 | AE12: Turfing | AF12: 3.1 | AG12: 0 | AH12: 0 | AI12: 0 | AJ12: 0 | AK12: m2
C13: Shrubs | D13: 6.3 | E13: 0 | F13: m2 | G13: Outdoor | H13: Manual | I13: 0.4 | J13: 0 | K13: 0 | L13: 0 | M13: 0 | N13: 0 | Q13: 3 | R13: =SUMIF($L9:$L23,"=3",Z9:Z23) -> 0 | S13: =SUMIF($L9:$L23,"=3",AA9:AA23) -> 0 | T13: L/day | V13: Manual | W13: 0.4 | X13: 0 | Y13: 1 | Z13: 0 | AA13: 0 | AC13: Manual | AD13: 0.4 | AE13: Trees | AF13: 24 | AG13: 0 | AH13: 0 | AI13: 0 | AJ13: 0 | AK13: nos.
C14: Shrubs | D14: 6.3 | E14: 0 | F14: m2 | G14: Outdoor | H14: Manual | I14: 0.4 | J14: 0 | K14: 0 | L14: 0 | M14: 0 | N14: 0 | P14: Total | R14: =SUM(System1!FI29,System1!FK29,System2!FI29,System3!FI29) -> 0 | S14: =SUM(System1!FJ29,System1!FL29,System2!FJ29,System3!FJ29) -> 0 | T14: m3/year | V14: Manual | W14: 0.4 | X14: 0 | Y14: 1 | Z14: 0 | AA14: 0 | AE14: Palm | AF14: 7.1 | AG14: 0 | AH14: 0 | AI14: 0 | AJ14: 0 | AK14: nos.
C15: Shrubs | D15: 6.3 | E15: 0 | F15: m2 | G15: Outdoor | H15: Manual | I15: 0.4 | J15: 0 | K15: 0 | L15: 0 | M15: 0 | N15: 0 | V15: Manual | W15: 0.4 | X15: 0 | Y15: 1 | Z15: 0 | AA15: 0
C16: Shrubs | D16: 6.3 | E16: 0 | F16: m2 | G16: Outdoor | H16: Manual | I16: 0.4 | J16: 0 | K16: 0 | L16: 0 | M16: 0 | N16: 0 | P16: Design Case Consumption | V16: Manual | W16: 0.4 | X16: 0 | Y16: 1 | Z16: 0 | AA16: 0
C17: Shrubs | D17: 6.3 | E17: 0 | F17: m2 | G17: Outdoor | H17: Manual | I17: 0.4 | J17: 0 | K17: 0 | L17: 0 | M17: 0 | N17: 0 | P17: System | Q17: 0 | R17: =SUMIF($L9:$L23,"=0",M9:M23) -> 0 | S17: =SUMIF($L9:$L23,"=0",N9:N23) -> 0 | T17: L/day | V17: Manual | W17: 0.4 | X17: 0 | Y17: 1 | Z17: 0 | AA17: 0
C18: Shrubs | D18: 6.3 | E18: 0 | F18: m2 | G18: Outdoor | H18: Manual | I18: 0.4 | J18: 0 | K18: 0 | L18: 0 | M18: 0 | N18: 0 | Q18: 1 | R18: =SUMIF($L9:$L23,"=1",M9:M23) -> 0 | S18: =SUMIF($L9:$L23,"=1",N9:N23) -> 0 | T18: L/day | V18: Manual | W18: 0.4 | X18: 0 | Y18: 1 | Z18: 0 | AA18: 0
C19: Shrubs | D19: 6.3 | E19: 0 | F19: m2 | G19: Outdoor | H19: Manual | I19: 0.4 | J19: 0 | K19: 0 | L19: 0 | M19: 0 | N19: 0 | Q19: 2 | R19: =SUMIF($L9:$L23,"=2",M9:M23) -> 0 | S19: =SUMIF($L9:$L23,"=2",N9:N23) -> 0 | T19: L/day | V19: Manual | W19: 0.4 | X19: 0 | Y19: 1 | Z19: 0 | AA19: 0
C20: Shrubs | D20: 6.3 | E20: 0 | F20: m2 | G20: Outdoor | H20: Manual | I20: 0.4 | J20: 0 | K20: 0 | L20: 0 | M20: 0 | N20: 0 | Q20: 3 | R20: =SUMIF($L9:$L23,"=3",M9:M23) -> 0 | S20: =SUMIF($L9:$L23,"=3",N9:N23) -> 0 | T20: L/day | V20: Manual | W20: 0.4 | X20: 0 | Y20: 1 | Z20: 0 | AA20: 0
C21: Shrubs | D21: 6.3 | E21: 0 | F21: m2 | G21: Outdoor | H21: Manual | I21: 0.4 | J21: 0 | K21: 0 | L21: 0 | M21: 0 | N21: 0 | P21: Total | R21: =SUM(System1!AX29,System1!AZ29,System2!AX29,System3!AX29) -> 0 | S21: =SUM(System1!AY29,System1!BA29,System2!AY29,System3!AY29) -> 0 | T21: m3/year | V21: Manual | W21: 0.4 | X21: 0 | Y21: 1 | Z21: 0 | AA21: 0
C22: Shrubs | D22: 6.3 | E22: 0 | F22: m2 | G22: Outdoor | H22: Manual | I22: 0.4 | J22: 0 | K22: 0 | L22: 0 | M22: 0 | N22: 0 | V22: Manual | W22: 0.4 | X22: 0 | Y22: 1 | Z22: 0 | AA22: 0
C23: Shrubs | D23: 6.3 | E23: 0 | F23: m2 | G23: Outdoor | H23: Manual | I23: 0.4 | J23: 0 | K23: 0 | L23: 0 | M23: 0 | N23: 0 | V23: Manual | W23: 0.4 | X23: 0 | Y23: 1 | Z23: 0 | AA23: 0
H25: Baseline watering requirement = | I25: =SUM(R14:S14) -> 0 | J25: (m3/year)
H26: Design case watering requirement = | I26: =SUM(R21:S21) -> 0 | J26: (m3/year)
H27: Grey water recycling quantity = | I27: =Main!N24 ->  | J27: (m3/year)
H28: Rainwater harvesting quantity = | I28: =Main!Q24 ->  | J28: (m3/year)
H29: Condensate water recovery quantity = | I29: =Main!O24 ->  | J29: (m3/year)
H30: Reduction in watering requirement = | I30: =CONCATENATE(I25," - ",I26," + ",I27," + ",I28," + ",I29) -> 
H31: ≥ | I31: =IF(V35>I25,I25,I25-I26+I27+I28+I29) ->  | J31: =IF(V35>I25,""," m3") -> 
H32: Percentage reduction of watering requirement = | I32: =CONCATENATE(I31," / ",I25) ->  | AA32: =I25-I26 -> 0
H33: = | I33: =IF(I25,IF(V35>I25,100,ROUND(I31/I25*100,2))) -> FALSE | J33: %
V35: =I25-I26+I27+I28+I29 -> 

Sheet WaterFeature
B1: =Main!C2 -> Project Name | I1: =Main!P1 -> Version 2018c
B2: Pools and Water Features | H2: Date: | I2: 2020-06-01
H3: Revision No.:
B5: Normalised rain event days | E5: =COUNTIF(System1!D32:D396,">="&E8) -> 86
B6: Non-rain event days | E6: =365-E5 -> 279
D8: Rainfall intensity for make-up cut-off (mm) | E8: 6
D9: Evaporation rate (mm/day) | E9: 6
B11: System | C11: Pool area (m2) | D11: Consumption per day (L) | F11: Is it rain event dependent? | G11: Simulation System 1, 2 or 3? or none | H11: Not rain event dependent | I11: Rain event dependent
B12: Water Feature 1 | C12: 0 | D12: =ROUND(C12*E$9,0) -> 0 | F12: 0 | G12: 0 | H12: =IF(F12,0,D12) -> 0 | I12: =IF(F12,D12,0) -> 0 | P12: Rain event dependent | Q12: Non-rain event dependent
B13: Water Feature 2 | C13: 0 | D13: 0 | F13: 0 | G13: 0 | H13: =IF(F13,0,D13) -> 0 | I13: =IF(F13,D13,0) -> 0 | O13: None | P13: =SUMIFS(D12:D17,G12:G17,"=0",F12:F17,"=1") -> 0 | Q13: =SUMIFS(D12:D17,G12:G17,"=0",F12:F17,"=0") -> 0
B14: Water Feature 3 | C14: 0 | D14: 0 | F14: 0 | G14: 0 | H14: 0 | I14: 0 | O14: System 1 | P14: =SUMIFS(D12:D17,G12:G17,"=1",F12:F17,"=1") -> 0 | Q14: =SUMIFS(D12:D17,G12:G17,"=1",F12:F17,"=0") -> 0
B15: Water Feature 4 | C15: 0 | D15: 0 | F15: 0 | G15: 0 | H15: 0 | I15: 0 | O15: System 2 | P15: =SUMIFS(D12:D17,G12:G17,"=2",F12:F17,"=1") -> 0 | Q15: =SUMIFS(D12:D17,G12:G17,"=2",F12:F17,"=0") -> 0
B16: Water Feature 5 | C16: 0 | D16: 0 | F16: 0 | G16: 0 | H16: 0 | I16: 0 | O16: System 3 | P16: =SUMIFS(D12:D17,G12:G17,"=3",F12:F17,"=1") -> 0 | Q16: =SUMIFS(D12:D17,G12:G17,"=3",F12:F17,"=0") -> 0
B17: Water Feature 6 | C17: 0 | D17: 0 | F17: 0 | G17: 0 | H17: 0 | I17: 0
C18: 0 | H18: =ROUNDUP(SUM(H12:H17)*365/1000,0) -> 0 | I18: =ROUNDUP(SUM(I12:I17)*E6/1000,0) -> 0
B19: Pool 1 | C19: 0 | D19: 0 | F19: 0 | G19: 0 | H19: 0 | I19: 0
B20: Pool 2 | C20: 0 | D20: 0 | F20: 0 | G20: 0 | H20: 0 | I20: 0 | O20: None | P20: =SUMIFS(D19:D24,G19:G24,"=0",F19:F24,"=1") -> 0 | Q20: =SUMIFS(D19:D24,G19:G24,"=0",F19:F24,"=0") -> 0
B21: Pool 3 | C21: 0 | D21: 0 | F21: 0 | G21: 0 | H21: 0 | I21: 0 | O21: System 1 | P21: =SUMIFS(D19:D24,G19:G24,"=1",F19:F24,"=1") -> 0 | Q21: =SUMIFS(D19:D24,G19:G24,"=1",F19:F24,"=0") -> 0
B22: Pool 4 | C22: 0 | D22: 0 | F22: 0 | G22: 0 | H22: 0 | I22: 0 | O22: System 2 | P22: =SUMIFS(D19:D24,G19:G24,"=2",F19:F24,"=1") -> 0 | Q22: =SUMIFS(D19:D24,G19:G24,"=2",F19:F24,"=0") -> 0
B23: Pool 5 | C23: 0 | D23: 0 | F23: 0 | G23: 0 | H23: 0 | I23: 0 | O23: System 3 | P23: =SUMIFS(D19:D24,G19:G24,"=3",F19:F24,"=1") -> 0 | Q23: =SUMIFS(D19:D24,G19:G24,"=3",F19:F24,"=0") -> 0
B24: Pool 6 | C24: 0 | D24: 0 | F24: 0 | G24: 0 | H24: 0 | I24: 0
C25: Pools annual make-up requirement (m3) | H25: =ROUNDUP(SUM(H19:H24)*365/1000,0) -> 0 | I25: =ROUNDUP(SUM(I19:I24)*E6/1000,0) -> 0 | P25: =SUM(P13:P23) -> 0 | Q25: =SUM(Q13:Q23) -> 0
P26: =P25*E6 -> 0

Sheet System1
B1: =Main!C2 -> Project Name | R1: Date: | S1: 2020-06-01 | U1: =Main!P1 -> Version 2018c | X1: W | Y1: X | Z1: Y | AA1: Z | AE1: AE | AF1: AF | AG1: AG | AH1: AH | AI1: AI | AJ1: AJ | AK1: AK | AL1: AL | AM1: AM | AN1: AN | AO1: AO | AP1: AP | AQ1: AQ | AR1: AR | AS1: AS | AT1: AT | AU1: AU | AV1: AV | AW1: AW | AX1: AX | AY1: AY | AZ1: AZ | BA1: BA | BB1: BB | BC1: BC | BD1: BD | BE1: BE | BF1: BF | BG1: BG | BH1: BH | BJ1: BI | BK1: BJ | BL1: BK | BM1: BL | BP1: BM | BQ1: BN | BR1: BO | BS1: BP | BT1: BQ | BU1: BR | BV1: BS | BW1: BT | BY1: BU | BZ1: BV | CA1: BW | CB1: BX | CD1: BY | CE1: BZ | CF1: CA | CG1: CB | CH1: CC | CI1: CD | CJ1: CE | CL1: CF | CO1: CG | CP1: CH | CQ1: CI | CR1: CJ | CS1: CK | CT1: CL | CU1: CM | CV1: CN | CW1: CO | CX1: CP | CY1: CQ | DA1: CR | DD1: CS | DE1: CT | DF1: CU | DG1: CV | DH1: CW | DI1: CX | DJ1: CY | DK1: CZ | DM1: DA | DP1: DB | DQ1: DC | DR1: DD | DS1: DE | DT1: DF | DU1: DG | DV1: DH | DW1: DI | DX1: DJ | DY1: DK | EA1: DL | ED1: DM | EE1: DN | EF1: DO | EG1: DP | EH1: DQ | EI1: DR | EJ1: DS | EK1: DT | EL1: DU | EM1: DV | EN1: DW | EP1: DX | ES1: DY | ET1: DZ | EU1: EA | EV1: EB | EW1: EC | EX1: ED | EY1: EE | EZ1: EF | FB1: EG | FE1: EH | FF1: EI | FG1: EJ | FH1: EK | FI1: EL | FJ1: EM | FK1: EN | FL1: EO | FM1: EP | FN1: EQ | FO1: ER | FP1: ES | FQ1: ET | FR1: EU | FT1: EV | FW1: EW | FX1: EX | FY1: EY | FZ1: EZ | GA1: FA | GB1: FB | GD1: FC | GG1: FD | GH1: FE | GI1: FF | GJ1: FG | GK1: FH | GL1: FI | GN1: FJ | GO1: FK
B2: System 1 | D2: Rainfall Station | G2: System applications | I2: L/day | J2: Rainwater Harvesting | K2: Greywater recycling | L2: Cond. Water recovery | M2: % served by this system | R2: Revision No.
B3: =HLOOKUP($D$3,Raindata,2,FALSE) -> Perlis | C3: =HLOOKUP($D$3,Raindata,5,FALSE) -> 2017 | D3: Kangar | AE3: Targeted greywater recycling | AF3: Targeted Cond water recovery | AG3: =E9 -> 0 | CE3: Greywater recycling distribution | CT3: 2 | DT3: Condensate Water | ET3: 2
B4: Coordinates | D4: =HLOOKUP($D$3,Raindata,3,FALSE) -> 6° 27' N | E4: =HLOOKUP($D$3,Raindata,4,FALSE) -> 100° 11' E | G4: =WaterFittings!F7 -> Office | I4: =WaterFittings!BZ97 ->  | J4: 0 | K4: 0 | L4: 0 | M4: 100 | AG4: Tank | AH4: m3/yr | AI4: % Savings | BA4: AY27 | CT4: =1+CT3 -> 3 | ET4: =ET3+1 -> 3
G5: =WaterFittings!S7 -> Operations | I5: =WaterFittings!BZ119 ->  | J5: 0 | K5: 0 | L5: 0 | M5: 100 | N5: Note: For each application, the total % served by all 3 systems shall not exceed 100% | AE5: =K4*MIN($J$20,$J$21) ->  | AF5: =L4*MIN($P$20,$P$22) ->  | AH5: =SUM(J28:O28) ->  | BA5: Landscape!M27 | CT5: =1+CT4 -> 4 | ET5: =ET4+1 -> 4
B6: Design Data | G6: =WaterFittings!F35 -> Not used | I6: =WaterFittings!BZ141 -> 0 | J6: 0 | K6: 0 | L6: 0 | M6: 100 | AG6: =AG8-2*U17 -> -40 | AI6: =AH6/$E$21 ->  | BA6: IF(OR(D31>AT$27,IF(BA$27>=3,COUNTIF(D393:D395,">"&AT$27),IF(BA$27=2,COUNTIF(D394:D395,">"&AT$27),IF(BA$27=1,COUNTIF(D395,">"&AT$27),0)))),0,BA$30) | CT6: 5 | ET6: 5 | FK6: Landscape!R27
B7: Roof Catchment area | E7: =U26 -> 0 | F7: m2 | G7: AC System A | I7: =AirCond!G25 ->  | J7: 0 | K7: 0 | L7: 0 | M7: 100 | AG7: =AG8-U17 -> -20 | BA7: IF(OR(D32>AT$27,IF(BA$27>=3,COUNTIF(BA31,">0")+COUNTIF(D394:D395,">"&AT$27)+COUNTIF(D31,">"&AT$27),IF(BA$27=2,COUNTIF(BA31,">0")+COUNTIF(D395,">"&AT$27)+COUNTIF(D31,">"&AT$27),IF(BA$27=1,COUNTIF(BA31, | CT7: 6 | ET7: 6 | FK7: EN$30
B8: Run-off coefficient | E8: =W26 -> 1 | G8: AC System B | I8: =AirCond!L25 ->  | J8: 0 | K8: 0 | L8: 0 | M8: 100 | AG8: =E9 -> 0 | BA8: IF(OR(D33>AT$27,IF(BA$27>=3,COUNTIF(BA31:BA32,">0")+COUNTIF(D395,">"&AT$27)+COUNTIF(D31:D32,">"&AT$27),IF(BA$27=2,COUNTIF(BA31:BA32,">0")+COUNTIF(D31:D32,">"&AT$27),IF(BA$27=1,COUNTIF(BA32,">0")+COU | CT8: 7 | ET8: 7 | FK8: IF(IF(EN$27>=1,COUNTIF(EN31,">0")),0,EN$30)
B9: Tank size | E9: 0 | F9: m3 | G9: AC System C | I9: =AirCond!Q25 ->  | J9: 0 | K9: 0 | L9: 0 | M9: 100 | AG9: =AG8+U17 -> 20 | BA9: IF(OR(D34>AT$27,IF(BA$27>=3,COUNTIF(BA31:BA33,">0")+COUNTIF(D31:D33,">"&AT$27),IF(BA$27=2,COUNTIF(BA32:BA33,">0")+COUNTIF(D32:D33,">"&AT$27),IF(BA$27=1,COUNTIF(BA33,">0")+COUNTIF(D33,">"&AT$27),0)))),0,BA$30) | CT9: 8 | ET9: 8 | FK9: IF(IF(EN$27>=2,COUNTIF(EN31:EN32,">0"),IF(EN$27=1,COUNTIF(EN32,">0"))),0,EN$30)
B10: No. of rain events | E10: =COUNTIF(D32:D396,">="&(AT28+0.01)) -> 90 | F10: days | G10: AC System D | I10: =AirCond!V25 ->  | J10: 0 | K10: 0 | L10: 0 | M10: 100 | AG10: =AG8+2*U17 -> 40 | AZ10: AX27 | BH10: EU31*$BH$28 | CT10: 9 | ET10: 9 | FK10: IF(IF(EN$27>=3,COUNTIF(EN31:EN33,">0"),IF(EN$27=2,COUNTIF(EN32:EN33,">0"),IF(EN$27=1,COUNTIF(EN33,">0")))),0,EN$30)
B11: First Flush Diversion | E11: 1 | F11: mm | G11: =WaterFittings!C177 -> Floor cleaning | I11: =WaterFittings!N177 -> 0 | J11: 0 | K11: 0 | L11: 0 | M11: 100 | AE11: =K11*MIN($J$20,$J$21) ->  | AF11: =L11*MIN($P$20,$P$22) ->  | AG11: =AG8+3*U17 -> 60 | AZ11: Landscape!L27 | BG11: ET31*$BG$28 | BJ11: AM31*$BI$28 | BQ11: MIN(H31,BM31) | CT11: 10 | ET11: 10 | FJ11: Landscape!S28 | FW11: FO31-EC31
B12: First Flush Diversion | E12: =E7*E11 -> 0 | F12: L | G12: =WaterFittings!C178 -> Common area 1 | I12: =WaterFittings!N178 -> 0 | J12: 0 | K12: 0 | L12: 0 | M12: 100 | AZ12: AZ$30 | BF12: ES31*$BF$28 | BK12: AQ31*$BJ$28 | BP12: IF(SUM(BC31:BL31)=0,1,SUM(BC31:BL31)) | CT12: 11 | ET12: 11 | FJ12: IF(OR(D31>AT$27,IF(EM$27>=3,COUNTIF(D393:D395,">"&AT$27),IF(EM$27=2,COUNTIF(D394:D395,">"&AT$27),IF(EM$27=1,COUNTIF(D395,">"&AT$27),0)))),0,EM$30)
G13: =WaterFittings!C179 -> Common area 2 | I13: =WaterFittings!N179 -> 0 | J13: 0 | K13: 0 | L13: 0 | M13: 100 | AZ13: IF(IF(AZ$27>=1,COUNTIF(AZ31,">0")),0,AZ$30) | BL13: BK$28*AT31 | CS13: MIN(AG31,CJ31) | CT13: 12 | ET13: 12 | FJ13: IF(OR(D32>AT$27,IF(EM$27>=3,COUNTIF(EM31,">0")+COUNTIF(D394:D395,">"&AT$27)+COUNTIF(D31,">"&AT$27),IF(EM$27=2,COUNTIF(EM31,">0")+COUNTIF(D395,">"&AT$27)+COUNTIF(D31,">"&AT$27),IF(EM$27=1,COUNTIF(EM31,">0")+COUNTIF(D31,">"&AT$27),0)))),0,EM$30)
B14: Design case consumption | G14: LS Irrigation | I14: =SUM(AX31:AY31) -> 0 | J14: 0 | K14: 0 | L14: 0 | AZ14: IF(IF(AZ$27>=2,COUNTIF(AZ31:AZ32,">0"),IF(AZ$27=1,COUNTIF(AZ32,">0"))),0,AZ$30) | BM14: EV31*$BL$28 | CE14: Waste Water Recycling | CR14: SUM(CI31,'System 2'!CI31,'System 3'!CI31) | CT14: 13 | EH14: MIN(DP31,AJ31) | ET14: 13 | FJ14: IF(OR(D33>AT$27,IF(EM$27>=3,COUNTIF(EM31:EM32,">0")+COUNTIF(D395,">"&AT$27)+COUNTIF(D31:D32,">"&AT$27),IF(EM$27=2,COUNTIF(EM31:EM32,">0")+COUNTIF(D31:D32,">"&AT$27),IF(EM$27=1,COUNTIF(EM32,">0")+COUNTIF(D32,">"&AT$27),0)))),0,EM$30)
B15: Consumption from fittings | E15: =Main!P14 ->  | F15: m3/yr | G15: Water Feature | I15: =SUM(AP26:AP27) -> 0 | J15: 0 | K15: 0 | L15: 0 | AS15: ROUNDDOWN(DC31,0) | AZ15: IF(IF(AZ$27>=3,COUNTIF(AZ31:AZ33,">0"),IF(AZ$27=2,COUNTIF(AZ32:AZ33,">0"),IF(AZ$27=1,COUNTIF(AZ33,">0")))),0,AZ$30) | CQ15: SUM(BZ31:CH31) | CT15: 14 | DS15: SUM(DD31,'System 2'!DD31,'System 3'!DD31) | EG15: SUM(DO31,'System 2'!DO31,'System 3'!DO31) | ET15: 14 | FJ15: IF(OR(D34>AT$27,IF(EM$27>=3,COUNTIF(EM31:EM33,">0")+COUNTIF(D31:D33,">"&AT$27),IF(EM$27=2,COUNTIF(EM32:EM33,">0")+COUNTIF(D32:D33,">"&AT$27),IF(EM$27=1,COUNTIF(EM33,">0")+COUNTIF(D33,">"&AT$27),0)))),0,EM$30)
B16: Consumption from AC system | E16: =Main!P16 ->  | F16: m3/yr | G16: Pool | I16: =SUM(AT26:AT27) -> 0 | J16: 0 | AF16: =SUM(SUMPRODUCT(I4:I15,L4:L15),SUMPRODUCT(System2!I4:I15,System2!L4:L15),SUMPRODUCT(System3!I4:I15,System3!L4:L15)) ->  | AR16: ROUNDDOWN(EI31,0) | AY16: Landscape!M8 | BE16: ER31*$BE$28 | CP16: (AP31-EI31)*$CH$27 | CT16: 15 | DR16: SUM(CU31:DC31) | EF16: SUM(DF31:DN31) | ET16: 15 | FG16: SUM(EA31:EI31) | FI16: Landscape!R28
B17: Landscape irrigation | E17: =Main!P19 ->  | F17: m3/yr | P17: RWH Tank incremental size analysis | U17: 20 | V17: m3 | AQ17: IF(AP31<SUM(AS31,AR31),AP31,AP31-SUM(AS31,AR31)) | AY17: Landscape!M28 | CO17: (AL31-EH31)*$CG$27 | CT17: 16 | DQ17: $CK31*CT31 | DT17: Condensate Water Recovery System | EE17: AP31*DN$27 | ET17: 16 | FF17: $DQ31*DZ31 | FI17: EL$30 | GN17: ROUNDDOWN(SUM('Water Fittings'!$BQ185*FJ$24,'Water Fittings'!$BV185*FJ$25,'Water Fittings'!$CA185*FJ$26),2)
B18: Pool & water features | E18: =Main!P17+Main!P18 ->  | F18: m3/yr | G18: Waste Water Recycling | AF18: Toilet flushing | AG18: CT make-up | AH18: Cleaning | AI18: Landscape irr | AJ18: Water feature | AO18: ROUNDDOWN(DB31,0) | AY18: IF(OR(D31>AT$27,IF(AY$27>=3,COUNTIF(D393:D395,">"&AT$27),IF(AY$27=2,COUNTIF(D394:D395,">"&AT$27),IF(AY$27=1,COUNTIF(D395,">"&AT$27),0)))),0,AY$30) | CL18: $CF$27*FC31 | CS18: 17 | CT18: 17 | DP18: $CK31*CS31 | ED18: AL31*DM$27 | ET18: IF($DQ31,DN31/$DP31,0) | FE18: $DQ31*DY31 | FI18: IF(IF(EL$27>=1,COUNTIF(EL31,">0")),0,EL$30) | GL18: $I$9*'Air Cond'!AR31
B19: Cleaning | E19: =Main!P15 ->  | F19: m3/yr | G19: Total wastewater generated | J19: =Main!E21 ->  | K19: m3/yr | L19: Condensate Water Recovery | S19: Roof catchment | W19: Run-off coeff. | AD19: Tank storage factor | AN19: ROUNDDOWN(EH31,0) | AY19: IF(OR(D32>AT$27,IF(AY$27>=3,COUNTIF(AY31,">0")+COUNTIF(D394:D395,">"&AT$27)+COUNTIF(D31,">"&AT$27),IF(AY$27=2,COUNTIF(AY31,">0")+COUNTIF(D395,">"&AT$27)+COUNTIF(D31,">"&AT$27),IF(AY$27=1,COUNTIF(AY31,">0")+COUNTIF(D31,">"&AT$27),0)))),0,AY$30) | CJ19: FB31*$CE$27 | CS19: =1+CS18 -> 18 | CT19: 18 | DM19: $CK31*CR31 | EA19: $DL$27*FJ31 | ES19: IF($DQ31,DM31/$DP31,0) | ET19: 18 | FB19: $DQ31*DX31 | FI19: IF(IF(EL$27>=2,COUNTIF(EL31:EL32,">0"),IF(EL$27=1,COUNTIF(EL32,">0"))),0,EL$30) | GK19: $I$8*'Air Cond'!AM31
B20: Water consumption (others) | E20: =SUM(Main!P21,Main!P20) -> 0 | F20: m3 | G20: Total wastewater available | J20: =WaterFittings!BZ236 ->  | K20: L/day | L20: Condensate water available | P20: =AirCond!AN42 -> 0 | R20: L/day | S20: Type | U20: m2 | AD20: Greywater recycling | AF20: 0.5 | AG20: 0.3 | AH20: 1 | AI20: 1 | AJ20: 0.3 | AP20: 'Water Features'!Q14 | AY20: IF(OR(D33>AT$27,IF(AY$27>=3,COUNTIF(AY31:AY32,">0")+COUNTIF(D395,">"&AT$27)+COUNTIF(D31:D32,">"&AT$27),IF(AY$27=2,COUNTIF(AY31:AY32,">0")+COUNTIF(D31:D32,">"&AT$27),IF(AY$27=1,COUNTIF(AY32,">0")+COUNTIF(D32,">"&AT$27),0)))),0,AY$30) | CI20: FA31*$CD$27 | CS20: =1+CS19 -> 19 | CT20: 19 | DE20: IF($CK31,CH31/$CJ31,0) | DK20: $CK31*CQ31 | DY20: $DK$27*FI31 | EP20: IF($DQ31,DL31/$DP31,0) | ET20: 19 | EZ20: $DQ31*DW31 | FI20: IF(IF(EL$27>=3,COUNTIF(EL31:EL33,">0"),IF(EL$27=2,COUNTIF(EL32:EL33,">0"),IF(EL$27=1,COUNTIF(EL33,">0")))),0,EL$30) | GJ20: $I$7*'Air Cond'!AY3
B21: Total water consumption | E21: =SUM(E15:E20) ->  | F21: m3/yr | G21: Wastewater to be recycled | J21: 0 | K21: L/day | L21: Desired cond. water recovery | P21: 0 | R21: L/day | S21: Pitched Tile | U21: 0 | W21: 0.8 | AD21: Condensate water | AF21: 0.5 | AG21: 0.3 | AH21: 1 | AI21: 1 | AJ21: 0.3 | AM21: AL31-AN31-AO31 | AP21: 'Water Features'!P14 | AY21: IF(OR(D34>AT$27,IF(AY$27>=3,COUNTIF(AY31:AY33,">0")+COUNTIF(D31:D33,">"&AT$27),IF(AY$27=2,COUNTIF(AY32:AY33,">0")+COUNTIF(D32:D33,">"&AT$27),IF(AY$27=1,COUNTIF(AY33,">0")+COUNTIF(D33,">"&AT$27),0)))),0,AY$30) | CH21: EZ31*$CC$27 | CS21: 20 | CT21: 20 | DD21: IF($CK31,CG31/$CJ31,0) | DJ21: $CK31*CP31 | DX21: $DJ$27*FH31 | EN21: IF($DQ31,DK31/$DP31,0) | ET21: 20 | EY21: $DQ31*DV31 | FH21: SUM(EJ31,'System 2'!EJ31,'System 3'!EJ31) | FT21: FC31-DA31 | GD21: FJ31-EG31
B22: Rainfall over catchment | E22: =ROUND(D397/1000*E7,1) -> 0 | F22: m3/yr | G22: System wastewater recycled | J22: =ROUNDDOWN(SUM(Q28:U28),1) ->  | K22: m3/yr | L22: Max. condensate water recovery | P22: =MIN(FH29,P21) ->  | R22: L/day | S22: Steel Roof | U22: 0 | W22: 0.9 | AL22: SUM(AX31,AY31) | AP22: 'Water Features'!E9 | AX22: Landscape!L8 | CD22: =1+CD21 -> 1 | CG22: EY31*$CB$27 | CS22: 21 | CT22: 21 | DA22: IF($CK31,CF31/$CJ31,0) | DI22: $CK31*CO31 | DW22: $DI$27*FG31 | EM22: IF($DQ31,DJ31/$DP31,0) | ET22: 21 | EX22: $DQ31*DU31 | FR22: FB31-CZ31 | GB22: FI31-EF31 | GN22: 'Water Fittings'!M179*'Water Fittings'!R179/100
B23: System rainwater harvested | E23: =SUM(J28:O28) ->  | F23: m3/yr | G23: System wastewater recycling | J23: =IF(J19,ROUND(J22/J19*100,2),0) ->  | K23: % | L23: System AC cond. water recovered | P23: =ROUNDDOWN(SUM(W28:AA28),1) ->  | R23: m3/yr | S23: RC roof | U23: 0 | W23: 0.5 | AJ23: P18 | AK23: ROUNDDOWN(AJ31-EK31,0) | AP23: AP$25+IF(OR(AP$27=0,D31<AP$27),AP$26,0) | AX23: Landscape!L28 | BD23: EQ31*$BD$28 | CD23: 2 | CF23: EX31*$CA$27 | CS23: 22 | CT23: 22 | CY23: IF($CK31,CE31/$CJ31,0) | DH23: $CK31*CN31 | DV23: $DH$27*FF31 | EL23: IF($DQ31,DI31/$DP31,0) | ET23: 22 | EW23: $DQ31*DT31 | FQ23: FA31-CY31 | GA23: FH31-EE31 | GN23: 'Water Fittings'!M180*'Water Fittings'!R180/100
B24: Amount not collected | E24: =E22-E23 ->  | F24: m3/yr | G24: Total wastewater recycled | J24: =Main!N24 ->  | K24: m3/yr | L24: Total condensate water recovered | P24: =Main!O24 ->  | R24: m3/yr | S24: Block Pavement | U24: 0 | W24: 0.7 | AH24: ROUNDDOWN(AG31-DE31,0) | AT24: AT$25+IF(OR(AP$27=0,D31<AP$27),AT$26,0) | AX24: AX$30 | BC24: EP31*$BC$28 | CD24: 3 | CE24: EW31*$BZ$27 | CS24: 23 | CT24: 23 | CX24: IF($CK31,CD31/$CJ31,0) | DG24: $CK31*CM31 | DU24: $DG$27*FE31 | EK24: IF($DQ31,DH31/$DP31,0) | ET24: 23 | EV24: $DQ31*DS31 | FP24: EZ31-CX31 | FZ24: FG31-ED31 | GN24: 'Water Fittings'!M181*'Water Fittings'!R181/100
B25: System savings through RWH | E25: =IF(E21,ROUND(E23/E21*100,2),0) ->  | F25: % | G25: Overall wastewater recycling | J25: =Main!E24 ->  | K25: % | L25: Cond. water recovery percentage | P25: =IF(P20,P22/P20*100,0) -> 0 | R25: % | S25: Gravel roadway | U25: 0 | W25: 0.3 | AG25: MIN(J17:J18) | AJ25: MIN($AJ$30,AI31) | AL25: Landscape Irrigation | AP25: Water Feature | AT25: Pool | AX25: IF(IF(AX$27>=1,COUNTIF(AX31,">0")),0,AX$30) | CD25: 4 | CS25: 24 | CT25: 24 | CW25: IF($CK31,CC31/$CJ31,0) | DF25: $CK31*CL31 | DT25: $DF$27*FD31 | EJ25: IF($DQ31,DG31/$DP31,0) | ET25: 24 | EU25: $DQ31*DR31 | FO25: EY31-CW31 | FY25: FF31-EC31 | GN25: ='Water Fittings'!M182*'Water Fittings'!R182/100
B26: Total savings through RWH | E26: =IF(E21,(System1!E23+System2!E23+System3!E23)/E21*100,0) ->  | F26: % | G26: Recycling tank required | J26: =J21 -> 0 | K26: L | L26: Condensate water tank required | P26: =AE31 ->  | R26: L | S26: Total | U26: =SUM(U21:U25) -> 0 | W26: =IF(E7=0,1,ROUNDUP(SUMPRODUCT(U21:U25,W21:W25)/U26,2)) -> 1 | AG26: MIN($AG$30,AF31) | AJ26: MIN($AJ$30,AK31+AI32) | AO26: Consumption independent of rain event | AP26: =WaterFeature!Q14 -> 0 | AT26: =WaterFeature!Q21 -> 0 | AX26: IF(IF(AX$27>=2,COUNTIF(AX31:AX32,">0"),IF(AX$27=1,COUNTIF(AX32,">0"))),0,AX$30) | CD26: 5 | CE26: Potable water demand (after condensate water recovery) | CS26: 25 | CT26: 25 | CV26: IF($CK31,CB31/$CJ31,0) | DF26: Annual grey water recycled | DT26: Potable water demand | EI26: IF($DQ31,DF31/$DP31,0) | ET26: 25 | EU26: Annual condensate water recovery usage | FN26: EX31-CV31 | FX26: FE31-EB31 | GI26: $FF$30*'Water Fittings'!BL7 | GN26: ='Water Fittings'!M183*'Water Fittings'!R183/100
B27: All systems RW harvested | E27: =E23+System2!E23+System3!E23 ->  | F27: m3/yr | L27: =IF(AND(P20,P21,P22),IF(P25<50,"Warning: Condensate water recovery is less than 50%",""),"") ->  | AF27: 'Water Fittings'!BJ5 | AI27: Air Cond'!AJ42 | AO27: Consumption dependent of rain event | AP27: =WaterFeature!P14 -> 0 | AT27: =WaterFeature!P21 -> 0 | AX27: IF(IF(AX$27>=3,COUNTIF(AX31:AX33,">0"),IF(AX$27=2,COUNTIF(AX32:AX33,">0"),IF(AX$27=1,COUNTIF(AX33,">0")))),0,AX$30) | CD27: 6 | CE27: =K4 | CF27: =K5 | CG27: =K6 | CH27: =K7 | CI27: =K8 | CJ27: =K9 | CL27: =K10 | CM27: =K11 | CN27: =K12 | CO27: =K13 | CP27: =K14 | CS27: 26 | CT27: 26 | CU27: IF($CK31,CA31/$CJ31,0) | DT27: =L4 | DU27: =L5 | DV27: =L6 | DW27: =L7 | DX27: =L8 | DY27: =L9 | DZ27: =L10 | EA27: =L11 | EB27: =L12 | EC27: =L13 | ED27: =L14 | EE27: =L15 | EI27: Condensate water usage distribution ratio | ET27: 26 | EU27: =SUM(EU28:EW28) ->  | EX27: =SUM(EX28:EZ28) ->  | FI27: =AV27 | FJ27: =AW27 | FM27: EW31-CU31 | FW27: FD31-EA31 | GH27: $FE$30*'Water Fittings'!BL7 | GN27: ='Water Fittings'!M184*'Water Fittings'!R184/100
G28: Rainwater Utilisation (m3/yr) | J28: =ROUND(SUM(J32:J396)/1000,0) ->  | Q28: =ROUND(SUM(Q32:Q396)/1000,0) ->  | R28: =ROUND(SUM(R32:R396)/1000,0) ->  | S28: =ROUND(SUM(S32:S396)/1000,0) ->  | T28: =ROUND(SUM(T32:T396)/1000,0) ->  | U28: =ROUND(SUM(U32:U396)/1000,0) ->  | W28: =ROUND(SUM(W32:W396)/1000,0) ->  | X28: =ROUND(SUM(X32:X396)/1000,0) ->  | Y28: =ROUND(SUM(Y32:Y396)/1000,0) ->  | Z28: =ROUND(SUM(Z32:Z396)/1000,0) ->  | AA28: =ROUND(SUM(AA32:AA396)/1000,0) ->  | AO28: Rainfall cut-off | AP28: =WaterFeature!E8 -> 6 | AT28: =Landscape!I3 -> 5 | AX28: =Landscape!M8 -> 0 | AY28: =Landscape!N8 -> 0 | AZ28: =AX28 -> 0 | BA28: =AY28 -> 0 | BC28: Rainwater Harvesting | CD28: 7 | CE28: =K4 -> 0 | CF28: =K5 -> 0 | CG28: =K6 -> 0 | CH28: =K7 -> 0 | CI28: =K8 -> 0 | CJ28: =K9 -> 0 | CK28: =K10 -> 0 | CL28: =K11 -> 0 | CM28: =K12 -> 0 | CN28: =K13 -> 0 | CO28: =K14 -> 0 | CP28: =K15 -> 0 | CS28: 27 | CT28: IF($CK31,BZ31/$CJ31,0) | DT28: =L4 -> 0 | DU28: =L5 -> 0 | DV28: =L6 -> 0 | DW28: =L7 -> 0 | DX28: =L8 -> 0 | DY28: =L9 -> 0 | DZ28: =L10 -> 0 | EA28: =L11 -> 0 | EB28: =L12 -> 0 | EC28: =L13 -> 0 | ED28: =L14 -> 0 | EE28: =L15 -> 0 | ET28: 27 | EU28: =ROUND(SUM(EU32:EU396)/1000,1) ->  | EV28: =ROUND(SUM(EV32:EV396)/1000,1) ->  | FI28: =AX28*0 -> 0 | FJ28: =AY28*0 -> 0 | FK28: =FI28 -> 0 | FL28: =FJ28 -> 0 | FM28: Req'm after greywater recycling | FW28: Req'm after cond. water recovery | GG28: $FD$30*'Water Fittings'!BK7
B29: Month Week | C29: Day | D29: Rainfall mm | E29: Collectible (L) | F29: Balance before rain event | G29: Collect'd (L) | H29: Balance after rain event | I29: Amount not collect'd | J29: Rainwater application | Q29: Greywater Recycling | W29: Condensate Water Recovery | AF29: Greywater recycling | AI29: Condensate water recovery | AM29: Req'm after greywater/cond. water recycling | AN29: =ROUND(SUM(AL31:AL395)/1000,1) | AO29: =ROUND(SUM(AO32:AO396)/1000,1) ->  | AP29: =ROUND(SUM(AP32:AP396)/1000,1) -> 0 | AQ29: Req'm after greywater/cond. water recycling | AR29: =ROUND(SUM(AR32:AR396)/1000,1) ->  | AS29: =ROUND(SUM(AS32:AS396)/1000,1) ->  | AT29: =ROUND(SUM(AT32:AT396)/1000,1) -> 0 | AV29: =ROUND(SUM(AV32:AV396)/1000,1) -> 0 | AW29: 0 | AX29: =ROUND(SUM(AX32:AX396)/1000,0) -> 0 | AY29: =ROUND(SUM(AY32:AY396)/1000,0) -> 0 | AZ29: =ROUND(SUM(AZ32:AZ396)/1000,0) -> 0 | BA29: =ROUND(SUM(BA32:BA396)/1000,0) -> 0 | BC29: =J4 -> 0 | BD29: =J5 -> 0 | BE29: =J6 -> 0 | BF29: =J7 -> 0 | BG29: =J8 -> 0 | BH29: =J9 -> 0 | BI29: =J10 -> 0 | BJ29: =J14 -> 0 | BK29: =J15 -> 0 | BL29: =J16 -> 0 | BM29: =J11 -> 0 | BN29: =J12 -> 0 | BO29: =J13 -> 0 | CE29: Toilet flushing | CH29: AC make-up | CS29: 28 | CT29: Toilet flushing | CW29: AC make-up | DF29: Toilet flushing | DI29: AC make-up | DR29: Total Greyater usage | DT29: Toilet flushing | DW29: AC make-up | EI29: Toilet flushing | EL29: AC make-up | ET29: 28 | EU29: Toilet flushing | EX29: AC make-up | FG29: Total Cond Water usage | FH29: =MAX(FH32:FH396) ->  | FI29: =ROUND(SUM(FI32:FI396)/1000,0) -> 0 | FJ29: =ROUND(SUM(FJ32:FJ396)/1000,0) -> 0 | FK29: =ROUND(SUM(FK32:FK396)/1000,0) -> 0 | FL29: =ROUND(SUM(FL32:FL396)/1000,0) -> 0 | FW29: Toilet flushing | FZ29: Toilet flushing | GG29: Base consumption
J30: Land- scape Irrigation | K30: Water Feature | L30: Pools | M30: Clean-ing | N30: Toilet Flushing | O30: CT make-up | Q30: Toilet Flushing | R30: CT make-up | S30: Clean-ing | T30: Land -scape Irrigation | U30: Water Feature | W30: Toilet Flushing | X30: CT make-up | Y30: Clean-ing | Z30: Land- scape Irrigation | AA30: Water Feature | AD30: Grey-water tank | AE30: Conden-sate water tank | AF30: Recyclable greywater | AG30: Balance before event | AH30: Balance after event | AI30: Cond Water Available | AJ30: Balance before event | AK30: Balance after event | AL30: Req'm | AN30: Condensate water usage | AO30: Greywater usage | AP30: Req'm | AR30: Condensate water usage | AS30: Greywater usage | AT30: Req'm | AU30: Req'm after greywater/cond. water recycling | AV30: Condensate water usage | AW30: Greywater usage | AX30: Not rain event dependent watering | AY30: Rain event dependent watering | AZ30: Not rain event dependent watering | BA30: Rain event dependent watering | BC30: Occ1 | BD30: Occ2 | BE30: Occ3 | BF30: AC1 | BG30: AC2 | BH30: AC3 | BI30: AC4 | BJ30: Land-scape | BK30: Water Feature | BL30: Pool | BM30: clean1 | BN30: clean2 | BO30: clean3 | BR30: Occ1 | BS30: Occ2 | BT30: Occ3 | BU30: AC1 | BV30: AC2 | BW30: AC3 | BX30: AC4 | BY30: Land-scape | BZ30: Water Feature | CA30: Pool | CB30: clean1 | CC30: clean2 | CD30: clean3 | CE30: Occ1 | CF30: Occ2 | CG30: Occ3 | CH30: AC1 | CI30: AC2 | CJ30: AC3 | CK30: AC4 | CL30: clean1 | CM30: clean2 | CN30: clean3 | CO30: Land-scape | CP30: Water Feature | CQ30: System demand | CR30: Total demand | CS30: 29 | CT30: Occ1 | CU30: Occ2 | CV30: Occ3 | CW30: AC1 | CX30: AC2 | CY30: AC3 | CZ30: AC4 | DA30: clean1 | DB30: clean2 | DC30: clean3 | DD30: Land-scape | DE30: Water Feature | DF30: Occ1 | DG30: Occ2 | DH30: Occ3 | DI30: AC1 | DJ30: AC2 | DK30: AC3 | DL30: AC4 | DM30: clean1 | DN30: clean2 | DO30: clean3 | DP30: Land-scape | DQ30: Water Feature | DS30: All system total | DT30: Occ1 | DU30: Occ2 | DV30: Occ3 | DW30: AC1 | DX30: AC2 | DY30: AC3 | DZ30: AC4 | EA30: clean1 | EB30: clean2 | EC30: clean3 | ED30: Land-scape | EE30: Water Feature | EG30: Total demand | EI30: Occ1 | EJ30: Occ2 | EK30: Occ3 | EL30: AC1 | EM30: AC2 | EN30: AC3 | EO30: AC4 | EP30: clean1 | EQ30: clean2 | ER30: clean3 | ES30: Land-scape | ET30: Water Feature | EU30: Occ1 | EV30: Occ2 | EW30: Occ3 | EX30: AC1 | EY30: AC2 | EZ30: AC3 | FA30: AC4 | FB30: clean1 | FC30: clean2 | FD30: clean3 | FE30: Land-scape | FF30: Water Feature | FH30: All system total | FM30: Occ1 | FN30: Occ2 | FO30: Occ3 | FP30: AC1 | FQ30: AC2 | FR30: AC3 | FS30: AC4 | FT30: clean1 | FU30: clean2 | FV30: clean3 | FW30: Occ1 | FX30: Occ2 | FY30: Occ3 | FZ30: AC1 | GA30: AC2 | GB30: AC3 | GC30: AC4 | GD30: clean1 | GE30: clean2 | GF30: clean3 | GG30: Occ1 | GH30: Occ2 | GI30: Occ3 | GJ30: AC1 | GK30: AC2 | GL30: AC3 | GM30: AC4 | GN30: clean1 | GO30: clean2 | GP30: clean3
AD31: =ROUNDUP(MAX(AD32:AD396),-1) ->  | AE31: =ROUNDUP(MAX(AE32:AE396),-1) ->  | AG31: =MIN(J20:J21) ->  | AJ31: =MIN(P20:P21) -> 0 | AX31: =Landscape!R18 -> 0 | AY31: =Landscape!S18 -> 0 | AZ31: =Landscape!R17 -> 0 | BA31: =Landscape!S17 -> 0 | BC31: Potable water demand (after greywater recycling & cond. water recovery) | BR31: distibution ratio | EI31: distibution ratio | FI31: =Landscape!R11 -> 0 | FJ31: =Landscape!S11 -> 0 | FK31: =Landscape!R10 -> 0 | FL31: =Landscape!S10 -> 0 | GG31: =I4*M4/100 ->  | GH31: =I5*M5/100 ->  | GI31: =I6*M6/100 -> 0 | GJ31: =I7*M7/100 ->  | GK31: =I8*M8/100 ->  | GL31: =I9*M9/100 ->  | GM31: =I10*M10/100 ->  | GN31: =I11*M11/100 -> 0 | GO31: =I12*M12/100 -> 0 | GP31: =I13*M13/100 -> 0
B32: January | C32: 1 | D32: =HLOOKUP($D$3,Raindata,C32+6,FALSE) -> 2.5 | E32: =IF((D32*E$7*E$8-E$12)>0,ROUND((D32*E$7*E$8-E$12),0),0) -> 0 | F32: 0 | G32: =MIN(E$9*1000-F32,E32-F32) -> 0 | H32: =F32+G32 -> 0 | I32: =E32-G32 -> 0 | J32: =ROUNDDOWN(BY32*BQ32,0) ->  | K32: =ROUNDDOWN(BZ32*BQ32,0) ->  | L32: =ROUNDDOWN(CA32*BQ32,0) ->  | M32: =ROUNDDOWN(SUM(CB32:CD32)*BQ32,0) ->  | N32: =ROUNDDOWN(SUM(BR32:BT32)*BQ32,0) ->  | O32: =ROUNDDOWN(SUM(BU32:BX32)*BQ32,0) ->  | Q32: =ROUNDDOWN(SUM(DF32:DH32),0) ->  | R32: =ROUNDDOWN(SUM(DI32:DL32),0) ->  | S32: =ROUNDDOWN(SUM(DM32:DO32),0) ->  | T32: =ROUNDDOWN(DP32,0) ->  | U32: =ROUNDDOWN(DQ32,0) ->  | W32: =ROUNDDOWN(SUM(EU32:EW32),) ->  | X32: =ROUNDDOWN(SUM(EX32:FA32),0) ->  | Y32: =ROUNDDOWN(SUM(FB32:FD32),0) ->  | Z32: =ROUNDDOWN(FE32,0) ->  | AA32: =ROUNDDOWN(FF32,0) ->  | AC32: 1 | AD32: =SUM(SUMPRODUCT(AF$20:AJ$20,Q32:U32),SUMPRODUCT(AF$20:AJ$20,System2!Q32:U32),SUMPRODUCT(AF$20:AJ$20,System3!Q32:U32)) ->  | AE32: =SUM(SUMPRODUCT(AF$21:AJ$21,W32:AA32),SUMPRODUCT(AF$21:AJ$21,System2!W32:AA32),SUMPRODUCT(AF$21:AJ$21,System3!W32:AA32)) ->  | AF32: =WaterFittings!BN7 ->  | AG32: =MIN($AG$31,AF32) ->  | AH32: =ROUNDDOWN(AG32-DS32,0) ->  | AI32: =MIN(AirCond!BL6,P$21) -> 0 | AJ32: =MIN($AJ$31,AI32) -> 0 | AK32: =MIN(ROUNDDOWN(AJ32-FH32,0),ROUNDDOWN(P$21*0.3,0),ROUNDDOWN(SUM(SUMPRODUCT(I$4:I$15,L$4:L$15),SUMPRODUCT(System2!I$4:I$15,System2!L$4:L$15),SUMPRODUCT(System3!I$4:I$15,System3!L$4:L$15))*0.3,0)) ->  | AL32: =SUM(AX32,AY32) -> 0 | AM32: =AL32-AN32-AO32 ->  | AN32: =ROUNDDOWN(FE32,0) ->  | AO32: =ROUNDDOWN(DP32,0) ->  | AP32: =AP$26+IF(OR(AP$28=0,D32<AP$28),AP$27,0) -> 0 | AQ32: =IF(AP32<SUM(AS32,AR32),AP32,AP32-SUM(AS32,AR32)) ->  | AR32: =ROUNDDOWN(FF32,0) ->  | AS32: =ROUNDDOWN(DQ32,0) ->  | AT32: =AT$26+IF(OR(AP$28=0,D32<AP$28),AT$27,0) -> 0 | AX32: =AX$31 -> 0 | AY32: =IF(OR(D32>AT$28,IF(AY$28>=3,COUNTIF(D394:D396,">"&AT$28),IF(AY$28=2,COUNTIF(D395:D396,">"&AT$28),IF(AY$28=1,COUNTIF(D396,">"&AT$28),0)))),0,AY$31) -> 0 | AZ32: =AZ$31 -> 0 | BA32: =IF(OR(D32>AT$28,IF(BA$28>=3,COUNTIF(D394:D396,">"&AT$28),IF(BA$28=2,COUNTIF(D395:D396,">"&AT$28),IF(BA$28=1,COUNTIF(D396,">"&AT$28),0)))),0,BA$31) -> 0 | BC32: =FM32*$BC$29 ->  | BD32: =FN32*$BD$29 ->  | BE32: =FO32*$BE$29 ->  | BF32: =FP32*$BF$29 ->  | BG32: =FQ32*$BG$29 ->  | BH32: =FR32*$BH$29 ->  | BI32: 1 | BJ32: =AM32*$BJ$29 ->  | BK32: =AQ32*$BK$29 ->  | BL32: =BL$29*AT32 -> 0 | BM32: =FT32*BM$29 ->  | BN32: =FU32*BN$29 ->  | BO32: =FV32*BO$29 ->  | BP32: =IF(SUM(BC32:BO32)=0,1,SUM(BC32:BO32)) ->  | BQ32: =MIN(H32,BP32) ->  | BR32: =BC32/$BP32 ->  | BS32: =BD32/$BP32 ->  | BT32: =BE32/$BP32 ->  | BU32: =BF32/$BP32 ->  | BV32: =BG32/$BP32 ->  | BW32: =BH32/$BP32 ->  | BX32: =BI32/$BP32 ->  | BY32: =BJ32/$BP32 ->  | BZ32: =BK32/$BP32 ->  | CA32: =BL32/$BP32 ->  | CB32: =BM32/$BP32 ->  | CC32: =BN32/$BP32 ->  | CD32: =BO32/$BP32 ->  | CE32: =FW32*$CE$28 ->  | CF32: =FX32*$CF$28 ->  | CG32: =FY32*$CG$28 ->  | CH32: =FZ32*$CH$28 ->  | CI32: =GA32*$CI$28 ->  | CJ32: =GB32*$CJ$28 ->  | CL32: =CL$28*GD32 ->  | CM32: =CM$28*GE32 ->  | CN32: =CN$28*GF32 ->  | CO32: =(AL32-FE32)*$CO$28 ->  | CP32: =(AP32-FF32)*$CP$28 ->  | CQ32: =SUM(CE32:CP32) ->  | CR32: =SUM(CQ32,System2!CQ32,System3!CQ32) ->  | CS32: =MIN(AG32,CR32) ->  | CT32: =IF($CS32,CE32/$CR32,0) ->  | CU32: =IF($CS32,CF32/$CR32,0) ->  | CV32: =IF($CS32,CG32/$CR32,0) ->  | CW32: =IF($CS32,CH32/$CR32,0) ->  | CX32: =IF($CS32,CI32/$CR32,0) ->  | CY32: =IF($CS32,CJ32/$CR32,0) ->  | CZ32: =IF($CS32,CK32/$CR32,0) ->  | DA32: =IF($CS32,CL32/$CR32,0) ->  | DB32: =IF($CS32,CM32/$CR32,0) ->  | DC32: =IF($CS32,CN32/$CR32,0) ->  | DD32: =IF($CS32,CO32/$CR32,0) ->  | DE32: =IF($CS32,CP32/$CR32,0) ->  | DF32: =$CS32*CT32 ->  | DG32: =$CS32*CU32 ->  | DH32: =$CS32*CV32 ->  | DI32: =$CS32*CW32 ->  | DJ32: =$CS32*CX32 ->  | DK32: =$CS32*CY32 ->  | DL32: =$CS32*CZ32 ->  | DM32: =$CS32*DA32 ->  | DN32: =$CS32*DB32 ->  | DO32: =$CS32*DC32 ->  | DP32: =$CS32*DD32 ->  | DQ32: =$CS32*DE32 ->  | DR32: =SUM(DF32:DQ32) ->  | DS32: =SUM(DR32,System2!DR32,System3!DR32) ->  | DT32: =$DT$28*GG32 ->  | DU32: =$DU$28*GH32 ->  | DV32: =$DV$28*GI32 -> 0 | DW32: =$DW$28*GJ32 ->  | DX32: =$DX$28*GK32 ->  | DY32: =$DY$28*GL32 ->  | DZ32: =$DZ$28*GM32 ->  | EA32: =EA$28*GN32 -> 0 | EB32: =EB$28*GO32 -> 0 | EC32: =EC$28*GP32 -> 0 | ED32: =AL32*ED$28 -> 0 | EE32: =AP32*EE$28 -> 0 | EF32: =SUM(DT32:EE32) ->  | EG32: =SUM(EF32,System2!EF32,System3!EF32) ->  | EH32: =MIN(EG32,AJ32) ->  | EI32: =IF($EH32,DT32/$EG32,0) ->  | EU32: =$EH32*EI32 ->  | EV32: =$EH32*EJ32 ->  | EW32: =$EH32*EK32 ->  | EX32: =$EH32*EL32 ->  | EY32: =$EH32*EM32 ->  | EZ32: =$EH32*EN32 ->  | FA32: =$EH32*EO32 ->  | FB32: =$EH32*EP32 ->  | FC32: =$EH32*EQ32 ->  | FD32: =$EH32*ER32 ->  | FE32: =$EH32*ES32 ->  | FF32: =$EH32*ET32 ->  | FG32: =SUM(EU32:FF32) ->  | FH32: =SUM(FG32,System2!FG32,System3!FG32) ->  | FI32: =FI$31 -> 0 | FJ32: =IF(OR(D32>AT$28,IF(FJ$28>=3,COUNTIF(D394:D396,">"&AT$28),IF(FJ$28=2,COUNTIF(D395:D396,">"&AT$28),IF(FJ$28=1,COUNTIF(D396,">"&AT$28),0)))),0,FJ$31) -> 0 | FK32: =FK$31 -> 0 | FL32: =IF(OR(D32>AT$28,IF(FL$28>=3,COUNTIF(D394:D396,">"&AT$28),IF(FL$28=2,COUNTIF(D395:D396,">"&AT$28),IF(FL$28=1,COUNTIF(D396,">"&AT$28),0)))),0,FL$31) -> 0 | FM32: =ROUNDDOWN(FW32-DF32,0) ->  | FN32: =ROUNDDOWN(FX32-DG32,0) ->  | FO32: =ROUNDDOWN(FY32-DH32,0) ->  | FP32: =ROUNDDOWN(FZ32-DI32,0) ->  | FQ32: =ROUNDDOWN(GA32-DJ32,0) ->  | FR32: =ROUNDDOWN(GB32-DK32,0) ->  | FS32: =ROUNDDOWN(GC32-DL32,0) ->  | FT32: =ROUNDDOWN(GD32-DM32,0) ->  | FU32: =ROUNDDOWN(GE32-DN32,0) ->  | FV32: =ROUNDDOWN(GF32-DO32,0) ->  | FW32: =ROUNDDOWN(GG32-EU32,0) ->  | GG32: =$GG$31*WaterFittings!BO7 ->  | GH32: =$GH$31*WaterFittings!BP7 ->  | GI32: =$GI$31*WaterFittings!BQ7 -> 0 | GJ32: =GJ$31*AirCond!BD6 ->  | GK32: =GK$31*AirCond!BE6 ->  | GL32: =GL$31*AirCond!BF6 ->  | GM32: =GM$31*AirCond!BG6 ->  | GN32: =GN$31*WaterFittings!BS7 -> 0 | GO32: =GO$31*WaterFittings!BT7 -> 0 | GP32: =GP$31*WaterFittings!BU7 -> 0
C33: =C32+1 -> 2 | D33: 2.5 | E33: 0 | F33: =IF(H32-SUM(J32:O32)>1,H32-SUM(J32:O32),0) ->  | G33: =IF((E33+F33)<AG$3*1000,E33,AG$3*1000-F33) ->  | J33: =ROUNDDOWN(BY33*BQ33,0) ->  | K33: =ROUNDDOWN(BZ33*BQ33,0) ->  | L33: =ROUNDDOWN(CA33*BQ33,0) ->  | M33: =ROUNDDOWN(SUM(CB33:CD33)*BQ33,0) ->  | N33: =ROUNDDOWN(SUM(BR33:BT33)*BQ33,0) ->  | O33: =ROUNDDOWN(SUM(BU33:BX33)*BQ33,0) ->  | Q33: =ROUNDDOWN(SUM(DF33:DH33),0) ->  | R33: =ROUNDDOWN(SUM(DI33:DL33),0) ->  | S33: =ROUNDDOWN(SUM(DM33:DO33),0) ->  | T33: =ROUNDDOWN(DP33,0) ->  | W33: =ROUNDDOWN(SUM(EU33:EW33),) ->  | X33: =ROUNDDOWN(SUM(EX33:FA33),0) ->  | Y33: =ROUNDDOWN(SUM(FB33:FD33),0) ->  | Z33: =ROUNDDOWN(FE33,0) ->  | AC33: 2 | AD33: =SUM(SUMPRODUCT(AF$20:AJ$20,Q33:U33),SUMPRODUCT(AF$20:AJ$20,System2!Q33:U33),SUMPRODUCT(AF$20:AJ$20,System3!Q33:U33)) ->  | AE33: =SUM(SUMPRODUCT(AF$21:AJ$21,W33:AA33),SUMPRODUCT(AF$21:AJ$21,System2!W33:AA33),SUMPRODUCT(AF$21:AJ$21,System3!W33:AA33)) ->  | AF33: =WaterFittings!BN8 ->  | AG33: =MIN($AG$31,AH32+AF33) ->  | AI33: =MIN(AirCond!BL7,P$21) -> 0 | AJ33: =MIN($AJ$31,AK32+AI33) ->  | AK33: =MIN(ROUNDDOWN(AJ33-FH33,0),ROUNDDOWN(P$21*0.3,0),ROUNDDOWN(SUM(SUMPRODUCT(I$4:I$15,L$4:L$15),SUMPRODUCT(System2!I$4:I$15,System2!L$4:L$15),SUMPRODUCT(System3!I$4:I$15,System3!L$4:L$15))*0.3,0)) ->  | AL33: =SUM(AX33,AY33) -> 0 | AM33: =AL33-AN33-AO33 ->  | AN33: =ROUNDDOWN(FE33,0) ->  | AO33: =ROUNDDOWN(DP33,0) ->  | AP33: 0 | AQ33: =IF(AP33<SUM(AS33,AR33),AP33,AP33-SUM(AS33,AR33)) ->  | AR33: =ROUNDDOWN(FF33,0) ->  | AS33: =ROUNDDOWN(DQ33,0) ->  | AT33: 0 | AX33: =IF(IF(AX$28>=1,COUNTIF(AX32,">0")),0,AX$31) -> 0 | AY33: =IF(OR(D33>AT$28,IF(AY$28>=3,COUNTIF(AY32,">0")+COUNTIF(D395:D396,">"&AT$28)+COUNTIF(D32,">"&AT$28),IF(AY$28=2,COUNTIF(AY32,">0")+COUNTIF(D396,">"&AT$28)+COUNTIF(D32,">"&AT$28),IF(AY$28=1,COUNTIF(AY32,">0")+COUNTIF(D32,">"&AT$28),0)))),0,AY$31) -> 0 | AZ33: =IF(IF(AZ$28>=1,COUNTIF(AZ32,">0")),0,AZ$31) -> 0 | BA33: =IF(OR(D33>AT$28,IF(BA$28>=3,COUNTIF(BA32,">0")+COUNTIF(D395:D396,">"&AT$28)+COUNTIF(D32,">"&AT$28),IF(BA$28=2,COUNTIF(BA32,">0")+COUNTIF(D396,">"&AT$28)+COUNTIF(D32,">"&AT$28),IF(BA$28=1,COUNTIF(BA32,">0")+COUNTIF(D32,">"&AT$28),0)))),0,BA$31) -> 0 | BC33: =FM33*$BC$29 ->  | BF33: =FP33*$BF$29 ->  | BI33: =FS33*$BI$29 ->  | BJ33: =AM33*$BJ$29 ->  | BK33: =AQ33*$BK$29 ->  | BL33: =BL$29*AT33 -> 0 | BP33: =IF(SUM(BC33:BO33)=0,1,SUM(BC33:BO33)) ->  | BQ33: =MIN(H33,BP33) ->  | CP33: =(AP33-FF33)*$CP$28 ->  | CQ33: =SUM(CE33:CP33) ->  | CR33: =SUM(CQ33,System2!CQ33,System3!CQ33) ->  | DR33: =SUM(DF33:DQ33) ->  | DS33: =SUM(DR33,System2!DR33,System3!DR33) ->  | DV33: 0 | DZ33: =$DZ$28*GM33 ->  | EA33: 0 | EB33: 0 | EC33: 0 | ED33: 0 | EE33: 0 | EF33: =SUM(DT33:EE33) ->  | EG33: =SUM(EF33,System2!EF33,System3!EF33) ->  | EH33: =MIN(EG33,AJ33) ->  | EI33: =IF($EH33,DT33/$EG33,0) ->  | EJ33: =IF($EH33,DU33/$EG33,0) ->  | EK33: =IF($EH33,DV33/$EG33,0) ->  | EL33: =IF($EH33,DW33/$EG33,0) ->  | EM33: =IF($EH33,DX33/$EG33,0) ->  | EN33: =IF($EH33,DY33/$EG33,0) ->  | EO33: =IF($EH33,DZ33/$EG33,0) ->  | EP33: =IF($EH33,EA33/$EG33,0) ->  | EQ33: =IF($EH33,EB33/$EG33,0) ->  | ER33: =IF($EH33,EC33/$EG33,0) ->  | ES33: =IF($EH33,ED33/$EG33,0) ->  | ET33: =IF($EH33,EE33/$EG33,0) ->  | FG33: =SUM(EU33:FF33) ->  | FH33: =SUM(FG33,System2!FG33,System3!FG33) ->  | FI33: =IF(IF(FI$28>=1,COUNTIF(FI32,">0")),0,FI$31) -> 0 | FJ33: =IF(OR(D33>AT$28,IF(FJ$28>=3,COUNTIF(FJ32,">0")+COUNTIF(D395:D396,">"&AT$28)+COUNTIF(D32,">"&AT$28),IF(FJ$28=2,COUNTIF(FJ32,">0")+COUNTIF(D396,">"&AT$28)+COUNTIF(D32,">"&AT$28),IF(FJ$28=1,COUNTIF(FJ32,">0")+COUNTIF(D32,">"&AT$28),0)))),0,FJ$31) -> 0 | FK33: =IF(IF(FK$28>=1,COUNTIF(FK32,">0")),0,FK$31) -> 0 | FL33: =IF(OR(D33>AT$28,IF(FL$28>=3,COUNTIF(FL32,">0")+COUNTIF(D395:D396,">"&AT$28)+COUNTIF(D32,">"&AT$28),IF(FL$28=2,COUNTIF(FL32,">0")+COUNTIF(D396,">"&AT$28)+COUNTIF(D32,">"&AT$28),IF(FL$28=1,COUNTIF(FL32,">0")+COUNTIF(D32,">"&AT$28),0)))),0,FL$31) -> 0 | FW33: =ROUNDDOWN(GG33-EU33,0) ->  | FX33: =ROUNDDOWN(GH33-EV33,0) ->  | FY33: =ROUNDDOWN(GI33-EW33,0) ->  | FZ33: =ROUNDDOWN(GJ33-EX33,0) ->  | GA33: =ROUNDDOWN(GK33-EY33,0) ->  | GB33: =ROUNDDOWN(GL33-EZ33,0) ->  | GC33: =ROUNDDOWN(GM33-FA33,0) ->  | GD33: =ROUNDDOWN(GN33-FB33,0) ->  | GE33: =ROUNDDOWN(GO33-FC33,0) ->  | GF33: =ROUNDDOWN(GP33-FD33,0) ->  | GG33: =$GG$31*WaterFittings!BO8 ->  | GH33: =$GH$31*WaterFittings!BP8 ->  | GI33: =$GI$31*WaterFittings!BQ8 -> 0 | GJ33: =GJ$31*AirCond!BD7 ->  | GK33: =GK$31*AirCond!BE7 ->  | GL33: =GL$31*AirCond!BF7 ->  | GM33: =GM$31*AirCond!BG7 ->  | GN33: =GN$31*WaterFittings!BS8 -> 0 | GO33: =GO$31*WaterFittings!BT8 -> 0 | GP33: =GP$31*WaterFittings!BU8 -> 0
C34: 3 | D34: 0 | E34: 0 | J34: =ROUNDDOWN(BY34*BQ34,0) ->  | K34: =ROUNDDOWN(BZ34*BQ34,0) ->  | L34: =ROUNDDOWN(CA34*BQ34,0) ->  | N34: =ROUNDDOWN(SUM(BR34:BT34)*BQ34,0) ->  | AC34: 3 | AD34: =SUM(SUMPRODUCT(AF$20:AJ$20,Q34:U34),SUMPRODUCT(AF$20:AJ$20,System2!Q34:U34),SUMPRODUCT(AF$20:AJ$20,System3!Q34:U34)) ->  | AE34: =SUM(SUMPRODUCT(AF$21:AJ$21,W34:AA34),SUMPRODUCT(AF$21:AJ$21,System2!W34:AA34),SUMPRODUCT(AF$21:AJ$21,System3!W34:AA34)) ->  | AF34: =WaterFittings!BN9 ->  | AI34: =MIN(AirCond!BL8,P$21) -> 0 | AK34: =MIN(ROUNDDOWN(AJ34-FH34,0),ROUNDDOWN(P$21*0.3,0),ROUNDDOWN(SUM(SUMPRODUCT(I$4:I$15,L$4:L$15),SUMPRODUCT(System2!I$4:I$15,System2!L$4:L$15),SUMPRODUCT(System3!I$4:I$15,System3!L$4:L$15))*0.3,0)) ->  | AL34: 0 | AN34: =ROUNDDOWN(FE34,0) ->  | AP34: 0 | AT34: 0 | AX34: =IF(IF(AX$28>=2,COUNTIF(AX32:AX33,">0"),IF(AX$28=1,COUNTIF(AX33,">0"))),0,AX$31) -> 0 | AY34: =IF(OR(D34>AT$28,IF(AY$28>=3,COUNTIF(AY32:AY33,">0")+COUNTIF(D396,">"&AT$28)+COUNTIF(D32:D33,">"&AT$28),IF(AY$28=2,COUNTIF(AY32:AY33,">0")+COUNTIF(D32:D33,">"&AT$28),IF(AY$28=1,COUNTIF(AY33,">0")+COUNTIF(D33,">"&AT$28),0)))),0,AY$31) -> 0 | AZ34: =IF(IF(AZ$28>=2,COUNTIF(AZ32:AZ33,">0"),IF(AZ$28=1,COUNTIF(AZ33,">0"))),0,AZ$31) -> 0 | BA34: =IF(OR(D34>AT$28,IF(BA$28>=3,COUNTIF(BA32:BA33,">0")+COUNTIF(D396,">"&AT$28)+COUNTIF(D32:D33,">"&AT$28),IF(BA$28=2,COUNTIF(BA32:BA33,">0")+COUNTIF(D32:D33,">"&AT$28),IF(BA$28=1,COUNTIF(BA33,">0")+COUNTIF(D33,">"&AT$28),0)))),0,BA$31) -> 0 | BL34: 0 | CQ34: =SUM(CE34:CP34) ->  | CR34: =SUM(CQ34,System2!CQ34,System3!CQ34) ->  | DS34: =SUM(DR34,System2!DR34,System3!DR34) ->  | DV34: 0 | EA34: 0 | EB34: 0 | EC34: 0 | ED34: 0 | EE34: 0 | EG34: =SUM(EF34,System2!EF34,System3!EF34) ->  | FH34: =SUM(FG34,System2!FG34,System3!FG34) ->  | FI34: =IF(IF(FI$28>=2,COUNTIF(FI32:FI33,">0"),IF(FI$28=1,COUNTIF(FI33,">0"))),0,FI$31) -> 0 | FJ34: =IF(OR(D34>AT$28,IF(FJ$28>=3,COUNTIF(FJ32:FJ33,">0")+COUNTIF(D396,">"&AT$28)+COUNTIF(D32:D33,">"&AT$28),IF(FJ$28=2,COUNTIF(FJ32:FJ33,">0")+COUNTIF(D32:D33,">"&AT$28),IF(FJ$28=1,COUNTIF(FJ33,">0")+COUNTIF(D33,">"&AT$28),0)))),0,FJ$31) -> 0 | FK34: =IF(IF(FK$28>=2,COUNTIF(FK32:FK33,">0"),IF(FK$28=1,COUNTIF(FK33,">0"))),0,FK$31) -> 0 | FL34: =IF(OR(D34>AT$28,IF(FL$28>=3,COUNTIF(FL32:FL33,">0")+COUNTIF(D396,">"&AT$28)+COUNTIF(D32:D33,">"&AT$28),IF(FL$28=2,COUNTIF(FL32:FL33,">0")+COUNTIF(D32:D33,">"&AT$28),IF(FL$28=1,COUNTIF(FL33,">0")+COUNTIF(D33,">"&AT$28),0)))),0,FL$31) -> 0 | GG34: =$GG$31*WaterFittings!BO9 ->  | GH34: =$GH$31*WaterFittings!BP9 ->  | GI34: =$GI$31*WaterFittings!BQ9 -> 0 | GJ34: =GJ$31*AirCond!BD8 ->  | GK34: =GK$31*AirCond!BE8 ->  | GL34: =GL$31*AirCond!BF8 ->  | GM34: =GM$31*AirCond!BG8 ->  | GN34: =GN$31*WaterFittings!BS9 -> 0 | GO34: =GO$31*WaterFittings!BT9 -> 0 | GP34: =GP$31*WaterFittings!BU9 -> 0
C35: 4 | D35: 0 | E35: 0 | J35: =ROUNDDOWN(BY35*BQ35,0) ->  | K35: =ROUNDDOWN(BZ35*BQ35,0) ->  | L35: =ROUNDDOWN(CA35*BQ35,0) ->  | N35: =ROUNDDOWN(SUM(BR35:BT35)*BQ35,0) ->  | AC35: 4 | AD35: =SUM(SUMPRODUCT(AF$20:AJ$20,Q35:U35),SUMPRODUCT(AF$20:AJ$20,System2!Q35:U35),SUMPRODUCT(AF$20:AJ$20,System3!Q35:U35)) ->  | AE35: =SUM(SUMPRODUCT(AF$21:AJ$21,W35:AA35),SUMPRODUCT(AF$21:AJ$21,System2!W35:AA35),SUMPRODUCT(AF$21:AJ$21,System3!W35:AA35)) ->  | AF35: =WaterFittings!BN10 ->  | AI35: =MIN(AirCond!BL9,P$21) -> 0 | AK35: =MIN(ROUNDDOWN(AJ35-FH35,0),ROUNDDOWN(P$21*0.3,0),ROUNDDOWN(SUM(SUMPRODUCT(I$4:I$15,L$4:L$15),SUMPRODUCT(System2!I$4:I$15,System2!L$4:L$15),SUMPRODUCT(System3!I$4:I$15,System3!L$4:L$15))*0.3,0)) ->  | AL35: 0 | AP35: 0 | AT35: 0 | AX35: =IF(IF(AX$28>=3,COUNTIF(AX32:AX34,">0"),IF(AX$28=2,COUNTIF(AX33:AX34,">0"),IF(AX$28=1,COUNTIF(AX34,">0")))),0,AX$31) -> 0 | AY35: =IF(OR(D35>AT$28,IF(AY$28>=3,COUNTIF(AY32:AY34,">0")+COUNTIF(D32:D34,">"&AT$28),IF(AY$28=2,COUNTIF(AY33:AY34,">0")+COUNTIF(D33:D34,">"&AT$28),IF(AY$28=1,COUNTIF(AY34,">0")+COUNTIF(D34,">"&AT$28),0)))),0,AY$31) -> 0 | AZ35: =IF(IF(AZ$28>=3,COUNTIF(AZ32:AZ34,">0"),IF(AZ$28=2,COUNTIF(AZ33:AZ34,">0"),IF(AZ$28=1,COUNTIF(AZ34,">0")))),0,AZ$31) -> 0 | BA35: =IF(OR(D35>AT$28,IF(BA$28>=3,COUNTIF(BA32:BA34,">0")+COUNTIF(D32:D34,">"&AT$28),IF(BA$28=2,COUNTIF(BA33:BA34,">0")+COUNTIF(D33:D34,">"&AT$28),IF(BA$28=1,COUNTIF(BA34,">0")+COUNTIF(D34,">"&AT$28),0)))),0,BA$31) -> 0 | BL35: 0 | CQ35: =SUM(CE35:CP35) ->  | CR35: =SUM(CQ35,System2!CQ35,System3!CQ35) ->  | DS35: =SUM(DR35,System2!DR35,System3!DR35) ->  | DV35: 0 | EA35: 0 | EB35: 0 | EC35: 0 | ED35: 0 | EE35: 0 | EG35: =SUM(EF35,System2!EF35,System3!EF35) ->  | FH35: =SUM(FG35,System2!FG35,System3!FG35) ->  | FI35: =IF(IF(FI$28>=3,COUNTIF(FI32:FI34,">0"),IF(FI$28=2,COUNTIF(FI33:FI34,">0"),IF(FI$28=1,COUNTIF(FI34,">0")))),0,FI$31) -> 0 | FJ35: =IF(OR(D35>AT$28,IF(FJ$28>=3,COUNTIF(FJ32:FJ34,">0")+COUNTIF(D32:D34,">"&AT$28),IF(FJ$28=2,COUNTIF(FJ33:FJ34,">0")+COUNTIF(D33:D34,">"&AT$28),IF(FJ$28=1,COUNTIF(FJ34,">0")+COUNTIF(D34,">"&AT$28),0)))),0,FJ$31) -> 0 | FK35: 0 | FL35: =IF(OR(D35>AT$28,IF(FL$28>=3,COUNTIF(FL32:FL34,">0")+COUNTIF(D32:D34,">"&AT$28),IF(FL$28=2,COUNTIF(FL33:FL34,">0")+COUNTIF(D33:D34,">"&AT$28),IF(FL$28=1,COUNTIF(FL34,">0")+COUNTIF(D34,">"&AT$28),0)))),0,FL$31) -> 0 | GG35: =$GG$31*WaterFittings!BO10 ->  | GH35: =$GH$31*WaterFittings!BP10 ->  | GI35: =$GI$31*WaterFittings!BQ10 -> 0 | GJ35: =GJ$31*AirCond!BD9 ->  | GK35: =GK$31*AirCond!BE9 ->  | GL35: =GL$31*AirCond!BF9 ->  | GM35: =GM$31*AirCond!BG9 ->  | GN35: =GN$31*WaterFittings!BS10 -> 0 | GO35: =GO$31*WaterFittings!BT10 -> 0 | GP35: =GP$31*WaterFittings!BU10 -> 0
C36: 5 | D36: 0 | E36: 0 | AC36: 5 | AD36: =SUM(SUMPRODUCT(AF$20:AJ$20,Q36:U36),SUMPRODUCT(AF$20:AJ$20,System2!Q36:U36),SUMPRODUCT(AF$20:AJ$20,System3!Q36:U36)) ->  | AE36: =SUM(SUMPRODUCT(AF$21:AJ$21,W36:AA36),SUMPRODUCT(AF$21:AJ$21,System2!W36:AA36),SUMPRODUCT(AF$21:AJ$21,System3!W36:AA36)) ->  | AF36: =WaterFittings!BN11 ->  | AI36: =MIN(AirCond!BL10,P$21) -> 0 | AK36: =MIN(ROUNDDOWN(AJ36-FH36,0),ROUNDDOWN(P$21*0.3,0),ROUNDDOWN(SUM(SUMPRODUCT(I$4:I$15,L$4:L$15),SUMPRODUCT(System2!I$4:I$15,System2!L$4:L$15),SUMPRODUCT(System3!I$4:I$15,System3!L$4:L$15))*0.3,0)) ->  | AL36: 0 | AP36: 0 | AT36: 0 | AX36: 0 | AY36: 0 | AZ36: 0 | BA36: 0 | BL36: 0 | CR36: =SUM(CQ36,System2!CQ36,System3!CQ36) ->  | DS36: =SUM(DR36,System2!DR36,System3!DR36) ->  | DV36: 0 | EA36: 0 | EB36: 0 | EC36: 0 | ED36: 0 | EE36: 0 | EG36: =SUM(EF36,System2!EF36,System3!EF36) ->  | FH36: =SUM(FG36,System2!FG36,System3!FG36) ->  | FI36: 0 | FJ36: 0 | FK36: 0 | FL36: 0 | GG36: =$GG$31*WaterFittings!BO11 ->  | GH36: =$GH$31*WaterFittings!BP11 ->  | GI36: =$GI$31*WaterFittings!BQ11 -> 0 | GJ36: =GJ$31*AirCond!BD10 ->  | GK36: =GK$31*AirCond!BE10 ->  | GL36: =GL$31*AirCond!BF10 ->  | GM36: =GM$31*AirCond!BG10 ->  | GN36: =GN$31*WaterFittings!BS11 -> 0 | GO36: =GO$31*WaterFittings!BT11 -> 0 | GP36: =GP$31*WaterFittings!BU11 -> 0
C37: 6 | D37: 42.5 | E37: 0 | AC37: 6 | AD37: =SUM(SUMPRODUCT(AF$20:AJ$20,Q37:U37),SUMPRODUCT(AF$20:AJ$20,System2!Q37:U37),SUMPRODUCT(AF$20:AJ$20,System3!Q37:U37)) ->  | AE37: =SUM(SUMPRODUCT(AF$21:AJ$21,W37:AA37),SUMPRODUCT(AF$21:AJ$21,System2!W37:AA37),SUMPRODUCT(AF$21:AJ$21,System3!W37:AA37)) ->  | AF37: =WaterFittings!BN12 ->  | AI37: =MIN(AirCond!BL11,P$21) -> 0 | AK37: =MIN(ROUNDDOWN(AJ37-FH37,0),ROUNDDOWN(P$21*0.3,0),ROUNDDOWN(SUM(SUMPRODUCT(I$4:I$15,L$4:L$15),SUMPRODUCT(System2!I$4:I$15,System2!L$4:L$15),SUMPRODUCT(System3!I$4:I$15,System3!L$4:L$15))*0.3,0)) ->  | AL37: 0 | AP37: 0 | AT37: 0 | AX37: 0 | AY37: 0 | AZ37: 0 | BA37: 0 | BL37: 0 | CR37: =SUM(CQ37,System2!CQ37,System3!CQ37) ->  | DS37: =SUM(DR37,System2!DR37,System3!DR37) ->  | DV37: 0 | EA37: 0 | EB37: 0 | EC37: 0 | ED37: 0 | EE37: 0 | EG37: =SUM(EF37,System2!EF37,System3!EF37) ->  | FH37: =SUM(FG37,System2!FG37,System3!FG37) ->  | FI37: 0 | FJ37: 0 | FK37: 0 | FL37: 0 | GG37: =$GG$31*WaterFittings!BO12 ->  | GH37: =$GH$31*WaterFittings!BP12 ->  | GI37: =$GI$31*WaterFittings!BQ12 -> 0 | GJ37: =GJ$31*AirCond!BD11 ->  | GK37: =GK$31*AirCond!BE11 ->  | GL37: =GL$31*AirCond!BF11 ->  | GM37: =GM$31*AirCond!BG11 ->  | GN37: =GN$31*WaterFittings!BS12 -> 0 | GO37: =GO$31*WaterFittings!BT12 -> 0 | GP37: =GP$31*WaterFittings!BU12 -> 0
C38: 7 | D38: 17.5 | E38: 0 | AC38: 7 | AD38: =SUM(SUMPRODUCT(AF$20:AJ$20,Q38:U38),SUMPRODUCT(AF$20:AJ$20,System2!Q38:U38),SUMPRODUCT(AF$20:AJ$20,System3!Q38:U38)) ->  | AE38: =SUM(SUMPRODUCT(AF$21:AJ$21,W38:AA38),SUMPRODUCT(AF$21:AJ$21,System2!W38:AA38),SUMPRODUCT(AF$21:AJ$21,System3!W38:AA38)) ->  | AF38: =WaterFittings!BN13 ->  | AI38: =MIN(AirCond!BL12,P$21) -> 0 | AK38: =MIN(ROUNDDOWN(AJ38-FH38,0),ROUNDDOWN(P$21*0.3,0),ROUNDDOWN(SUM(SUMPRODUCT(I$4:I$15,L$4:L$15),SUMPRODUCT(System2!I$4:I$15,System2!L$4:L$15),SUMPRODUCT(System3!I$4:I$15,System3!L$4:L$15))*0.3,0)) ->  | AL38: 0 | AP38: 0 | AT38: 0 | AX38: 0 | AY38: 0 | AZ38: 0 | BA38: 0 | BL38: 0 | CR38: =SUM(CQ38,System2!CQ38,System3!CQ38) ->  | DS38: =SUM(DR38,System2!DR38,System3!DR38) ->  | DV38: 0 | EA38: 0 | EB38: 0 | EC38: 0 | ED38: 0 | EE38: 0 | EG38: =SUM(EF38,System2!EF38,System3!EF38) ->  | FH38: =SUM(FG38,System2!FG38,System3!FG38) ->  | FI38: 0 | FJ38: 0 | FK38: 0 | FL38: 0 | GG38: =$GG$31*WaterFittings!BO13 ->  | GH38: =$GH$31*WaterFittings!BP13 ->  | GI38: =$GI$31*WaterFittings!BQ13 -> 0 | GJ38: =GJ$31*AirCond!BD12 ->  | GK38: =GK$31*AirCond!BE12 ->  | GL38: =GL$31*AirCond!BF12 ->  | GM38: =GM$31*AirCond!BG12 ->  | GN38: =GN$31*WaterFittings!BS13 -> 0 | GO38: =GO$31*WaterFittings!BT13 -> 0 | GP38: =GP$31*WaterFittings!BU13 -> 0
C39: 8 | D39: 63 | E39: 0 | AA39: =ROUNDDOWN(FF39,0) ->  | AC39: 8 | AD39: =SUM(SUMPRODUCT(AF$20:AJ$20,Q39:U39),SUMPRODUCT(AF$20:AJ$20,System2!Q39:U39),SUMPRODUCT(AF$20:AJ$20,System3!Q39:U39)) ->  | AE39: =SUM(SUMPRODUCT(AF$21:AJ$21,W39:AA39),SUMPRODUCT(AF$21:AJ$21,System2!W39:AA39),SUMPRODUCT(AF$21:AJ$21,System3!W39:AA39)) ->  | AF39: =WaterFittings!BN14 ->  | AI39: =MIN(AirCond!BL13,P$21) -> 0 | AK39: =MIN(ROUNDDOWN(AJ39-FH39,0),ROUNDDOWN(P$21*0.3,0),ROUNDDOWN(SUM(SUMPRODUCT(I$4:I$15,L$4:L$15),SUMPRODUCT(System2!I$4:I$15,System2!L$4:L$15),SUMPRODUCT(System3!I$4:I$15,System3!L$4:L$15))*0.3,0)) ->  | AL39: 0 | AP39: 0 | AT39: 0 | AX39: 0 | AY39: 0 | AZ39: 0 | BA39: 0 | BL39: 0 | CR39: =SUM(CQ39,System2!CQ39,System3!CQ39) ->  | DS39: =SUM(DR39,System2!DR39,System3!DR39) ->  | DV39: 0 | EA39: 0 | EB39: 0 | EC39: 0 | ED39: 0 | EE39: 0 | EG39: =SUM(EF39,System2!EF39,System3!EF39) ->  | FH39: =SUM(FG39,System2!FG39,System3!FG39) ->  | FI39: 0 | FJ39: 0 | FK39: 0 | FL39: 0 | GG39: =$GG$31*WaterFittings!BO14 ->  | GH39: =$GH$31*WaterFittings!BP14 ->  | GI39: =$GI$31*WaterFittings!BQ14 -> 0 | GJ39: =GJ$31*AirCond!BD13 ->  | GK39: =GK$31*AirCond!BE13 ->  | GL39: =GL$31*AirCond!BF13 ->  | GM39: =GM$31*AirCond!BG13 ->  | GN39: =GN$31*WaterFittings!BS14 -> 0 | GO39: =GO$31*WaterFittings!BT14 -> 0 | GP39: =GP$31*WaterFittings!BU14 -> 0
C40: 9 | D40: 0 | E40: 0 | AC40: 9 | AD40: =SUM(SUMPRODUCT(AF$20:AJ$20,Q40:U40),SUMPRODUCT(AF$20:AJ$20,System2!Q40:U40),SUMPRODUCT(AF$20:AJ$20,System3!Q40:U40)) ->  | AE40: =SUM(SUMPRODUCT(AF$21:AJ$21,W40:AA40),SUMPRODUCT(AF$21:AJ$21,System2!W40:AA40),SUMPRODUCT(AF$21:AJ$21,System3!W40:AA40)) ->  | AF40: =WaterFittings!BN15 ->  | AI40: =MIN(AirCond!BL14,P$21) -> 0 | AK40: =MIN(ROUNDDOWN(AJ40-FH40,0),ROUNDDOWN(P$21*0.3,0),ROUNDDOWN(SUM(SUMPRODUCT(I$4:I$15,L$4:L$15),SUMPRODUCT(System2!I$4:I$15,System2!L$4:L$15),SUMPRODUCT(System3!I$4:I$15,System3!L$4:L$15))*0.3,0)) ->  | AL40: 0 | AP40: 0 | AT40: 0 | AX40: 0 | AY40: 0 | AZ40: 0 | BA40: 0 | BL40: 0 | CR40: =SUM(CQ40,System2!CQ40,System3!CQ40) ->  | DS40: =SUM(DR40,System2!DR40,System3!DR40) ->  | DV40: 0 | EA40: 0 | EB40: 0 | EC40: 0 | ED40: 0 | EE40: 0 | EG40: =SUM(EF40,System2!EF40,System3!EF40) ->  | FH40: =SUM(FG40,System2!FG40,System3!FG40) ->  | FI40: 0 | FJ40: 0 | FK40: 0 | FL40: 0 | GG40: =$GG$31*WaterFittings!BO15 ->  | GH40: =$GH$31*WaterFittings!BP15 ->  | GI40: =$GI$31*WaterFittings!BQ15 -> 0 | GJ40: =GJ$31*AirCond!BD14 ->  | GK40: =GK$31*AirCond!BE14 ->  | GL40: =GL$31*AirCond!BF14 ->  | GM40: =GM$31*AirCond!BG14 ->  | GN40: =GN$31*WaterFittings!BS15 -> 0 | GO40: =GO$31*WaterFittings!BT15 -> 0 | GP40: =GP$31*WaterFittings!BU15 -> 0
C41: 10 | D41: 0 | E41: 0 | AC41: 10 | AD41: =SUM(SUMPRODUCT(AF$20:AJ$20,Q41:U41),SUMPRODUCT(AF$20:AJ$20,System2!Q41:U41),SUMPRODUCT(AF$20:AJ$20,System3!Q41:U41)) ->  | AE41: =SUM(SUMPRODUCT(AF$21:AJ$21,W41:AA41),SUMPRODUCT(AF$21:AJ$21,System2!W41:AA41),SUMPRODUCT(AF$21:AJ$21,System3!W41:AA41)) ->  | AF41: =WaterFittings!BN16 ->  | AI41: =MIN(AirCond!BL15,P$21) -> 0 | AK41: =MIN(ROUNDDOWN(AJ41-FH41,0),ROUNDDOWN(P$21*0.3,0),ROUNDDOWN(SUM(SUMPRODUCT(I$4:I$15,L$4:L$15),SUMPRODUCT(System2!I$4:I$15,System2!L$4:L$15),SUMPRODUCT(System3!I$4:I$15,System3!L$4:L$15))*0.3,0)) ->  | AL41: 0 | AP41: 0 | AT41: 0 | AX41: 0 | AY41: 0 | AZ41: 0 | BA41: 0 | BL41: 0 | CR41: =SUM(CQ41,System2!CQ41,System3!CQ41) ->  | DS41: =SUM(DR41,System2!DR41,System3!DR41) ->  | DV41: 0 | EA41: 0 | EB41: 0 | EC41: 0 | ED41: 0 | EE41: 0 | EG41: =SUM(EF41,System2!EF41,System3!EF41) ->  | FH41: =SUM(FG41,System2!FG41,System3!FG41) ->  | FI41: 0 | FJ41: 0 | FK41: 0 | FL41: 0 | GG41: =$GG$31*WaterFittings!BO16 ->  | GH41: =$GH$31*WaterFittings!BP16 ->  | GI41: =$GI$31*WaterFittings!BQ16 -> 0 | GJ41: =GJ$31*AirCond!BD15 ->  | GK41: =GK$31*AirCond!BE15 ->  | GL41: =GL$31*AirCond!BF15 ->  | GM41: =GM$31*AirCond!BG15 ->  | GN41: =GN$31*WaterFittings!BS16 -> 0 | GO41: =GO$31*WaterFittings!BT16 -> 0 | GP41: =GP$31*WaterFittings!BU16 -> 0
C42: 11 | D42: 0 | E42: 0 | AC42: 11 | AD42: =SUM(SUMPRODUCT(AF$20:AJ$20,Q42:U42),SUMPRODUCT(AF$20:AJ$20,System2!Q42:U42),SUMPRODUCT(AF$20:AJ$20,System3!Q42:U42)) ->  | AE42: =SUM(SUMPRODUCT(AF$21:AJ$21,W42:AA42),SUMPRODUCT(AF$21:AJ$21,System2!W42:AA42),SUMPRODUCT(AF$21:AJ$21,System3!W42:AA42)) ->  | AF42: =WaterFittings!BN17 ->  | AI42: =MIN(AirCond!BL16,P$21) -> 0 | AK42: =MIN(ROUNDDOWN(AJ42-FH42,0),ROUNDDOWN(P$21*0.3,0),ROUNDDOWN(SUM(SUMPRODUCT(I$4:I$15,L$4:L$15),SUMPRODUCT(System2!I$4:I$15,System2!L$4:L$15),SUMPRODUCT(System3!I$4:I$15,System3!L$4:L$15))*0.3,0)) ->  | AL42: 0 | AP42: 0 | AT42: 0 | AX42: 0 | AY42: 0 | AZ42: 0 | BA42: 0 | BL42: 0 | CR42: =SUM(CQ42,System2!CQ42,System3!CQ42) ->  | DS42: =SUM(DR42,System2!DR42,System3!DR42) ->  | DV42: 0 | EA42: 0 | EB42: 0 | EC42: 0 | ED42: 0 | EE42: 0 | EG42: =SUM(EF42,System2!EF42,System3!EF42) ->  | FG42: =SUM(EU42:FF42) ->  | FH42: =SUM(FG42,System2!FG42,System3!FG42) ->  | FI42: 0 | FJ42: 0 | FK42: 0 | FL42: 0 | GG42: =$GG$31*WaterFittings!BO17 ->  | GH42: =$GH$31*WaterFittings!BP17 ->  | GI42: =$GI$31*WaterFittings!BQ17 -> 0 | GJ42: =GJ$31*AirCond!BD16 ->  | GK42: =GK$31*AirCond!BE16 ->  | GL42: =GL$31*AirCond!BF16 ->  | GM42: =GM$31*AirCond!BG16 ->  | GN42: =GN$31*WaterFittings!BS17 -> 0 | GO42: =GO$31*WaterFittings!BT17 -> 0 | GP42: =GP$31*WaterFittings!BU17 -> 0
C43: 12 | D43: 0 | E43: 0 | AC43: 12 | AD43: =SUM(SUMPRODUCT(AF$20:AJ$20,Q43:U43),SUMPRODUCT(AF$20:AJ$20,System2!Q43:U43),SUMPRODUCT(AF$20:AJ$20,System3!Q43:U43)) ->  | AE43: =SUM(SUMPRODUCT(AF$21:AJ$21,W43:AA43),SUMPRODUCT(AF$21:AJ$21,System2!W43:AA43),SUMPRODUCT(AF$21:AJ$21,System3!W43:AA43)) ->  | AF43: =WaterFittings!BN18 ->  | AI43: =MIN(AirCond!BL17,P$21) -> 0 | AK43: =MIN(ROUNDDOWN(AJ43-FH43,0),ROUNDDOWN(P$21*0.3,0),ROUNDDOWN(SUM(SUMPRODUCT(I$4:I$15,L$4:L$15),SUMPRODUCT(System2!I$4:I$15,System2!L$4:L$15),SUMPRODUCT(System3!I$4:I$15,System3!L$4:L$15))*0.3,0)) ->  | AL43: 0 | AP43: 0 | AT43: 0 | AX43: 0 | AY43: 0 | AZ43: 0 | BA43: 0 | BL43: 0 | CR43: =SUM(CQ43,System2!CQ43,System3!CQ43) ->  | DS43: =SUM(DR43,System2!DR43,System3!DR43) ->  | DV43: 0 | EA43: 0 | EB43: 0 | EC43: 0 | ED43: 0 | EE43: 0 | EG43: =SUM(EF43,System2!EF43,System3!EF43) ->  | FH43: =SUM(FG43,System2!FG43,System3!FG43) ->  | FI43: 0 | FJ43: 0 | FK43: 0 | FL43: 0 | GG43: =$GG$31*WaterFittings!BO18 ->  | GH43: =$GH$31*WaterFittings!BP18 ->  | GI43: =$GI$31*WaterFittings!BQ18 -> 0 | GJ43: =GJ$31*AirCond!BD17 ->  | GK43: =GK$31*AirCond!BE17 ->  | GL43: =GL$31*AirCond!BF17 ->  | GM43: =GM$31*AirCond!BG17 ->  | GN43: =GN$31*WaterFittings!BS18 -> 0 | GO43: =GO$31*WaterFittings!BT18 -> 0 | GP43: =GP$31*WaterFittings!BU18 -> 0
C44: 13 | D44: 0 | E44: 0 | AC44: 13 | AD44: =SUM(SUMPRODUCT(AF$20:AJ$20,Q44:U44),SUMPRODUCT(AF$20:AJ$20,System2!Q44:U44),SUMPRODUCT(AF$20:AJ$20,System3!Q44:U44)) ->  | AE44: =SUM(SUMPRODUCT(AF$21:AJ$21,W44:AA44),SUMPRODUCT(AF$21:AJ$21,System2!W44:AA44),SUMPRODUCT(AF$21:AJ$21,System3!W44:AA44)) ->  | AF44: =WaterFittings!BN19 ->  | AI44: =MIN(AirCond!BL18,P$21) -> 0 | AK44: =MIN(ROUNDDOWN(AJ44-FH44,0),ROUNDDOWN(P$21*0.3,0),ROUNDDOWN(SUM(SUMPRODUCT(I$4:I$15,L$4:L$15),SUMPRODUCT(System2!I$4:I$15,System2!L$4:L$15),SUMPRODUCT(System3!I$4:I$15,System3!L$4:L$15))*0.3,0)) ->  | AL44: 0 | AP44: 0 | AT44: 0 | AX44: 0 | AY44: 0 | AZ44: 0 | BA44: 0 | BL44: 0 | CR44: =SUM(CQ44,System2!CQ44,System3!CQ44) ->  | DS44: =SUM(DR44,System2!DR44,System3!DR44) ->  | DV44: 0 | EA44: 0 | EB44: 0 | EC44: 0 | ED44: 0 | EE44: 0 | EG44: =SUM(EF44,System2!EF44,System3!EF44) ->  | FH44: =SUM(FG44,System2!FG44,System3!FG44) ->  | FI44: 0 | FJ44: 0 | FK44: 0 | FL44: 0 | GG44: =$GG$31*WaterFittings!BO19 ->  | GH44: =$GH$31*WaterFittings!BP19 ->  | GI44: =$GI$31*WaterFittings!BQ19 -> 0 | GJ44: =GJ$31*AirCond!BD18 ->  | GK44: =GK$31*AirCond!BE18 ->  | GL44: =GL$31*AirCond!BF18 ->  | GM44: =GM$31*AirCond!BG18 ->  | GN44: =GN$31*WaterFittings!BS19 -> 0 | GO44: =GO$31*WaterFittings!BT19 -> 0 | GP44: =GP$31*WaterFittings!BU19 -> 0
C45: 14 | D45: 0 | E45: 0 | AC45: 14 | AD45: =SUM(SUMPRODUCT(AF$20:AJ$20,Q45:U45),SUMPRODUCT(AF$20:AJ$20,System2!Q45:U45),SUMPRODUCT(AF$20:AJ$20,System3!Q45:U45)) ->  | AE45: =SUM(SUMPRODUCT(AF$21:AJ$21,W45:AA45),SUMPRODUCT(AF$21:AJ$21,System2!W45:AA45),SUMPRODUCT(AF$21:AJ$21,System3!W45:AA45)) ->  | AF45: =WaterFittings!BN20 ->  | AI45: =MIN(AirCond!BL19,P$21) -> 0 | AK45: =MIN(ROUNDDOWN(AJ45-FH45,0),ROUNDDOWN(P$21*0.3,0),ROUNDDOWN(SUM(SUMPRODUCT(I$4:I$15,L$4:L$15),SUMPRODUCT(System2!I$4:I$15,System2!L$4:L$15),SUMPRODUCT(System3!I$4:I$15,System3!L$4:L$15))*0.3,0)) ->  | AL45: 0 | AP45: 0 | AT45: 0 | AX45: 0 | AY45: 0 | AZ45: 0 | BA45: 0 | BL45: 0 | CR45: =SUM(CQ45,System2!CQ45,System3!CQ45) ->  | DS45: =SUM(DR45,System2!DR45,System3!DR45) ->  | DV45: 0 | EA45: 0 | EB45: 0 | EC45: 0 | ED45: 0 | EE45: 0 | EG45: =SUM(EF45,System2!EF45,System3!EF45) ->  | FH45: =SUM(FG45,System2!FG45,System3!FG45) ->  | FI45: 0 | FJ45: 0 | FK45: 0 | FL45: 0 | GG45: =$GG$31*WaterFittings!BO20 ->  | GH45: =$GH$31*WaterFittings!BP20 ->  | GI45: =$GI$31*WaterFittings!BQ20 -> 0 | GJ45: =GJ$31*AirCond!BD19 ->  | GK45: =GK$31*AirCond!BE19 ->  | GL45: =GL$31*AirCond!BF19 ->  | GM45: =GM$31*AirCond!BG19 ->  | GN45: =GN$31*WaterFittings!BS20 -> 0 | GO45: =GO$31*WaterFittings!BT20 -> 0 | GP45: =GP$31*WaterFittings!BU20 -> 0
C46: 15 | D46: 0 | E46: 0 | AA46: =ROUNDDOWN(FF46,0) ->  | AC46: 15 | AD46: =SUM(SUMPRODUCT(AF$20:AJ$20,Q46:U46),SUMPRODUCT(AF$20:AJ$20,System2!Q46:U46),SUMPRODUCT(AF$20:AJ$20,System3!Q46:U46)) ->  | AE46: =SUM(SUMPRODUCT(AF$21:AJ$21,W46:AA46),SUMPRODUCT(AF$21:AJ$21,System2!W46:AA46),SUMPRODUCT(AF$21:AJ$21,System3!W46:AA46)) ->  | AF46: =WaterFittings!BN21 ->  | AI46: =MIN(AirCond!BL20,P$21) -> 0 | AK46: =MIN(ROUNDDOWN(AJ46-FH46,0),ROUNDDOWN(P$21*0.3,0),ROUNDDOWN(SUM(SUMPRODUCT(I$4:I$15,L$4:L$15),SUMPRODUCT(System2!I$4:I$15,System2!L$4:L$15),SUMPRODUCT(System3!I$4:I$15,System3!L$4:L$15))*0.3,0)) ->  | AL46: 0 | AP46: 0 | AT46: 0 | AX46: 0 | AY46: 0 | AZ46: 0 | BA46: 0 | BL46: 0 | CR46: =SUM(CQ46,System2!CQ46,System3!CQ46) ->  | DS46: =SUM(DR46,System2!DR46,System3!DR46) ->  | DV46: 0 | EA46: 0 | EB46: 0 | EC46: 0 | ED46: 0 | EE46: 0 | EG46: =SUM(EF46,System2!EF46,System3!EF46) ->  | FH46: =SUM(FG46,System2!FG46,System3!FG46) ->  | FI46: 0 | FJ46: 0 | FK46: 0 | FL46: 0 | GG46: =$GG$31*WaterFittings!BO21 ->  | GH46: =$GH$31*WaterFittings!BP21 ->  | GI46: =$GI$31*WaterFittings!BQ21 -> 0 | GJ46: =GJ$31*AirCond!BD20 ->  | GK46: =GK$31*AirCond!BE20 ->  | GL46: =GL$31*AirCond!BF20 ->  | GM46: =GM$31*AirCond!BG20 ->  | GN46: =GN$31*WaterFittings!BS21 -> 0 | GO46: =GO$31*WaterFittings!BT21 -> 0 | GP46: =GP$31*WaterFittings!BU21 -> 0
C47: =C46+1 -> 16 | D47: 0 | E47: 0 | AC47: 16 | AD47: =SUM(SUMPRODUCT(AF$20:AJ$20,Q47:U47),SUMPRODUCT(AF$20:AJ$20,System2!Q47:U47),SUMPRODUCT(AF$20:AJ$20,System3!Q47:U47)) ->  | AE47: =SUM(SUMPRODUCT(AF$21:AJ$21,W47:AA47),SUMPRODUCT(AF$21:AJ$21,System2!W47:AA47),SUMPRODUCT(AF$21:AJ$21,System3!W47:AA47)) ->  | AF47: =WaterFittings!BN22 ->  | AI47: =MIN(AirCond!BL21,P$21) -> 0 | AK47: =MIN(ROUNDDOWN(AJ47-FH47,0),ROUNDDOWN(P$21*0.3,0),ROUNDDOWN(SUM(SUMPRODUCT(I$4:I$15,L$4:L$15),SUMPRODUCT(System2!I$4:I$15,System2!L$4:L$15),SUMPRODUCT(System3!I$4:I$15,System3!L$4:L$15))*0.3,0)) ->  | AL47: 0 | AP47: 0 | AT47: 0 | AX47: 0 | AY47: 0 | AZ47: 0 | BA47: 0 | BL47: 0 | CR47: =SUM(CQ47,System2!CQ47,System3!CQ47) ->  | DS47: =SUM(DR47,System2!DR47,System3!DR47) ->  | DV47: 0 | EA47: 0 | EB47: 0 | EC47: 0 | ED47: 0 | EE47: 0 | EG47: =SUM(EF47,System2!EF47,System3!EF47) ->  | FH47: =SUM(FG47,System2!FG47,System3!FG47) ->  | FI47: 0 | FJ47: 0 | FK47: 0 | FL47: 0 | GG47: =$GG$31*WaterFittings!BO22 ->  | GH47: =$GH$31*WaterFittings!BP22 ->  | GI47: =$GI$31*WaterFittings!BQ22 -> 0 | GJ47: =GJ$31*AirCond!BD21 ->  | GK47: =GK$31*AirCond!BE21 ->  | GL47: =GL$31*AirCond!BF21 ->  | GM47: =GM$31*AirCond!BG21 ->  | GN47: =GN$31*WaterFittings!BS22 -> 0 | GO47: =GO$31*WaterFittings!BT22 -> 0 | GP47: =GP$31*WaterFittings!BU22 -> 0
C48: 17 | D48: 1.5 | E48: 0 | AC48: 17 | AD48: =SUM(SUMPRODUCT(AF$20:AJ$20,Q48:U48),SUMPRODUCT(AF$20:AJ$20,System2!Q48:U48),SUMPRODUCT(AF$20:AJ$20,System3!Q48:U48)) ->  | AE48: =SUM(SUMPRODUCT(AF$21:AJ$21,W48:AA48),SUMPRODUCT(AF$21:AJ$21,System2!W48:AA48),SUMPRODUCT(AF$21:AJ$21,System3!W48:AA48)) ->  | AF48: =WaterFittings!BN23 ->  | AI48: =MIN(AirCond!BL22,P$21) -> 0 | AK48: =MIN(ROUNDDOWN(AJ48-FH48,0),ROUNDDOWN(P$21*0.3,0),ROUNDDOWN(SUM(SUMPRODUCT(I$4:I$15,L$4:L$15),SUMPRODUCT(System2!I$4:I$15,System2!L$4:L$15),SUMPRODUCT(System3!I$4:I$15,System3!L$4:L$15))*0.3,0)) ->  | AL48: 0 | AP48: 0 | AT48: 0 | AX48: 0 | AY48: 0 | AZ48: 0 | BA48: 0 | BL48: 0 | CR48: =SUM(CQ48,System2!CQ48,System3!CQ48) ->  | DS48: =SUM(DR48,System2!DR48,System3!DR48) ->  | DV48: 0 | EA48: 0 | EB48: 0 | EC48: 0 | ED48: 0 | EE48: 0 | EG48: =SUM(EF48,System2!EF48,System3!EF48) ->  | FH48: =SUM(FG48,System2!FG48,System3!FG48) ->  | FI48: 0 | FJ48: 0 | FK48: 0 | FL48: 0 | GG48: =$GG$31*WaterFittings!BO23 ->  | GH48: =$GH$31*WaterFittings!BP23 ->  | GI48: =$GI$31*WaterFittings!BQ23 -> 0 | GJ48: =GJ$31*AirCond!BD22 ->  | GK48: =GK$31*AirCond!BE22 ->  | GL48: =GL$31*AirCond!BF22 ->  | GM48: =GM$31*AirCond!BG22 ->  | GN48: =GN$31*WaterFittings!BS23 -> 0 | GO48: =GO$31*WaterFittings!BT23 -> 0 | GP48: =GP$31*WaterFittings!BU23 -> 0
C49: 18 | D49: 4.5 | E49: 0 | AC49: 18 | AD49: =SUM(SUMPRODUCT(AF$20:AJ$20,Q49:U49),SUMPRODUCT(AF$20:AJ$20,System2!Q49:U49),SUMPRODUCT(AF$20:AJ$20,System3!Q49:U49)) ->  | AE49: =SUM(SUMPRODUCT(AF$21:AJ$21,W49:AA49),SUMPRODUCT(AF$21:AJ$21,System2!W49:AA49),SUMPRODUCT(AF$21:AJ$21,System3!W49:AA49)) ->  | AF49: =WaterFittings!BN24 ->  | AI49: =MIN(AirCond!BL23,P$21) -> 0 | AK49: =MIN(ROUNDDOWN(AJ49-FH49,0),ROUNDDOWN(P$21*0.3,0),ROUNDDOWN(SUM(SUMPRODUCT(I$4:I$15,L$4:L$15),SUMPRODUCT(System2!I$4:I$15,System2!L$4:L$15),SUMPRODUCT(System3!I$4:I$15,System3!L$4:L$15))*0.3,0)) ->  | AL49: 0 | AP49: 0 | AT49: 0 | AX49: 0 | AY49: 0 | AZ49: 0 | BA49: 0 | BL49: 0 | CR49: =SUM(CQ49,System2!CQ49,System3!CQ49) ->  | DS49: =SUM(DR49,System2!DR49,System3!DR49) ->  | DV49: 0 | EA49: 0 | EB49: 0 | EC49: 0 | ED49: 0 | EE49: 0 | EG49: =SUM(EF49,System2!EF49,System3!EF49) ->  | FH49: =SUM(FG49,System2!FG49,System3!FG49) ->  | FI49: 0 | FJ49: 0 | FK49: 0 | FL49: 0 | GG49: =$GG$31*WaterFittings!BO24 ->  | GH49: =$GH$31*WaterFittings!BP24 ->  | GI49: =$GI$31*WaterFittings!BQ24 -> 0 | GJ49: =GJ$31*AirCond!BD23 ->  | GK49: =GK$31*AirCond!BE23 ->  | GL49: =GL$31*AirCond!BF23 ->  | GM49: =GM$31*AirCond!BG23 ->  | GN49: =GN$31*WaterFittings!BS24 -> 0 | GO49: =GO$31*WaterFittings!BT24 -> 0 | GP49: =GP$31*WaterFittings!BU24 -> 0
C50: 19 | D50: 16.5 | E50: 0 | AC50: 19 | AD50: =SUM(SUMPRODUCT(AF$20:AJ$20,Q50:U50),SUMPRODUCT(AF$20:AJ$20,System2!Q50:U50),SUMPRODUCT(AF$20:AJ$20,System3!Q50:U50)) ->  | AE50: =SUM(SUMPRODUCT(AF$21:AJ$21,W50:AA50),SUMPRODUCT(AF$21:AJ$21,System2!W50:AA50),SUMPRODUCT(AF$21:AJ$21,System3!W50:AA50)) ->  | AF50: =WaterFittings!BN25 ->  | AI50: =MIN(AirCond!BL24,P$21) -> 0 | AK50: =MIN(ROUNDDOWN(AJ50-FH50,0),ROUNDDOWN(P$21*0.3,0),ROUNDDOWN(SUM(SUMPRODUCT(I$4:I$15,L$4:L$15),SUMPRODUCT(System2!I$4:I$15,System2!L$4:L$15),SUMPRODUCT(System3!I$4:I$15,System3!L$4:L$15))*0.3,0)) ->  | AL50: 0 | AP50: 0 | AT50: 0 | AX50: 0 | AY50: 0 | AZ50: 0 | BA50: 0 | BL50: 0 | CR50: =SUM(CQ50,System2!CQ50,System3!CQ50) ->  | DS50: =SUM(DR50,System2!DR50,System3!DR50) ->  | DV50: 0 | EA50: 0 | EB50: 0 | EC50: 0 | ED50: 0 | EE50: 0 | EG50: =SUM(EF50,System2!EF50,System3!EF50) ->  | FH50: =SUM(FG50,System2!FG50,System3!FG50) ->  | FI50: 0 | FJ50: 0 | FK50: 0 | FL50: 0 | GG50: =$GG$31*WaterFittings!BO25 ->  | GH50: =$GH$31*WaterFittings!BP25 ->  | GI50: =$GI$31*WaterFittings!BQ25 -> 0 | GJ50: =GJ$31*AirCond!BD24 ->  | GK50: =GK$31*AirCond!BE24 ->  | GL50: =GL$31*AirCond!BF24 ->  | GM50: =GM$31*AirCond!BG24 ->  | GN50: =GN$31*WaterFittings!BS25 -> 0 | GO50: =GO$31*WaterFittings!BT25 -> 0 | GP50: =GP$31*WaterFittings!BU25 -> 0
C51: 20 | D51: 3 | E51: 0 | AC51: 20 | AD51: =SUM(SUMPRODUCT(AF$20:AJ$20,Q51:U51),SUMPRODUCT(AF$20:AJ$20,System2!Q51:U51),SUMPRODUCT(AF$20:AJ$20,System3!Q51:U51)) ->  | AE51: =SUM(SUMPRODUCT(AF$21:AJ$21,W51:AA51),SUMPRODUCT(AF$21:AJ$21,System2!W51:AA51),SUMPRODUCT(AF$21:AJ$21,System3!W51:AA51)) ->  | AF51: =WaterFittings!BN26 ->  | AI51: =MIN(AirCond!BL25,P$21) -> 0 | AK51: =MIN(ROUNDDOWN(AJ51-FH51,0),ROUNDDOWN(P$21*0.3,0),ROUNDDOWN(SUM(SUMPRODUCT(I$4:I$15,L$4:L$15),SUMPRODUCT(System2!I$4:I$15,System2!L$4:L$15),SUMPRODUCT(System3!I$4:I$15,System3!L$4:L$15))*0.3,0)) ->  | AL51: 0 | AP51: 0 | AT51: 0 | AX51: 0 | AY51: 0 | AZ51: 0 | BA51: 0 | BL51: 0 | CR51: =SUM(CQ51,System2!CQ51,System3!CQ51) ->  | DS51: =SUM(DR51,System2!DR51,System3!DR51) ->  | DV51: 0 | EA51: 0 | EB51: 0 | EC51: 0 | ED51: 0 | EE51: 0 | EG51: =SUM(EF51,System2!EF51,System3!EF51) ->  | FH51: =SUM(FG51,System2!FG51,System3!FG51) ->  | FI51: =IF(IF(FI$28>=3,COUNTIF(FI48:FI50,">0"),IF(FI$28=2,COUNTIF(FI49:FI50,">0"),IF(FI$28=1,COUNTIF(FI50,">0")))),0,FI$31) -> 0 | FJ51: 0 | FK51: =IF(IF(FK$28>=3,COUNTIF(FK48:FK50,">0"),IF(FK$28=2,COUNTIF(FK49:FK50,">0"),IF(FK$28=1,COUNTIF(FK50,">0")))),0,FK$31) -> 0 | FL51: 0 | GG51: =$GG$31*WaterFittings!BO26 ->  | GH51: =$GH$31*WaterFittings!BP26 ->  | GI51: =$GI$31*WaterFittings!BQ26 -> 0 | GJ51: =GJ$31*AirCond!BD25 ->  | GK51: =GK$31*AirCond!BE25 ->  | GL51: =GL$31*AirCond!BF25 ->  | GM51: =GM$31*AirCond!BG25 ->  | GN51: =GN$31*WaterFittings!BS26 -> 0 | GO51: =GO$31*WaterFittings!BT26 -> 0 | GP51: =GP$31*WaterFittings!BU26 -> 0
C52: 21 | D52: 0.5 | E52: 0 | AC52: 21 | AD52: =SUM(SUMPRODUCT(AF$20:AJ$20,Q52:U52),SUMPRODUCT(AF$20:AJ$20,System2!Q52:U52),SUMPRODUCT(AF$20:AJ$20,System3!Q52:U52)) ->  | AE52: =SUM(SUMPRODUCT(AF$21:AJ$21,W52:AA52),SUMPRODUCT(AF$21:AJ$21,System2!W52:AA52),SUMPRODUCT(AF$21:AJ$21,System3!W52:AA52)) ->  | AF52: =WaterFittings!BN27 ->  | AI52: =MIN(AirCond!BL26,P$21) -> 0 | AK52: =MIN(ROUNDDOWN(AJ52-FH52,0),ROUNDDOWN(P$21*0.3,0),ROUNDDOWN(SUM(SUMPRODUCT(I$4:I$15,L$4:L$15),SUMPRODUCT(System2!I$4:I$15,System2!L$4:L$15),SUMPRODUCT(System3!I$4:I$15,System3!L$4:L$15))*0.3,0)) ->  | AL52: 0 | AP52: 0 | AT52: 0 | AX52: 0 | AY52: 0 | AZ52: 0 | BA52: 0 | BL52: 0 | CR52: =SUM(CQ52,System2!CQ52,System3!CQ52) ->  | DS52: =SUM(DR52,System2!DR52,System3!DR52) ->  | DV52: 0 | EA52: 0 | EB52: 0 | EC52: 0 | ED52: 0 | EE52: 0 | EG52: =SUM(EF52,System2!EF52,System3!EF52) ->  | FH52: =SUM(FG52,System2!FG52,System3!FG52) ->  | FI52: 0 | FJ52: 0 | FK52: 0 | FL52: 0 | GG52: =$GG$31*WaterFittings!BO27 ->  | GH52: =$GH$31*WaterFittings!BP27 ->  | GI52: =$GI$31*WaterFittings!BQ27 -> 0 | GJ52: =GJ$31*AirCond!BD26 ->  | GK52: =GK$31*AirCond!BE26 ->  | GL52: =GL$31*AirCond!BF26 ->  | GM52: =GM$31*AirCond!BG26 ->  | GN52: =GN$31*WaterFittings!BS27 -> 0 | GO52: =GO$31*WaterFittings!BT27 -> 0 | GP52: =GP$31*WaterFittings!BU27 -> 0
C53: 22 | D53: 0 | E53: 0 | AA53: =ROUNDDOWN(FF53,0) ->  | AC53: 22 | AD53: =SUM(SUMPRODUCT(AF$20:AJ$20,Q53:U53),SUMPRODUCT(AF$20:AJ$20,System2!Q53:U53),SUMPRODUCT(AF$20:AJ$20,System3!Q53:U53)) ->  | AE53: =SUM(SUMPRODUCT(AF$21:AJ$21,W53:AA53),SUMPRODUCT(AF$21:AJ$21,System2!W53:AA53),SUMPRODUCT(AF$21:AJ$21,System3!W53:AA53)) ->  | AF53: =WaterFittings!BN28 ->  | AI53: =MIN(AirCond!BL27,P$21) -> 0 | AK53: =MIN(ROUNDDOWN(AJ53-FH53,0),ROUNDDOWN(P$21*0.3,0),ROUNDDOWN(SUM(SUMPRODUCT(I$4:I$15,L$4:L$15),SUMPRODUCT(System2!I$4:I$15,System2!L$4:L$15),SUMPRODUCT(System3!I$4:I$15,System3!L$4:L$15))*0.3,0)) ->  | AL53: 0 | AP53: 0 | AT53: 0 | AX53: 0 | AY53: 0 | AZ53: 0 | BA53: 0 | BL53: 0 | CR53: =SUM(CQ53,System2!CQ53,System3!CQ53) ->  | DS53: =SUM(DR53,System2!DR53,System3!DR53) ->  | DV53: 0 | EA53: 0 | EB53: 0 | EC53: 0 | ED53: 0 | EE53: 0 | EG53: =SUM(EF53,System2!EF53,System3!EF53) ->  | FH53: =SUM(FG53,System2!FG53,System3!FG53) ->  | FI53: 0 | FJ53: 0 | FK53: 0 | FL53: 0 | GG53: =$GG$31*WaterFittings!BO28 ->  | GH53: =$GH$31*WaterFittings!BP28 ->  | GI53: =$GI$31*WaterFittings!BQ28 -> 0 | GJ53: =GJ$31*AirCond!BD27 ->  | GK53: =GK$31*AirCond!BE27 ->  | GL53: =GL$31*AirCond!BF27 ->  | GM53: =GM$31*AirCond!BG27 ->  | GN53: =GN$31*WaterFittings!BS28 -> 0 | GO53: =GO$31*WaterFittings!BT28 -> 0 | GP53: =GP$31*WaterFittings!BU28 -> 0
C54: =C53+1 -> 23 | D54: 0 | E54: 0 | AC54: 23 | AD54: =SUM(SUMPRODUCT(AF$20:AJ$20,Q54:U54),SUMPRODUCT(AF$20:AJ$20,System2!Q54:U54),SUMPRODUCT(AF$20:AJ$20,System3!Q54:U54)) ->  | AE54: =SUM(SUMPRODUCT(AF$21:AJ$21,W54:AA54),SUMPRODUCT(AF$21:AJ$21,System2!W54:AA54),SUMPRODUCT(AF$21:AJ$21,System3!W54:AA54)) ->  | AF54: =WaterFittings!BN29 ->  | AI54: =MIN(AirCond!BL28,P$21) -> 0 | AK54: =MIN(ROUNDDOWN(AJ54-FH54,0),ROUNDDOWN(P$21*0.3,0),ROUNDDOWN(SUM(SUMPRODUCT(I$4:I$15,L$4:L$15),SUMPRODUCT(System2!I$4:I$15,System2!L$4:L$15),SUMPRODUCT(System3!I$4:I$15,System3!L$4:L$15))*0.3,0)) ->  | AL54: 0 | AP54: 0 | AT54: 0 | AX54: 0 | AY54: 0 | AZ54: 0 | BA54: 0 | BL54: 0 | CR54: =SUM(CQ54,System2!CQ54,System3!CQ54) ->  | DS54: =SUM(DR54,System2!DR54,System3!DR54) ->  | DV54: 0 | EA54: 0 | EB54: 0 | EC54: 0 | ED54: 0 | EE54: 0 | EG54: =SUM(EF54,System2!EF54,System3!EF54) ->  | FH54: =SUM(FG54,System2!FG54,System3!FG54) ->  | FI54: 0 | FJ54: 0 | FK54: 0 | FL54: 0 | GG54: =$GG$31*WaterFittings!BO29 ->  | GH54: =$GH$31*WaterFittings!BP29 ->  | GI54: =$GI$31*WaterFittings!BQ29 -> 0 | GJ54: =GJ$31*AirCond!BD28 ->  | GK54: =GK$31*AirCond!BE28 ->  | GL54: =GL$31*AirCond!BF28 ->  | GM54: =GM$31*AirCond!BG28 ->  | GN54: =GN$31*WaterFittings!BS29 -> 0 | GO54: =GO$31*WaterFittings!BT29 -> 0 | GP54: =GP$31*WaterFittings!BU29 -> 0
C55: 24 | D55: 33.5 | E55: 0 | AC55: 24 | AD55: =SUM(SUMPRODUCT(AF$20:AJ$20,Q55:U55),SUMPRODUCT(AF$20:AJ$20,System2!Q55:U55),SUMPRODUCT(AF$20:AJ$20,System3!Q55:U55)) ->  | AE55: =SUM(SUMPRODUCT(AF$21:AJ$21,W55:AA55),SUMPRODUCT(AF$21:AJ$21,System2!W55:AA55),SUMPRODUCT(AF$21:AJ$21,System3!W55:AA55)) ->  | AF55: =WaterFittings!BN30 ->  | AI55: =MIN(AirCond!BL29,P$21) -> 0 | AK55: =MIN(ROUNDDOWN(AJ55-FH55,0),ROUNDDOWN(P$21*0.3,0),ROUNDDOWN(SUM(SUMPRODUCT(I$4:I$15,L$4:L$15),SUMPRODUCT(System2!I$4:I$15,System2!L$4:L$15),SUMPRODUCT(System3!I$4:I$15,System3!L$4:L$15))*0.3,0)) ->  | AL55: 0 | AP55: 0 | AT55: 0 | AX55: 0 | AY55: 0 | AZ55: 0 | BA55: 0 | BL55: 0 | CR55: =SUM(CQ55,System2!CQ55,System3!CQ55) ->  | DS55: =SUM(DR55,System2!DR55,System3!DR55) ->  | DV55: 0 | EA55: 0 | EB55: 0 | EC55: 0 | ED55: 0 | EE55: 0 | EG55: =SUM(EF55,System2!EF55,System3!EF55) ->  | FH55: =SUM(FG55,System2!FG55,System3!FG55) ->  | FI55: 0 | FJ55: 0 | FK55: 0 | FL55: 0 | GG55: =$GG$31*WaterFittings!BO30 ->  | GH55: =$GH$31*WaterFittings!BP30 ->  | GI55: =$GI$31*WaterFittings!BQ30 -> 0 | GJ55: =GJ$31*AirCond!BD29 ->  | GK55: =GK$31*AirCond!BE29 ->  | GL55: =GL$31*AirCond!BF29 ->  | GM55: =GM$31*AirCond!BG29 ->  | GN55: =GN$31*WaterFittings!BS30 -> 0 | GO55: =GO$31*WaterFittings!BT30 -> 0 | GP55: =GP$31*WaterFittings!BU30 -> 0
C56: 25 | D56: 0 | E56: 0 | AC56: 25 | AD56: =SUM(SUMPRODUCT(AF$20:AJ$20,Q56:U56),SUMPRODUCT(AF$20:AJ$20,System2!Q56:U56),SUMPRODUCT(AF$20:AJ$20,System3!Q56:U56)) ->  | AE56: =SUM(SUMPRODUCT(AF$21:AJ$21,W56:AA56),SUMPRODUCT(AF$21:AJ$21,System2!W56:AA56),SUMPRODUCT(AF$21:AJ$21,System3!W56:AA56)) ->  | AF56: =WaterFittings!BN31 ->  | AI56: =MIN(AirCond!BL30,P$21) -> 0 | AK56: =MIN(ROUNDDOWN(AJ56-FH56,0),ROUNDDOWN(P$21*0.3,0),ROUNDDOWN(SUM(SUMPRODUCT(I$4:I$15,L$4:L$15),SUMPRODUCT(System2!I$4:I$15,System2!L$4:L$15),SUMPRODUCT(System3!I$4:I$15,System3!L$4:L$15))*0.3,0)) ->  | AL56: 0 | AP56: 0 | AT56: 0 | AX56: 0 | AY56: 0 | AZ56: 0 | BA56: 0 | BL56: 0 | CR56: =SUM(CQ56,System2!CQ56,System3!CQ56) ->  | DS56: =SUM(DR56,System2!DR56,System3!DR56) ->  | DV56: 0 | EA56: 0 | EB56: 0 | EC56: 0 | ED56: 0 | EE56: 0 | EG56: =SUM(EF56,System2!EF56,System3!EF56) ->  | FH56: =SUM(FG56,System2!FG56,System3!FG56) ->  | FI56: 0 | FJ56: 0 | FK56: 0 | FL56: 0 | GG56: =$GG$31*WaterFittings!BO31 ->  | GH56: =$GH$31*WaterFittings!BP31 ->  | GI56: =$GI$31*WaterFittings!BQ31 -> 0 | GJ56: =GJ$31*AirCond!BD30 ->  | GK56: =GK$31*AirCond!BE30 ->  | GL56: =GL$31*AirCond!BF30 ->  | GM56: =GM$31*AirCond!BG30 ->  | GN56: =GN$31*WaterFittings!BS31 -> 0 | GO56: =GO$31*WaterFittings!BT31 -> 0 | GP56: =GP$31*WaterFittings!BU31 -> 0
C57: 26 | D57: 0 | E57: 0 | AC57: 26 | AD57: =SUM(SUMPRODUCT(AF$20:AJ$20,Q57:U57),SUMPRODUCT(AF$20:AJ$20,System2!Q57:U57),SUMPRODUCT(AF$20:AJ$20,System3!Q57:U57)) ->  | AE57: =SUM(SUMPRODUCT(AF$21:AJ$21,W57:AA57),SUMPRODUCT(AF$21:AJ$21,System2!W57:AA57),SUMPRODUCT(AF$21:AJ$21,System3!W57:AA57)) ->  | AF57: =WaterFittings!BN32 ->  | AI57: =MIN(AirCond!BL31,P$21) -> 0 | AK57: =MIN(ROUNDDOWN(AJ57-FH57,0),ROUNDDOWN(P$21*0.3,0),ROUNDDOWN(SUM(SUMPRODUCT(I$4:I$15,L$4:L$15),SUMPRODUCT(System2!I$4:I$15,System2!L$4:L$15),SUMPRODUCT(System3!I$4:I$15,System3!L$4:L$15))*0.3,0)) ->  | AL57: 0 | AP57: 0 | AT57: 0 | AX57: 0 | AY57: 0 | AZ57: 0 | BA57: 0 | BL57: 0 | CR57: =SUM(CQ57,System2!CQ57,System3!CQ57) ->  | DS57: =SUM(DR57,System2!DR57,System3!DR57) ->  | DV57: 0 | EA57: 0 | EB57: 0 | EC57: 0 | ED57: 0 | EE57: 0 | EG57: =SUM(EF57,System2!EF57,System3!EF57) ->  | FH57: =SUM(FG57,System2!FG57,System3!FG57) ->  | FI57: 0 | FJ57: 0 | FK57: 0 | FL57: 0 | GG57: =$GG$31*WaterFittings!BO32 ->  | GH57: =$GH$31*WaterFittings!BP32 ->  | GI57: =$GI$31*WaterFittings!BQ32 -> 0 | GJ57: =GJ$31*AirCond!BD31 ->  | GK57: =GK$31*AirCond!BE31 ->  | GL57: =GL$31*AirCond!BF31 ->  | GM57: =GM$31*AirCond!BG31 ->  | GN57: =GN$31*WaterFittings!BS32 -> 0 | GO57: =GO$31*WaterFittings!BT32 -> 0 | GP57: =GP$31*WaterFittings!BU32 -> 0
C58: 27 | D58: 0 | E58: 0 | AC58: 27 | AD58: =SUM(SUMPRODUCT(AF$20:AJ$20,Q58:U58),SUMPRODUCT(AF$20:AJ$20,System2!Q58:U58),SUMPRODUCT(AF$20:AJ$20,System3!Q58:U58)) ->  | AE58: =SUM(SUMPRODUCT(AF$21:AJ$21,W58:AA58),SUMPRODUCT(AF$21:AJ$21,System2!W58:AA58),SUMPRODUCT(AF$21:AJ$21,System3!W58:AA58)) ->  | AF58: =WaterFittings!BN33 ->  | AI58: =MIN(AirCond!BL32,P$21) -> 0 | AK58: =MIN(ROUNDDOWN(AJ58-FH58,0),ROUNDDOWN(P$21*0.3,0),ROUNDDOWN(SUM(SUMPRODUCT(I$4:I$15,L$4:L$15),SUMPRODUCT(System2!I$4:I$15,System2!L$4:L$15),SUMPRODUCT(System3!I$4:I$15,System3!L$4:L$15))*0.3,0)) ->  | AL58: 0 | AP58: 0 | AT58: 0 | AX58: 0 | AY58: 0 | AZ58: 0 | BA58: 0 | BL58: 0 | CR58: =SUM(CQ58,System2!CQ58,System3!CQ58) ->  | DS58: =SUM(DR58,System2!DR58,System3!DR58) ->  | DV58: 0 | EA58: 0 | EB58: 0 | EC58: 0 | ED58: 0 | EE58: 0 | EG58: =SUM(EF58,System2!EF58,System3!EF58) ->  | FH58: =SUM(FG58,System2!FG58,System3!FG58) ->  | FI58: 0 | FJ58: 0 | FK58: 0 | FL58: 0 | GG58: =$GG$31*WaterFittings!BO33 ->  | GH58: =$GH$31*WaterFittings!BP33 ->  | GI58: =$GI$31*WaterFittings!BQ33 -> 0 | GJ58: =GJ$31*AirCond!BD32 ->  | GK58: =GK$31*AirCond!BE32 ->  | GL58: =GL$31*AirCond!BF32 ->  | GM58: =GM$31*AirCond!BG32 ->  | GN58: =GN$31*WaterFittings!BS33 -> 0 | GO58: =GO$31*WaterFittings!BT33 -> 0 | GP58: =GP$31*WaterFittings!BU33 -> 0
C59: 28 | D59: 0 | E59: 0 | AC59: 28 | AD59: =SUM(SUMPRODUCT(AF$20:AJ$20,Q59:U59),SUMPRODUCT(AF$20:AJ$20,System2!Q59:U59),SUMPRODUCT(AF$20:AJ$20,System3!Q59:U59)) ->  | AE59: =SUM(SUMPRODUCT(AF$21:AJ$21,W59:AA59),SUMPRODUCT(AF$21:AJ$21,System2!W59:AA59),SUMPRODUCT(AF$21:AJ$21,System3!W59:AA59)) ->  | AF59: =WaterFittings!BN34 ->  | AI59: =MIN(AirCond!BL33,P$21) -> 0 | AK59: =MIN(ROUNDDOWN(AJ59-FH59,0),ROUNDDOWN(P$21*0.3,0),ROUNDDOWN(SUM(SUMPRODUCT(I$4:I$15,L$4:L$15),SUMPRODUCT(System2!I$4:I$15,System2!L$4:L$15),SUMPRODUCT(System3!I$4:I$15,System3!L$4:L$15))*0.3,0)) ->  | AL59: 0 | AP59: 0 | AT59: 0 | AX59: 0 | AY59: 0 | AZ59: 0 | BA59: 0 | BL59: 0 | CR59: =SUM(CQ59,System2!CQ59,System3!CQ59) ->  | DS59: =SUM(DR59,System2!DR59,System3!DR59) ->  | DV59: 0 | EA59: 0 | EB59: 0 | EC59: 0 | ED59: 0 | EE59: 0 | EG59: =SUM(EF59,System2!EF59,System3!EF59) ->  | FH59: =SUM(FG59,System2!FG59,System3!FG59) ->  | FI59: 0 | FJ59: 0 | FK59: 0 | FL59: 0 | GG59: =$GG$31*WaterFittings!BO34 ->  | GH59: =$GH$31*WaterFittings!BP34 ->  | GI59: =$GI$31*WaterFittings!BQ34 -> 0 | GJ59: =GJ$31*AirCond!BD33 ->  | GK59: =GK$31*AirCond!BE33 ->  | GL59: =GL$31*AirCond!BF33 ->  | GM59: =GM$31*AirCond!BG33 ->  | GN59: =GN$31*WaterFittings!BS34 -> 0 | GO59: =GO$31*WaterFittings!BT34 -> 0 | GP59: =GP$31*WaterFittings!BU34 -> 0
C60: 29 | D60: 0 | E60: 0 | AA60: =ROUNDDOWN(FF60,0) ->  | AC60: 1 | AD60: =SUM(SUMPRODUCT(AF$20:AJ$20,Q60:U60),SUMPRODUCT(AF$20:AJ$20,System2!Q60:U60),SUMPRODUCT(AF$20:AJ$20,System3!Q60:U60)) ->  | AE60: =SUM(SUMPRODUCT(AF$21:AJ$21,W60:AA60),SUMPRODUCT(AF$21:AJ$21,System2!W60:AA60),SUMPRODUCT(AF$21:AJ$21,System3!W60:AA60)) ->  | AF60: =WaterFittings!BN35 ->  | AI60: =MIN(AirCond!BL34,P$21) -> 0 | AK60: =MIN(ROUNDDOWN(AJ60-FH60,0),ROUNDDOWN(P$21*0.3,0),ROUNDDOWN(SUM(SUMPRODUCT(I$4:I$15,L$4:L$15),SUMPRODUCT(System2!I$4:I$15,System2!L$4:L$15),SUMPRODUCT(System3!I$4:I$15,System3!L$4:L$15))*0.3,0)) ->  | AL60: =ROUND(SUM(AX60,AY60),0) -> 0 | AP60: 0 | AT60: 0 | AX60: 0 | AY60: 0 | AZ60: 0 | BA60: 0 | BL60: 0 | CR60: =SUM(CQ60,System2!CQ60,System3!CQ60) ->  | DS60: =SUM(DR60,System2!DR60,System3!DR60) ->  | DT60: =DT$32 ->  | DU60: =DU$32 ->  | DV60: =DV$32 -> 0 | DW60: =DW$32 ->  | EA60: 0 | EB60: 0 | EC60: 0 | ED60: 0 | EE60: 0 | EG60: =SUM(EF60,System2!EF60,System3!EF60) ->  | FH60: =SUM(FG60,System2!FG60,System3!FG60) ->  | FI60: 0 | FJ60: 0 | FK60: 0 | FL60: 0 | GG60: =$GG$31*WaterFittings!BO35 ->  | GH60: =$GH$31*WaterFittings!BP35 ->  | GI60: =$GI$31*WaterFittings!BQ35 -> 0 | GJ60: =GJ$31*AirCond!BD34 ->  | GK60: =GK$31*AirCond!BE34 ->  | GL60: =GL$31*AirCond!BF34 ->  | GM60: =GM$31*AirCond!BG34 ->  | GN60: =GN$31*WaterFittings!BS35 -> 0 | GO60: =GO$31*WaterFittings!BT35 -> 0 | GP60: =GP$31*WaterFittings!BU35 -> 0
C61: =C60+1 -> 30 | D61: 0 | E61: 0 | AC61: 2 | AD61: =SUM(SUMPRODUCT(AF$20:AJ$20,Q61:U61),SUMPRODUCT(AF$20:AJ$20,System2!Q61:U61),SUMPRODUCT(AF$20:AJ$20,System3!Q61:U61)) ->  | AE61: =SUM(SUMPRODUCT(AF$21:AJ$21,W61:AA61),SUMPRODUCT(AF$21:AJ$21,System2!W61:AA61),SUMPRODUCT(AF$21:AJ$21,System3!W61:AA61)) ->  | AF61: =WaterFittings!BN36 ->  | AI61: =MIN(AirCond!BL35,P$21) -> 0 | AK61: =MIN(ROUNDDOWN(AJ61-FH61,0),ROUNDDOWN(P$21*0.3,0),ROUNDDOWN(SUM(SUMPRODUCT(I$4:I$15,L$4:L$15),SUMPRODUCT(System2!I$4:I$15,System2!L$4:L$15),SUMPRODUCT(System3!I$4:I$15,System3!L$4:L$15))*0.3,0)) ->  | AL61: 0 | AP61: 0 | AT61: 0 | AX61: 0 | AY61: 0 | AZ61: 0 | BA61: 0 | BL61: 0 | CR61: =SUM(CQ61,System2!CQ61,System3!CQ61) ->  | DS61: =SUM(DR61,System2!DR61,System3!DR61) ->  | DT61: =DT$33 ->  | DU61: =DU$33 ->  | DV61: =DV$33 -> 0 | DW61: =DW$33 ->  | EA61: 0 | EB61: 0 | EC61: 0 | ED61: 0 | EE61: 0 | EG61: =SUM(EF61,System2!EF61,System3!EF61) ->  | FH61: =SUM(FG61,System2!FG61,System3!FG61) ->  | FI61: 0 | FJ61: 0 | FK61: 0 | FL61: 0 | GG61: =$GG$31*WaterFittings!BO36 ->  | GH61: =$GH$31*WaterFittings!BP36 ->  | GI61: =$GI$31*WaterFittings!BQ36 -> 0 | GJ61: =GJ$31*AirCond!BD35 ->  | GK61: =GK$31*AirCond!BE35 ->  | GL61: =GL$31*AirCond!BF35 ->  | GM61: =GM$31*AirCond!BG35 ->  | GN61: =GN$31*WaterFittings!BS36 -> 0 | GO61: =GO$31*WaterFittings!BT36 -> 0 | GP61: =GP$31*WaterFittings!BU36 -> 0
C62: 31 | D62: 0 | E62: 0 | AC62: 3 | AD62: =SUM(SUMPRODUCT(AF$20:AJ$20,Q62:U62),SUMPRODUCT(AF$20:AJ$20,System2!Q62:U62),SUMPRODUCT(AF$20:AJ$20,System3!Q62:U62)) ->  | AE62: =SUM(SUMPRODUCT(AF$21:AJ$21,W62:AA62),SUMPRODUCT(AF$21:AJ$21,System2!W62:AA62),SUMPRODUCT(AF$21:AJ$21,System3!W62:AA62)) ->  | AF62: =WaterFittings!BN37 ->  | AI62: =MIN(AirCond!BL36,P$21) -> 0 | AK62: =MIN(ROUNDDOWN(AJ62-FH62,0),ROUNDDOWN(P$21*0.3,0),ROUNDDOWN(SUM(SUMPRODUCT(I$4:I$15,L$4:L$15),SUMPRODUCT(System2!I$4:I$15,System2!L$4:L$15),SUMPRODUCT(System3!I$4:I$15,System3!L$4:L$15))*0.3,0)) ->  | AL62: 0 | AP62: 0 | AT62: 0 | AX62: 0 | AY62: 0 | AZ62: 0 | BA62: 0 | BL62: 0 | CR62: =SUM(CQ62,System2!CQ62,System3!CQ62) ->  | DS62: =SUM(DR62,System2!DR62,System3!DR62) ->  | DT62: =DT$34 ->  | DU62: =DU$34 ->  | DV62: =DV$34 -> 0 | DW62: =DW$34 ->  | EA62: 0 | EB62: 0 | EC62: 0 | ED62: 0 | EE62: 0 | EG62: =SUM(EF62,System2!EF62,System3!EF62) ->  | FH62: =SUM(FG62,System2!FG62,System3!FG62) ->  | FI62: 0 | FJ62: 0 | FK62: 0 | FL62: 0 | GG62: =$GG$31*WaterFittings!BO37 ->  | GH62: =$GH$31*WaterFittings!BP37 ->  | GI62: =$GI$31*WaterFittings!BQ37 -> 0 | GJ62: =GJ$31*AirCond!BD36 ->  | GK62: =GK$31*AirCond!BE36 ->  | GL62: =GL$31*AirCond!BF36 ->  | GM62: =GM$31*AirCond!BG36 ->  | GN62: =GN$31*WaterFittings!BS37 -> 0 | GO62: =GO$31*WaterFittings!BT37 -> 0 | GP62: =GP$31*WaterFittings!BU37 -> 0
B63: February | C63: 32 | D63: 0 | E63: 0 | AC63: 4 | AD63: =SUM(SUMPRODUCT(AF$20:AJ$20,Q63:U63),SUMPRODUCT(AF$20:AJ$20,System2!Q63:U63),SUMPRODUCT(AF$20:AJ$20,System3!Q63:U63)) ->  | AE63: =SUM(SUMPRODUCT(AF$21:AJ$21,W63:AA63),SUMPRODUCT(AF$21:AJ$21,System2!W63:AA63),SUMPRODUCT(AF$21:AJ$21,System3!W63:AA63)) ->  | AF63: =WaterFittings!BN38 ->  | AI63: =MIN(AirCond!BL37,P$21) -> 0 | AK63: =MIN(ROUNDDOWN(AJ63-FH63,0),ROUNDDOWN(P$21*0.3,0),ROUNDDOWN(SUM(SUMPRODUCT(I$4:I$15,L$4:L$15),SUMPRODUCT(System2!I$4:I$15,System2!L$4:L$15),SUMPRODUCT(System3!I$4:I$15,System3!L$4:L$15))*0.3,0)) ->  | AL63: 0 | AP63: 0 | AT63: 0 | AX63: 0 | AY63: 0 | AZ63: 0 | BA63: 0 | BL63: 0 | CR63: =SUM(CQ63,System2!CQ63,System3!CQ63) ->  | DS63: =SUM(DR63,System2!DR63,System3!DR63) ->  | DT63: =DT$35 ->  | DU63: =DU$35 ->  | DV63: =DV$35 -> 0 | DW63: =DW$35 ->  | EA63: 0 | EB63: 0 | EC63: 0 | ED63: 0 | EE63: 0 | EG63: =SUM(EF63,System2!EF63,System3!EF63) ->  | FH63: =SUM(FG63,System2!FG63,System3!FG63) ->  | FI63: 0 | FJ63: 0 | FK63: 0 | FL63: 0 | GG63: =$GG$31*WaterFittings!BO38 ->  | GH63: =$GH$31*WaterFittings!BP38 ->  | GI63: =$GI$31*WaterFittings!BQ38 -> 0 | GJ63: =GJ$31*AirCond!BD37 ->  | GK63: =GK$31*AirCond!BE37 ->  | GL63: =GL$31*AirCond!BF37 ->  | GM63: =GM$31*AirCond!BG37 ->  | GN63: =GN$31*WaterFittings!BS38 -> 0 | GO63: =GO$31*WaterFittings!BT38 -> 0 | GP63: =GP$31*WaterFittings!BU38 -> 0
C64: 33 | D64: 0 | E64: 0 | AC64: 5 | AD64: =SUM(SUMPRODUCT(AF$20:AJ$20,Q64:U64),SUMPRODUCT(AF$20:AJ$20,System2!Q64:U64),SUMPRODUCT(AF$20:AJ$20,System3!Q64:U64)) ->  | AE64: =SUM(SUMPRODUCT(AF$21:AJ$21,W64:AA64),SUMPRODUCT(AF$21:AJ$21,System2!W64:AA64),SUMPRODUCT(AF$21:AJ$21,System3!W64:AA64)) ->  | AF64: =WaterFittings!BN39 ->  | AI64: =MIN(AirCond!BL38,P$21) -> 0 | AK64: =MIN(ROUNDDOWN(AJ64-FH64,0),ROUNDDOWN(P$21*0.3,0),ROUNDDOWN(SUM(SUMPRODUCT(I$4:I$15,L$4:L$15),SUMPRODUCT(System2!I$4:I$15,System2!L$4:L$15),SUMPRODUCT(System3!I$4:I$15,System3!L$4:L$15))*0.3,0)) ->  | AL64: 0 | AP64: 0 | AT64: 0 | AX64: 0 | AY64: 0 | AZ64: 0 | BA64: 0 | BL64: 0 | CR64: =SUM(CQ64,System2!CQ64,System3!CQ64) ->  | CT64: =IF($CS64,CE64/$CR64,0) ->  | CU64: =IF($CS64,CF64/$CR64,0) ->  | CV64: =IF($CS64,CG64/$CR64,0) ->  | CW64: =IF($CS64,CH64/$CR64,0) ->  | CX64: =IF($CS64,CI64/$CR64,0) ->  | CY64: =IF($CS64,CJ64/$CR64,0) ->  | CZ64: =IF($CS64,CK64/$CR64,0) ->  | DA64: =IF($CS64,CL64/$CR64,0) ->  | DB64: =IF($CS64,CM64/$CR64,0) ->  | DC64: =IF($CS64,CN64/$CR64,0) ->  | DD64: =IF($CS64,CO64/$CR64,0) ->  | DE64: =IF($CS64,CP64/$CR64,0) ->  | DF64: =$CS64*CT64 ->  | DG64: =$CS64*CU64 ->  | DH64: =$CS64*CV64 ->  | DI64: =$CS64*CW64 ->  | DJ64: =$CS64*CX64 ->  | DK64: =$CS64*CY64 ->  | DL64: =$CS64*CZ64 ->  | DM64: =$CS64*DA64 ->  | DN64: =$CS64*DB64 ->  | DO64: =$CS64*DC64 ->  | DP64: =$CS64*DD64 ->  | DQ64: =$CS64*DE64 ->  | DS64: =SUM(DR64,System2!DR64,System3!DR64) ->  | DT64: =DT$36 ->  | DU64: =DU$36 ->  | DV64: =DV$36 -> 0 | DW64: =DW$36 ->  | EA64: 0 | EB64: 0 | EC64: 0 | ED64: 0 | EE64: 0 | EG64: =SUM(EF64,System2!EF64,System3!EF64) ->  | FH64: =SUM(FG64,System2!FG64,System3!FG64) ->  | FI64: 0 | FJ64: 0 | FK64: 0 | FL64: 0 | GG64: =$GG$31*WaterFittings!BO39 ->  | GH64: =$GH$31*WaterFittings!BP39 ->  | GI64: =$GI$31*WaterFittings!BQ39 -> 0 | GJ64: =GJ$31*AirCond!BD38 ->  | GK64: =GK$31*AirCond!BE38 ->  | GL64: =GL$31*AirCond!BF38 ->  | GM64: =GM$31*AirCond!BG38 ->  | GN64: =GN$31*WaterFittings!BS39 -> 0 | GO64: =GO$31*WaterFittings!BT39 -> 0 | GP64: =GP$31*WaterFittings!BU39 -> 0
C65: 34 | D65: 0 | E65: 0 | AC65: 6 | AD65: =SUM(SUMPRODUCT(AF$20:AJ$20,Q65:U65),SUMPRODUCT(AF$20:AJ$20,System2!Q65:U65),SUMPRODUCT(AF$20:AJ$20,System3!Q65:U65)) ->  | AE65: =SUM(SUMPRODUCT(AF$21:AJ$21,W65:AA65),SUMPRODUCT(AF$21:AJ$21,System2!W65:AA65),SUMPRODUCT(AF$21:AJ$21,System3!W65:AA65)) ->  | AF65: =WaterFittings!BN40 ->  | AI65: =MIN(AirCond!BL39,P$21) -> 0 | AK65: =MIN(ROUNDDOWN(AJ65-FH65,0),ROUNDDOWN(P$21*0.3,0),ROUNDDOWN(SUM(SUMPRODUCT(I$4:I$15,L$4:L$15),SUMPRODUCT(System2!I$4:I$15,System2!L$4:L$15),SUMPRODUCT(System3!I$4:I$15,System3!L$4:L$15))*0.3,0)) ->  | AL65: 0 | AP65: 0 | AT65: 0 | AX65: 0 | AY65: 0 | AZ65: 0 | BA65: 0 | BL65: 0 | CR65: =SUM(CQ65,System2!CQ65,System3!CQ65) ->  | DS65: =SUM(DR65,System2!DR65,System3!DR65) ->  | DT65: =DT$37 ->  | DU65: =DU$37 ->  | DV65: =DV$37 -> 0 | DW65: =DW$37 ->  | EA65: 0 | EB65: 0 | EC65: 0 | ED65: 0 | EE65: 0 | EG65: =SUM(EF65,System2!EF65,System3!EF65) ->  | FH65: =SUM(FG65,System2!FG65,System3!FG65) ->  | FI65: 0 | FJ65: 0 | FK65: 0 | FL65: 0 | GG65: =$GG$31*WaterFittings!BO40 ->  | GH65: =$GH$31*WaterFittings!BP40 ->  | GI65: =$GI$31*WaterFittings!BQ40 -> 0 | GJ65: =GJ$31*AirCond!BD39 ->  | GK65: =GK$31*AirCond!BE39 ->  | GL65: =GL$31*AirCond!BF39 ->  | GM65: =GM$31*AirCond!BG39 ->  | GN65: =GN$31*WaterFittings!BS40 -> 0 | GO65: =GO$31*WaterFittings!BT40 -> 0 | GP65: =GP$31*WaterFittings!BU40 -> 0
C66: 35 | D66: 0 | E66: 0 | AC66: 7 | AD66: =SUM(SUMPRODUCT(AF$20:AJ$20,Q66:U66),SUMPRODUCT(AF$20:AJ$20,System2!Q66:U66),SUMPRODUCT(AF$20:AJ$20,System3!Q66:U66)) ->  | AE66: =SUM(SUMPRODUCT(AF$21:AJ$21,W66:AA66),SUMPRODUCT(AF$21:AJ$21,System2!W66:AA66),SUMPRODUCT(AF$21:AJ$21,System3!W66:AA66)) ->  | AF66: =WaterFittings!BN41 ->  | AI66: =MIN(AirCond!BL40,P$21) -> 0 | AK66: =MIN(ROUNDDOWN(AJ66-FH66,0),ROUNDDOWN(P$21*0.3,0),ROUNDDOWN(SUM(SUMPRODUCT(I$4:I$15,L$4:L$15),SUMPRODUCT(System2!I$4:I$15,System2!L$4:L$15),SUMPRODUCT(System3!I$4:I$15,System3!L$4:L$15))*0.3,0)) ->  | AL66: 0 | AP66: 0 | AT66: 0 | AX66: 0 | AY66: 0 | AZ66: 0 | BA66: 0 | BL66: 0 | CR66: =SUM(CQ66,System2!CQ66,System3!CQ66) ->  | DS66: =SUM(DR66,System2!DR66,System3!DR66) ->  | DT66: =DT$38 ->  | DU66: =DU$38 ->  | DV66: =DV$38 -> 0 | DW66: =DW$38 ->  | EA66: 0 | EB66: 0 | EC66: 0 | ED66: 0 | EE66: 0 | EG66: =SUM(EF66,System2!EF66,System3!EF66) ->  | FH66: =SUM(FG66,System2!FG66,System3!FG66) ->  | FI66: 0 | FJ66: 0 | FK66: 0 | FL66: 0 | GG66: =$GG$31*WaterFittings!BO41 ->  | GH66: =$GH$31*WaterFittings!BP41 ->  | GI66: =$GI$31*WaterFittings!BQ41 -> 0 | GJ66: =GJ$31*AirCond!BD40 ->  | GK66: =GK$31*AirCond!BE40 ->  | GL66: =GL$31*AirCond!BF40 ->  | GM66: =GM$31*AirCond!BG40 ->  | GN66: =GN$31*WaterFittings!BS41 -> 0 | GO66: =GO$31*WaterFittings!BT41 -> 0 | GP66: =GP$31*WaterFittings!BU41 -> 0
C67: 36 | D67: 0 | E67: 0 | AA67: =ROUNDDOWN(FF67,0) ->  | AC67: 8 | AD67: =SUM(SUMPRODUCT(AF$20:AJ$20,Q67:U67),SUMPRODUCT(AF$20:AJ$20,System2!Q67:U67),SUMPRODUCT(AF$20:AJ$20,System3!Q67:U67)) ->  | AE67: =SUM(SUMPRODUCT(AF$21:AJ$21,W67:AA67),SUMPRODUCT(AF$21:AJ$21,System2!W67:AA67),SUMPRODUCT(AF$21:AJ$21,System3!W67:AA67)) ->  | AF67: =WaterFittings!BN42 ->  | AI67: =MIN(AirCond!BL41,P$21) -> 0 | AK67: =MIN(ROUNDDOWN(AJ67-FH67,0),ROUNDDOWN(P$21*0.3,0),ROUNDDOWN(SUM(SUMPRODUCT(I$4:I$15,L$4:L$15),SUMPRODUCT(System2!I$4:I$15,System2!L$4:L$15),SUMPRODUCT(System3!I$4:I$15,System3!L$4:L$15))*0.3,0)) ->  | AL67: 0 | AP67: 0 | AT67: 0 | AX67: 0 | AY67: 0 | AZ67: 0 | BA67: 0 | BL67: 0 | CR67: =SUM(CQ67,System2!CQ67,System3!CQ67) ->  | DS67: =SUM(DR67,System2!DR67,System3!DR67) ->  | DT67: =DT$39 ->  | DU67: =DU$39 ->  | DV67: =DV$39 -> 0 | DW67: =DW$39 ->  | EA67: 0 | EB67: 0 | EC67: 0 | ED67: 0 | EE67: 0 | EG67: =SUM(EF67,System2!EF67,System3!EF67) ->  | FH67: =SUM(FG67,System2!FG67,System3!FG67) ->  | FI67: =IF(IF(FI$28>=3,COUNTIF(FI64:FI66,">0"),IF(FI$28=2,COUNTIF(FI65:FI66,">0"),IF(FI$28=1,COUNTIF(FI66,">0")))),0,FI$31) -> 0 | FJ67: 0 | FK67: 0 | FL67: 0 | GG67: =$GG$31*WaterFittings!BO42 ->  | GH67: =$GH$31*WaterFittings!BP42 ->  | GI67: =$GI$31*WaterFittings!BQ42 -> 0 | GJ67: =GJ$31*AirCond!BD41 ->  | GK67: =GK$31*AirCond!BE41 ->  | GL67: =GL$31*AirCond!BF41 ->  | GM67: =GM$31*AirCond!BG41 ->  | GN67: =GN$31*WaterFittings!BS42 -> 0 | GO67: =GO$31*WaterFittings!BT42 -> 0 | GP67: =GP$31*WaterFittings!BU42 -> 0
C68: =C67+1 -> 37 | D68: 0 | E68: 0 | AC68: 9 | AD68: =SUM(SUMPRODUCT(AF$20:AJ$20,Q68:U68),SUMPRODUCT(AF$20:AJ$20,System2!Q68:U68),SUMPRODUCT(AF$20:AJ$20,System3!Q68:U68)) ->  | AE68: =SUM(SUMPRODUCT(AF$21:AJ$21,W68:AA68),SUMPRODUCT(AF$21:AJ$21,System2!W68:AA68),SUMPRODUCT(AF$21:AJ$21,System3!W68:AA68)) ->  | AF68: =WaterFittings!BN43 ->  | AI68: =MIN(AirCond!BL42,P$21) -> 0 | AK68: =MIN(ROUNDDOWN(AJ68-FH68,0),ROUNDDOWN(P$21*0.3,0),ROUNDDOWN(SUM(SUMPRODUCT(I$4:I$15,L$4:L$15),SUMPRODUCT(System2!I$4:I$15,System2!L$4:L$15),SUMPRODUCT(System3!I$4:I$15,System3!L$4:L$15))*0.3,0)) ->  | AL68: 0 | AP68: 0 | AT68: 0 | AX68: 0 | AY68: 0 | AZ68: 0 | BA68: 0 | BL68: 0 | CR68: =SUM(CQ68,System2!CQ68,System3!CQ68) ->  | DS68: =SUM(DR68,System2!DR68,System3!DR68) ->  | DT68: =DT$40 ->  | DU68: =DU$40 ->  | DV68: =DV$40 -> 0 | DW68: =DW$40 ->  | EA68: 0 | EB68: 0 | EC68: 0 | ED68: 0 | EE68: 0 | EG68: =SUM(EF68,System2!EF68,System3!EF68) ->  | FH68: =SUM(FG68,System2!FG68,System3!FG68) ->  | FI68: 0 | FJ68: 0 | FK68: 0 | FL68: 0 | GG68: =$GG$31*WaterFittings!BO43 ->  | GH68: =$GH$31*WaterFittings!BP43 ->  | GI68: =$GI$31*WaterFittings!BQ43 -> 0 | GJ68: =GJ$31*AirCond!BD42 ->  | GK68: =GK$31*AirCond!BE42 ->  | GL68: =GL$31*AirCond!BF42 ->  | GM68: =GM$31*AirCond!BG42 ->  | GN68: =GN$31*WaterFittings!BS43 -> 0 | GO68: =GO$31*WaterFittings!BT43 -> 0 | GP68: =GP$31*WaterFittings!BU43 -> 0
C69: 38 | D69: 0 | E69: 0 | AC69: 10 | AD69: =SUM(SUMPRODUCT(AF$20:AJ$20,Q69:U69),SUMPRODUCT(AF$20:AJ$20,System2!Q69:U69),SUMPRODUCT(AF$20:AJ$20,System3!Q69:U69)) ->  | AE69: =SUM(SUMPRODUCT(AF$21:AJ$21,W69:AA69),SUMPRODUCT(AF$21:AJ$21,System2!W69:AA69),SUMPRODUCT(AF$21:AJ$21,System3!W69:AA69)) ->  | AF69: =WaterFittings!BN44 ->  | AI69: =MIN(AirCond!BL43,P$21) -> 0 | AK69: =MIN(ROUNDDOWN(AJ69-FH69,0),ROUNDDOWN(P$21*0.3,0),ROUNDDOWN(SUM(SUMPRODUCT(I$4:I$15,L$4:L$15),SUMPRODUCT(System2!I$4:I$15,System2!L$4:L$15),SUMPRODUCT(System3!I$4:I$15,System3!L$4:L$15))*0.3,0)) ->  | AL69: 0 | AP69: 0 | AT69: 0 | AX69: 0 | AY69: 0 | AZ69: 0 | BA69: 0 | BL69: 0 | CR69: =SUM(CQ69,System2!CQ69,System3!CQ69) ->  | DS69: =SUM(DR69,System2!DR69,System3!DR69) ->  | DT69: =DT$41 ->  | DU69: =DU$41 ->  | DV69: =DV$41 -> 0 | DW69: =DW$41 ->  | EA69: 0 | EB69: 0 | EC69: 0 | ED69: 0 | EE69: 0 | EG69: =SUM(EF69,System2!EF69,System3!EF69) ->  | FH69: =SUM(FG69,System2!FG69,System3!FG69) ->  | FI69: 0 | FJ69: 0 | FK69: 0 | FL69: 0 | GG69: =$GG$31*WaterFittings!BO44 ->  | GH69: =$GH$31*WaterFittings!BP44 ->  | GI69: =$GI$31*WaterFittings!BQ44 -> 0 | GJ69: =GJ$31*AirCond!BD43 ->  | GK69: =GK$31*AirCond!BE43 ->  | GL69: =GL$31*AirCond!BF43 ->  | GM69: =GM$31*AirCond!BG43 ->  | GN69: =GN$31*WaterFittings!BS44 -> 0 | GO69: =GO$31*WaterFittings!BT44 -> 0 | GP69: =GP$31*WaterFittings!BU44 -> 0
C70: 39 | D70: 0 | E70: 0 | AC70: 11 | AD70: =SUM(SUMPRODUCT(AF$20:AJ$20,Q70:U70),SUMPRODUCT(AF$20:AJ$20,System2!Q70:U70),SUMPRODUCT(AF$20:AJ$20,System3!Q70:U70)) ->  | AE70: =SUM(SUMPRODUCT(AF$21:AJ$21,W70:AA70),SUMPRODUCT(AF$21:AJ$21,System2!W70:AA70),SUMPRODUCT(AF$21:AJ$21,System3!W70:AA70)) ->  | AF70: =WaterFittings!BN45 ->  | AI70: =MIN(AirCond!BL44,P$21) -> 0 | AK70: =MIN(ROUNDDOWN(AJ70-FH70,0),ROUNDDOWN(P$21*0.3,0),ROUNDDOWN(SUM(SUMPRODUCT(I$4:I$15,L$4:L$15),SUMPRODUCT(System2!I$4:I$15,System2!L$4:L$15),SUMPRODUCT(System3!I$4:I$15,System3!L$4:L$15))*0.3,0)) ->  | AL70: 0 | AP70: 0 | AT70: 0 | AX70: 0 | AY70: 0 | AZ70: 0 | BA70: 0 | BL70: 0 | CR70: =SUM(CQ70,System2!CQ70,System3!CQ70) ->  | DS70: =SUM(DR70,System2!DR70,System3!DR70) ->  | DT70: =DT$42 ->  | DU70: =DU$42 ->  | DV70: =DV$42 -> 0 | DW70: =DW$42 ->  | EA70: 0 | EB70: 0 | EC70: 0 | ED70: 0 | EE70: 0 | EG70: =SUM(EF70,System2!EF70,System3!EF70) ->  | FH70: =SUM(FG70,System2!FG70,System3!FG70) ->  | FI70: 0 | FJ70: 0 | FK70: 0 | FL70: 0 | GG70: =$GG$31*WaterFittings!BO45 ->  | GH70: =$GH$31*WaterFittings!BP45 ->  | GI70: =$GI$31*WaterFittings!BQ45 -> 0 | GJ70: =GJ$31*AirCond!BD44 ->  | GK70: =GK$31*AirCond!BE44 ->  | GL70: =GL$31*AirCond!BF44 ->  | GM70: =GM$31*AirCond!BG44 ->  | GN70: =GN$31*WaterFittings!BS45 -> 0 | GO70: =GO$31*WaterFittings!BT45 -> 0 | GP70: =GP$31*WaterFittings!BU45 -> 0
C71: 40 | D71: 0 | E71: 0 | AC71: 12 | AD71: =SUM(SUMPRODUCT(AF$20:AJ$20,Q71:U71),SUMPRODUCT(AF$20:AJ$20,System2!Q71:U71),SUMPRODUCT(AF$20:AJ$20,System3!Q71:U71)) ->  | AE71: =SUM(SUMPRODUCT(AF$21:AJ$21,W71:AA71),SUMPRODUCT(AF$21:AJ$21,System2!W71:AA71),SUMPRODUCT(AF$21:AJ$21,System3!W71:AA71)) ->  | AF71: =WaterFittings!BN46 ->  | AI71: =MIN(AirCond!BL45,P$21) -> 0 | AK71: =MIN(ROUNDDOWN(AJ71-FH71,0),ROUNDDOWN(P$21*0.3,0),ROUNDDOWN(SUM(SUMPRODUCT(I$4:I$15,L$4:L$15),SUMPRODUCT(System2!I$4:I$15,System2!L$4:L$15),SUMPRODUCT(System3!I$4:I$15,System3!L$4:L$15))*0.3,0)) ->  | AL71: 0 | AP71: 0 | AT71: 0 | AX71: 0 | AY71: 0 | AZ71: 0 | BA71: 0 | BL71: 0 | CR71: =SUM(CQ71,System2!CQ71,System3!CQ71) ->  | DS71: =SUM(DR71,System2!DR71,System3!DR71) ->  | DT71: =DT$43 ->  | DU71: =DU$43 ->  | DV71: =DV$43 -> 0 | DW71: =DW$43 ->  | EA71: 0 | EB71: 0 | EC71: 0 | ED71: 0 | EE71: 0 | EG71: =SUM(EF71,System2!EF71,System3!EF71) ->  | FH71: =SUM(FG71,System2!FG71,System3!FG71) ->  | FI71: 0 | FJ71: 0 | FK71: 0 | FL71: 0 | GG71: =$GG$31*WaterFittings!BO46 ->  | GH71: =$GH$31*WaterFittings!BP46 ->  | GI71: =$GI$31*WaterFittings!BQ46 -> 0 | GJ71: =GJ$31*AirCond!BD45 ->  | GK71: =GK$31*AirCond!BE45 ->  | GL71: =GL$31*AirCond!BF45 ->  | GM71: =GM$31*AirCond!BG45 ->  | GN71: =GN$31*WaterFittings!BS46 -> 0 | GO71: =GO$31*WaterFittings!BT46 -> 0 | GP71: =GP$31*WaterFittings!BU46 -> 0
C72: 41 | D72: 0 | E72: 0 | AC72: 13 | AD72: =SUM(SUMPRODUCT(AF$20:AJ$20,Q72:U72),SUMPRODUCT(AF$20:AJ$20,System2!Q72:U72),SUMPRODUCT(AF$20:AJ$20,System3!Q72:U72)) ->  | AE72: =SUM(SUMPRODUCT(AF$21:AJ$21,W72:AA72),SUMPRODUCT(AF$21:AJ$21,System2!W72:AA72),SUMPRODUCT(AF$21:AJ$21,System3!W72:AA72)) ->  | AF72: =WaterFittings!BN47 ->  | AI72: =MIN(AirCond!BL46,P$21) -> 0 | AK72: =MIN(ROUNDDOWN(AJ72-FH72,0),ROUNDDOWN(P$21*0.3,0),ROUNDDOWN(SUM(SUMPRODUCT(I$4:I$15,L$4:L$15),SUMPRODUCT(System2!I$4:I$15,System2!L$4:L$15),SUMPRODUCT(System3!I$4:I$15,System3!L$4:L$15))*0.3,0)) ->  | AL72: 0 | AP72: 0 | AT72: 0 | AX72: 0 | AY72: 0 | AZ72: 0 | BA72: 0 | BL72: 0 | CR72: =SUM(CQ72,System2!CQ72,System3!CQ72) ->  | DS72: =SUM(DR72,System2!DR72,System3!DR72) ->  | DT72: =DT$44 ->  | DU72: =DU$44 ->  | DV72: =DV$44 -> 0 | DW72: =DW$44 ->  | EA72: 0 | EB72: 0 | EC72: 0 | ED72: 0 | EE72: 0 | EG72: =SUM(EF72,System2!EF72,System3!EF72) ->  | FH72: =SUM(FG72,System2!FG72,System3!FG72) ->  | FI72: 0 | FJ72: 0 | FK72: 0 | FL72: 0 | GG72: =$GG$31*WaterFittings!BO47 ->  | GH72: =$GH$31*WaterFittings!BP47 ->  | GI72: =$GI$31*WaterFittings!BQ47 -> 0 | GJ72: =GJ$31*AirCond!BD46 ->  | GK72: =GK$31*AirCond!BE46 ->  | GL72: =GL$31*AirCond!BF46 ->  | GM72: =GM$31*AirCond!BG46 ->  | GN72: =GN$31*WaterFittings!BS47 -> 0 | GO72: =GO$31*WaterFittings!BT47 -> 0 | GP72: =GP$31*WaterFittings!BU47 -> 0
C73: 42 | D73: 0 | E73: 0 | AC73: 14 | AD73: =SUM(SUMPRODUCT(AF$20:AJ$20,Q73:U73),SUMPRODUCT(AF$20:AJ$20,System2!Q73:U73),SUMPRODUCT(AF$20:AJ$20,System3!Q73:U73)) ->  | AE73: =SUM(SUMPRODUCT(AF$21:AJ$21,W73:AA73),SUMPRODUCT(AF$21:AJ$21,System2!W73:AA73),SUMPRODUCT(AF$21:AJ$21,System3!W73:AA73)) ->  | AF73: =WaterFittings!BN48 ->  | AI73: =MIN(AirCond!BL47,P$21) -> 0 | AK73: =MIN(ROUNDDOWN(AJ73-FH73,0),ROUNDDOWN(P$21*0.3,0),ROUNDDOWN(SUM(SUMPRODUCT(I$4:I$15,L$4:L$15),SUMPRODUCT(System2!I$4:I$15,System2!L$4:L$15),SUMPRODUCT(System3!I$4:I$15,System3!L$4:L$15))*0.3,0)) ->  | AL73: 0 | AP73: 0 | AT73: 0 | AX73: 0 | AY73: 0 | AZ73: 0 | BA73: 0 | BL73: 0 | CR73: =SUM(CQ73,System2!CQ73,System3!CQ73) ->  | DS73: =SUM(DR73,System2!DR73,System3!DR73) ->  | DT73: =DT$45 ->  | DU73: =DU$45 ->  | DV73: =DV$45 -> 0 | DW73: =DW$45 ->  | EA73: 0 | EB73: 0 | EC73: 0 | ED73: 0 | EE73: 0 | EG73: =SUM(EF73,System2!EF73,System3!EF73) ->  | FH73: =SUM(FG73,System2!FG73,System3!FG73) ->  | FI73: 0 | FJ73: 0 | FK73: 0 | FL73: 0 | GG73: =$GG$31*WaterFittings!BO48 ->  | GH73: =$GH$31*WaterFittings!BP48 ->  | GI73: =$GI$31*WaterFittings!BQ48 -> 0 | GJ73: =GJ$31*AirCond!BD47 ->  | GK73: =GK$31*AirCond!BE47 ->  | GL73: =GL$31*AirCond!BF47 ->  | GM73: =GM$31*AirCond!BG47 ->  | GN73: =GN$31*WaterFittings!BS48 -> 0 | GO73: =GO$31*WaterFittings!BT48 -> 0 | GP73: =GP$31*WaterFittings!BU48 -> 0
C74: 43 | D74: 0 | E74: 0 | AA74: =ROUNDDOWN(FF74,0) ->  | AC74: 15 | AD74: =SUM(SUMPRODUCT(AF$20:AJ$20,Q74:U74),SUMPRODUCT(AF$20:AJ$20,System2!Q74:U74),SUMPRODUCT(AF$20:AJ$20,System3!Q74:U74)) ->  | AE74: =SUM(SUMPRODUCT(AF$21:AJ$21,W74:AA74),SUMPRODUCT(AF$21:AJ$21,System2!W74:AA74),SUMPRODUCT(AF$21:AJ$21,System3!W74:AA74)) ->  | AF74: =WaterFittings!BN49 ->  | AI74: =MIN(AirCond!BL48,P$21) -> 0 | AK74: =MIN(ROUNDDOWN(AJ74-FH74,0),ROUNDDOWN(P$21*0.3,0),ROUNDDOWN(SUM(SUMPRODUCT(I$4:I$15,L$4:L$15),SUMPRODUCT(System2!I$4:I$15,System2!L$4:L$15),SUMPRODUCT(System3!I$4:I$15,System3!L$4:L$15))*0.3,0)) ->  | AL74: 0 | AP74: 0 | AT74: 0 | AX74: 0 | AY74: 0 | AZ74: 0 | BA74: 0 | BL74: 0 | CR74: =SUM(CQ74,System2!CQ74,System3!CQ74) ->  | DS74: =SUM(DR74,System2!DR74,System3!DR74) ->  | DT74: =DT$46 ->  | DU74: =DU$46 ->  | DV74: =DV$46 -> 0 | DW74: =DW$46 ->  | EA74: 0 | EB74: 0 | EC74: 0 | ED74: 0 | EE74: 0 | EG74: =SUM(EF74,System2!EF74,System3!EF74) ->  | FH74: =SUM(FG74,System2!FG74,System3!FG74) ->  | FI74: 0 | FJ74: 0 | FK74: 0 | FL74: 0 | GG74: =$GG$31*WaterFittings!BO49 ->  | GH74: =$GH$31*WaterFittings!BP49 ->  | GI74: =$GI$31*WaterFittings!BQ49 -> 0 | GJ74: =GJ$31*AirCond!BD48 ->  | GK74: =GK$31*AirCond!BE48 ->  | GL74: =GL$31*AirCond!BF48 ->  | GM74: =GM$31*AirCond!BG48 ->  | GN74: =GN$31*WaterFittings!BS49 -> 0 | GO74: =GO$31*WaterFittings!BT49 -> 0 | GP74: =GP$31*WaterFittings!BU49 -> 0
C75: =C74+1 -> 44 | D75: 0 | E75: 0 | AC75: 16 | AD75: =SUM(SUMPRODUCT(AF$20:AJ$20,Q75:U75),SUMPRODUCT(AF$20:AJ$20,System2!Q75:U75),SUMPRODUCT(AF$20:AJ$20,System3!Q75:U75)) ->  | AE75: =SUM(SUMPRODUCT(AF$21:AJ$21,W75:AA75),SUMPRODUCT(AF$21:AJ$21,System2!W75:AA75),SUMPRODUCT(AF$21:AJ$21,System3!W75:AA75)) ->  | AF75: =WaterFittings!BN50 ->  | AI75: =MIN(AirCond!BL49,P$21) -> 0 | AK75: =MIN(ROUNDDOWN(AJ75-FH75,0),ROUNDDOWN(P$21*0.3,0),ROUNDDOWN(SUM(SUMPRODUCT(I$4:I$15,L$4:L$15),SUMPRODUCT(System2!I$4:I$15,System2!L$4:L$15),SUMPRODUCT(System3!I$4:I$15,System3!L$4:L$15))*0.3,0)) ->  | AL75: 0 | AP75: 0 | AT75: 0 | AX75: 0 | AY75: 0 | AZ75: 0 | BA75: 0 | BL75: 0 | CR75: =SUM(CQ75,System2!CQ75,System3!CQ75) ->  | DS75: =SUM(DR75,System2!DR75,System3!DR75) ->  | DT75: =DT$47 ->  | DU75: =DU$47 ->  | DV75: =DV$47 -> 0 | DW75: =DW$47 ->  | EA75: 0 | EB75: 0 | EC75: 0 | ED75: 0 | EE75: 0 | EG75: =SUM(EF75,System2!EF75,System3!EF75) ->  | FH75: =SUM(FG75,System2!FG75,System3!FG75) ->  | FI75: 0 | FJ75: 0 | FK75: 0 | FL75: 0 | GG75: =$GG$31*WaterFittings!BO50 ->  | GH75: =$GH$31*WaterFittings!BP50 ->  | GI75: =$GI$31*WaterFittings!BQ50 -> 0 | GJ75: =GJ$31*AirCond!BD49 ->  | GK75: =GK$31*AirCond!BE49 ->  | GL75: =GL$31*AirCond!BF49 ->  | GM75: =GM$31*AirCond!BG49 ->  | GN75: =GN$31*WaterFittings!BS50 -> 0 | GO75: =GO$31*WaterFittings!BT50 -> 0 | GP75: =GP$31*WaterFittings!BU50 -> 0
C76: 45 | D76: 0 | E76: 0 | AC76: 17 | AD76: =SUM(SUMPRODUCT(AF$20:AJ$20,Q76:U76),SUMPRODUCT(AF$20:AJ$20,System2!Q76:U76),SUMPRODUCT(AF$20:AJ$20,System3!Q76:U76)) ->  | AE76: =SUM(SUMPRODUCT(AF$21:AJ$21,W76:AA76),SUMPRODUCT(AF$21:AJ$21,System2!W76:AA76),SUMPRODUCT(AF$21:AJ$21,System3!W76:AA76)) ->  | AF76: =WaterFittings!BN51 ->  | AI76: =MIN(AirCond!BL50,P$21) -> 0 | AK76: =MIN(ROUNDDOWN(AJ76-FH76,0),ROUNDDOWN(P$21*0.3,0),ROUNDDOWN(SUM(SUMPRODUCT(I$4:I$15,L$4:L$15),SUMPRODUCT(System2!I$4:I$15,System2!L$4:L$15),SUMPRODUCT(System3!I$4:I$15,System3!L$4:L$15))*0.3,0)) ->  | AL76: 0 | AP76: 0 | AT76: 0 | AX76: 0 | AY76: 0 | AZ76: 0 | BA76: 0 | BL76: 0 | CR76: =SUM(CQ76,System2!CQ76,System3!CQ76) ->  | DS76: =SUM(DR76,System2!DR76,System3!DR76) ->  | DT76: =DT$48 ->  | DU76: =DU$48 ->  | DV76: =DV$48 -> 0 | DW76: =DW$48 ->  | EA76: 0 | EB76: 0 | EC76: 0 | ED76: 0 | EE76: 0 | EG76: =SUM(EF76,System2!EF76,System3!EF76) ->  | FH76: =SUM(FG76,System2!FG76,System3!FG76) ->  | FI76: 0 | FJ76: 0 | FK76: 0 | FL76: 0 | GG76: =$GG$31*WaterFittings!BO51 ->  | GH76: =$GH$31*WaterFittings!BP51 ->  | GI76: =$GI$31*WaterFittings!BQ51 -> 0 | GJ76: =GJ$31*AirCond!BD50 ->  | GK76: =GK$31*AirCond!BE50 ->  | GL76: =GL$31*AirCond!BF50 ->  | GM76: =GM$31*AirCond!BG50 ->  | GN76: =GN$31*WaterFittings!BS51 -> 0 | GO76: =GO$31*WaterFittings!BT51 -> 0 | GP76: =GP$31*WaterFittings!BU51 -> 0
C77: 46 | D77: 0 | E77: 0 | AC77: 18 | AD77: =SUM(SUMPRODUCT(AF$20:AJ$20,Q77:U77),SUMPRODUCT(AF$20:AJ$20,System2!Q77:U77),SUMPRODUCT(AF$20:AJ$20,System3!Q77:U77)) ->  | AE77: =SUM(SUMPRODUCT(AF$21:AJ$21,W77:AA77),SUMPRODUCT(AF$21:AJ$21,System2!W77:AA77),SUMPRODUCT(AF$21:AJ$21,System3!W77:AA77)) ->  | AF77: =WaterFittings!BN52 ->  | AI77: =MIN(AirCond!BL51,P$21) -> 0 | AK77: =MIN(ROUNDDOWN(AJ77-FH77,0),ROUNDDOWN(P$21*0.3,0),ROUNDDOWN(SUM(SUMPRODUCT(I$4:I$15,L$4:L$15),SUMPRODUCT(System2!I$4:I$15,System2!L$4:L$15),SUMPRODUCT(System3!I$4:I$15,System3!L$4:L$15))*0.3,0)) ->  | AL77: 0 | AP77: 0 | AT77: 0 | AX77: 0 | AY77: 0 | AZ77: 0 | BA77: 0 | BL77: 0 | CR77: =SUM(CQ77,System2!CQ77,System3!CQ77) ->  | DS77: =SUM(DR77,System2!DR77,System3!DR77) ->  | DT77: =DT$49 ->  | DU77: =DU$49 ->  | DV77: =DV$49 -> 0 | DW77: =DW$49 ->  | EA77: 0 | EB77: 0 | EC77: 0 | ED77: 0 | EE77: 0 | EG77: =SUM(EF77,System2!EF77,System3!EF77) ->  | FH77: =SUM(FG77,System2!FG77,System3!FG77) ->  | FI77: 0 | FJ77: 0 | FK77: 0 | FL77: 0 | GG77: =$GG$31*WaterFittings!BO52 ->  | GH77: =$GH$31*WaterFittings!BP52 ->  | GI77: =$GI$31*WaterFittings!BQ52 -> 0 | GJ77: =GJ$31*AirCond!BD51 ->  | GK77: =GK$31*AirCond!BE51 ->  | GL77: =GL$31*AirCond!BF51 ->  | GM77: =GM$31*AirCond!BG51 ->  | GN77: =GN$31*WaterFittings!BS52 -> 0 | GO77: =GO$31*WaterFittings!BT52 -> 0 | GP77: =GP$31*WaterFittings!BU52 -> 0
C78: 47 | D78: 0 | E78: 0 | AC78: 19 | AD78: =SUM(SUMPRODUCT(AF$20:AJ$20,Q78:U78),SUMPRODUCT(AF$20:AJ$20,System2!Q78:U78),SUMPRODUCT(AF$20:AJ$20,System3!Q78:U78)) ->  | AE78: =SUM(SUMPRODUCT(AF$21:AJ$21,W78:AA78),SUMPRODUCT(AF$21:AJ$21,System2!W78:AA78),SUMPRODUCT(AF$21:AJ$21,System3!W78:AA78)) ->  | AF78: =WaterFittings!BN53 ->  | AI78: =MIN(AirCond!BL52,P$21) -> 0 | AK78: =MIN(ROUNDDOWN(AJ78-FH78,0),ROUNDDOWN(P$21*0.3,0),ROUNDDOWN(SUM(SUMPRODUCT(I$4:I$15,L$4:L$15),SUMPRODUCT(System2!I$4:I$15,System2!L$4:L$15),SUMPRODUCT(System3!I$4:I$15,System3!L$4:L$15))*0.3,0)) ->  | AL78: 0 | AP78: 0 | AT78: 0 | AX78: 0 | AY78: 0 | AZ78: 0 | BA78: 0 | BL78: 0 | CR78: =SUM(CQ78,System2!CQ78,System3!CQ78) ->  | DS78: =SUM(DR78,System2!DR78,System3!DR78) ->  | DT78: =DT$50 ->  | DU78: =DU$50 ->  | DV78: =DV$50 -> 0 | DW78: =DW$50 ->  | EA78: 0 | EB78: 0 | EC78: 0 | ED78: 0 | EE78: 0 | EG78: =SUM(EF78,System2!EF78,System3!EF78) ->  | FH78: =SUM(FG78,System2!FG78,System3!FG78) ->  | FI78: 0 | FJ78: 0 | FK78: 0 | FL78: 0 | GG78: =$GG$31*WaterFittings!BO53 ->  | GH78: =$GH$31*WaterFittings!BP53 ->  | GI78: =$GI$31*WaterFittings!BQ53 -> 0 | GJ78: =GJ$31*AirCond!BD52 ->  | GK78: =GK$31*AirCond!BE52 ->  | GL78: =GL$31*AirCond!BF52 ->  | GM78: =GM$31*AirCond!BG52 ->  | GN78: =GN$31*WaterFittings!BS53 -> 0 | GO78: =GO$31*WaterFittings!BT53 -> 0 | GP78: =GP$31*WaterFittings!BU53 -> 0
C79: 48 | D79: 0 | E79: 0 | AC79: 20 | AD79: =SUM(SUMPRODUCT(AF$20:AJ$20,Q79:U79),SUMPRODUCT(AF$20:AJ$20,System2!Q79:U79),SUMPRODUCT(AF$20:AJ$20,System3!Q79:U79)) ->  | AE79: =SUM(SUMPRODUCT(AF$21:AJ$21,W79:AA79),SUMPRODUCT(AF$21:AJ$21,System2!W79:AA79),SUMPRODUCT(AF$21:AJ$21,System3!W79:AA79)) ->  | AF79: =WaterFittings!BN54 ->  | AI79: =MIN(AirCond!BL53,P$21) -> 0 | AK79: =MIN(ROUNDDOWN(AJ79-FH79,0),ROUNDDOWN(P$21*0.3,0),ROUNDDOWN(SUM(SUMPRODUCT(I$4:I$15,L$4:L$15),SUMPRODUCT(System2!I$4:I$15,System2!L$4:L$15),SUMPRODUCT(System3!I$4:I$15,System3!L$4:L$15))*0.3,0)) ->  | AL79: 0 | AP79: 0 | AT79: 0 | AX79: 0 | AY79: 0 | AZ79: 0 | BA79: 0 | BL79: 0 | CR79: =SUM(CQ79,System2!CQ79,System3!CQ79) ->  | DS79: =SUM(DR79,System2!DR79,System3!DR79) ->  | DT79: =DT$51 ->  | DU79: =DU$51 ->  | DV79: =DV$51 -> 0 | DW79: =DW$51 ->  | EA79: 0 | EB79: 0 | EC79: 0 | ED79: 0 | EE79: 0 | EG79: =SUM(EF79,System2!EF79,System3!EF79) ->  | FH79: =SUM(FG79,System2!FG79,System3!FG79) ->  | FI79: 0 | FJ79: 0 | FK79: 0 | FL79: 0 | GG79: =$GG$31*WaterFittings!BO54 ->  | GH79: =$GH$31*WaterFittings!BP54 ->  | GI79: =$GI$31*WaterFittings!BQ54 -> 0 | GJ79: =GJ$31*AirCond!BD53 ->  | GK79: =GK$31*AirCond!BE53 ->  | GL79: =GL$31*AirCond!BF53 ->  | GM79: =GM$31*AirCond!BG53 ->  | GN79: =GN$31*WaterFittings!BS54 -> 0 | GO79: =GO$31*WaterFittings!BT54 -> 0 | GP79: =GP$31*WaterFittings!BU54 -> 0
C80: 49 | D80: 1.5 | E80: 0 | AC80: 21 | AD80: =SUM(SUMPRODUCT(AF$20:AJ$20,Q80:U80),SUMPRODUCT(AF$20:AJ$20,System2!Q80:U80),SUMPRODUCT(AF$20:AJ$20,System3!Q80:U80)) ->  | AE80: =SUM(SUMPRODUCT(AF$21:AJ$21,W80:AA80),SUMPRODUCT(AF$21:AJ$21,System2!W80:AA80),SUMPRODUCT(AF$21:AJ$21,System3!W80:AA80)) ->  | AF80: =WaterFittings!BN55 ->  | AI80: =MIN(AirCond!BL54,P$21) -> 0 | AK80: =MIN(ROUNDDOWN(AJ80-FH80,0),ROUNDDOWN(P$21*0.3,0),ROUNDDOWN(SUM(SUMPRODUCT(I$4:I$15,L$4:L$15),SUMPRODUCT(System2!I$4:I$15,System2!L$4:L$15),SUMPRODUCT(System3!I$4:I$15,System3!L$4:L$15))*0.3,0)) ->  | AL80: 0 | AP80: 0 | AT80: 0 | AX80: 0 | AY80: 0 | AZ80: 0 | BA80: 0 | BL80: 0 | CR80: =SUM(CQ80,System2!CQ80,System3!CQ80) ->  | DS80: =SUM(DR80,System2!DR80,System3!DR80) ->  | DT80: =DT$52 ->  | DU80: =DU$52 ->  | DV80: =DV$52 -> 0 | DW80: =DW$52 ->  | EA80: 0 | EB80: 0 | EC80: 0 | ED80: 0 | EE80: 0 | EG80: =SUM(EF80,System2!EF80,System3!EF80) ->  | FH80: =SUM(FG80,System2!FG80,System3!FG80) ->  | FI80: 0 | FJ80: 0 | FK80: 0 | FL80: 0 | GG80: =$GG$31*WaterFittings!BO55 ->  | GH80: =$GH$31*WaterFittings!BP55 ->  | GI80: =$GI$31*WaterFittings!BQ55 -> 0 | GJ80: =GJ$31*AirCond!BD54 ->  | GK80: =GK$31*AirCond!BE54 ->  | GL80: =GL$31*AirCond!BF54 ->  | GM80: =GM$31*AirCond!BG54 ->  | GN80: =GN$31*WaterFittings!BS55 -> 0 | GO80: =GO$31*WaterFittings!BT55 -> 0 | GP80: =GP$31*WaterFittings!BU55 -> 0
C81: 50 | D81: 0 | E81: 0 | AA81: =ROUNDDOWN(FF81,0) ->  | AC81: 22 | AD81: =SUM(SUMPRODUCT(AF$20:AJ$20,Q81:U81),SUMPRODUCT(AF$20:AJ$20,System2!Q81:U81),SUMPRODUCT(AF$20:AJ$20,System3!Q81:U81)) ->  | AE81: =SUM(SUMPRODUCT(AF$21:AJ$21,W81:AA81),SUMPRODUCT(AF$21:AJ$21,System2!W81:AA81),SUMPRODUCT(AF$21:AJ$21,System3!W81:AA81)) ->  | AF81: =WaterFittings!BN56 ->  | AI81: =MIN(AirCond!BL55,P$21) -> 0 | AK81: =MIN(ROUNDDOWN(AJ81-FH81,0),ROUNDDOWN(P$21*0.3,0),ROUNDDOWN(SUM(SUMPRODUCT(I$4:I$15,L$4:L$15),SUMPRODUCT(System2!I$4:I$15,System2!L$4:L$15),SUMPRODUCT(System3!I$4:I$15,System3!L$4:L$15))*0.3,0)) ->  | AL81: 0 | AP81: 0 | AT81: 0 | AX81: 0 | AY81: 0 | AZ81: 0 | BA81: 0 | BL81: 0 | CR81: =SUM(CQ81,System2!CQ81,System3!CQ81) ->  | DS81: =SUM(DR81,System2!DR81,System3!DR81) ->  | DT81: =DT$53 ->  | DU81: =DU$53 ->  | DV81: =DV$53 -> 0 | DW81: =DW$53 ->  | EA81: 0 | EB81: 0 | EC81: 0 | ED81: 0 | EE81: 0 | EG81: =SUM(EF81,System2!EF81,System3!EF81) ->  | FH81: =SUM(FG81,System2!FG81,System3!FG81) ->  | FI81: 0 | FJ81: 0 | FK81: 0 | FL81: 0 | GG81: =$GG$31*WaterFittings!BO56 ->  | GH81: =$GH$31*WaterFittings!BP56 ->  | GI81: =$GI$31*WaterFittings!BQ56 -> 0 | GJ81: =GJ$31*AirCond!BD55 ->  | GK81: =GK$31*AirCond!BE55 ->  | GL81: =GL$31*AirCond!BF55 ->  | GM81: =GM$31*AirCond!BG55 ->  | GN81: =GN$31*WaterFittings!BS56 -> 0 | GO81: =GO$31*WaterFittings!BT56 -> 0 | GP81: =GP$31*WaterFittings!BU56 -> 0
C82: =C81+1 -> 51 | D82: 0 | E82: 0 | AC82: 23 | AD82: =SUM(SUMPRODUCT(AF$20:AJ$20,Q82:U82),SUMPRODUCT(AF$20:AJ$20,System2!Q82:U82),SUMPRODUCT(AF$20:AJ$20,System3!Q82:U82)) ->  | AE82: =SUM(SUMPRODUCT(AF$21:AJ$21,W82:AA82),SUMPRODUCT(AF$21:AJ$21,System2!W82:AA82),SUMPRODUCT(AF$21:AJ$21,System3!W82:AA82)) ->  | AF82: =WaterFittings!BN57 ->  | AI82: =MIN(AirCond!BL56,P$21) -> 0 | AK82: =MIN(ROUNDDOWN(AJ82-FH82,0),ROUNDDOWN(P$21*0.3,0),ROUNDDOWN(SUM(SUMPRODUCT(I$4:I$15,L$4:L$15),SUMPRODUCT(System2!I$4:I$15,System2!L$4:L$15),SUMPRODUCT(System3!I$4:I$15,System3!L$4:L$15))*0.3,0)) ->  | AL82: 0 | AP82: 0 | AT82: 0 | AX82: 0 | AY82: 0 | AZ82: 0 | BA82: 0 | BL82: 0 | CR82: =SUM(CQ82,System2!CQ82,System3!CQ82) ->  | DS82: =SUM(DR82,System2!DR82,System3!DR82) ->  | DT82: =DT$54 ->  | DU82: =DU$54 ->  | DV82: =DV$54 -> 0 | DW82: =DW$54 ->  | EA82: 0 | EB82: 0 | EC82: 0 | ED82: 0 | EE82: 0 | EG82: =SUM(EF82,System2!EF82,System3!EF82) ->  | FH82: =SUM(FG82,System2!FG82,System3!FG82) ->  | FI82: 0 | FJ82: 0 | FK82: 0 | FL82: 0 | GG82: =$GG$31*WaterFittings!BO57 ->  | GH82: =$GH$31*WaterFittings!BP57 ->  | GI82: =$GI$31*WaterFittings!BQ57 -> 0 | GJ82: =GJ$31*AirCond!BD56 ->  | GK82: =GK$31*AirCond!BE56 ->  | GL82: =GL$31*AirCond!BF56 ->  | GM82: =GM$31*AirCond!BG56 ->  | GN82: =GN$31*WaterFittings!BS57 -> 0 | GO82: =GO$31*WaterFittings!BT57 -> 0 | GP82: =GP$31*WaterFittings!BU57 -> 0
C83: 52 | D83: 0 | E83: 0 | AC83: 24 | AD83: =SUM(SUMPRODUCT(AF$20:AJ$20,Q83:U83),SUMPRODUCT(AF$20:AJ$20,System2!Q83:U83),SUMPRODUCT(AF$20:AJ$20,System3!Q83:U83)) ->  | AE83: =SUM(SUMPRODUCT(AF$21:AJ$21,W83:AA83),SUMPRODUCT(AF$21:AJ$21,System2!W83:AA83),SUMPRODUCT(AF$21:AJ$21,System3!W83:AA83)) ->  | AF83: =WaterFittings!BN58 ->  | AI83: =MIN(AirCond!BL57,P$21) -> 0 | AK83: =MIN(ROUNDDOWN(AJ83-FH83,0),ROUNDDOWN(P$21*0.3,0),ROUNDDOWN(SUM(SUMPRODUCT(I$4:I$15,L$4:L$15),SUMPRODUCT(System2!I$4:I$15,System2!L$4:L$15),SUMPRODUCT(System3!I$4:I$15,System3!L$4:L$15))*0.3,0)) ->  | AL83: 0 | AP83: 0 | AT83: 0 | AX83: 0 | AY83: 0 | AZ83: 0 | BA83: 0 | BL83: 0 | CR83: =SUM(CQ83,System2!CQ83,System3!CQ83) ->  | DS83: =SUM(DR83,System2!DR83,System3!DR83) ->  | DT83: =DT$55 ->  | DU83: =DU$55 ->  | DV83: =DV$55 -> 0 | DW83: =DW$55 ->  | EA83: 0 | EB83: 0 | EC83: 0 | ED83: 0 | EE83: 0 | EG83: =SUM(EF83,System2!EF83,System3!EF83) ->  | FH83: =SUM(FG83,System2!FG83,System3!FG83) ->  | FI83: =IF(IF(FI$28>=3,COUNTIF(FI80:FI82,">0"),IF(FI$28=2,COUNTIF(FI81:FI82,">0"),IF(FI$28=1,COUNTIF(FI82,">0")))),0,FI$31) -> 0 | FJ83: 0 | FK83: 0 | FL83: 0 | GG83: =$GG$31*WaterFittings!BO58 ->  | GH83: =$GH$31*WaterFittings!BP58 ->  | GI83: =$GI$31*WaterFittings!BQ58 -> 0 | GJ83: =GJ$31*AirCond!BD57 ->  | GK83: =GK$31*AirCond!BE57 ->  | GL83: =GL$31*AirCond!BF57 ->  | GM83: =GM$31*AirCond!BG57 ->  | GN83: =GN$31*WaterFittings!BS58 -> 0 | GO83: =GO$31*WaterFittings!BT58 -> 0 | GP83: =GP$31*WaterFittings!BU58 -> 0
C84: 53 | D84: 0 | E84: 0 | AC84: 25 | AD84: =SUM(SUMPRODUCT(AF$20:AJ$20,Q84:U84),SUMPRODUCT(AF$20:AJ$20,System2!Q84:U84),SUMPRODUCT(AF$20:AJ$20,System3!Q84:U84)) ->  | AE84: =SUM(SUMPRODUCT(AF$21:AJ$21,W84:AA84),SUMPRODUCT(AF$21:AJ$21,System2!W84:AA84),SUMPRODUCT(AF$21:AJ$21,System3!W84:AA84)) ->  | AF84: =WaterFittings!BN59 ->  | AI84: =MIN(AirCond!BL58,P$21) -> 0 | AK84: =MIN(ROUNDDOWN(AJ84-FH84,0),ROUNDDOWN(P$21*0.3,0),ROUNDDOWN(SUM(SUMPRODUCT(I$4:I$15,L$4:L$15),SUMPRODUCT(System2!I$4:I$15,System2!L$4:L$15),SUMPRODUCT(System3!I$4:I$15,System3!L$4:L$15))*0.3,0)) ->  | AL84: 0 | AP84: 0 | AT84: 0 | AX84: 0 | AY84: 0 | AZ84: 0 | BA84: 0 | BL84: 0 | CR84: =SUM(CQ84,System2!CQ84,System3!CQ84) ->  | DS84: =SUM(DR84,System2!DR84,System3!DR84) ->  | DT84: =DT$56 ->  | DU84: =DU$56 ->  | DV84: =DV$56 -> 0 | DW84: =DW$56 ->  | EA84: 0 | EB84: 0 | EC84: 0 | ED84: 0 | EE84: 0 | EG84: =SUM(EF84,System2!EF84,System3!EF84) ->  | FH84: =SUM(FG84,System2!FG84,System3!FG84) ->  | FI84: 0 | FJ84: 0 | FK84: 0 | FL84: 0 | GG84: =$GG$31*WaterFittings!BO59 ->  | GH84: =$GH$31*WaterFittings!BP59 ->  | GI84: =$GI$31*WaterFittings!BQ59 -> 0 | GJ84: =GJ$31*AirCond!BD58 ->  | GK84: =GK$31*AirCond!BE58 ->  | GL84: =GL$31*AirCond!BF58 ->  | GM84: =GM$31*AirCond!BG58 ->  | GN84: =GN$31*WaterFittings!BS59 -> 0 | GO84: =GO$31*WaterFittings!BT59 -> 0 | GP84: =GP$31*WaterFittings!BU59 -> 0
C85: 54 | D85: 0 | E85: 0 | AC85: 26 | AD85: =SUM(SUMPRODUCT(AF$20:AJ$20,Q85:U85),SUMPRODUCT(AF$20:AJ$20,System2!Q85:U85),SUMPRODUCT(AF$20:AJ$20,System3!Q85:U85)) ->  | AE85: =SUM(SUMPRODUCT(AF$21:AJ$21,W85:AA85),SUMPRODUCT(AF$21:AJ$21,System2!W85:AA85),SUMPRODUCT(AF$21:AJ$21,System3!W85:AA85)) ->  | AF85: =WaterFittings!BN60 ->  | AI85: =MIN(AirCond!BL59,P$21) -> 0 | AK85: =MIN(ROUNDDOWN(AJ85-FH85,0),ROUNDDOWN(P$21*0.3,0),ROUNDDOWN(SUM(SUMPRODUCT(I$4:I$15,L$4:L$15),SUMPRODUCT(System2!I$4:I$15,System2!L$4:L$15),SUMPRODUCT(System3!I$4:I$15,System3!L$4:L$15))*0.3,0)) ->  | AL85: 0 | AP85: 0 | AT85: 0 | AX85: 0 | AY85: 0 | AZ85: 0 | BA85: 0 | BL85: 0 | CR85: =SUM(CQ85,System2!CQ85,System3!CQ85) ->  | DS85: =SUM(DR85,System2!DR85,System3!DR85) ->  | DT85: =DT$57 ->  | DU85: =DU$57 ->  | DV85: =DV$57 -> 0 | DW85: =DW$57 ->  | EA85: 0 | EB85: 0 | EC85: 0 | ED85: 0 | EE85: 0 | EG85: =SUM(EF85,System2!EF85,System3!EF85) ->  | FH85: =SUM(FG85,System2!FG85,System3!FG85) ->  | FI85: 0 | FJ85: 0 | FK85: 0 | FL85: 0 | GG85: =$GG$31*WaterFittings!BO60 ->  | GH85: =$GH$31*WaterFittings!BP60 ->  | GI85: =$GI$31*WaterFittings!BQ60 -> 0 | GJ85: =GJ$31*AirCond!BD59 ->  | GK85: =GK$31*AirCond!BE59 ->  | GL85: =GL$31*AirCond!BF59 ->  | GM85: =GM$31*AirCond!BG59 ->  | GN85: =GN$31*WaterFittings!BS60 -> 0 | GO85: =GO$31*WaterFittings!BT60 -> 0 | GP85: =GP$31*WaterFittings!BU60 -> 0
C86: 55 | D86: 0 | E86: 0 | AC86: 27 | AD86: =SUM(SUMPRODUCT(AF$20:AJ$20,Q86:U86),SUMPRODUCT(AF$20:AJ$20,System2!Q86:U86),SUMPRODUCT(AF$20:AJ$20,System3!Q86:U86)) ->  | AE86: =SUM(SUMPRODUCT(AF$21:AJ$21,W86:AA86),SUMPRODUCT(AF$21:AJ$21,System2!W86:AA86),SUMPRODUCT(AF$21:AJ$21,System3!W86:AA86)) ->  | AF86: =WaterFittings!BN61 ->  | AI86: =MIN(AirCond!BL60,P$21) -> 0 | AK86: =MIN(ROUNDDOWN(AJ86-FH86,0),ROUNDDOWN(P$21*0.3,0),ROUNDDOWN(SUM(SUMPRODUCT(I$4:I$15,L$4:L$15),SUMPRODUCT(System2!I$4:I$15,System2!L$4:L$15),SUMPRODUCT(System3!I$4:I$15,System3!L$4:L$15))*0.3,0)) ->  | AL86: 0 | AP86: 0 | AT86: 0 | AX86: 0 | AY86: 0 | AZ86: 0 | BA86: 0 | BL86: 0 | CR86: =SUM(CQ86,System2!CQ86,System3!CQ86) ->  | DS86: =SUM(DR86,System2!DR86,System3!DR86) ->  | DT86: =DT$58 ->  | DU86: =DU$58 ->  | DV86: =DV$58 -> 0 | DW86: =DW$58 ->  | EA86: 0 | EB86: 0 | EC86: 0 | ED86: 0 | EE86: 0 | EG86: =SUM(EF86,System2!EF86,System3!EF86) ->  | FH86: =SUM(FG86,System2!FG86,System3!FG86) ->  | FI86: 0 | FJ86: 0 | FK86: 0 | FL86: 0 | GG86: =$GG$31*WaterFittings!BO61 ->  | GH86: =$GH$31*WaterFittings!BP61 ->  | GI86: =$GI$31*WaterFittings!BQ61 -> 0 | GJ86: =GJ$31*AirCond!BD60 ->  | GK86: =GK$31*AirCond!BE60 ->  | GL86: =GL$31*AirCond!BF60 ->  | GM86: =GM$31*AirCond!BG60 ->  | GN86: =GN$31*WaterFittings!BS61 -> 0 | GO86: =GO$31*WaterFittings!BT61 -> 0 | GP86: =GP$31*WaterFittings!BU61 -> 0
C87: 56 | D87: 4.5 | E87: 0 | AC87: 28 | AD87: =SUM(SUMPRODUCT(AF$20:AJ$20,Q87:U87),SUMPRODUCT(AF$20:AJ$20,System2!Q87:U87),SUMPRODUCT(AF$20:AJ$20,System3!Q87:U87)) ->  | AE87: =SUM(SUMPRODUCT(AF$21:AJ$21,W87:AA87),SUMPRODUCT(AF$21:AJ$21,System2!W87:AA87),SUMPRODUCT(AF$21:AJ$21,System3!W87:AA87)) ->  | AF87: =WaterFittings!BN62 ->  | AI87: =MIN(AirCond!BL61,P$21) -> 0 | AK87: =MIN(ROUNDDOWN(AJ87-FH87,0),ROUNDDOWN(P$21*0.3,0),ROUNDDOWN(SUM(SUMPRODUCT(I$4:I$15,L$4:L$15),SUMPRODUCT(System2!I$4:I$15,System2!L$4:L$15),SUMPRODUCT(System3!I$4:I$15,System3!L$4:L$15))*0.3,0)) ->  | AL87: 0 | AP87: 0 | AT87: 0 | AX87: 0 | AY87: 0 | AZ87: 0 | BA87: 0 | BL87: 0 | CR87: =SUM(CQ87,System2!CQ87,System3!CQ87) ->  | DS87: =SUM(DR87,System2!DR87,System3!DR87) ->  | DT87: =DT$59 ->  | DU87: =DU$59 ->  | DV87: =DV$59 -> 0 | DW87: =DW$59 ->  | EA87: 0 | EB87: 0 | EC87: 0 | ED87: 0 | EE87: 0 | EG87: =SUM(EF87,System2!EF87,System3!EF87) ->  | FH87: =SUM(FG87,System2!FG87,System3!FG87) ->  | FI87: 0 | FJ87: 0 | FK87: 0 | FL87: 0 | GG87: =$GG$31*WaterFittings!BO62 ->  | GH87: =$GH$31*WaterFittings!BP62 ->  | GI87: =$GI$31*WaterFittings!BQ62 -> 0 | GJ87: =GJ$31*AirCond!BD61 ->  | GK87: =GK$31*AirCond!BE61 ->  | GL87: =GL$31*AirCond!BF61 ->  | GM87: =GM$31*AirCond!BG61 ->  | GN87: =GN$31*WaterFittings!BS62 -> 0 | GO87: =GO$31*WaterFittings!BT62 -> 0 | GP87: =GP$31*WaterFittings!BU62 -> 0
C88: 57 | D88: 0.5 | E88: 0 | AA88: =ROUNDDOWN(FF88,0) ->  | AC88: 1 | AD88: =SUM(SUMPRODUCT(AF$20:AJ$20,Q88:U88),SUMPRODUCT(AF$20:AJ$20,System2!Q88:U88),SUMPRODUCT(AF$20:AJ$20,System3!Q88:U88)) ->  | AE88: =SUM(SUMPRODUCT(AF$21:AJ$21,W88:AA88),SUMPRODUCT(AF$21:AJ$21,System2!W88:AA88),SUMPRODUCT(AF$21:AJ$21,System3!W88:AA88)) ->  | AF88: =WaterFittings!BN63 ->  | AI88: =MIN(AirCond!BL62,P$21) -> 0 | AK88: =MIN(ROUNDDOWN(AJ88-FH88,0),ROUNDDOWN(P$21*0.3,0),ROUNDDOWN(SUM(SUMPRODUCT(I$4:I$15,L$4:L$15),SUMPRODUCT(System2!I$4:I$15,System2!L$4:L$15),SUMPRODUCT(System3!I$4:I$15,System3!L$4:L$15))*0.3,0)) ->  | AL88: 0 | AP88: 0 | AT88: 0 | AX88: 0 | AY88: 0 | AZ88: 0 | BA88: 0 | BL88: 0 | CR88: =SUM(CQ88,System2!CQ88,System3!CQ88) ->  | DS88: =SUM(DR88,System2!DR88,System3!DR88) ->  | DT88: =DT$32 ->  | DU88: =DU$32 ->  | DV88: =DV$32 -> 0 | DW88: =DW$32 ->  | EA88: 0 | EB88: 0 | EC88: 0 | ED88: 0 | EE88: 0 | EG88: =SUM(EF88,System2!EF88,System3!EF88) ->  | FH88: =SUM(FG88,System2!FG88,System3!FG88) ->  | FI88: 0 | FJ88: 0 | FK88: 0 | FL88: 0 | GG88: =$GG$31*WaterFittings!BO63 ->  | GH88: =$GH$31*WaterFittings!BP63 ->  | GI88: =$GI$31*WaterFittings!BQ63 -> 0 | GJ88: =GJ$31*AirCond!BD62 ->  | GK88: =GK$31*AirCond!BE62 ->  | GL88: =GL$31*AirCond!BF62 ->  | GM88: =GM$31*AirCond!BG62 ->  | GN88: =GN$31*WaterFittings!BS63 -> 0 | GO88: =GO$31*WaterFittings!BT63 -> 0 | GP88: =GP$31*WaterFittings!BU63 -> 0
C89: =C88+1 -> 58 | D89: 4.5 | E89: 0 | AC89: 2 | AD89: =SUM(SUMPRODUCT(AF$20:AJ$20,Q89:U89),SUMPRODUCT(AF$20:AJ$20,System2!Q89:U89),SUMPRODUCT(AF$20:AJ$20,System3!Q89:U89)) ->  | AE89: =SUM(SUMPRODUCT(AF$21:AJ$21,W89:AA89),SUMPRODUCT(AF$21:AJ$21,System2!W89:AA89),SUMPRODUCT(AF$21:AJ$21,System3!W89:AA89)) ->  | AF89: =WaterFittings!BN64 ->  | AI89: =MIN(AirCond!BL63,P$21) -> 0 | AK89: =MIN(ROUNDDOWN(AJ89-FH89,0),ROUNDDOWN(P$21*0.3,0),ROUNDDOWN(SUM(SUMPRODUCT(I$4:I$15,L$4:L$15),SUMPRODUCT(System2!I$4:I$15,System2!L$4:L$15),SUMPRODUCT(System3!I$4:I$15,System3!L$4:L$15))*0.3,0)) ->  | AL89: 0 | AP89: 0 | AT89: 0 | AX89: 0 | AY89: 0 | AZ89: 0 | BA89: 0 | BL89: 0 | CR89: =SUM(CQ89,System2!CQ89,System3!CQ89) ->  | DS89: =SUM(DR89,System2!DR89,System3!DR89) ->  | DT89: =DT$33 ->  | DU89: =DU$33 ->  | DV89: =DV$33 -> 0 | DW89: =DW$33 ->  | EA89: 0 | EB89: 0 | EC89: 0 | ED89: 0 | EE89: 0 | EG89: =SUM(EF89,System2!EF89,System3!EF89) ->  | FH89: =SUM(FG89,System2!FG89,System3!FG89) ->  | FI89: 0 | FJ89: 0 | FK89: 0 | FL89: 0 | GG89: =$GG$31*WaterFittings!BO64 ->  | GH89: =$GH$31*WaterFittings!BP64 ->  | GI89: =$GI$31*WaterFittings!BQ64 -> 0 | GJ89: =GJ$31*AirCond!BD63 ->  | GK89: =GK$31*AirCond!BE63 ->  | GL89: =GL$31*AirCond!BF63 ->  | GM89: =GM$31*AirCond!BG63 ->  | GN89: =GN$31*WaterFittings!BS64 -> 0 | GO89: =GO$31*WaterFittings!BT64 -> 0 | GP89: =GP$31*WaterFittings!BU64 -> 0
C90: 59 | D90: 0 | E90: 0 | AC90: 3 | AD90: =SUM(SUMPRODUCT(AF$20:AJ$20,Q90:U90),SUMPRODUCT(AF$20:AJ$20,System2!Q90:U90),SUMPRODUCT(AF$20:AJ$20,System3!Q90:U90)) ->  | AE90: =SUM(SUMPRODUCT(AF$21:AJ$21,W90:AA90),SUMPRODUCT(AF$21:AJ$21,System2!W90:AA90),SUMPRODUCT(AF$21:AJ$21,System3!W90:AA90)) ->  | AF90: =WaterFittings!BN65 ->  | AI90: =MIN(AirCond!BL64,P$21) -> 0 | AK90: =MIN(ROUNDDOWN(AJ90-FH90,0),ROUNDDOWN(P$21*0.3,0),ROUNDDOWN(SUM(SUMPRODUCT(I$4:I$15,L$4:L$15),SUMPRODUCT(System2!I$4:I$15,System2!L$4:L$15),SUMPRODUCT(System3!I$4:I$15,System3!L$4:L$15))*0.3,0)) ->  | AL90: 0 | AP90: 0 | AT90: 0 | AX90: 0 | AY90: 0 | AZ90: 0 | BA90: 0 | BL90: 0 | CR90: =SUM(CQ90,System2!CQ90,System3!CQ90) ->  | DS90: =SUM(DR90,System2!DR90,System3!DR90) ->  | DT90: =DT$34 ->  | DU90: =DU$34 ->  | DV90: =DV$34 -> 0 | DW90: =DW$34 ->  | EA90: 0 | EB90: 0 | EC90: 0 | ED90: 0 | EE90: 0 | EG90: =SUM(EF90,System2!EF90,System3!EF90) ->  | FH90: =SUM(FG90,System2!FG90,System3!FG90) ->  | FI90: 0 | FJ90: 0 | FK90: 0 | FL90: 0 | GG90: =$GG$31*WaterFittings!BO65 ->  | GH90: =$GH$31*WaterFittings!BP65 ->  | GI90: =$GI$31*WaterFittings!BQ65 -> 0 | GJ90: =GJ$31*AirCond!BD64 ->  | GK90: =GK$31*AirCond!BE64 ->  | GL90: =GL$31*AirCond!BF64 ->  | GM90: =GM$31*AirCond!BG64 ->  | GN90: =GN$31*WaterFittings!BS65 -> 0 | GO90: =GO$31*WaterFittings!BT65 -> 0 | GP90: =GP$31*WaterFittings!BU65 -> 0
B91: March | C91: 60 | D91: 0 | E91: 0 | AC91: 4 | AD91: =SUM(SUMPRODUCT(AF$20:AJ$20,Q91:U91),SUMPRODUCT(AF$20:AJ$20,System2!Q91:U91),SUMPRODUCT(AF$20:AJ$20,System3!Q91:U91)) ->  | AE91: =SUM(SUMPRODUCT(AF$21:AJ$21,W91:AA91),SUMPRODUCT(AF$21:AJ$21,System2!W91:AA91),SUMPRODUCT(AF$21:AJ$21,System3!W91:AA91)) ->  | AF91: =WaterFittings!BN66 ->  | AI91: =MIN(AirCond!BL65,P$21) -> 0 | AK91: =MIN(ROUNDDOWN(AJ91-FH91,0),ROUNDDOWN(P$21*0.3,0),ROUNDDOWN(SUM(SUMPRODUCT(I$4:I$15,L$4:L$15),SUMPRODUCT(System2!I$4:I$15,System2!L$4:L$15),SUMPRODUCT(System3!I$4:I$15,System3!L$4:L$15))*0.3,0)) ->  | AL91: 0 | AP91: 0 | AT91: 0 | AX91: 0 | AY91: 0 | AZ91: 0 | BA91: 0 | BL91: 0 | CR91: =SUM(CQ91,System2!CQ91,System3!CQ91) ->  | DS91: =SUM(DR91,System2!DR91,System3!DR91) ->  | DT91: =DT$35 ->  | DU91: =DU$35 ->  | DV91: =DV$35 -> 0 | DW91: =DW$35 ->  | EA91: 0 | EB91: 0 | EC91: 0 | ED91: 0 | EE91: 0 | EG91: =SUM(EF91,System2!EF91,System3!EF91) ->  | FH91: =SUM(FG91,System2!FG91,System3!FG91) ->  | FI91: 0 | FJ91: 0 | FK91: 0 | FL91: 0 | GG91: =$GG$31*WaterFittings!BO66 ->  | GH91: =$GH$31*WaterFittings!BP66 ->  | GI91: =$GI$31*WaterFittings!BQ66 -> 0 | GJ91: =GJ$31*AirCond!BD65 ->  | GK91: =GK$31*AirCond!BE65 ->  | GL91: =GL$31*AirCond!BF65 ->  | GM91: =GM$31*AirCond!BG65 ->  | GN91: =GN$31*WaterFittings!BS66 -> 0 | GO91: =GO$31*WaterFittings!BT66 -> 0 | GP91: =GP$31*WaterFittings!BU66 -> 0
C92: 61 | D92: 0 | E92: 0 | AC92: 5 | AD92: =SUM(SUMPRODUCT(AF$20:AJ$20,Q92:U92),SUMPRODUCT(AF$20:AJ$20,System2!Q92:U92),SUMPRODUCT(AF$20:AJ$20,System3!Q92:U92)) ->  | AE92: =SUM(SUMPRODUCT(AF$21:AJ$21,W92:AA92),SUMPRODUCT(AF$21:AJ$21,System2!W92:AA92),SUMPRODUCT(AF$21:AJ$21,System3!W92:AA92)) ->  | AF92: =WaterFittings!BN67 ->  | AI92: =MIN(AirCond!BL66,P$21) -> 0 | AK92: =MIN(ROUNDDOWN(AJ92-FH92,0),ROUNDDOWN(P$21*0.3,0),ROUNDDOWN(SUM(SUMPRODUCT(I$4:I$15,L$4:L$15),SUMPRODUCT(System2!I$4:I$15,System2!L$4:L$15),SUMPRODUCT(System3!I$4:I$15,System3!L$4:L$15))*0.3,0)) ->  | AL92: 0 | AP92: 0 | AT92: 0 | AX92: 0 | AY92: 0 | AZ92: 0 | BA92: 0 | BL92: 0 | CR92: =SUM(CQ92,System2!CQ92,System3!CQ92) ->  | DS92: =SUM(DR92,System2!DR92,System3!DR92) ->  | DT92: =DT$36 ->  | DU92: =DU$36 ->  | DV92: =DV$36 -> 0 | DW92: =DW$36 ->  | EA92: 0 | EB92: 0 | EC92: 0 | ED92: 0 | EE92: 0 | EG92: =SUM(EF92,System2!EF92,System3!EF92) ->  | FH92: =SUM(FG92,System2!FG92,System3!FG92) ->  | FI92: 0 | FJ92: 0 | FK92: 0 | FL92: 0 | GG92: =$GG$31*WaterFittings!BO67 ->  | GH92: =$GH$31*WaterFittings!BP67 ->  | GI92: =$GI$31*WaterFittings!BQ67 -> 0 | GJ92: =GJ$31*AirCond!BD66 ->  | GK92: =GK$31*AirCond!BE66 ->  | GL92: =GL$31*AirCond!BF66 ->  | GM92: =GM$31*AirCond!BG66 ->  | GN92: =GN$31*WaterFittings!BS67 -> 0 | GO92: =GO$31*WaterFittings!BT67 -> 0 | GP92: =GP$31*WaterFittings!BU67 -> 0
C93: 62 | D93: 0 | E93: 0 | AC93: 6 | AD93: =SUM(SUMPRODUCT(AF$20:AJ$20,Q93:U93),SUMPRODUCT(AF$20:AJ$20,System2!Q93:U93),SUMPRODUCT(AF$20:AJ$20,System3!Q93:U93)) ->  | AE93: =SUM(SUMPRODUCT(AF$21:AJ$21,W93:AA93),SUMPRODUCT(AF$21:AJ$21,System2!W93:AA93),SUMPRODUCT(AF$21:AJ$21,System3!W93:AA93)) ->  | AF93: =WaterFittings!BN68 ->  | AI93: =MIN(AirCond!BL67,P$21) -> 0 | AK93: =MIN(ROUNDDOWN(AJ93-FH93,0),ROUNDDOWN(P$21*0.3,0),ROUNDDOWN(SUM(SUMPRODUCT(I$4:I$15,L$4:L$15),SUMPRODUCT(System2!I$4:I$15,System2!L$4:L$15),SUMPRODUCT(System3!I$4:I$15,System3!L$4:L$15))*0.3,0)) ->  | AL93: 0 | AP93: 0 | AT93: 0 | AX93: 0 | AY93: 0 | AZ93: 0 | BA93: 0 | BL93: 0 | CR93: =SUM(CQ93,System2!CQ93,System3!CQ93) ->  | DS93: =SUM(DR93,System2!DR93,System3!DR93) ->  | DT93: =DT$37 ->  | DU93: =DU$37 ->  | DV93: =DV$37 -> 0 | DW93: =DW$37 ->  | EA93: 0 | EB93: 0 | EC93: 0 | ED93: 0 | EE93: 0 | EG93: =SUM(EF93,System2!EF93,System3!EF93) ->  | FH93: =SUM(FG93,System2!FG93,System3!FG93) ->  | FI93: 0 | FJ93: 0 | FK93: 0 | FL93: 0 | GG93: =$GG$31*WaterFittings!BO68 ->  | GH93: =$GH$31*WaterFittings!BP68 ->  | GI93: =$GI$31*WaterFittings!BQ68 -> 0 | GJ93: =GJ$31*AirCond!BD67 ->  | GK93: =GK$31*AirCond!BE67 ->  | GL93: =GL$31*AirCond!BF67 ->  | GM93: =GM$31*AirCond!BG67 ->  | GN93: =GN$31*WaterFittings!BS68 -> 0 | GO93: =GO$31*WaterFittings!BT68 -> 0 | GP93: =GP$31*WaterFittings!BU68 -> 0
C94: 63 | D94: 0 | E94: 0 | AC94: 7 | AD94: =SUM(SUMPRODUCT(AF$20:AJ$20,Q94:U94),SUMPRODUCT(AF$20:AJ$20,System2!Q94:U94),SUMPRODUCT(AF$20:AJ$20,System3!Q94:U94)) ->  | AE94: =SUM(SUMPRODUCT(AF$21:AJ$21,W94:AA94),SUMPRODUCT(AF$21:AJ$21,System2!W94:AA94),SUMPRODUCT(AF$21:AJ$21,System3!W94:AA94)) ->  | AF94: =WaterFittings!BN69 ->  | AI94: =MIN(AirCond!BL68,P$21) -> 0 | AK94: =MIN(ROUNDDOWN(AJ94-FH94,0),ROUNDDOWN(P$21*0.3,0),ROUNDDOWN(SUM(SUMPRODUCT(I$4:I$15,L$4:L$15),SUMPRODUCT(System2!I$4:I$15,System2!L$4:L$15),SUMPRODUCT(System3!I$4:I$15,System3!L$4:L$15))*0.3,0)) ->  | AL94: 0 | AP94: 0 | AT94: 0 | AX94: 0 | AY94: 0 | AZ94: 0 | BA94: 0 | BL94: 0 | CR94: =SUM(CQ94,System2!CQ94,System3!CQ94) ->  | DS94: =SUM(DR94,System2!DR94,System3!DR94) ->  | DT94: =DT$38 ->  | DU94: =DU$38 ->  | DV94: =DV$38 -> 0 | DW94: =DW$38 ->  | EA94: 0 | EB94: 0 | EC94: 0 | ED94: 0 | EE94: 0 | EG94: =SUM(EF94,System2!EF94,System3!EF94) ->  | FH94: =SUM(FG94,System2!FG94,System3!FG94) ->  | FI94: 0 | FJ94: 0 | FK94: 0 | FL94: 0 | GG94: =$GG$31*WaterFittings!BO69 ->  | GH94: =$GH$31*WaterFittings!BP69 ->  | GI94: =$GI$31*WaterFittings!BQ69 -> 0 | GJ94: =GJ$31*AirCond!BD68 ->  | GK94: =GK$31*AirCond!BE68 ->  | GL94: =GL$31*AirCond!BF68 ->  | GM94: =GM$31*AirCond!BG68 ->  | GN94: =GN$31*WaterFittings!BS69 -> 0 | GO94: =GO$31*WaterFittings!BT69 -> 0 | GP94: =GP$31*WaterFittings!BU69 -> 0
